Workbook

Sheet Sheet1
B2: 201015 | C2: 11034 | D2: البنك الاهلى | E2: احمد محمد عبد الله حسن | F2: 0 | G2: دوام كامل | H2: فنى | I2: الثانية | J2: الثانية | K2: ميكانيكى | L2: الادارة العامة بالورش المركزية | M2: 26605180103896 | N2: 201015احمد محمد عبد الله حسنالثانيةالثانيةميكانيكى الادارة العامة بالورش المركزية | O2: نعم | P2: 2164.44 | Q2: 2532.3948 | R2: 0 | S2: =ROUND(Q2*135%,2) -> 3418.73 | T2: =ROUND(Q2*15%,2) -> 379.86 | U2: 0 | V2: 0 | W2: 0 | Y2: 379.85922 | Z2: 300 | AB2: 0 | AD2: 0 | AE2: 0 | AF2: =ROUND(SUM(X2:AA2,AC2:AE2),2) -> 679.86 | AG2: 0 | AH2: 0 | AI2: 0 | AJ2: 1736.59 | AK2: 0 | AL2: 0 | AM2: 0 | AN2: 0 | AO2: 0 | AP2: 0 | AQ2: 0 | AS2: 108.222 | AT2: 0 | AU2: 0 | AV2: =ROUND(SUM(AG2:AU2),2) -> 1844.81 | AW2: 10 | AX2: 0 | AY2: 455.6716 | AZ2: 0 | BB2: 0 | BC2: =ROUND(SUM(Q2:W2,AF2,AV2,AW2:AY2),2) -> 9321.33 | BD2: =IF(BC2<7000,7000-BC2,0) -> 0 | BE2: =ROUND(SUM(AB2,AZ2:BD2),2) -> 9321.33 | BF2: 0 | BG2: 0 | BJ2: 824.6832129 | BK2: 17 | BL2: =(BE2-SUM($S2,AY2:BB2))/30*BH2 -> 0 | BM2: =(BE2-SUM($S2,AY2:BB2))/30*BI2 -> 0 | BN2: =IF(Sheet1!$BH2=1,Sheet1!$S2*20%,IF(Sheet1!$BH2=2,Sheet1!$S2*100%,IF(Sheet1!$BH2>2,Sheet1!$S2*100%,""))) ->  | BO2: =IF(Sheet1!$BF2<=4,Sheet1!$S2*0,IF(Sheet1!$BF2=5,Sheet1!$S2*20%,IF(Sheet1!$BF2=6,Sheet1!$S2*40%,IF(Sheet1!$BF2=7,Sheet1!$S2*50%,IF(Sheet1!$BF2>7,Sheet1!$S2*100%,""))))) -> 0 | BP2: =IF(Sheet1!$BG2<=2,Sheet1!$S2*0,IF(Sheet1!$BG2=3,Sheet1!$S2*30%,IF(Sheet1!$BG2=4,Sheet1!$S2*40%,IF(Sheet1!$BG2=5,Sheet1!$S2*50%,IF(Sheet1!$BG2>5,Sheet1!$S2*100%,""))))) -> 0 | BQ2: 0 | BR2: 0 | BT2: 3 | BU2: 0 | BX2: 0 | CC2: 0 | CE2: 0 | CG2: 3.68 | CH2: 3 | CI2: 0 | CL2: 0 | CN2: 0 | CO2: =ROUND(IF(G2=#REF!,(BE2-AY2)*40%,0),2) ->  | CP2: =AY2 -> 455.6716 | CQ2: 0 | CS2: =ROUND(IF($D2=#REF!,$BE2-SUM(BJ2:CQ2,0),0),2) ->  | CT2: =ROUND(IF($D2=#REF!,$BE2-SUM(BJ2:CQ2,0),0),2) ->  | CU2: =ROUND(IF($G2=#REF!,$BE2-SUM(BK2:CR2,0),0),2) ->  | CV2: =ROUND(SUM(BJ2:CU2),2) ->  | CW2: =BE2-CV2 -> 
B3: 201017 | C3: 11070 | D3: البنك الاهلى | E3: رضا حنفى ابو سريع | F3: 0 | G3: دوام كامل | H3: فنى | I3: الخامسة | J3: الخامسة | K3: حرفى سمكرى | L3: الورش المركزية | M3: 28706070101276 | N3: 201017رضا حنفى ابو سريع الخامسةالخامسةحرفى سمكرىالورش المركزية | O3: نعم | P3: 919.47 | Q3: 1075.7799 | R3: 0 | S3: 1452.3 | T3: 161.37 | U3: 0 | V3: 0 | W3: 0 | Y3: 161.366985 | Z3: 300 | AB3: 0 | AD3: 0 | AE3: 0 | AF3: 461.37 | AG3: 0 | AH3: 0 | AI3: 0 | AJ3: 362.62 | AK3: 0 | AL3: 32.11 | AM3: 32.78 | AN3: 42.09 | AO3: 60.04 | AP3: 68.78 | AQ3: 89.85 | AS3: 58.053 | AT3: 600 | AU3: 10 | AV3: 1356.32 | AW3: 10 | AX3: 0 | AY3: 193.5726 | AZ3: 0 | BB3: 0 | BC3: 4710.71 | BD3: 2289.29 | BE3: 7000 | BF3: 0 | BG3: 0 | BJ3: 523.1842236 | BK3: 0 | BL3: 0 | BM3: 0 | BN3: =IF(Sheet1!$BH3=1,Sheet1!$S3*20%,IF(Sheet1!$BH3=2,Sheet1!$S3*100%,IF(Sheet1!$BH3>2,Sheet1!$S3*100%,""))) ->  | BO3: =IF(Sheet1!$BF3<=4,Sheet1!$S3*0,IF(Sheet1!$BF3=5,Sheet1!$S3*20%,IF(Sheet1!$BF3=6,Sheet1!$S3*40%,IF(Sheet1!$BF3=7,Sheet1!$S3*50%,IF(Sheet1!$BF3>7,Sheet1!$S3*100%,""))))) -> 0 | BP3: =IF(Sheet1!$BG3<=2,Sheet1!$S3*0,IF(Sheet1!$BG3=3,Sheet1!$S3*30%,IF(Sheet1!$BG3=4,Sheet1!$S3*40%,IF(Sheet1!$BG3=5,Sheet1!$S3*50%,IF(Sheet1!$BG3>5,Sheet1!$S3*100%,""))))) -> 0 | BQ3: 0 | BR3: 0 | BT3: 3 | BU3: 0 | BX3: 0 | CC3: 0 | CE3: 0 | CG3: 2.63 | CH3: 3 | CI3: 0 | CL3: 0 | CN3: 0 | CO3: =ROUND(IF(G3=#REF!,(BE3-AY3)*40%,0),2) ->  | CP3: 193.5726 | CQ3: 0 | CS3: =ROUND(IF($D3=#REF!,$BE3-SUM(BJ3:CQ3,0),0),2) ->  | CT3: =ROUND(IF($D3=#REF!,$BE3-SUM(BJ3:CQ3,0),0),2) ->  | CU3: =ROUND(IF($G3=#REF!,$BE3-SUM(BK3:CR3,0),0),2) -> 
B4: 201018 | C4: 4416 | D4: بنك مصر 1 | E4: هانى على على على حجازى | F4: 0 | G4: دوام كامل | H4: فنى | I4: الخامسة | J4: الخامسة | K4: حرفى سمكرى | L4: الورش المركزية | M4: 27803170100775 | N4: 201018هانى على على على حجازىالخامسةالخامسةحرفى سمكرىالورش المركزية | O4: نعم | P4: 735.53 | Q4: 860.5701 | R4: 0 | S4: 1161.77 | T4: 129.09 | U4: 0 | V4: 0 | W4: 0 | Y4: 129.085515 | Z4: 300 | AB4: 0 | AD4: 0 | AE4: 0 | AF4: 429.09 | AG4: 0 | AH4: 0 | AI4: 0 | AJ4: 1287.4 | AK4: 0 | AL4: 0 | AM4: 0 | AN4: 0 | AO4: 0 | AP4: 0 | AQ4: 0 | AS4: 76.447 | AT4: 0 | AU4: 10 | AV4: 1373.85 | AW4: 10 | AX4: 0 | AY4: 154.8484 | AZ4: 0 | BB4: 0 | BC4: 4119.22 | BD4: 2880.78 | BE4: 7000 | BF4: 0 | BG4: 0 | BJ4: 516.6425 | BK4: 0 | BL4: 0 | BM4: 0 | BN4: =IF(Sheet1!$BH4=1,Sheet1!$S4*20%,IF(Sheet1!$BH4=2,Sheet1!$S4*100%,IF(Sheet1!$BH4>2,Sheet1!$S4*100%,""))) ->  | BO4: =IF(Sheet1!$BF4<=4,Sheet1!$S4*0,IF(Sheet1!$BF4=5,Sheet1!$S4*20%,IF(Sheet1!$BF4=6,Sheet1!$S4*40%,IF(Sheet1!$BF4=7,Sheet1!$S4*50%,IF(Sheet1!$BF4>7,Sheet1!$S4*100%,""))))) -> 0 | BP4: =IF(Sheet1!$BG4<=2,Sheet1!$S4*0,IF(Sheet1!$BG4=3,Sheet1!$S4*30%,IF(Sheet1!$BG4=4,Sheet1!$S4*40%,IF(Sheet1!$BG4=5,Sheet1!$S4*50%,IF(Sheet1!$BG4>5,Sheet1!$S4*100%,""))))) -> 0 | BQ4: 0 | BR4: 0 | BT4: 3 | BU4: 0 | BX4: 0 | CC4: 0 | CE4: 0 | CG4: 2.68 | CH4: 3 | CI4: 0 | CL4: 0 | CN4: 0 | CO4: =ROUND(IF(G4=#REF!,(BE4-AY4)*40%,0),2) ->  | CP4: 154.8484 | CQ4: 0 | CS4: =ROUND(IF($D4=#REF!,$BE4-SUM(BJ4:CQ4,0),0),2) ->  | CT4: =ROUND(IF($D4=#REF!,$BE4-SUM(BJ4:CQ4,0),0),2) ->  | CU4: =ROUND(IF($G4=#REF!,$BE4-SUM(BK4:CR4,0),0),2) -> 
B5: 201019 | C5: 3556 | D5: بنك مصر 1 | E5: عاطف سيد عباس عبده | F5: 0 | G5: دوام كامل | H5: فنى | I5: الرابعة | M5: 27401250100694 | N5: 201019عاطف سيد عباس عبدهالرابعة | P5: 1312.46 | Q5: 1535.58 | R5: 0 | S5: 2073.03 | T5: 230.34 | U5: 0 | V5: 0 | W5: 0 | Y5: 230.337 | Z5: 300 | AB5: 0 | AD5: 0 | AE5: 0 | AF5: 530.34 | AG5: 0 | AH5: 0 | AI5: 0 | AJ5: 360.28 | AK5: 0 | AL5: 26.24 | AM5: 46.79 | AN5: 60.08 | AO5: 85.71 | AP5: 91.71 | AQ5: 98.13 | AS5: 65.623 | AT5: 600 | AU5: 10 | AV5: 1444.56 | AW5: 10 | AX5: 0 | AY5: 276.3074 | AZ5: 0 | BB5: 0 | BC5: 6100.16 | BD5: 899.84 | BE5: 7000 | BF5: 0 | BG5: 0 | BJ5: 538.9977979 | BK5: 0 | BL5: 0 | BM5: 0 | BN5: =IF(Sheet1!$BH5=1,Sheet1!$S5*20%,IF(Sheet1!$BH5=2,Sheet1!$S5*100%,IF(Sheet1!$BH5>2,Sheet1!$S5*100%,""))) ->  | BO5: =IF(Sheet1!$BF5<=4,Sheet1!$S5*0,IF(Sheet1!$BF5=5,Sheet1!$S5*20%,IF(Sheet1!$BF5=6,Sheet1!$S5*40%,IF(Sheet1!$BF5=7,Sheet1!$S5*50%,IF(Sheet1!$BF5>7,Sheet1!$S5*100%,""))))) -> 0 | BP5: =IF(Sheet1!$BG5<=2,Sheet1!$S5*0,IF(Sheet1!$BG5=3,Sheet1!$S5*30%,IF(Sheet1!$BG5=4,Sheet1!$S5*40%,IF(Sheet1!$BG5=5,Sheet1!$S5*50%,IF(Sheet1!$BG5>5,Sheet1!$S5*100%,""))))) -> 0 | BQ5: 0 | BR5: 0 | BT5: 3 | BU5: 0 | BX5: 0 | CC5: 0 | CE5: 0 | CG5: 2.31 | CH5: 3 | CI5: 0 | CL5: 0 | CN5: 0 | CO5: =ROUND(IF(G5=#REF!,(BE5-AY5)*40%,0),2) ->  | CP5: 276.3074 | CQ5: 0 | CS5: =ROUND(IF($D5=#REF!,$BE5-SUM(BJ5:CQ5,0),0),2) ->  | CT5: =ROUND(IF($D5=#REF!,$BE5-SUM(BJ5:CQ5,0),0),2) ->  | CU5: =ROUND(IF($G5=#REF!,$BE5-SUM(BK5:CR5,0),0),2) -> 
B6: 201020 | C6: 29132 | D6: البنك الاهلى | E6: صابر حسان على حسان | F6: 0 | G6: دوام كامل | H6: فنى | I6: الخامسة | J6: الخامسة | K6: حرفى براد | L6: الورش المركزية | M6: 27903041401071 | N6: 201020صابر حسان على حسانالخامسةالخامسةحرفى برادالورش المركزية | O6: نعم | P6: 919.47 | Q6: 1075.7799 | R6: 0 | S6: 1452.3 | T6: 161.37 | U6: 0 | V6: 0 | W6: 0 | Y6: 161.366985 | Z6: 300 | AB6: 0 | AD6: 0 | AE6: 0 | AF6: 461.37 | AG6: 0 | AH6: 0 | AI6: 0 | AJ6: 332.32 | AK6: 0 | AL6: 32.11 | AM6: 32.78 | AN6: 42.09 | AO6: 60.04 | AP6: 68.78 | AQ6: 107.91 | AS6: 58.053 | AT6: 600 | AU6: 10 | AV6: 1344.08 | AW6: 10 | AX6: 0 | AY6: 193.5726 | AZ6: 0 | BB6: 0 | BC6: 4698.47 | BD6: 2301.53 | BE6: 7000 | BF6: 0 | BG6: 0 | BJ6: 523.4020215 | BK6: 0 | BL6: 0 | BM6: 0 | BN6: =IF(Sheet1!$BH6=1,Sheet1!$S6*20%,IF(Sheet1!$BH6=2,Sheet1!$S6*100%,IF(Sheet1!$BH6>2,Sheet1!$S6*100%,""))) ->  | BO6: =IF(Sheet1!$BF6<=4,Sheet1!$S6*0,IF(Sheet1!$BF6=5,Sheet1!$S6*20%,IF(Sheet1!$BF6=6,Sheet1!$S6*40%,IF(Sheet1!$BF6=7,Sheet1!$S6*50%,IF(Sheet1!$BF6>7,Sheet1!$S6*100%,""))))) -> 0 | BP6: =IF(Sheet1!$BG6<=2,Sheet1!$S6*0,IF(Sheet1!$BG6=3,Sheet1!$S6*30%,IF(Sheet1!$BG6=4,Sheet1!$S6*40%,IF(Sheet1!$BG6=5,Sheet1!$S6*50%,IF(Sheet1!$BG6>5,Sheet1!$S6*100%,""))))) -> 0 | BQ6: 0 | BR6: 0 | BT6: 3 | BU6: 0 | BX6: 0 | CC6: 0 | CE6: 0 | CG6: 2.63 | CH6: 3 | CI6: 0 | CL6: 0 | CN6: 0 | CO6: =ROUND(IF(G6=#REF!,(BE6-AY6)*40%,0),2) ->  | CP6: 193.5726 | CQ6: 0 | CS6: =ROUND(IF($D6=#REF!,$BE6-SUM(BJ6:CQ6,0),0),2) ->  | CT6: =ROUND(IF($D6=#REF!,$BE6-SUM(BJ6:CQ6,0),0),2) ->  | CU6: =ROUND(IF($G6=#REF!,$BE6-SUM(BK6:CR6,0),0),2) -> 
B7: 201021 | C7: 1161 | D7: بنك مصر 2 | E7: مجدي السيد حميدة عبد المجيد | F7: 0 | G7: دوام كامل | H7: ادارى | I7: الثالثة | J7: الثالثة | K7: حرفى ميكانيكى | L7: فرع الزقازيق | M7: 27006050104079 | N7: 201021مجدي السيد حميدة عبد المجيدالثالثةالثالثةحرفى ميكانيكى فرع الزقازيق | O7: نعم | P7: 1053.89 | Q7: 1233.0513 | R7: 0 | S7: 1664.62 | T7: 184.96 | U7: 0 | V7: 0 | W7: 0 | Y7: 0 | Z7: 300 | AB7: 0 | AD7: 0 | AE7: 0 | AF7: 300 | AG7: 37.42 | AH7: 41.54 | AI7: 65 | AJ7: 0 | AK7: 200 | AL7: 25.84 | AM7: 37.57 | AN7: 48.24 | AO7: 68.82 | AP7: 73.64 | AQ7: 81.05 | AS7: 52.6945 | AT7: 600 | AU7: 8 | AV7: 1339.81 | AW7: 10 | AX7: 0 | AY7: 222.48 | AZ7: 0 | BB7: 0 | BC7: 4954.92 | BD7: 2045.08 | BE7: 7000 | BF7: 0 | BG7: 0 | BJ7: 570.5975 | BK7: 0 | BL7: 0 | BM7: 0 | BN7: =IF(Sheet1!$BH7=1,Sheet1!$S7*20%,IF(Sheet1!$BH7=2,Sheet1!$S7*100%,IF(Sheet1!$BH7>2,Sheet1!$S7*100%,""))) ->  | BO7: =IF(Sheet1!$BF7<=4,Sheet1!$S7*0,IF(Sheet1!$BF7=5,Sheet1!$S7*20%,IF(Sheet1!$BF7=6,Sheet1!$S7*40%,IF(Sheet1!$BF7=7,Sheet1!$S7*50%,IF(Sheet1!$BF7>7,Sheet1!$S7*100%,""))))) -> 0 | BP7: =IF(Sheet1!$BG7<=2,Sheet1!$S7*0,IF(Sheet1!$BG7=3,Sheet1!$S7*30%,IF(Sheet1!$BG7=4,Sheet1!$S7*40%,IF(Sheet1!$BG7=5,Sheet1!$S7*50%,IF(Sheet1!$BG7>5,Sheet1!$S7*100%,""))))) -> 0 | BQ7: 0 | BR7: 0 | BT7: 3 | BU7: 0 | BX7: 0 | CC7: 0 | CE7: 0 | CG7: 2.66 | CH7: 3 | CI7: 0 | CL7: 0 | CN7: 0 | CO7: =ROUND(IF(G7=#REF!,(BE7-AY7)*40%,0),2) ->  | CP7: 222.48 | CQ7: 0 | CS7: =ROUND(IF($D7=#REF!,$BE7-SUM(BJ7:CQ7,0),0),2) ->  | CT7: =ROUND(IF($D7=#REF!,$BE7-SUM(BJ7:CQ7,0),0),2) ->  | CU7: =ROUND(IF($G7=#REF!,$BE7-SUM(BK7:CR7,0),0),2) -> 
B8: 201031 | C8: 22251 | D8: بنك مصر 1 | E8: احمد جابر اسماعيل حسن | F8: 0 | G8: دوام كامل | H8: فنى | I8: الرابعة | J8: الرابعة | K8: حرفى نجار | L8: الإدارة العامة | M8: 27301220104879 | N8: 201031احمد جابر اسماعيل حسنالرابعةالرابعةحرفى نجارالإدارة العامة | O8: نعم | P8: 1301.289 | Q8: 1522.50813 | R8: 0 | S8: 2055.39 | T8: 228.38 | U8: 0 | V8: 0 | W8: 0 | Y8: 228.3762195 | Z8: 300 | AB8: 0 | AD8: 0 | AE8: 0 | AF8: 528.38 | AG8: 45.56962 | AH8: 50.86204 | AI8: 65 | AJ8: 0 | AK8: 200 | AL8: 26.01311 | AM8: 46.39005 | AN8: 59.56483 | AO8: 84.97916 | AP8: 90.9277 | AQ8: 97.29265 | AS8: 65.06446 | AT8: 600 | AU8: 8 | AV8: 1439.66 | AW8: 10 | AX8: 0 | AY8: 273.9556 | AZ8: 0 | BB8: 0 | BC8: 6058.27 | BD8: 941.73 | BE8: 7000 | BF8: 0 | BG8: 0 | BJ8: 542.0667871 | BK8: 0 | BL8: 0 | BM8: 0 | BN8: =IF(Sheet1!$BH8=1,Sheet1!$S8*20%,IF(Sheet1!$BH8=2,Sheet1!$S8*100%,IF(Sheet1!$BH8>2,Sheet1!$S8*100%,""))) ->  | BO8: =IF(Sheet1!$BF8<=4,Sheet1!$S8*0,IF(Sheet1!$BF8=5,Sheet1!$S8*20%,IF(Sheet1!$BF8=6,Sheet1!$S8*40%,IF(Sheet1!$BF8=7,Sheet1!$S8*50%,IF(Sheet1!$BF8>7,Sheet1!$S8*100%,""))))) -> 0 | BP8: =IF(Sheet1!$BG8<=2,Sheet1!$S8*0,IF(Sheet1!$BG8=3,Sheet1!$S8*30%,IF(Sheet1!$BG8=4,Sheet1!$S8*40%,IF(Sheet1!$BG8=5,Sheet1!$S8*50%,IF(Sheet1!$BG8>5,Sheet1!$S8*100%,""))))) -> 0 | BQ8: 0 | BR8: 7.5 | BT8: 3 | BU8: 0 | BX8: 0 | CC8: 0 | CE8: 0 | CG8: 3.22 | CH8: 5 | CI8: 0 | CL8: 0 | CN8: 0 | CO8: =ROUND(IF(G8=#REF!,(BE8-AY8)*40%,0),2) ->  | CP8: 273.9556 | CQ8: 0 | CS8: =ROUND(IF($D8=#REF!,$BE8-SUM(BJ8:CQ8,0),0),2) ->  | CT8: =ROUND(IF($D8=#REF!,$BE8-SUM(BJ8:CQ8,0),0),2) ->  | CU8: =ROUND(IF($G8=#REF!,$BE8-SUM(BK8:CR8,0),0),2) -> 
B9: 201040 | C9: 44063 | D9: بنك مصر 1 | E9: حمدى صبحى عبد القادر | F9: 0 | G9: دوام كامل | H9: فنى | I9: عقد مؤقت | M9: 28409170104839 | N9: 201040حمدى صبحى عبد القادرعقد مؤقت | P9: 410.26 | Q9: 410.26 | R9: 0 | S9: 553.85 | T9: 61.54 | U9: 0 | V9: 0 | W9: 0 | Y9: 61.539 | Z9: 300 | AB9: 0 | AD9: 0 | AE9: 0 | AF9: 361.54 | AG9: 0 | AH9: 0 | AI9: 0 | AJ9: 934.08 | AK9: 0 | AL9: 0 | AM9: 0 | AN9: 0 | AO9: 0 | AP9: 0 | AQ9: 0 | AS9: 108.974 | AT9: 0 | AU9: 0 | AV9: 1043.05 | AW9: 10 | AX9: 0 | AY9: 86.37053 | AZ9: 0 | BB9: 0 | BC9: 2526.61 | BD9: 4473.39 | BE9: 7000 | BF9: 0 | BG9: 0 | BJ9: 500.4076172 | BK9: 0 | BL9: 0 | BM9: 0 | BN9: =IF(Sheet1!$BH9=1,Sheet1!$S9*20%,IF(Sheet1!$BH9=2,Sheet1!$S9*100%,IF(Sheet1!$BH9>2,Sheet1!$S9*100%,""))) ->  | BO9: =IF(Sheet1!$BF9<=4,Sheet1!$S9*0,IF(Sheet1!$BF9=5,Sheet1!$S9*20%,IF(Sheet1!$BF9=6,Sheet1!$S9*40%,IF(Sheet1!$BF9=7,Sheet1!$S9*50%,IF(Sheet1!$BF9>7,Sheet1!$S9*100%,""))))) -> 0 | BP9: =IF(Sheet1!$BG9<=2,Sheet1!$S9*0,IF(Sheet1!$BG9=3,Sheet1!$S9*30%,IF(Sheet1!$BG9=4,Sheet1!$S9*40%,IF(Sheet1!$BG9=5,Sheet1!$S9*50%,IF(Sheet1!$BG9>5,Sheet1!$S9*100%,""))))) -> 0 | BQ9: 0 | BR9: 0 | BT9: 3 | BU9: 1700 | BX9: 0 | CC9: 0 | CE9: 0 | CG9: 1.95 | CH9: 3 | CI9: 0 | CL9: 0 | CN9: 0 | CO9: =ROUND(IF(G9=#REF!,(BE9-AY9)*40%,0),2) ->  | CP9: 86.37053 | CQ9: 0 | CS9: =ROUND(IF($D9=#REF!,$BE9-SUM(BJ9:CQ9,0),0),2) ->  | CT9: =ROUND(IF($D9=#REF!,$BE9-SUM(BJ9:CQ9,0),0),2) ->  | CU9: =ROUND(IF($G9=#REF!,$BE9-SUM(BK9:CR9,0),0),2) -> 
B10: 201041 | C10: 3939 | D10: بنك مصر 1 | E10: هاشم محمود عبدالله منصور | F10: 0 | G10: دوام كامل | H10: فنى | I10: الخامسة | M10: 27203140103896 | N10: 201041هاشم محمود عبدالله منصورالخامسة | P10: 735.53 | Q10: 860.57 | R10: 0 | S10: 1161.77 | T10: 129.09 | U10: 0 | V10: 0 | W10: 0 | Y10: 129.0855 | Z10: 300 | AB10: 0 | AD10: 0 | AE10: 0 | AF10: 429.09 | AG10: 0 | AH10: 0 | AI10: 0 | AJ10: 1281.41 | AK10: 0 | AL10: 0 | AM10: 0 | AN10: 0 | AO10: 0 | AP10: 0 | AQ10: 0 | AS10: 76.447 | AT10: 0 | AU10: 0 | AV10: 1357.86 | AW10: 10 | AX10: 0 | AY10: 154.8484 | AZ10: 0 | BB10: 0 | BC10: 4103.23 | BD10: 2896.77 | BE10: 7000 | BF10: 0 | BG10: 0 | BJ10: 516.5688086 | BK10: 0 | BL10: 0 | BM10: 0 | BN10: =IF(Sheet1!$BH10=1,Sheet1!$S10*20%,IF(Sheet1!$BH10=2,Sheet1!$S10*100%,IF(Sheet1!$BH10>2,Sheet1!$S10*100%,""))) ->  | BO10: =IF(Sheet1!$BF10<=4,Sheet1!$S10*0,IF(Sheet1!$BF10=5,Sheet1!$S10*20%,IF(Sheet1!$BF10=6,Sheet1!$S10*40%,IF(Sheet1!$BF10=7,Sheet1!$S10*50%,IF(Sheet1!$BF10>7,Sheet1!$S10*100%,""))))) -> 0 | BP10: =IF(Sheet1!$BG10<=2,Sheet1!$S10*0,IF(Sheet1!$BG10=3,Sheet1!$S10*30%,IF(Sheet1!$BG10=4,Sheet1!$S10*40%,IF(Sheet1!$BG10=5,Sheet1!$S10*50%,IF(Sheet1!$BG10>5,Sheet1!$S10*100%,""))))) -> 0 | BQ10: 0 | BR10: 0 | BT10: 3 | BU10: 0 | BX10: 0 | BY10: 0 | CC10: 0 | CE10: 0 | CG10: 2.67 | CH10: 3 | CI10: 0 | CL10: 0 | CN10: 0 | CO10: =ROUND(IF(G10=#REF!,(BE10-AY10)*40%,0),2) ->  | CP10: 154.8484 | CQ10: 0 | CS10: =ROUND(IF($D10=#REF!,$BE10-SUM(BJ10:CQ10,0),0),2) ->  | CT10: =ROUND(IF($D10=#REF!,$BE10-SUM(BJ10:CQ10,0),0),2) ->  | CU10: =ROUND(IF($G10=#REF!,$BE10-SUM(BK10:CR10,0),0),2) -> 
B11: 202001 | C11: 25178 | D11: بنك مصر 1 | E11: مرسي محرم محمد عثمان | F11: 0 | G11: دوام كامل | H11: فنى | I11: الاولى | J11: الأولى | K11: حرفى لحام | L11: فرع الاميرية | M11: 26605282400054 | N11: 202001مرسي محرم محمد عثمانالاولىالأولىحرفى لحام فرع الاميرية | O11: نعم | P11: 2380.719 | Q11: 2785.44123 | R11: 0 | S11: 3760.35 | T11: 417.82 | U11: 0 | V11: 0 | W11: 0 | Y11: 417.8161845 | Z11: 300 | AB11: 0 | AD11: 0 | AE11: 0 | AF11: 717.82 | AG11: 83.04 | AH11: 92.73 | AI11: 110.85 | AJ11: 0 | AK11: 190 | AL11: 47.59121 | AM11: 84.87099 | AN11: 108.9744 | AO11: 155.4701 | AP11: 166.353 | AQ11: 177.9977 | AS11: 119.036 | AT11: 600 | AU11: 10 | AV11: 1946.91 | AW11: 10 | AX11: 0 | AY11: 501.204 | AZ11: 0 | BB11: 0 | BC11: 10139.55 | BD11: 0 | BE11: 10139.55 | BF11: 0 | BG11: 0 | BJ11: 884.5320215 | BK11: 148.58 | BL11: 0 | BM11: 0 | BN11: =IF(Sheet1!$BH11=1,Sheet1!$S11*20%,IF(Sheet1!$BH11=2,Sheet1!$S11*100%,IF(Sheet1!$BH11>2,Sheet1!$S11*100%,""))) ->  | BO11: =IF(Sheet1!$BF11<=4,Sheet1!$S11*0,IF(Sheet1!$BF11=5,Sheet1!$S11*20%,IF(Sheet1!$BF11=6,Sheet1!$S11*40%,IF(Sheet1!$BF11=7,Sheet1!$S11*50%,IF(Sheet1!$BF11>7,Sheet1!$S11*100%,""))))) -> 0 | BP11: =IF(Sheet1!$BG11<=2,Sheet1!$S11*0,IF(Sheet1!$BG11=3,Sheet1!$S11*30%,IF(Sheet1!$BG11=4,Sheet1!$S11*40%,IF(Sheet1!$BG11=5,Sheet1!$S11*50%,IF(Sheet1!$BG11>5,Sheet1!$S11*100%,""))))) -> 0 | BQ11: 0 | BR11: 0 | BT11: 3 | BU11: 0 | BX11: 0 | CC11: 0 | CE11: 0 | CG11: 4.17 | CH11: 5 | CI11: 0 | CL11: 0 | CN11: 0 | CO11: =ROUND(IF(G11=#REF!,(BE11-AY11)*40%,0),2) ->  | CP11: 501.204 | CQ11: 0 | CS11: =ROUND(IF($D11=#REF!,$BE11-SUM(BJ11:CQ11,0),0),2) ->  | CT11: =ROUND(IF($D11=#REF!,$BE11-SUM(BJ11:CQ11,0),0),2) ->  | CU11: =ROUND(IF($G11=#REF!,$BE11-SUM(BK11:CR11,0),0),2) -> 
B12: 202002 | C12: 22259 | D12: بنك مصر 1 | E12: عادل عبدالبر امين عبدالفتاح | F12: 0 | G12: دوام كامل | H12: فنى | I12: الثانية | J12: الثانية | K12: سروجى | L12: الاميرية | M12: 27010061700711 | N12: 202002عادل عبدالبر امين عبدالفتاحالثانيةالثانيةسروجى الاميرية | O12: نعم | P12: 1397.438 | Q12: 1635.00246 | R12: 0 | S12: 2207.25 | T12: 245.25 | U12: 0 | V12: 0 | W12: 0 | Y12: 245.250369 | Z12: 300 | AB12: 0 | AD12: 0 | AE12: 0 | AF12: 545.25 | AG12: 48.99363 | AH12: 54.58533 | AI12: 65 | AJ12: 0 | AK12: 190 | AL12: 27.93515 | AM12: 49.81769 | AN12: 63.96592 | AO12: 91.25805 | AP12: 97.64611 | AQ12: 104.4813 | AS12: 69.87189 | AT12: 600 | AU12: 10 | AV12: 1473.56 | AW12: 10 | AX12: 0 | AY12: 294.1974 | AZ12: 0 | BB12: 0 | BC12: 6410.51 | BD12: 589.49 | BE12: 7000 | BF12: 0 | BG12: 0 | BJ12: 531.6432129 | BK12: 0 | BL12: 0 | BM12: 0 | BN12: =IF(Sheet1!$BH12=1,Sheet1!$S12*20%,IF(Sheet1!$BH12=2,Sheet1!$S12*100%,IF(Sheet1!$BH12>2,Sheet1!$S12*100%,""))) ->  | BO12: =IF(Sheet1!$BF12<=4,Sheet1!$S12*0,IF(Sheet1!$BF12=5,Sheet1!$S12*20%,IF(Sheet1!$BF12=6,Sheet1!$S12*40%,IF(Sheet1!$BF12=7,Sheet1!$S12*50%,IF(Sheet1!$BF12>7,Sheet1!$S12*100%,""))))) -> 0 | BP12: =IF(Sheet1!$BG12<=2,Sheet1!$S12*0,IF(Sheet1!$BG12=3,Sheet1!$S12*30%,IF(Sheet1!$BG12=4,Sheet1!$S12*40%,IF(Sheet1!$BG12=5,Sheet1!$S12*50%,IF(Sheet1!$BG12>5,Sheet1!$S12*100%,""))))) -> 0 | BQ12: 0 | BR12: 0 | BT12: 3 | BU12: 0 | BX12: 0 | CC12: 0 | CE12: 0 | CG12: 3.25 | CH12: 5 | CI12: 0 | CL12: 0 | CN12: 0 | CO12: =ROUND(IF(G12=#REF!,(BE12-AY12)*40%,0),2) ->  | CP12: 294.1974 | CQ12: 0 | CS12: =ROUND(IF($D12=#REF!,$BE12-SUM(BJ12:CQ12,0),0),2) ->  | CT12: =ROUND(IF($D12=#REF!,$BE12-SUM(BJ12:CQ12,0),0),2) ->  | CU12: =ROUND(IF($G12=#REF!,$BE12-SUM(BK12:CR12,0),0),2) -> 
B13: 202003 | C13: 22280 | D13: بنك مصر 1 | E13: محمد عبد الفتاح على البربرى | F13: 0 | G13: دوام كامل | H13: فنى | I13: الثالثة | J13: الثالثة | K13: حرفي كهربائي | L13: فرع الزقازيق | M13: 27710110100379 | N13: 202003محمد عبد الفتاح على البربرىالثالثةالثالثةحرفي كهربائي فرع الزقازيق | O13: نعم | P13: 1365.973 | Q13: 1598.18841 | R13: 0 | S13: 2157.55 | T13: 239.73 | U13: 0 | V13: 0 | W13: 0 | Y13: 239.7282615 | Z13: 300 | AB13: 0 | AD13: 0 | AE13: 0 | AF13: 539.73 | AG13: 47.60303 | AH13: 53.03779 | AI13: 65 | AJ13: 0 | AK13: 200 | AL13: 27.30617 | AM13: 48.696 | AN13: 62.52566 | AO13: 89.20328 | AP13: 95.44751 | AQ13: 102.1288 | AS13: 68.29866 | AT13: 600 | AU13: 10 | AV13: 1469.25 | AW13: 10 | AX13: 0 | AY13: 287.5733 | AZ13: 0 | BB13: 0 | BC13: 6302.02 | BD13: 697.98 | BE13: 7000 | BF13: 0 | BG13: 0 | BJ13: 546.1951172 | BK13: 0 | BL13: 0 | BM13: 0 | BN13: =IF(Sheet1!$BH13=1,Sheet1!$S13*20%,IF(Sheet1!$BH13=2,Sheet1!$S13*100%,IF(Sheet1!$BH13>2,Sheet1!$S13*100%,""))) ->  | BO13: =IF(Sheet1!$BF13<=4,Sheet1!$S13*0,IF(Sheet1!$BF13=5,Sheet1!$S13*20%,IF(Sheet1!$BF13=6,Sheet1!$S13*40%,IF(Sheet1!$BF13=7,Sheet1!$S13*50%,IF(Sheet1!$BF13>7,Sheet1!$S13*100%,""))))) -> 0 | BP13: =IF(Sheet1!$BG13<=2,Sheet1!$S13*0,IF(Sheet1!$BG13=3,Sheet1!$S13*30%,IF(Sheet1!$BG13=4,Sheet1!$S13*40%,IF(Sheet1!$BG13=5,Sheet1!$S13*50%,IF(Sheet1!$BG13>5,Sheet1!$S13*100%,""))))) -> 0 | BQ13: 0 | BR13: 0 | BT13: 3 | BU13: 0 | BX13: 0 | BZ13: 187.5 | CC13: 0 | CE13: 0 | CG13: 3.23 | CH13: 5 | CI13: 0 | CL13: 0 | CN13: 0 | CO13: =ROUND(IF(G13=#REF!,(BE13-AY13)*40%,0),2) ->  | CP13: 287.5733 | CQ13: 0 | CS13: =ROUND(IF($D13=#REF!,$BE13-SUM(BJ13:CQ13,0),0),2) ->  | CT13: =ROUND(IF($D13=#REF!,$BE13-SUM(BJ13:CQ13,0),0),2) ->  | CU13: =ROUND(IF($G13=#REF!,$BE13-SUM(BK13:CR13,0),0),2) -> 
B14: 202004 | C14: 23294 | D14: بنك مصر 1 | E14: سيد صابر محمد امام | F14: 0 | G14: دوام كامل | H14: فنى | I14: الثانية | J14: الثانية | K14: فنى كهرباء | L14: الاميرية | M14: 28410150103214 | N14: 202004سيد صابر محمد امامالثانيةالثانيةفنى كهرباء الاميرية | O14: نعم | P14: 985.1828 | Q14: 1152.663876 | R14: 0 | S14: 1556.1 | T14: 172.9 | U14: 0 | V14: 0 | W14: 0 | Y14: 172.8995814 | Z14: 300 | AB14: 0 | AD14: 0 | AE14: 0 | AF14: 472.9 | AG14: 34.04168 | AH14: 38.11584 | AI14: 65 | AJ14: 0 | AK14: 190 | AL14: 29.04718 | AM14: 35.12109 | AN14: 45.09547 | AO14: 64.3362 | AP14: 68.83974 | AQ14: 85.55 | AS14: 51.48172 | AT14: 600 | AU14: 10 | AV14: 1316.63 | AW14: 10 | AX14: 0 | AY14: 207.4069 | AZ14: 0 | BB14: 0 | BC14: 4888.6 | BD14: 2111.4 | BE14: 7000 | BF14: 0 | BG14: 0 | BJ14: 530.3473828 | BK14: 0 | BL14: 0 | BM14: 0 | BN14: =IF(Sheet1!$BH14=1,Sheet1!$S14*20%,IF(Sheet1!$BH14=2,Sheet1!$S14*100%,IF(Sheet1!$BH14>2,Sheet1!$S14*100%,""))) ->  | BO14: =IF(Sheet1!$BF14<=4,Sheet1!$S14*0,IF(Sheet1!$BF14=5,Sheet1!$S14*20%,IF(Sheet1!$BF14=6,Sheet1!$S14*40%,IF(Sheet1!$BF14=7,Sheet1!$S14*50%,IF(Sheet1!$BF14>7,Sheet1!$S14*100%,""))))) -> 0 | BP14: =IF(Sheet1!$BG14<=2,Sheet1!$S14*0,IF(Sheet1!$BG14=3,Sheet1!$S14*30%,IF(Sheet1!$BG14=4,Sheet1!$S14*40%,IF(Sheet1!$BG14=5,Sheet1!$S14*50%,IF(Sheet1!$BG14>5,Sheet1!$S14*100%,""))))) -> 0 | BQ14: 0 | BR14: 0 | BT14: 3 | BU14: 0 | BX14: 0 | CC14: 0 | CE14: 0 | CG14: 3.19 | CH14: 5 | CI14: 0 | CL14: 0 | CN14: 0 | CO14: =ROUND(IF(G14=#REF!,(BE14-AY14)*40%,0),2) ->  | CP14: 207.4069 | CQ14: 0 | CS14: =ROUND(IF($D14=#REF!,$BE14-SUM(BJ14:CQ14,0),0),2) ->  | CT14: =ROUND(IF($D14=#REF!,$BE14-SUM(BJ14:CQ14,0),0),2) ->  | CU14: =ROUND(IF($G14=#REF!,$BE14-SUM(BK14:CR14,0),0),2) -> 
B15: 202005 | C15: 23295 | D15: بنك مصر 1 | E15: عطية عبده عطية محمدين | F15: مروه | G15: دوام كامل | H15: فنى | I15: الخامسة | J15: الخامسة | K15: حرفى ميكانيكى | L15: الاميرية | M15: 26804250102151 | N15: 202005عطية عبده عطية محمدينمروهالخامسةالخامسة حرفى ميكانيكىالاميرية | O15: نعم | P15: 1040.884 | Q15: 1217.83428 | R15: 0 | S15: 1644.08 | T15: 182.68 | U15: 0 | V15: 0 | W15: 0 | Y15: 182.675142 | Z15: 300 | AB15: 0 | AD15: 0 | AE15: 0 | AF15: 482.68 | AG15: 36.75438 | AH15: 40.88482 | AI15: 65 | AJ15: 0 | AK15: 200 | AL15: 26.44905 | AM15: 37.1068 | AN15: 47.64513 | AO15: 67.97372 | AP15: 72.73188 | AQ15: 81.9 | AS15: 52.04421 | AT15: 600 | AU15: 10 | AV15: 1338.49 | AW15: 10 | AX15: 0 | AY15: 219.1335 | AZ15: 0 | BB15: 0 | BC15: 5094.9 | BD15: 1905.1 | BE15: 7000 | BF15: 0 | BG15: 0 | BJ15: 529.8194043 | BK15: 0 | BL15: 0 | BM15: 0 | BN15: =IF(Sheet1!$BH15=1,Sheet1!$S15*20%,IF(Sheet1!$BH15=2,Sheet1!$S15*100%,IF(Sheet1!$BH15>2,Sheet1!$S15*100%,""))) ->  | BO15: =IF(Sheet1!$BF15<=4,Sheet1!$S15*0,IF(Sheet1!$BF15=5,Sheet1!$S15*20%,IF(Sheet1!$BF15=6,Sheet1!$S15*40%,IF(Sheet1!$BF15=7,Sheet1!$S15*50%,IF(Sheet1!$BF15>7,Sheet1!$S15*100%,""))))) -> 0 | BP15: =IF(Sheet1!$BG15<=2,Sheet1!$S15*0,IF(Sheet1!$BG15=3,Sheet1!$S15*30%,IF(Sheet1!$BG15=4,Sheet1!$S15*40%,IF(Sheet1!$BG15=5,Sheet1!$S15*50%,IF(Sheet1!$BG15>5,Sheet1!$S15*100%,""))))) -> 0 | BQ15: 0 | BR15: 0 | BT15: 3 | BU15: 0 | BX15: 0 | CC15: 0 | CE15: 0 | CG15: 3.2 | CH15: 5 | CI15: 0 | CL15: 0 | CN15: 0 | CO15: =ROUND(IF(G15=#REF!,(BE15-AY15)*40%,0),2) ->  | CP15: 219.1335 | CQ15: 0 | CS15: =ROUND(IF($D15=#REF!,$BE15-SUM(BJ15:CQ15,0),0),2) ->  | CT15: =ROUND(IF($D15=#REF!,$BE15-SUM(BJ15:CQ15,0),0),2) ->  | CU15: =ROUND(IF($G15=#REF!,$BE15-SUM(BK15:CR15,0),0),2) -> 
B16: 202007 | C16: 23321 | D16: بنك مصر 1 | E16: على عباس عبد الخالق احمد | F16: 0 | G16: دوام كامل | H16: فنى | I16: الثانية | J16: الثانية | K16: ميكانيكى | L16: الاميرية | M16: 26609292101671 | N16: 202007على عباس عبد الخالق احمدالثانيةالثانيةميكانيكى الاميرية | O16: نعم | P16: 2464.195 | Q16: 2883.10815 | R16: 0 | S16: 3892.2 | T16: 432.47 | U16: 0 | V16: 0 | W16: 0 | Y16: 432.4662225 | Z16: 300 | AB16: 0 | AD16: 0 | AE16: 0 | AF16: 732.47 | AG16: 85.38567 | AH16: 95.37196 | AI16: 114.8779 | AJ16: 0 | AK16: 190 | AL16: 49.25991 | AM16: 87.84685 | AN16: 112.7953 | AO16: 160.9214 | AP16: 172.1859 | AQ16: 184.2389 | AS16: 123.2097 | AT16: 600 | AU16: 8 | AV16: 1984.09 | AW16: 10 | AX16: 0 | AY16: 518.7778 | AZ16: 0 | BB16: 0 | BC16: 10453.12 | BD16: 0 | BE16: 10453.12 | BF16: 0 | BG16: 0 | BJ16: 912.1277344 | BK16: 191.62 | BL16: 0 | BM16: 0 | BN16: =IF(Sheet1!$BH16=1,Sheet1!$S16*20%,IF(Sheet1!$BH16=2,Sheet1!$S16*100%,IF(Sheet1!$BH16>2,Sheet1!$S16*100%,""))) ->  | BO16: =IF(Sheet1!$BF16<=4,Sheet1!$S16*0,IF(Sheet1!$BF16=5,Sheet1!$S16*20%,IF(Sheet1!$BF16=6,Sheet1!$S16*40%,IF(Sheet1!$BF16=7,Sheet1!$S16*50%,IF(Sheet1!$BF16>7,Sheet1!$S16*100%,""))))) -> 0 | BP16: =IF(Sheet1!$BG16<=2,Sheet1!$S16*0,IF(Sheet1!$BG16=3,Sheet1!$S16*30%,IF(Sheet1!$BG16=4,Sheet1!$S16*40%,IF(Sheet1!$BG16=5,Sheet1!$S16*50%,IF(Sheet1!$BG16>5,Sheet1!$S16*100%,""))))) -> 0 | BQ16: 0 | BR16: 0 | BT16: 3 | BU16: 0 | BX16: 0 | CC16: 0 | CE16: 0 | CG16: 4.29 | CH16: 5 | CI16: 0 | CL16: 0 | CN16: 0 | CO16: =ROUND(IF(G16=#REF!,(BE16-AY16)*40%,0),2) ->  | CP16: 518.7778 | CQ16: 0 | CS16: =ROUND(IF($D16=#REF!,$BE16-SUM(BJ16:CQ16,0),0),2) ->  | CT16: =ROUND(IF($D16=#REF!,$BE16-SUM(BJ16:CQ16,0),0),2) ->  | CU16: =ROUND(IF($G16=#REF!,$BE16-SUM(BK16:CR16,0),0),2) -> 
B17: 202008 | C17: 23327 | D17: بنك مصر 1 | E17: صبحى محمد سيد احمد | F17: 0 | G17: دوام كامل | H17: فنى | I17: الاولى | J17: الأولى | K17: حرفى ميكانيكى سيارات | L17: فرع الاميرية | M17: 26603230103318 | N17: 202008صبحى محمد سيد احمدالاولىالأولىحرفى ميكانيكى سياراتفرع الاميرية | O17: نعم | P17: 2390.469 | Q17: 2796.84873 | R17: 0 | S17: 3775.75 | T17: 419.53 | U17: 0 | V17: 0 | W17: 0 | Y17: 419.5273095 | Z17: 300 | AB17: 0 | AD17: 0 | AE17: 0 | AF17: 719.53 | AG17: 83.3969 | AH17: 93.12494 | AI17: 111.3261 | AJ17: 0 | AK17: 190 | AL17: 47.78612 | AM17: 85.21858 | AN17: 109.4207 | AO17: 156.1068 | AP17: 167.0343 | AQ17: 178.7267 | AS17: 119.5235 | AT17: 600 | AU17: 6 | AV17: 1947.66 | AW17: 10 | AX17: 0 | AY17: 503.2567 | AZ17: 0 | BB17: 0 | BC17: 10172.58 | BD17: 0 | BE17: 10172.58 | BF17: 0 | BG17: 0 | BJ17: 887.327085 | BK17: 150.42 | BL17: 0 | BM17: 0 | BN17: =IF(Sheet1!$BH17=1,Sheet1!$S17*20%,IF(Sheet1!$BH17=2,Sheet1!$S17*100%,IF(Sheet1!$BH17>2,Sheet1!$S17*100%,""))) ->  | BO17: =IF(Sheet1!$BF17<=4,Sheet1!$S17*0,IF(Sheet1!$BF17=5,Sheet1!$S17*20%,IF(Sheet1!$BF17=6,Sheet1!$S17*40%,IF(Sheet1!$BF17=7,Sheet1!$S17*50%,IF(Sheet1!$BF17>7,Sheet1!$S17*100%,""))))) -> 0 | BP17: =IF(Sheet1!$BG17<=2,Sheet1!$S17*0,IF(Sheet1!$BG17=3,Sheet1!$S17*30%,IF(Sheet1!$BG17=4,Sheet1!$S17*40%,IF(Sheet1!$BG17=5,Sheet1!$S17*50%,IF(Sheet1!$BG17>5,Sheet1!$S17*100%,""))))) -> 0 | BQ17: 0 | BR17: 0 | BT17: 3 | BU17: 0 | BX17: 0 | CC17: 0 | CE17: 0 | CG17: 4.18 | CH17: 5 | CI17: 0 | CL17: 0 | CN17: 0 | CO17: =ROUND(IF(G17=#REF!,(BE17-AY17)*40%,0),2) ->  | CP17: 503.2567 | CQ17: 0 | CS17: =ROUND(IF($D17=#REF!,$BE17-SUM(BJ17:CQ17,0),0),2) ->  | CT17: =ROUND(IF($D17=#REF!,$BE17-SUM(BJ17:CQ17,0),0),2) ->  | CU17: =ROUND(IF($G17=#REF!,$BE17-SUM(BK17:CR17,0),0),2) -> 
B18: 202010 | C18: 23354 | D18: بنك مصر 1 | E18: اشرف احمد عبد الحميد موافى | F18: 0 | G18: دوام كامل | H18: فنى | I18: الاولى | J18: الأولى | K18: حرفى ميكانيكى سيارات | L18: فرع الاميرية | M18: 26805310101091 | N18: 202010اشرف احمد عبد الحميد موافىالاولىالأولىحرفى ميكانيكى سياراتفرع الاميرية | O18: نعم | P18: 2235.182 | Q18: 2615.16294 | R18: 0 | S18: 3530.47 | T18: 392.27 | U18: 0 | V18: 0 | W18: 0 | Y18: 392.274441 | Z18: 300 | AB18: 0 | AD18: 0 | AE18: 0 | AF18: 692.27 | AG18: 78.01244 | AH18: 87.0984 | AI18: 104.0814 | AJ18: 0 | AK18: 190 | AL18: 44.68188 | AM18: 79.68269 | AN18: 102.3126 | AO18: 145.9659 | AP18: 156.1835 | AQ18: 167.1164 | AS18: 111.7591 | AT18: 600 | AU18: 4 | AV18: 1870.89 | AW18: 10 | AX18: 0 | AY18: 470.5646 | AZ18: 0 | BB18: 0 | BC18: 9581.63 | BD18: 0 | BE18: 9581.63 | BF18: 0 | BG18: 0 | BJ18: 835.1892871 | BK18: 113.25 | BL18: 0 | BM18: 0 | BN18: =IF(Sheet1!$BH18=1,Sheet1!$S18*20%,IF(Sheet1!$BH18=2,Sheet1!$S18*100%,IF(Sheet1!$BH18>2,Sheet1!$S18*100%,""))) ->  | BO18: =IF(Sheet1!$BF18<=4,Sheet1!$S18*0,IF(Sheet1!$BF18=5,Sheet1!$S18*20%,IF(Sheet1!$BF18=6,Sheet1!$S18*40%,IF(Sheet1!$BF18=7,Sheet1!$S18*50%,IF(Sheet1!$BF18>7,Sheet1!$S18*100%,""))))) -> 0 | BP18: =IF(Sheet1!$BG18<=2,Sheet1!$S18*0,IF(Sheet1!$BG18=3,Sheet1!$S18*30%,IF(Sheet1!$BG18=4,Sheet1!$S18*40%,IF(Sheet1!$BG18=5,Sheet1!$S18*50%,IF(Sheet1!$BG18>5,Sheet1!$S18*100%,""))))) -> 0 | BQ18: 0 | BR18: 0 | BT18: 3 | BU18: 0 | BX18: 0 | CC18: 0 | CE18: 0 | CG18: 3.94 | CH18: 5 | CI18: 0 | CL18: 0 | CN18: 0 | CO18: =ROUND(IF(G18=#REF!,(BE18-AY18)*40%,0),2) ->  | CP18: 470.5646 | CQ18: 0 | CS18: =ROUND(IF($D18=#REF!,$BE18-SUM(BJ18:CQ18,0),0),2) ->  | CT18: =ROUND(IF($D18=#REF!,$BE18-SUM(BJ18:CQ18,0),0),2) ->  | CU18: =ROUND(IF($G18=#REF!,$BE18-SUM(BK18:CR18,0),0),2) -> 
B19: 202012 | C19: 23388 | D19: بنك مصر 1 | E19: جمال محمد عامر مسعود | F19: 0 | G19: دوام كامل | H19: فنى | I19: الاولى | J19: الأولى | K19: حرفى عامل كاوتش | L19: فرع الاميرية | M19: 26610171700613 | N19: 202012جمال محمد عامر مسعودالاولىالأولىحرفى عامل كاوتشفرع الاميرية | O19: نعم | P19: 2219.658 | Q19: 2596.99986 | R19: 0 | S19: 3505.95 | T19: 389.55 | U19: 0 | V19: 0 | W19: 0 | Y19: 389.549979 | Z19: 300 | AB19: 0 | AD19: 0 | AE19: 0 | AF19: 689.55 | AG19: 76.96461 | AH19: 85.94413 | AI19: 103.4571 | AJ19: 0 | AK19: 190 | AL19: 44.37156 | AM19: 79.12929 | AN19: 101.602 | AO19: 144.9522 | AP19: 155.0988 | AQ19: 165.9558 | AS19: 110.9829 | AT19: 600 | AU19: 10 | AV19: 1868.46 | AW19: 10 | AX19: 0 | AY19: 467.2965 | AZ19: 0 | BB19: 0 | BC19: 9527.81 | BD19: 0 | BE19: 9527.81 | BF19: 0 | BG19: 0 | BJ19: 830.5495215 | BK19: 109.25 | BL19: 0 | BM19: 0 | BN19: =IF(Sheet1!$BH19=1,Sheet1!$S19*20%,IF(Sheet1!$BH19=2,Sheet1!$S19*100%,IF(Sheet1!$BH19>2,Sheet1!$S19*100%,""))) ->  | BO19: =IF(Sheet1!$BF19<=4,Sheet1!$S19*0,IF(Sheet1!$BF19=5,Sheet1!$S19*20%,IF(Sheet1!$BF19=6,Sheet1!$S19*40%,IF(Sheet1!$BF19=7,Sheet1!$S19*50%,IF(Sheet1!$BF19>7,Sheet1!$S19*100%,""))))) -> 0 | BP19: =IF(Sheet1!$BG19<=2,Sheet1!$S19*0,IF(Sheet1!$BG19=3,Sheet1!$S19*30%,IF(Sheet1!$BG19=4,Sheet1!$S19*40%,IF(Sheet1!$BG19=5,Sheet1!$S19*50%,IF(Sheet1!$BG19>5,Sheet1!$S19*100%,""))))) -> 0 | BQ19: 0 | BR19: 0 | BT19: 3 | BU19: 0 | BX19: 0 | CC19: 0 | CE19: 0 | CG19: 3.92 | CH19: 5 | CI19: 0 | CL19: 0 | CN19: 0 | CO19: =ROUND(IF(G19=#REF!,(BE19-AY19)*40%,0),2) ->  | CP19: 467.2965 | CQ19: 0 | CS19: =ROUND(IF($D19=#REF!,$BE19-SUM(BJ19:CQ19,0),0),2) ->  | CT19: =ROUND(IF($D19=#REF!,$BE19-SUM(BJ19:CQ19,0),0),2) ->  | CU19: =ROUND(IF($G19=#REF!,$BE19-SUM(BK19:CR19,0),0),2) -> 
B20: 202013 | C20: 23404 | D20: بنك مصر 1 | E20: عادل شوقي عبده محمد | F20: 0 | G20: دوام كامل | H20: فنى | I20: الثالثة | J20: الثالثة | K20: حرفى عامل كاوتش | L20: فرع المنيا | M20: 27012241400654 | N20: 202013عادل شوقي عبده محمدالثالثةالثالثةحرفى عامل كاوتش فرع المنيا | O20: نعم | P20: 1999.766 | Q20: 2339.72622 | R20: 0 | S20: 3158.63 | T20: 350.96 | U20: 0 | V20: 0 | W20: 0 | Y20: 350.958933 | Z20: 300 | AB20: 0 | AD20: 0 | AE20: 0 | AF20: 650.96 | AG20: 69.93859 | AH20: 78.02959 | AI20: 93.11887 | AJ20: 0 | AK20: 200 | AL20: 39.97585 | AM20: 71.29026 | AN20: 91.5367 | AO20: 130.5923 | AP20: 139.7338 | AQ20: 149.5152 | AS20: 99.98828 | AT20: 600 | AU20: 10 | AV20: 1773.72 | AW20: 10 | AX20: 0 | AY20: 421.0033 | AZ20: 0 | BB20: 0 | BC20: 8705 | BD20: 0 | BE20: 8705 | BF20: 0 | BG20: 0 | BJ20: 758.2101807 | BK20: 58.33 | BL20: 0 | BM20: 0 | BN20: =IF(Sheet1!$BH20=1,Sheet1!$S20*20%,IF(Sheet1!$BH20=2,Sheet1!$S20*100%,IF(Sheet1!$BH20>2,Sheet1!$S20*100%,""))) ->  | BO20: =IF(Sheet1!$BF20<=4,Sheet1!$S20*0,IF(Sheet1!$BF20=5,Sheet1!$S20*20%,IF(Sheet1!$BF20=6,Sheet1!$S20*40%,IF(Sheet1!$BF20=7,Sheet1!$S20*50%,IF(Sheet1!$BF20>7,Sheet1!$S20*100%,""))))) -> 0 | BP20: =IF(Sheet1!$BG20<=2,Sheet1!$S20*0,IF(Sheet1!$BG20=3,Sheet1!$S20*30%,IF(Sheet1!$BG20=4,Sheet1!$S20*40%,IF(Sheet1!$BG20=5,Sheet1!$S20*50%,IF(Sheet1!$BG20>5,Sheet1!$S20*100%,""))))) -> 0 | BQ20: 0 | BR20: 0 | BT20: 3 | BU20: 0 | BX20: 0 | CC20: 0 | CE20: 0 | CG20: 3.59 | CH20: 5 | CI20: 0 | CL20: 0 | CN20: 0 | CO20: =ROUND(IF(G20=#REF!,(BE20-AY20)*40%,0),2) ->  | CP20: 421.0033 | CQ20: 0 | CS20: =ROUND(IF($D20=#REF!,$BE20-SUM(BJ20:CQ20,0),0),2) ->  | CT20: =ROUND(IF($D20=#REF!,$BE20-SUM(BJ20:CQ20,0),0),2) ->  | CU20: =ROUND(IF($G20=#REF!,$BE20-SUM(BK20:CR20,0),0),2) -> 
B21: 202014 | C21: 23429 | D21: بنك مصر 1 | E21: صالح السيد احمد محمد | F21: 0 | G21: دوام كامل | H21: فنى | I21: الاولى | J21: الأولى | K21: حرفى نقاش | L21: فرع الاميرية | M21: 27108051301355 | N21: 202014صالح السيد احمد محمدالاولىالأولىحرفى نقاشفرع الاميرية | O21: نعم | P21: 2106.559 | Q21: 2464.67403 | R21: 0 | S21: 3327.31 | T21: 369.7 | U21: 0 | V21: 0 | W21: 0 | Y21: 369.7011045 | Z21: 300 | AB21: 0 | AD21: 0 | AE21: 0 | AF21: 669.7 | AG21: 73.56142 | AH21: 82.11095 | AI21: 98.08092 | AJ21: 0 | AK21: 190 | AL21: 42.11068 | AM21: 75.09739 | AN21: 96.42505 | AO21: 137.5664 | AP21: 147.196 | AQ21: 157.4998 | AS21: 105.328 | AT21: 600 | AU21: 10 | AV21: 1814.98 | AW21: 10 | AX21: 0 | AY21: 443.4862 | AZ21: 0 | BB21: 0 | BC21: 9099.85 | BD21: 0 | BE21: 9099.85 | BF21: 0 | BG21: 0 | BJ21: 792.8205957 | BK21: 82.42 | BL21: 0 | BM21: 0 | BN21: =IF(Sheet1!$BH21=1,Sheet1!$S21*20%,IF(Sheet1!$BH21=2,Sheet1!$S21*100%,IF(Sheet1!$BH21>2,Sheet1!$S21*100%,""))) ->  | BO21: =IF(Sheet1!$BF21<=4,Sheet1!$S21*0,IF(Sheet1!$BF21=5,Sheet1!$S21*20%,IF(Sheet1!$BF21=6,Sheet1!$S21*40%,IF(Sheet1!$BF21=7,Sheet1!$S21*50%,IF(Sheet1!$BF21>7,Sheet1!$S21*100%,""))))) -> 0 | BP21: =IF(Sheet1!$BG21<=2,Sheet1!$S21*0,IF(Sheet1!$BG21=3,Sheet1!$S21*30%,IF(Sheet1!$BG21=4,Sheet1!$S21*40%,IF(Sheet1!$BG21=5,Sheet1!$S21*50%,IF(Sheet1!$BG21>5,Sheet1!$S21*100%,""))))) -> 0 | BQ21: 0 | BR21: 0 | BT21: 3 | BU21: 0 | BX21: 0 | CC21: 0 | CE21: 0 | CG21: 3.75 | CH21: 5 | CI21: 0 | CL21: 0 | CN21: 0 | CO21: =ROUND(IF(G21=#REF!,(BE21-AY21)*40%,0),2) ->  | CP21: 443.4862 | CQ21: 0 | CS21: =ROUND(IF($D21=#REF!,$BE21-SUM(BJ21:CQ21,0),0),2) ->  | CT21: =ROUND(IF($D21=#REF!,$BE21-SUM(BJ21:CQ21,0),0),2) ->  | CU21: =ROUND(IF($G21=#REF!,$BE21-SUM(BK21:CR21,0),0),2) -> 
B22: 202015 | C22: 23756 | D22: بنك مصر 1 | E22: محمد عبد العزيز حسن غنيم | F22: 0 | G22: دوام كامل | H22: فنى | I22: الرابعة | J22: الرابعة | K22: حرفى حداد | L22: الاميرية | M22: 27612090101916 | N22: 202015محمد عبد العزيز حسن غنيمالرابعةالرابعةحرفى حدادالاميرية | O22: نعم | P22: 1011.144 | Q22: 1183.03848 | R22: 0 | S22: 1597.1 | T22: 177.46 | U22: 0 | V22: 0 | W22: 0 | Y22: 177.455772 | Z22: 300 | AB22: 0 | AD22: 0 | AE22: 0 | AF22: 477.46 | AG22: 35.32604 | AH22: 39.35678 | AI22: 65 | AJ22: 0 | AK22: 200 | AL22: 27.83623 | AM22: 36.04659 | AN22: 46.28382 | AO22: 66.03159 | AP22: 70.6538 | AQ22: 83.85 | AS22: 50.55721 | AT22: 600 | AU22: 8 | AV22: 1328.94 | AW22: 10 | AX22: 0 | AY22: 212.8725 | AZ22: 0 | BB22: 0 | BC22: 4986.87 | BD22: 2013.13 | BE22: 7000 | BF22: 0 | BG22: 0 | BJ22: 530.0492871 | BK22: 0 | BL22: 0 | BM22: 0 | BN22: =IF(Sheet1!$BH22=1,Sheet1!$S22*20%,IF(Sheet1!$BH22=2,Sheet1!$S22*100%,IF(Sheet1!$BH22>2,Sheet1!$S22*100%,""))) ->  | BO22: =IF(Sheet1!$BF22<=4,Sheet1!$S22*0,IF(Sheet1!$BF22=5,Sheet1!$S22*20%,IF(Sheet1!$BF22=6,Sheet1!$S22*40%,IF(Sheet1!$BF22=7,Sheet1!$S22*50%,IF(Sheet1!$BF22>7,Sheet1!$S22*100%,""))))) -> 0 | BP22: =IF(Sheet1!$BG22<=2,Sheet1!$S22*0,IF(Sheet1!$BG22=3,Sheet1!$S22*30%,IF(Sheet1!$BG22=4,Sheet1!$S22*40%,IF(Sheet1!$BG22=5,Sheet1!$S22*50%,IF(Sheet1!$BG22>5,Sheet1!$S22*100%,""))))) -> 0 | BQ22: 0 | BR22: 0 | BT22: 3 | BU22: 0 | BX22: 0 | CC22: 0 | CE22: 0 | CG22: 2.69 | CH22: 5 | CI22: 0 | CL22: 0 | CN22: 0 | CO22: =ROUND(IF(G22=#REF!,(BE22-AY22)*40%,0),2) ->  | CP22: 212.8725 | CQ22: 0 | CS22: =ROUND(IF($D22=#REF!,$BE22-SUM(BJ22:CQ22,0),0),2) ->  | CT22: =ROUND(IF($D22=#REF!,$BE22-SUM(BJ22:CQ22,0),0),2) ->  | CU22: =ROUND(IF($G22=#REF!,$BE22-SUM(BK22:CR22,0),0),2) -> 
B23: 202016 | C23: 23759 | D23: بنك مصر 1 | E23: عبد الواحد على عبد الواحد طلبه | F23: 0 | G23: دوام كامل | H23: فنى | I23: الثالثة | J23: الثالثة | K23: فنى ميكانيكى | L23: فرع الاسكندرية | M23: 27005240101835 | N23: 202016عبد الواحد على عبد الواحد طلبهالثالثةالثالثةفنى ميكانيكى فرع الاسكندرية | O23: نعم | P23: 1019.221 | Q23: 1192.48857 | R23: 0 | S23: 1609.86 | T23: 178.87 | U23: 0 | V23: 0 | W23: 0 | Y23: 178.8732855 | Z23: 300 | AB23: 0 | AD23: 0 | AE23: 0 | AF23: 478.87 | AG23: 33.73 | AH23: 40.28387 | AI23: 65 | AJ23: 0 | AK23: 200 | AL23: 27.45951 | AM23: 36.33451 | AN23: 46.65352 | AO23: 66.55902 | AP23: 71.21815 | AQ23: 83.32 | AS23: 50.96104 | AT23: 600 | AU23: 10 | AV23: 1331.52 | AW23: 10 | AX23: 0 | AY23: 214.5728 | AZ23: 0 | BB23: 30 | BC23: 5016.18 | BD23: 1983.82 | BE23: 7030 | BF23: 0 | BG23: 0 | BJ23: 529.9657129 | BK23: 0 | BL23: 0 | BM23: 0 | BN23: =IF(Sheet1!$BH23=1,Sheet1!$S23*20%,IF(Sheet1!$BH23=2,Sheet1!$S23*100%,IF(Sheet1!$BH23>2,Sheet1!$S23*100%,""))) ->  | BO23: =IF(Sheet1!$BF23<=4,Sheet1!$S23*0,IF(Sheet1!$BF23=5,Sheet1!$S23*20%,IF(Sheet1!$BF23=6,Sheet1!$S23*40%,IF(Sheet1!$BF23=7,Sheet1!$S23*50%,IF(Sheet1!$BF23>7,Sheet1!$S23*100%,""))))) -> 0 | BP23: =IF(Sheet1!$BG23<=2,Sheet1!$S23*0,IF(Sheet1!$BG23=3,Sheet1!$S23*30%,IF(Sheet1!$BG23=4,Sheet1!$S23*40%,IF(Sheet1!$BG23=5,Sheet1!$S23*50%,IF(Sheet1!$BG23>5,Sheet1!$S23*100%,""))))) -> 0 | BQ23: 0 | BR23: 13.41 | BT23: 3 | BU23: 0 | BX23: 0 | CC23: 0 | CE23: 0 | CG23: 2.69 | CH23: 5 | CI23: 0 | CL23: 0 | CN23: 0 | CO23: =ROUND(IF(G23=#REF!,(BE23-AY23)*40%,0),2) ->  | CP23: 214.5728 | CQ23: 0 | CS23: =ROUND(IF($D23=#REF!,$BE23-SUM(BJ23:CQ23,0),0),2) ->  | CT23: =ROUND(IF($D23=#REF!,$BE23-SUM(BJ23:CQ23,0),0),2) ->  | CU23: =ROUND(IF($G23=#REF!,$BE23-SUM(BK23:CR23,0),0),2) -> 
B24: 202017 | C24: 29330 | D24: البنك الاهلى | E24: اسماعيل احمد محمد مصطفي | F24: 0 | G24: دوام كامل | H24: فنى | I24: الثالثة | J24: الثالثة | K24: ميكانيكي | L24: الادارة العامة | M24: 27510300103456 | N24: 202017اسماعيل احمد محمد مصطفيالثالثةالثالثةميكانيكيالادارة العامة | O24: نعم | P24: 740.21 | Q24: 866.0457 | R24: 0 | S24: 1169.16 | T24: 129.91 | U24: 0 | V24: 0 | W24: 0 | Y24: 129.906855 | Z24: 300 | AB24: 0 | AD24: 0 | AE24: 0 | AF24: 429.91 | AG24: 0 | AH24: 0 | AI24: 0 | AJ24: 1289.66 | AK24: 0 | AL24: 0 | AM24: 0 | AN24: 0 | AO24: 0 | AP24: 0 | AQ24: 0 | AS24: 75.979 | AT24: 0 | AU24: 10 | AV24: 1375.64 | AW24: 10 | AX24: 0 | AY24: 155.8337 | AZ24: 0 | BB24: 180 | BC24: 4136.5 | BD24: 2863.5 | BE24: 7180 | BF24: 0 | BG24: 0 | BJ24: 516.8404785 | BL24: 0 | BM24: 0 | BN24: =IF(Sheet1!$BH24=1,Sheet1!$S24*20%,IF(Sheet1!$BH24=2,Sheet1!$S24*100%,IF(Sheet1!$BH24>2,Sheet1!$S24*100%,""))) ->  | BO24: =IF(Sheet1!$BF24<=4,Sheet1!$S24*0,IF(Sheet1!$BF24=5,Sheet1!$S24*20%,IF(Sheet1!$BF24=6,Sheet1!$S24*40%,IF(Sheet1!$BF24=7,Sheet1!$S24*50%,IF(Sheet1!$BF24>7,Sheet1!$S24*100%,""))))) -> 0 | BP24: =IF(Sheet1!$BG24<=2,Sheet1!$S24*0,IF(Sheet1!$BG24=3,Sheet1!$S24*30%,IF(Sheet1!$BG24=4,Sheet1!$S24*40%,IF(Sheet1!$BG24=5,Sheet1!$S24*50%,IF(Sheet1!$BG24>5,Sheet1!$S24*100%,""))))) -> 0 | BQ24: 0 | BR24: 0 | BT24: 3 | BU24: 0 | BX24: 0 | CC24: 0 | CE24: 0 | CG24: 0 | CH24: 3 | CI24: 0 | CL24: 0 | CN24: 0 | CO24: =ROUND(IF(G24=#REF!,(BE24-AY24)*40%,0),2) ->  | CP24: 155.8337 | CQ24: 0 | CS24: =ROUND(IF($D24=#REF!,$BE24-SUM(BJ24:CQ24,0),0),2) ->  | CT24: =ROUND(IF($D24=#REF!,$BE24-SUM(BJ24:CQ24,0),0),2) ->  | CU24: =ROUND(IF($G24=#REF!,$BE24-SUM(BK24:CR24,0),0),2) -> 
B25: 202018 | C25: 4367 | D25: بنك مصر 1 | E25: عبدالعزيز محمد عبدالعزيز فرج | F25: 0 | G25: دوام كامل | H25: فنى | I25: الثالثة | J25: الثالثة | K25: حرفى عامل دوكو | L25: فرع بنى سويف | M25: 27012251300976 | N25: 202018عبدالعزيز محمد عبدالعزيز فرجالثالثةالثالثةحرفى عامل دوكوفرع بنى سويف | O25: نعم | P25: 1395.3 | Q25: 1632.501 | R25: 0 | S25: 2203.88 | T25: 244.88 | U25: 0 | V25: 0 | W25: 0 | Y25: 244.87515 | Z25: 300 | AB25: 0 | AD25: 0 | AE25: 0 | AF25: 544.88 | AG25: 0 | AH25: 0 | AI25: 0 | AJ25: 362.5 | AK25: 0 | AL25: 27.89 | AM25: 49.74 | AN25: 63.87 | AO25: 91.12 | AP25: 97.5 | AQ25: 104.32 | AS25: 69.765 | AT25: 600 | AU25: 10 | AV25: 1476.71 | AW25: 10 | AX25: 0 | AY25: 293.7474 | AZ25: 0 | BB25: 300 | BC25: 6406.6 | BD25: 593.4 | BE25: 7300 | BF25: 0 | BG25: 0 | BJ25: 563.2638086 | BK25: 0 | BL25: 0 | BM25: 0 | BN25: =IF(Sheet1!$BH25=1,Sheet1!$S25*20%,IF(Sheet1!$BH25=2,Sheet1!$S25*100%,IF(Sheet1!$BH25>2,Sheet1!$S25*100%,""))) ->  | BO25: =IF(Sheet1!$BF25<=4,Sheet1!$S25*0,IF(Sheet1!$BF25=5,Sheet1!$S25*20%,IF(Sheet1!$BF25=6,Sheet1!$S25*40%,IF(Sheet1!$BF25=7,Sheet1!$S25*50%,IF(Sheet1!$BF25>7,Sheet1!$S25*100%,""))))) -> 0 | BP25: =IF(Sheet1!$BG25<=2,Sheet1!$S25*0,IF(Sheet1!$BG25=3,Sheet1!$S25*30%,IF(Sheet1!$BG25=4,Sheet1!$S25*40%,IF(Sheet1!$BG25=5,Sheet1!$S25*50%,IF(Sheet1!$BG25>5,Sheet1!$S25*100%,""))))) -> 0 | BQ25: 0 | BR25: 0 | BT25: 3 | BU25: 0 | BX25: 0 | CC25: 0 | CE25: 0 | CG25: 2.67 | CH25: 3 | CI25: 0 | CL25: 0 | CN25: 0 | CO25: =ROUND(IF(G25=#REF!,(BE25-AY25)*40%,0),2) ->  | CP25: 293.7474 | CQ25: 0 | CS25: =ROUND(IF($D25=#REF!,$BE25-SUM(BJ25:CQ25,0),0),2) ->  | CT25: =ROUND(IF($D25=#REF!,$BE25-SUM(BJ25:CQ25,0),0),2) ->  | CU25: =ROUND(IF($G25=#REF!,$BE25-SUM(BK25:CR25,0),0),2) -> 
B26: 202019 | C26: 29119 | D26: البنك الاهلى | E26: محمد فتحي عيد | F26: 0 | G26: دوام كامل | H26: فنى | I26: الثالثة | J26: الثالثة | K26: كهربائي | L26: فرع الاسكندرية | M26: 28505211400935 | N26: 202019محمد فتحي عيد الثالثةالثالثةكهربائيفرع الاسكندرية | O26: نعم | P26: 974.25 | Q26: 1139.8725 | R26: 0 | S26: 1538.83 | T26: 170.98 | U26: 0 | V26: 0 | W26: 0 | Y26: 170.980875 | Z26: 300 | AB26: 0 | AD26: 0 | AE26: 0 | AF26: 470.98 | AG26: 0 | AH26: 0 | AI26: 0 | AJ26: 336.73 | AK26: 0 | AL26: 29.56 | AM26: 34.73 | AN26: 44.6 | AO26: 63.62 | AP26: 68.08 | AQ26: 86.26 | AS26: 52.575 | AT26: 600 | AU26: 4 | AV26: 1320.16 | AW26: 10 | AX26: 0 | AY26: 205.1053 | AZ26: 0 | BB26: 90 | BC26: 4855.93 | BD26: 2144.07 | BE26: 7090 | BF26: 0 | BG26: 0 | BJ26: 525.1982764 | BK26: 0 | BL26: 0 | BM26: 0 | BN26: =IF(Sheet1!$BH26=1,Sheet1!$S26*20%,IF(Sheet1!$BH26=2,Sheet1!$S26*100%,IF(Sheet1!$BH26>2,Sheet1!$S26*100%,""))) ->  | BO26: =IF(Sheet1!$BF26<=4,Sheet1!$S26*0,IF(Sheet1!$BF26=5,Sheet1!$S26*20%,IF(Sheet1!$BF26=6,Sheet1!$S26*40%,IF(Sheet1!$BF26=7,Sheet1!$S26*50%,IF(Sheet1!$BF26>7,Sheet1!$S26*100%,""))))) -> 0 | BP26: =IF(Sheet1!$BG26<=2,Sheet1!$S26*0,IF(Sheet1!$BG26=3,Sheet1!$S26*30%,IF(Sheet1!$BG26=4,Sheet1!$S26*40%,IF(Sheet1!$BG26=5,Sheet1!$S26*50%,IF(Sheet1!$BG26>5,Sheet1!$S26*100%,""))))) -> 0 | BQ26: 0 | BR26: 0 | BT26: 3 | BU26: 0 | BX26: 0 | CC26: 0 | CE26: 0 | CG26: 2.62 | CH26: 3 | CI26: 0 | CL26: 0 | CN26: 0 | CO26: =ROUND(IF(G26=#REF!,(BE26-AY26)*40%,0),2) ->  | CP26: 205.1053 | CQ26: 0 | CS26: =ROUND(IF($D26=#REF!,$BE26-SUM(BJ26:CQ26,0),0),2) ->  | CT26: =ROUND(IF($D26=#REF!,$BE26-SUM(BJ26:CQ26,0),0),2) ->  | CU26: =ROUND(IF($G26=#REF!,$BE26-SUM(BK26:CR26,0),0),2) -> 
B27: 202020 | C27: 30015 | D27: البنك الاهلى | E27: احمد محمد عبدالجواد حسن | F27: 0 | G27: دوام كامل | H27: فنى | I27: الرابعة | M27: 26604200101732 | N27: 202020احمد محمد عبدالجواد حسن الرابعة | P27: 974.25 | Q27: 1139.87 | R27: 0 | S27: 1538.82 | T27: 170.98 | U27: 0 | V27: 0 | W27: 0 | Y27: 170.9805 | Z27: 300 | AB27: 0 | AD27: 0 | AE27: 0 | AF27: 470.98 | AG27: 0 | AH27: 0 | AI27: 0 | AJ27: 332.32 | AK27: 0 | AL27: 29.57 | AM27: 34.72 | AN27: 44.58 | AO27: 63.6 | AP27: 68.05 | AQ27: 86.26 | AS27: 52.575 | AT27: 600 | AU27: 10 | AV27: 1321.68 | AW27: 10 | AX27: 0 | AY27: 205.1053 | AZ27: 0 | BB27: 0 | BC27: 4857.44 | BD27: 2142.56 | BE27: 7000 | BF27: 0 | BG27: 0 | BJ27: 525.2158936 | BK27: 0 | BL27: 0 | BM27: 0 | BN27: =IF(Sheet1!$BH27=1,Sheet1!$S27*20%,IF(Sheet1!$BH27=2,Sheet1!$S27*100%,IF(Sheet1!$BH27>2,Sheet1!$S27*100%,""))) ->  | BO27: =IF(Sheet1!$BF27<=4,Sheet1!$S27*0,IF(Sheet1!$BF27=5,Sheet1!$S27*20%,IF(Sheet1!$BF27=6,Sheet1!$S27*40%,IF(Sheet1!$BF27=7,Sheet1!$S27*50%,IF(Sheet1!$BF27>7,Sheet1!$S27*100%,""))))) -> 0 | BP27: =IF(Sheet1!$BG27<=2,Sheet1!$S27*0,IF(Sheet1!$BG27=3,Sheet1!$S27*30%,IF(Sheet1!$BG27=4,Sheet1!$S27*40%,IF(Sheet1!$BG27=5,Sheet1!$S27*50%,IF(Sheet1!$BG27>5,Sheet1!$S27*100%,""))))) -> 0 | BQ27: 0 | BR27: 0 | BT27: 3 | BU27: 0 | BX27: 0 | CC27: 0 | CE27: 0 | CG27: 2.56 | CH27: 3 | CI27: 0 | CL27: 0 | CN27: 0 | CO27: =ROUND(IF(G27=#REF!,(BE27-AY27)*40%,0),2) ->  | CP27: 205.1053 | CQ27: 0 | CS27: =ROUND(IF($D27=#REF!,$BE27-SUM(BJ27:CQ27,0),0),2) ->  | CT27: =ROUND(IF($D27=#REF!,$BE27-SUM(BJ27:CQ27,0),0),2) ->  | CU27: =ROUND(IF($G27=#REF!,$BE27-SUM(BK27:CR27,0),0),2) -> 
B28: 202021 | C28: 29050 | D28: البنك الاهلى | E28: محمد محمد عبيد عبدالله | F28: 0 | G28: دوام كامل | H28: فنى | I28: الرابعة | J28: الرابعة | K28: حرفى عامل كاوتش | L28: الاميرية | M28: 26803160104094 | N28: 202021محمد محمد عبيد عبدالله الرابعةالرابعةحرفى عامل كاوتشالاميرية | O28: نعم | P28: 1209.77 | Q28: 1415.4309 | R28: 0 | S28: 1910.83 | T28: 212.31 | U28: 0 | V28: 0 | W28: 0 | Y28: 212.314635 | Z28: 300 | AB28: 0 | AD28: 0 | AE28: 0 | AF28: 512.31 | AG28: 0 | AH28: 0 | AI28: 0 | AJ28: 355.84 | AK28: 0 | AL28: 24.18 | AM28: 43.13 | AN28: 55.38 | AO28: 79 | AP28: 84.53 | AQ28: 90.45 | AS28: 60.4885 | AT28: 600 | AU28: 10 | AV28: 1403 | AW28: 10 | AX28: 0 | AY28: 254.6884 | AZ28: 0 | BB28: 270 | BC28: 5718.57 | BD28: 1281.43 | BE28: 7270 | BF28: 0 | BG28: 0 | BJ28: 534.777085 | BK28: 0 | BL28: 0 | BM28: 0 | BN28: =IF(Sheet1!$BH28=1,Sheet1!$S28*20%,IF(Sheet1!$BH28=2,Sheet1!$S28*100%,IF(Sheet1!$BH28>2,Sheet1!$S28*100%,""))) ->  | BO28: =IF(Sheet1!$BF28<=4,Sheet1!$S28*0,IF(Sheet1!$BF28=5,Sheet1!$S28*20%,IF(Sheet1!$BF28=6,Sheet1!$S28*40%,IF(Sheet1!$BF28=7,Sheet1!$S28*50%,IF(Sheet1!$BF28>7,Sheet1!$S28*100%,""))))) -> 0 | BP28: =IF(Sheet1!$BG28<=2,Sheet1!$S28*0,IF(Sheet1!$BG28=3,Sheet1!$S28*30%,IF(Sheet1!$BG28=4,Sheet1!$S28*40%,IF(Sheet1!$BG28=5,Sheet1!$S28*50%,IF(Sheet1!$BG28>5,Sheet1!$S28*100%,""))))) -> 0 | BQ28: 0 | BR28: 0 | BT28: 3 | BU28: 0 | BX28: 0 | CC28: 0 | CE28: 0 | CG28: 2.56 | CH28: 3 | CI28: 0 | CL28: 0 | CN28: 0 | CO28: =ROUND(IF(G28=#REF!,(BE28-AY28)*40%,0),2) ->  | CP28: 254.6884 | CQ28: 0 | CS28: =ROUND(IF($D28=#REF!,$BE28-SUM(BJ28:CQ28,0),0),2) ->  | CT28: =ROUND(IF($D28=#REF!,$BE28-SUM(BJ28:CQ28,0),0),2) ->  | CU28: =ROUND(IF($G28=#REF!,$BE28-SUM(BK28:CR28,0),0),2) -> 
B29: 202023 | C29: 44005 | D29: بنك مصر 1 | E29: احمد فتحى لاشين محمد | F29: 0 | G29: دوام كامل | H29: فنى | I29: عقد مؤقت | M29: 29211051701917 | N29: 202023احمد فتحى لاشين محمدعقد مؤقت | P29: 518.44 | Q29: 518.44 | R29: 0 | S29: 699.89 | T29: 77.77 | U29: 0 | V29: 0 | W29: 0 | Y29: 77.766 | Z29: 300 | AB29: 0 | AD29: 0 | AE29: 0 | AF29: 377.77 | AG29: 0 | AH29: 0 | AI29: 0 | AJ29: 333.58 | AK29: 0 | AL29: 0 | AM29: 0 | AN29: 0 | AO29: 0 | AP29: 0 | AQ29: 0 | AS29: 98.156 | AT29: 600 | AU29: 4 | AV29: 1035.74 | AW29: 10 | AX29: 0 | AY29: 109.1453 | AZ29: 0 | BB29: 0 | BC29: 2828.76 | BD29: 4171.24 | BE29: 7000 | BF29: 0 | BG29: 0 | BJ29: 504.6161914 | BK29: 0 | BL29: 0 | BM29: 0 | BN29: =IF(Sheet1!$BH29=1,Sheet1!$S29*20%,IF(Sheet1!$BH29=2,Sheet1!$S29*100%,IF(Sheet1!$BH29>2,Sheet1!$S29*100%,""))) ->  | BO29: =IF(Sheet1!$BF29<=4,Sheet1!$S29*0,IF(Sheet1!$BF29=5,Sheet1!$S29*20%,IF(Sheet1!$BF29=6,Sheet1!$S29*40%,IF(Sheet1!$BF29=7,Sheet1!$S29*50%,IF(Sheet1!$BF29>7,Sheet1!$S29*100%,""))))) -> 0 | BP29: =IF(Sheet1!$BG29<=2,Sheet1!$S29*0,IF(Sheet1!$BG29=3,Sheet1!$S29*30%,IF(Sheet1!$BG29=4,Sheet1!$S29*40%,IF(Sheet1!$BG29=5,Sheet1!$S29*50%,IF(Sheet1!$BG29>5,Sheet1!$S29*100%,""))))) -> 0 | BQ29: 0 | BR29: 0 | BT29: 3 | BU29: 0 | BX29: 0 | CC29: 0 | CE29: 0 | CG29: 1.99 | CH29: 3 | CI29: 0 | CL29: 0 | CN29: 0 | CO29: =ROUND(IF(G29=#REF!,(BE29-AY29)*40%,0),2) ->  | CP29: 109.1453 | CQ29: 0 | CS29: =ROUND(IF($D29=#REF!,$BE29-SUM(BJ29:CQ29,0),0),2) ->  | CT29: =ROUND(IF($D29=#REF!,$BE29-SUM(BJ29:CQ29,0),0),2) ->  | CU29: =ROUND(IF($G29=#REF!,$BE29-SUM(BK29:CR29,0),0),2) -> 
B30: 202024 | C30: 35375 | D30: البنك الاهلى | E30: اشرف صلاح محمود سعد | F30: 0 | G30: دوام كامل | H30: فنى | I30: الثانية | J30: الثانية | K30: كهربائي سيارات | L30: الاميرية | M30: 27805050101631 | N30: 202024اشرف صلاح محمود سعدالثانيةالثانيةكهربائي سيارات الاميرية | O30: نعم | P30: 1402.84 | Q30: 1641.3228 | R30: 0 | S30: 2215.79 | T30: 246.2 | U30: 0 | V30: 0 | W30: 0 | Y30: 246.19842 | Z30: 300 | AB30: 0 | AD30: 0 | AE30: 0 | AF30: 546.2 | AG30: 0 | AH30: 0 | AI30: 0 | AJ30: 360.36 | AK30: 0 | AL30: 28.04 | AM30: 50.01 | AN30: 64.21 | AO30: 91.61 | AP30: 98.02 | AQ30: 104.89 | AS30: 70.142 | AT30: 600 | AU30: 10 | AV30: 1477.28 | AW30: 10 | AX30: 0 | AY30: 295.3347 | AZ30: 0 | BB30: 60 | BC30: 6432.13 | BD30: 567.87 | BE30: 7060 | BF30: 0 | BG30: 0 | BJ30: 565.4935107 | BK30: 0 | BL30: 0 | BM30: 0 | BN30: =IF(Sheet1!$BH30=1,Sheet1!$S30*20%,IF(Sheet1!$BH30=2,Sheet1!$S30*100%,IF(Sheet1!$BH30>2,Sheet1!$S30*100%,""))) ->  | BO30: =IF(Sheet1!$BF30<=4,Sheet1!$S30*0,IF(Sheet1!$BF30=5,Sheet1!$S30*20%,IF(Sheet1!$BF30=6,Sheet1!$S30*40%,IF(Sheet1!$BF30=7,Sheet1!$S30*50%,IF(Sheet1!$BF30>7,Sheet1!$S30*100%,""))))) -> 0 | BP30: =IF(Sheet1!$BG30<=2,Sheet1!$S30*0,IF(Sheet1!$BG30=3,Sheet1!$S30*30%,IF(Sheet1!$BG30=4,Sheet1!$S30*40%,IF(Sheet1!$BG30=5,Sheet1!$S30*50%,IF(Sheet1!$BG30>5,Sheet1!$S30*100%,""))))) -> 0 | BQ30: 0 | BR30: 0 | BT30: 3 | BU30: 0 | BX30: 0 | CC30: 0 | CE30: 0 | CG30: 2.68 | CH30: 3 | CI30: 0 | CL30: 0 | CN30: 0 | CO30: =ROUND(IF(G30=#REF!,(BE30-AY30)*40%,0),2) ->  | CP30: 295.3347 | CQ30: 0 | CS30: =ROUND(IF($D30=#REF!,$BE30-SUM(BJ30:CQ30,0),0),2) ->  | CT30: =ROUND(IF($D30=#REF!,$BE30-SUM(BJ30:CQ30,0),0),2) ->  | CU30: =ROUND(IF($G30=#REF!,$BE30-SUM(BK30:CR30,0),0),2) -> 
B31: 202025 | C31: 29083 | D31: البنك الاهلى | E31: جمال فتحي ابراهيم عبدالله | F31: 0 | G31: دوام كامل | H31: فنى | I31: الثانية | J31: الثانية | K31: فني ميكانيكي | L31: الاميرية | M31: 27012030102576 | N31: 202025جمال فتحي ابراهيم عبدالله الثانيةالثانيةفني ميكانيكيالاميرية | O31: نعم | P31: 1186.23 | Q31: 1387.8891 | R31: 0 | S31: 1873.65 | T31: 208.18 | U31: 0 | V31: 0 | W31: 0 | Y31: 208.183365 | Z31: 300 | AB31: 0 | AD31: 0 | AE31: 0 | AF31: 508.18 | AG31: 0 | AH31: 0 | AI31: 0 | AJ31: 1334.27 | AK31: 0 | AL31: 0 | AM31: 0 | AN31: 0 | AO31: 0 | AP31: 0 | AQ31: 0 | AS31: 59.3115 | AT31: 0 | AU31: 0 | AV31: 1393.58 | AW31: 10 | AX31: 0 | AY31: 249.7326 | AZ31: 0 | BB31: 120 | BC31: 5631.21 | BD31: 1368.79 | BE31: 7120 | BF31: 0 | BG31: 0 | BJ31: 533.8101807 | BK31: 0 | BL31: 0 | BM31: 0 | BN31: =IF(Sheet1!$BH31=1,Sheet1!$S31*20%,IF(Sheet1!$BH31=2,Sheet1!$S31*100%,IF(Sheet1!$BH31>2,Sheet1!$S31*100%,""))) ->  | BO31: =IF(Sheet1!$BF31<=4,Sheet1!$S31*0,IF(Sheet1!$BF31=5,Sheet1!$S31*20%,IF(Sheet1!$BF31=6,Sheet1!$S31*40%,IF(Sheet1!$BF31=7,Sheet1!$S31*50%,IF(Sheet1!$BF31>7,Sheet1!$S31*100%,""))))) -> 0 | BP31: =IF(Sheet1!$BG31<=2,Sheet1!$S31*0,IF(Sheet1!$BG31=3,Sheet1!$S31*30%,IF(Sheet1!$BG31=4,Sheet1!$S31*40%,IF(Sheet1!$BG31=5,Sheet1!$S31*50%,IF(Sheet1!$BG31>5,Sheet1!$S31*100%,""))))) -> 0 | BQ31: 0 | BR31: 0 | BT31: 3 | BU31: 0 | BX31: 0 | CC31: 0 | CE31: 0 | CG31: 2.56 | CH31: 3 | CI31: 0 | CL31: 0 | CN31: 0 | CO31: =ROUND(IF(G31=#REF!,(BE31-AY31)*40%,0),2) ->  | CP31: 249.7326 | CQ31: 0 | CS31: =ROUND(IF($D31=#REF!,$BE31-SUM(BJ31:CQ31,0),0),2) ->  | CT31: =ROUND(IF($D31=#REF!,$BE31-SUM(BJ31:CQ31,0),0),2) ->  | CU31: =ROUND(IF($G31=#REF!,$BE31-SUM(BK31:CR31,0),0),2) -> 
B32: 202026 | C32: 2646 | D32: البنك الاهلى | E32: حمدي مصطفي محمد ابو الوفا | F32: 0 | G32: دوام كامل | H32: فنى | I32: الثانية | M32: 26606101200659 | N32: 202026حمدي مصطفي محمد ابو الوفاالثانية | P32: 2115.53 | Q32: 2263.62 | R32: 0 | S32: 3055.89 | T32: 339.54 | U32: 0 | V32: 0 | W32: 0 | Y32: 339.543 | Z32: 300 | AB32: 0 | AD32: 0 | AE32: 0 | AF32: 639.54 | AG32: 0 | AH32: 0 | AI32: 0 | AJ32: 440.57 | AK32: 0 | AL32: 42.29 | AM32: 75.42 | AN32: 96.84 | AO32: 138.15 | AP32: 147.82 | AQ32: 58.17 | AS32: 105.7765 | AT32: 600 | AU32: 10 | AV32: 1715.04 | AW32: 10 | AX32: 0 | AY32: 445.3748 | AZ32: 392.44 | BB32: 600 | BC32: 8469 | BD32: 0 | BE32: 9461.44 | BF32: 0 | BG32: 0 | BJ32: 796.3801807 | BK32: 0 | BL32: 0 | BM32: 0 | BN32: =IF(Sheet1!$BH32=1,Sheet1!$S32*20%,IF(Sheet1!$BH32=2,Sheet1!$S32*100%,IF(Sheet1!$BH32>2,Sheet1!$S32*100%,""))) ->  | BO32: =IF(Sheet1!$BF32<=4,Sheet1!$S32*0,IF(Sheet1!$BF32=5,Sheet1!$S32*20%,IF(Sheet1!$BF32=6,Sheet1!$S32*40%,IF(Sheet1!$BF32=7,Sheet1!$S32*50%,IF(Sheet1!$BF32>7,Sheet1!$S32*100%,""))))) -> 0 | BP32: =IF(Sheet1!$BG32<=2,Sheet1!$S32*0,IF(Sheet1!$BG32=3,Sheet1!$S32*30%,IF(Sheet1!$BG32=4,Sheet1!$S32*40%,IF(Sheet1!$BG32=5,Sheet1!$S32*50%,IF(Sheet1!$BG32>5,Sheet1!$S32*100%,""))))) -> 0 | BQ32: 0 | BR32: 0 | BT32: 3 | BU32: 0 | BX32: 0 | CC32: 0 | CE32: 0 | CG32: 3.72 | CH32: 3 | CI32: 0 | CL32: 0 | CN32: 0 | CO32: =ROUND(IF(G32=#REF!,(BE32-AY32)*40%,0),2) ->  | CP32: 445.3748 | CQ32: 0 | CS32: =ROUND(IF($D32=#REF!,$BE32-SUM(BJ32:CQ32,0),0),2) ->  | CT32: =ROUND(IF($D32=#REF!,$BE32-SUM(BJ32:CQ32,0),0),2) ->  | CU32: =ROUND(IF($G32=#REF!,$BE32-SUM(BK32:CR32,0),0),2) -> 
B33: 202027 | C33: 11041 | D33: البنك الاهلى | E33: سيد علي محمد علي | F33: 0 | G33: دوام كامل | H33: فنى | I33: الثالثة | J33: الثالثة | K33: حرفى حداد | L33: الادارة العامة | M33: 26608080100775 | N33: 202027سيد علي محمد علي الثالثةالثالثةحرفى حدادالادارة العامة | O33: نعم | P33: 1676.1 | Q33: 1961.037 | R33: 0 | S33: 2647.4 | T33: 294.16 | U33: 0 | V33: 0 | W33: 0 | Y33: 294.15555 | Z33: 300 | AB33: 0 | AD33: 0 | AE33: 0 | AF33: 594.16 | AG33: 0 | AH33: 0 | AI33: 0 | AJ33: 395.65 | AK33: 0 | AL33: 33.51 | AM33: 59.75 | AN33: 76.72 | AO33: 109.46 | AP33: 117.12 | AQ33: 125.32 | AS33: 83.805 | AT33: 600 | AU33: 8 | AV33: 1609.34 | AW33: 10 | AX33: 0 | AY33: 352.8632 | AZ33: 0 | BB33: 30 | BC33: 7468.96 | BD33: 0 | BE33: 7498.96 | BF33: 0 | BG33: 0 | BJ33: 659.1794043 | BK33: 0 | BL33: 0 | BM33: 0 | BN33: =IF(Sheet1!$BH33=1,Sheet1!$S33*20%,IF(Sheet1!$BH33=2,Sheet1!$S33*100%,IF(Sheet1!$BH33>2,Sheet1!$S33*100%,""))) ->  | BO33: =IF(Sheet1!$BF33<=4,Sheet1!$S33*0,IF(Sheet1!$BF33=5,Sheet1!$S33*20%,IF(Sheet1!$BF33=6,Sheet1!$S33*40%,IF(Sheet1!$BF33=7,Sheet1!$S33*50%,IF(Sheet1!$BF33>7,Sheet1!$S33*100%,""))))) -> 0 | BP33: =IF(Sheet1!$BG33<=2,Sheet1!$S33*0,IF(Sheet1!$BG33=3,Sheet1!$S33*30%,IF(Sheet1!$BG33=4,Sheet1!$S33*40%,IF(Sheet1!$BG33=5,Sheet1!$S33*50%,IF(Sheet1!$BG33>5,Sheet1!$S33*100%,""))))) -> 0 | BQ33: 0 | BR33: 0 | BT33: 3 | BU33: 0 | BX33: 0 | CC33: 0 | CE33: 0 | CG33: 3.09 | CH33: 3 | CI33: 0 | CL33: 0 | CN33: 0 | CO33: =ROUND(IF(G33=#REF!,(BE33-AY33)*40%,0),2) ->  | CP33: 352.8632 | CQ33: 0 | CS33: =ROUND(IF($D33=#REF!,$BE33-SUM(BJ33:CQ33,0),0),2) ->  | CT33: =ROUND(IF($D33=#REF!,$BE33-SUM(BJ33:CQ33,0),0),2) ->  | CU33: =ROUND(IF($G33=#REF!,$BE33-SUM(BK33:CR33,0),0),2) -> 
B34: 202028 | C34: 29089 | D34: البنك الاهلى | E34: محمد صلاح كمال محمد | F34: 0 | G34: دوام كامل | H34: فنى | I34: الثانية | M34: 28105151402196 | N34: 202028محمد صلاح كمال محمد الثانية | P34: 1142.25 | Q34: 1256.475 | R34: 0 | S34: 1696.24 | T34: 188.47 | U34: 0 | V34: 0 | W34: 0 | Y34: 188.47125 | Z34: 300 | AB34: 0 | AD34: 0 | AE34: 0 | AF34: 488.47 | AG34: 0 | AH34: 0 | AI34: 0 | AJ34: 339.04 | AK34: 0 | AL34: 22.83 | AM34: 40.72 | AN34: 52.29 | AO34: 74.59 | AP34: 79.82 | AQ34: 85.4 | AS34: 57.1125 | AT34: 600 | AU34: 8 | AV34: 1359.8 | AW34: 10 | AX34: 0 | AY34: 240.4737 | AZ34: 0 | BB34: 0 | BC34: 5239.93 | BD34: 1760.07 | BE34: 7000 | BF34: 0 | BG34: 0 | BJ34: 531.810415 | BK34: 0 | BL34: 0 | BM34: 0 | BN34: =IF(Sheet1!$BH34=1,Sheet1!$S34*20%,IF(Sheet1!$BH34=2,Sheet1!$S34*100%,IF(Sheet1!$BH34>2,Sheet1!$S34*100%,""))) ->  | BO34: =IF(Sheet1!$BF34<=4,Sheet1!$S34*0,IF(Sheet1!$BF34=5,Sheet1!$S34*20%,IF(Sheet1!$BF34=6,Sheet1!$S34*40%,IF(Sheet1!$BF34=7,Sheet1!$S34*50%,IF(Sheet1!$BF34>7,Sheet1!$S34*100%,""))))) -> 0 | BP34: =IF(Sheet1!$BG34<=2,Sheet1!$S34*0,IF(Sheet1!$BG34=3,Sheet1!$S34*30%,IF(Sheet1!$BG34=4,Sheet1!$S34*40%,IF(Sheet1!$BG34=5,Sheet1!$S34*50%,IF(Sheet1!$BG34>5,Sheet1!$S34*100%,""))))) -> 0 | BQ34: 0 | BR34: 0 | BT34: 3 | BU34: 0 | BX34: 0 | CC34: 0 | CE34: 0 | CG34: 2.17 | CH34: 3 | CI34: 0 | CL34: 0 | CN34: 0 | CO34: =ROUND(IF(G34=#REF!,(BE34-AY34)*40%,0),2) ->  | CP34: 240.4737 | CQ34: 0 | CS34: =ROUND(IF($D34=#REF!,$BE34-SUM(BJ34:CQ34,0),0),2) ->  | CT34: =ROUND(IF($D34=#REF!,$BE34-SUM(BJ34:CQ34,0),0),2) ->  | CU34: =ROUND(IF($G34=#REF!,$BE34-SUM(BK34:CR34,0),0),2) -> 
B35: 202029 | C35: 29105 | D35: البنك الاهلى | E35: ابراهيم بدوي ابراهيم | F35: 0 | G35: دوام كامل | H35: فنى | I35: الثالثة | J35: الثالثة | K35: ميكانيكي | L35: الاميرية | M35: 27102240100559 | N35: 202029ابراهيم بدوي ابراهيم الثالثةالثالثةميكانيكيالاميرية | O35: نعم | P35: 974.25 | Q35: 1139.8725 | R35: 0 | S35: 1538.83 | T35: 170.98 | U35: 0 | V35: 0 | W35: 0 | Y35: 170.980875 | Z35: 300 | AB35: 0 | AD35: 0 | AE35: 0 | AF35: 470.98 | AG35: 0 | AH35: 0 | AI35: 0 | AJ35: 336.32 | AK35: 0 | AL35: 29.56 | AM35: 34.73 | AN35: 44.6 | AO35: 63.62 | AP35: 68.08 | AQ35: 86.26 | AS35: 52.575 | AT35: 600 | AU35: 10 | AV35: 1325.75 | AW35: 10 | AX35: 0 | AY35: 205.1053 | AZ35: 0 | BB35: 0 | BC35: 4861.52 | BD35: 2138.48 | BE35: 7000 | BF35: 0 | BG35: 0 | BJ35: 525.2698193 | BK35: 0 | BL35: 0 | BM35: 0 | BN35: =IF(Sheet1!$BH35=1,Sheet1!$S35*20%,IF(Sheet1!$BH35=2,Sheet1!$S35*100%,IF(Sheet1!$BH35>2,Sheet1!$S35*100%,""))) ->  | BO35: =IF(Sheet1!$BF35<=4,Sheet1!$S35*0,IF(Sheet1!$BF35=5,Sheet1!$S35*20%,IF(Sheet1!$BF35=6,Sheet1!$S35*40%,IF(Sheet1!$BF35=7,Sheet1!$S35*50%,IF(Sheet1!$BF35>7,Sheet1!$S35*100%,""))))) -> 0 | BP35: =IF(Sheet1!$BG35<=2,Sheet1!$S35*0,IF(Sheet1!$BG35=3,Sheet1!$S35*30%,IF(Sheet1!$BG35=4,Sheet1!$S35*40%,IF(Sheet1!$BG35=5,Sheet1!$S35*50%,IF(Sheet1!$BG35>5,Sheet1!$S35*100%,""))))) -> 0 | BQ35: 0 | BR35: 0 | BT35: 3 | BU35: 0 | BX35: 0 | CC35: 0 | CE35: 0 | CG35: 2.62 | CH35: 3 | CI35: 0 | CL35: 0 | CN35: 0 | CO35: =ROUND(IF(G35=#REF!,(BE35-AY35)*40%,0),2) ->  | CP35: 205.1053 | CQ35: 0 | CS35: =ROUND(IF($D35=#REF!,$BE35-SUM(BJ35:CQ35,0),0),2) ->  | CT35: =ROUND(IF($D35=#REF!,$BE35-SUM(BJ35:CQ35,0),0),2) ->  | CU35: =ROUND(IF($G35=#REF!,$BE35-SUM(BK35:CR35,0),0),2) -> 
B36: 202030 | C36: 4238 | D36: بنك مصر 1 | E36: احمد هاني السيد سالم | F36: 0 | G36: دوام كامل | H36: فنى | I36: الثالثة | J36: الثالثة | K36: حداد | L36: فرع بنى سويف | M36: 29108060104896 | N36: 202030احمد هاني السيد سالمالثالثةالثالثةحدادفرع بنى سويف | O36: نعم | P36: 937.14 | Q36: 1096.4538 | R36: 0 | S36: 1480.21 | T36: 164.47 | U36: 0 | V36: 0 | W36: 0 | Y36: 164.46807 | Z36: 300 | AB36: 0 | AD36: 0 | AE36: 0 | AF36: 464.47 | AG36: 0 | AH36: 0 | AI36: 0 | AJ36: 333.09 | AK36: 0 | AL36: 31.29 | AM36: 33.41 | AN36: 42.9 | AO36: 61.2 | AP36: 67.7 | AQ36: 88.69 | AS36: 56.286 | AT36: 600 | AU36: 8 | AV36: 1322.57 | AW36: 10 | AX36: 0 | AY36: 197.2926 | AZ36: 0 | BB36: 0 | BC36: 4735.47 | BD36: 2264.53 | BE36: 7000 | BF36: 0 | BG36: 0 | BJ36: 523.8145215 | BK36: 0 | BL36: 0 | BM36: 0 | BN36: =IF(Sheet1!$BH36=1,Sheet1!$S36*20%,IF(Sheet1!$BH36=2,Sheet1!$S36*100%,IF(Sheet1!$BH36>2,Sheet1!$S36*100%,""))) ->  | BO36: =IF(Sheet1!$BF36<=4,Sheet1!$S36*0,IF(Sheet1!$BF36=5,Sheet1!$S36*20%,IF(Sheet1!$BF36=6,Sheet1!$S36*40%,IF(Sheet1!$BF36=7,Sheet1!$S36*50%,IF(Sheet1!$BF36>7,Sheet1!$S36*100%,""))))) -> 0 | BP36: =IF(Sheet1!$BG36<=2,Sheet1!$S36*0,IF(Sheet1!$BG36=3,Sheet1!$S36*30%,IF(Sheet1!$BG36=4,Sheet1!$S36*40%,IF(Sheet1!$BG36=5,Sheet1!$S36*50%,IF(Sheet1!$BG36>5,Sheet1!$S36*100%,""))))) -> 0 | BQ36: 0 | BR36: 0 | BT36: 3 | BU36: 0 | BX36: 0 | CC36: 0 | CE36: 0 | CG36: 2.66 | CH36: 3 | CI36: 0 | CL36: 0 | CN36: 0 | CO36: =ROUND(IF(G36=#REF!,(BE36-AY36)*40%,0),2) ->  | CP36: 197.2926 | CQ36: 0 | CS36: =ROUND(IF($D36=#REF!,$BE36-SUM(BJ36:CQ36,0),0),2) ->  | CT36: =ROUND(IF($D36=#REF!,$BE36-SUM(BJ36:CQ36,0),0),2) ->  | CU36: =ROUND(IF($G36=#REF!,$BE36-SUM(BK36:CR36,0),0),2) -> 
B37: 202031 | C37: 14087 | D37: البنك الاهلى | E37: ايمن صلاح عبدالرازق | F37: 0 | G37: دوام كامل | H37: فنى | I37: الثالثة | J37: الثالثة | K37: فني تشحيم | L37: فرع بنى سويف | M37: 29201011409258 | N37: 202031ايمن صلاح عبدالرازق الثالثةالثالثةفني تشحيم فرع بنى سويف | O37: نعم | P37: 974.25 | Q37: 1139.8725 | R37: 0 | S37: 1538.83 | T37: 170.98 | U37: 0 | V37: 0 | W37: 0 | Y37: 170.980875 | Z37: 300 | AB37: 0 | AD37: 0 | AE37: 0 | AF37: 470.98 | AG37: 0 | AH37: 0 | AI37: 0 | AJ37: 336.73 | AK37: 0 | AL37: 29.56 | AM37: 34.73 | AN37: 44.6 | AO37: 63.62 | AP37: 68.08 | AQ37: 86.26 | AS37: 52.575 | AT37: 600 | AU37: 8 | AV37: 1324.16 | AW37: 10 | AX37: 0 | AY37: 205.1053 | AZ37: 0 | BB37: 0 | BC37: 4859.93 | BD37: 2140.07 | BE37: 7000 | BF37: 0 | BG37: 0 | BJ37: 525.2455957 | BK37: 0 | BL37: 0 | BM37: 0 | BN37: =IF(Sheet1!$BH37=1,Sheet1!$S37*20%,IF(Sheet1!$BH37=2,Sheet1!$S37*100%,IF(Sheet1!$BH37>2,Sheet1!$S37*100%,""))) ->  | BO37: =IF(Sheet1!$BF37<=4,Sheet1!$S37*0,IF(Sheet1!$BF37=5,Sheet1!$S37*20%,IF(Sheet1!$BF37=6,Sheet1!$S37*40%,IF(Sheet1!$BF37=7,Sheet1!$S37*50%,IF(Sheet1!$BF37>7,Sheet1!$S37*100%,""))))) -> 0 | BP37: =IF(Sheet1!$BG37<=2,Sheet1!$S37*0,IF(Sheet1!$BG37=3,Sheet1!$S37*30%,IF(Sheet1!$BG37=4,Sheet1!$S37*40%,IF(Sheet1!$BG37=5,Sheet1!$S37*50%,IF(Sheet1!$BG37>5,Sheet1!$S37*100%,""))))) -> 0 | BQ37: 0 | BR37: 0 | BT37: 3 | BU37: 0 | BX37: 0 | CC37: 0 | CE37: 0 | CG37: 2.62 | CH37: 3 | CI37: 0 | CL37: 0 | CN37: 0 | CO37: =ROUND(IF(G37=#REF!,(BE37-AY37)*40%,0),2) ->  | CP37: 205.1053 | CQ37: 0 | CS37: =ROUND(IF($D37=#REF!,$BE37-SUM(BJ37:CQ37,0),0),2) ->  | CT37: =ROUND(IF($D37=#REF!,$BE37-SUM(BJ37:CQ37,0),0),2) ->  | CU37: =ROUND(IF($G37=#REF!,$BE37-SUM(BK37:CR37,0),0),2) -> 
B38: 202033 | C38: 2648 | D38: البنك الاهلى | E38: سيد محمد زينهم رفاعي | F38: 0 | G38: دوام كامل | H38: فنى | I38: الثالثة | J38: الثالثة | K38: حرفى سمكري | L38: الاميرية | M38: 27203142300036 | N38: 202033سيد محمد زينهم رفاعي الثالثةالثالثةحرفى سمكريالاميرية | O38: نعم | P38: 1947.76 | Q38: 2278.8792 | R38: 0 | S38: 3076.49 | T38: 341.83 | U38: 0 | V38: 0 | W38: 0 | Y38: 341.83188 | Z38: 300 | AB38: 0 | AD38: 0 | AE38: 0 | AF38: 641.83 | AG38: 0 | AH38: 0 | AI38: 0 | AJ38: 436.55 | AK38: 0 | AL38: 38.94 | AM38: 69.44 | AN38: 89.16 | AO38: 127.2 | AP38: 136.1 | AQ38: 145.63 | AS38: 97.388 | AT38: 600 | AU38: 8 | AV38: 1748.41 | AW38: 10 | AX38: 0 | AY38: 410.0547 | AZ38: 0 | BB38: 0 | BC38: 8507.49 | BD38: 0 | BE38: 8507.49 | BF38: 0 | BG38: 0 | BJ38: 751.8554785 | BK38: 0 | BL38: 0 | BM38: 0 | BN38: =IF(Sheet1!$BH38=1,Sheet1!$S38*20%,IF(Sheet1!$BH38=2,Sheet1!$S38*100%,IF(Sheet1!$BH38>2,Sheet1!$S38*100%,""))) ->  | BO38: =IF(Sheet1!$BF38<=4,Sheet1!$S38*0,IF(Sheet1!$BF38=5,Sheet1!$S38*20%,IF(Sheet1!$BF38=6,Sheet1!$S38*40%,IF(Sheet1!$BF38=7,Sheet1!$S38*50%,IF(Sheet1!$BF38>7,Sheet1!$S38*100%,""))))) -> 0 | BP38: =IF(Sheet1!$BG38<=2,Sheet1!$S38*0,IF(Sheet1!$BG38=3,Sheet1!$S38*30%,IF(Sheet1!$BG38=4,Sheet1!$S38*40%,IF(Sheet1!$BG38=5,Sheet1!$S38*50%,IF(Sheet1!$BG38>5,Sheet1!$S38*100%,""))))) -> 0 | BQ38: 0 | BR38: 0 | BT38: 3 | BU38: 0 | BX38: 0 | CC38: 0 | CE38: 0 | CG38: 3.48 | CH38: 3 | CI38: 0 | CL38: 0 | CN38: 0 | CO38: =ROUND(IF(G38=#REF!,(BE38-AY38)*40%,0),2) ->  | CP38: 410.0547 | CQ38: 0 | CS38: =ROUND(IF($D38=#REF!,$BE38-SUM(BJ38:CQ38,0),0),2) ->  | CT38: =ROUND(IF($D38=#REF!,$BE38-SUM(BJ38:CQ38,0),0),2) ->  | CU38: =ROUND(IF($G38=#REF!,$BE38-SUM(BK38:CR38,0),0),2) -> 
B39: 202034 | C39: 4115 | D39: بنك مصر 1 | E39: احمد ابراهيم احمد محمد ابراهيم | F39: 0 | G39: دوام كامل | H39: فنى | I39: الرابعة | M39: 28606060105295 | N39: 202034احمد ابراهيم احمد محمد ابراهيمالرابعة | P39: 735.53 | Q39: 860.57 | R39: 0 | S39: 1161.77 | T39: 129.09 | U39: 0 | V39: 0 | W39: 0 | Y39: 129.0855 | Z39: 300 | AB39: 0 | AD39: 0 | AE39: 0 | AF39: 429.09 | AG39: 0 | AH39: 0 | AI39: 0 | AJ39: 322.83 | AK39: 0 | AL39: 40.69 | AM39: 38.29 | AN39: 35.72 | AO39: 57.97 | AP39: 80.03 | AQ39: 101.88 | AS39: 76.447 | AT39: 600 | AU39: 4 | AV39: 1357.86 | AW39: 10 | AX39: 0 | AY39: 154.8484 | AZ39: 0 | BB39: 0 | BC39: 4103.23 | BD39: 2896.77 | BE39: 7000 | BF39: 0 | BG39: 0 | BJ39: 516.5698828 | BK39: 0 | BL39: 0 | BM39: 0 | BN39: =IF(Sheet1!$BH39=1,Sheet1!$S39*20%,IF(Sheet1!$BH39=2,Sheet1!$S39*100%,IF(Sheet1!$BH39>2,Sheet1!$S39*100%,""))) ->  | BO39: =IF(Sheet1!$BF39<=4,Sheet1!$S39*0,IF(Sheet1!$BF39=5,Sheet1!$S39*20%,IF(Sheet1!$BF39=6,Sheet1!$S39*40%,IF(Sheet1!$BF39=7,Sheet1!$S39*50%,IF(Sheet1!$BF39>7,Sheet1!$S39*100%,""))))) -> 0 | BP39: =IF(Sheet1!$BG39<=2,Sheet1!$S39*0,IF(Sheet1!$BG39=3,Sheet1!$S39*30%,IF(Sheet1!$BG39=4,Sheet1!$S39*40%,IF(Sheet1!$BG39=5,Sheet1!$S39*50%,IF(Sheet1!$BG39>5,Sheet1!$S39*100%,""))))) -> 0 | BQ39: 0 | BR39: 0 | BT39: 3 | BU39: 0 | BX39: 0 | CC39: 0 | CE39: 0 | CG39: 2.44 | CH39: 3 | CI39: 0 | CL39: 0 | CN39: 0 | CO39: =ROUND(IF(G39=#REF!,(BE39-AY39)*40%,0),2) ->  | CP39: 154.8484 | CQ39: 0 | CS39: =ROUND(IF($D39=#REF!,$BE39-SUM(BJ39:CQ39,0),0),2) ->  | CT39: =ROUND(IF($D39=#REF!,$BE39-SUM(BJ39:CQ39,0),0),2) ->  | CU39: =ROUND(IF($G39=#REF!,$BE39-SUM(BK39:CR39,0),0),2) -> 
B40: 202035 | C40: 30055 | D40: البنك الاهلى | E40: عادل فتحي عيد مجاهد | F40: 0 | G40: دوام كامل | H40: فنى | I40: الخامسة | J40: الخامسة | K40: حرفى ميكانيكى | L40: الاميرية | M40: 294403031400119 | N40: 202035عادل فتحي عيد مجاهدالخامسةالخامسةحرفى ميكانيكىالاميرية | O40: نعم | P40: 735.53 | Q40: 860.5701 | R40: 0 | S40: 1161.77 | T40: 129.09 | U40: 0 | V40: 0 | W40: 0 | Y40: 129.085515 | Z40: 300 | AB40: 0 | AD40: 0 | AE40: 0 | AF40: 429.09 | AG40: 0 | AH40: 0 | AI40: 0 | AJ40: 1285.41 | AK40: 0 | AL40: 0 | AM40: 0 | AN40: 0 | AO40: 0 | AP40: 0 | AQ40: 0 | AS40: 76.447 | AT40: 0 | AU40: 0 | AV40: 1361.86 | AW40: 10 | AX40: 0 | AY40: 154.8484 | AZ40: 0 | BB40: 30 | BC40: 4107.23 | BD40: 2892.77 | BE40: 7030 | BF40: 0 | BG40: 0 | BJ40: 516.6182764 | BL40: 0 | BM40: 0 | BN40: =IF(Sheet1!$BH40=1,Sheet1!$S40*20%,IF(Sheet1!$BH40=2,Sheet1!$S40*100%,IF(Sheet1!$BH40>2,Sheet1!$S40*100%,""))) ->  | BO40: =IF(Sheet1!$BF40<=4,Sheet1!$S40*0,IF(Sheet1!$BF40=5,Sheet1!$S40*20%,IF(Sheet1!$BF40=6,Sheet1!$S40*40%,IF(Sheet1!$BF40=7,Sheet1!$S40*50%,IF(Sheet1!$BF40>7,Sheet1!$S40*100%,""))))) -> 0 | BP40: =IF(Sheet1!$BG40<=2,Sheet1!$S40*0,IF(Sheet1!$BG40=3,Sheet1!$S40*30%,IF(Sheet1!$BG40=4,Sheet1!$S40*40%,IF(Sheet1!$BG40=5,Sheet1!$S40*50%,IF(Sheet1!$BG40>5,Sheet1!$S40*100%,""))))) -> 0 | BQ40: 0 | BR40: 0 | BT40: 3 | BU40: 0 | BX40: 0 | CC40: 0 | CE40: 0 | CG40: 0 | CH40: 3 | CI40: 0 | CL40: 0 | CN40: 0 | CO40: =ROUND(IF(G40=#REF!,(BE40-AY40)*40%,0),2) ->  | CP40: 154.8484 | CQ40: 0 | CS40: =ROUND(IF($D40=#REF!,$BE40-SUM(BJ40:CQ40,0),0),2) ->  | CT40: =ROUND(IF($D40=#REF!,$BE40-SUM(BJ40:CQ40,0),0),2) ->  | CU40: =ROUND(IF($G40=#REF!,$BE40-SUM(BK40:CR40,0),0),2) -> 
B41: 202038 | C41: 29033 | D41: البنك الاهلى | E41: احمد محمد احمد حسن | F41: 0 | G41: دوام كامل | H41: فنى | I41: الرابعة | J41: الرابعة | K41: حرفى سمكرى | L41: الاميرية | M41: 276120201101858 | N41: 202038احمد محمد احمد حسن الرابعةالرابعةحرفى سمكرىالاميرية | O41: نعم | P41: 1209.77 | Q41: 1415.4309 | R41: 0 | S41: 1910.83 | T41: 212.31 | U41: 0 | V41: 0 | W41: 0 | Y41: 212.314635 | Z41: 300 | AB41: 0 | AD41: 0 | AE41: 0 | AF41: 512.31 | AG41: 0 | AH41: 0 | AI41: 0 | AJ41: 355.82 | AK41: 0 | AL41: 24.18 | AM41: 43.13 | AN41: 55.38 | AO41: 79 | AP41: 84.53 | AQ41: 90.45 | AS41: 60.4885 | AT41: 600 | AU41: 10 | AV41: 1402.98 | AW41: 10 | AX41: 0 | AY41: 254.6884 | AZ41: 0 | BB41: 30 | BC41: 5718.55 | BD41: 1281.45 | BE41: 7030 | BF41: 0 | BG41: 0 | BJ41: 534.7760107 | BK41: 0 | BL41: 0 | BM41: 0 | BN41: =IF(Sheet1!$BH41=1,Sheet1!$S41*20%,IF(Sheet1!$BH41=2,Sheet1!$S41*100%,IF(Sheet1!$BH41>2,Sheet1!$S41*100%,""))) ->  | BO41: =IF(Sheet1!$BF41<=4,Sheet1!$S41*0,IF(Sheet1!$BF41=5,Sheet1!$S41*20%,IF(Sheet1!$BF41=6,Sheet1!$S41*40%,IF(Sheet1!$BF41=7,Sheet1!$S41*50%,IF(Sheet1!$BF41>7,Sheet1!$S41*100%,""))))) -> 0 | BP41: =IF(Sheet1!$BG41<=2,Sheet1!$S41*0,IF(Sheet1!$BG41=3,Sheet1!$S41*30%,IF(Sheet1!$BG41=4,Sheet1!$S41*40%,IF(Sheet1!$BG41=5,Sheet1!$S41*50%,IF(Sheet1!$BG41>5,Sheet1!$S41*100%,""))))) -> 0 | BQ41: 0 | BR41: 0 | BT41: 3 | BU41: 0 | BX41: 0 | CC41: 0 | CE41: 0 | CG41: 2.55 | CH41: 3 | CI41: 0 | CL41: 0 | CN41: 0 | CO41: =ROUND(IF(G41=#REF!,(BE41-AY41)*40%,0),2) ->  | CP41: 254.6884 | CQ41: 0 | CS41: =ROUND(IF($D41=#REF!,$BE41-SUM(BJ41:CQ41,0),0),2) ->  | CT41: =ROUND(IF($D41=#REF!,$BE41-SUM(BJ41:CQ41,0),0),2) ->  | CU41: =ROUND(IF($G41=#REF!,$BE41-SUM(BK41:CR41,0),0),2) -> 
B42: 202039 | C42: 44003 | D42: بنك مصر 1 | E42: احمد اشرف عبد المحسن حسن | F42: 0 | G42: دوام كامل | H42: فنى | I42: عقد مؤقت | M42: 29809010104311 | N42: 202039احمد اشرف عبد المحسن حسنعقد مؤقت | P42: 401.32 | Q42: 401.32 | R42: 0 | S42: 541.78 | T42: 60.2 | U42: 0 | V42: 0 | W42: 0 | Y42: 60.198 | Z42: 300 | AB42: 0 | AD42: 0 | AE42: 0 | AF42: 360.2 | AG42: 0 | AH42: 0 | AI42: 0 | AJ42: 926.82 | AK42: 0 | AL42: 0 | AM42: 0 | AN42: 0 | AO42: 0 | AP42: 0 | AQ42: 0 | AS42: 109.868 | AT42: 600 | AU42: 0 | AV42: 1636.69 | AW42: 10 | AX42: 0 | AY42: 84.48843 | AZ42: 0 | BB42: 0 | BC42: 3094.68 | BD42: 3905.32 | BE42: 7000 | BF42: 0 | BG42: 0 | BJ42: 499.9885107 | BL42: 0 | BM42: 0 | BN42: =IF(Sheet1!$BH42=1,Sheet1!$S42*20%,IF(Sheet1!$BH42=2,Sheet1!$S42*100%,IF(Sheet1!$BH42>2,Sheet1!$S42*100%,""))) ->  | BO42: =IF(Sheet1!$BF42<=4,Sheet1!$S42*0,IF(Sheet1!$BF42=5,Sheet1!$S42*20%,IF(Sheet1!$BF42=6,Sheet1!$S42*40%,IF(Sheet1!$BF42=7,Sheet1!$S42*50%,IF(Sheet1!$BF42>7,Sheet1!$S42*100%,""))))) -> 0 | BP42: =IF(Sheet1!$BG42<=2,Sheet1!$S42*0,IF(Sheet1!$BG42=3,Sheet1!$S42*30%,IF(Sheet1!$BG42=4,Sheet1!$S42*40%,IF(Sheet1!$BG42=5,Sheet1!$S42*50%,IF(Sheet1!$BG42>5,Sheet1!$S42*100%,""))))) -> 0 | BQ42: 0 | BR42: 0 | BT42: 3 | BU42: 0 | BX42: 0 | CC42: 0 | CE42: 0 | CG42: 3 | CH42: 3 | CI42: 0 | CL42: 0 | CN42: 0 | CO42: =ROUND(IF(G42=#REF!,(BE42-AY42)*40%,0),2) ->  | CP42: 84.48843 | CQ42: 0 | CS42: =ROUND(IF($D42=#REF!,$BE42-SUM(BJ42:CQ42,0),0),2) ->  | CT42: =ROUND(IF($D42=#REF!,$BE42-SUM(BJ42:CQ42,0),0),2) ->  | CU42: =ROUND(IF($G42=#REF!,$BE42-SUM(BK42:CR42,0),0),2) -> 
B43: 202040 | C43: 22152 | D43: بنك مصر 1 | E43: رمضان امين محمد عبد الله | F43: 0 | G43: دوام كامل | H43: فنى | I43: الرابعة | J43: الرابعة | K43: حرفى نقاش | L43: الاميرية | M43: 27417150102733 | N43: 202040رمضان امين محمد عبد اللهالرابعةالرابعةحرفى نقاشالاميرية | O43: نعم | P43: 1090.62 | Q43: 1276.0254 | R43: 0 | S43: 1722.63 | T43: 191.4 | U43: 0 | V43: 0 | W43: 0 | Y43: 191.40381 | Z43: 300 | AB43: 0 | AC43: 0 | AD43: 0 | AE43: 0 | AF43: 491.4 | AG43: 36.27 | AH43: 40.47 | AI43: 65 | AJ43: 0 | AK43: 200 | AL43: 24.13 | AM43: 38.88 | AN43: 49.92 | AO43: 71.22 | AP43: 76.21 | AQ43: 81.54 | AS43: 54.531 | AT43: 600 | AU43: 10 | AV43: 1348.17 | AW43: 10 | AX43: 0 | AY43: 229.6042 | AZ43: 0 | BB43: 0 | BC43: 5269.23 | BD43: 1730.77 | BE43: 7000 | BF43: 0 | BG43: 0 | BJ43: 550 | BK43: 0 | BL43: 0 | BM43: 0 | BN43: =IF(Sheet1!$BH43=1,Sheet1!$S43*20%,IF(Sheet1!$BH43=2,Sheet1!$S43*100%,IF(Sheet1!$BH43>2,Sheet1!$S43*100%,""))) ->  | BO43: =IF(Sheet1!$BF43<=4,Sheet1!$S43*0,IF(Sheet1!$BF43=5,Sheet1!$S43*20%,IF(Sheet1!$BF43=6,Sheet1!$S43*40%,IF(Sheet1!$BF43=7,Sheet1!$S43*50%,IF(Sheet1!$BF43>7,Sheet1!$S43*100%,""))))) -> 0 | BP43: =IF(Sheet1!$BG43<=2,Sheet1!$S43*0,IF(Sheet1!$BG43=3,Sheet1!$S43*30%,IF(Sheet1!$BG43=4,Sheet1!$S43*40%,IF(Sheet1!$BG43=5,Sheet1!$S43*50%,IF(Sheet1!$BG43>5,Sheet1!$S43*100%,""))))) -> 0 | BQ43: 0 | BR43: 0 | BS43: 0 | BT43: 3 | BU43: 0 | BV43: 0 | BW43: 0 | BX43: 0 | BY43: 0 | BZ43: 0 | CA43: 0 | CC43: 0 | CD43: 0 | CE43: 0 | CF43: 0 | CG43: 2.99 | CH43: 3 | CI43: 0 | CK43: 0 | CL43: 0 | CN43: 0 | CO43: =ROUND(IF(G43=#REF!,(BE43-AY43)*40%,0),2) ->  | CP43: 229.6042 | CQ43: 0 | CS43: =ROUND(IF($D43=#REF!,$BE43-SUM(BJ43:CQ43,0),0),2) ->  | CT43: =ROUND(IF($D43=#REF!,$BE43-SUM(BJ43:CQ43,0),0),2) ->  | CU43: =ROUND(IF($G43=#REF!,$BE43-SUM(BK43:CR43,0),0),2) -> 
B44: 202041 | C44: 21890 | D44: بنك مصر 1 | E44: وليد احمد عبده ابراهيم | F44: 0 | G44: دوام كامل | H44: فنى | I44: الاولى | J44: الأولى | K44: فنى كهربائى سيارات | L44: قطاع شئون الفنية | M44: 27211020101311 | N44: 202041وليد احمد عبده ابراهيمالاولىالأولىفنى كهربائى سياراتقطاع شئون الفنية | O44: نعم | P44: 2267.84 | Q44: 2653.3728 | R44: 0 | S44: 3582.05 | T44: 398.01 | U44: 0 | V44: 0 | W44: 0 | Y44: 398.00592 | Z44: 300 | AB44: 0 | AC44: 0 | AD44: 0 | AE44: 0 | AF44: 698.01 | AG44: 74.27 | AH44: 83.17 | AI44: 100.05 | AJ44: 0 | AK44: 190 | AL44: 45.33 | AM44: 80.84 | AN44: 103.81 | AO44: 148.1 | AP44: 158.47 | AQ44: 169.56 | AS44: 113.392 | AT44: 600 | AU44: 10 | AV44: 1876.99 | AW44: 10 | AX44: 0 | AY44: 477.44 | AZ44: 0 | BB44: 0 | BC44: 9695.87 | BD44: 0 | BE44: 9695.87 | BF44: 0 | BG44: 0 | BJ44: 858 | BK44: 96 | BL44: 0 | BM44: 0 | BN44: =IF(Sheet1!$BH44=1,Sheet1!$S44*20%,IF(Sheet1!$BH44=2,Sheet1!$S44*100%,IF(Sheet1!$BH44>2,Sheet1!$S44*100%,""))) ->  | BO44: =IF(Sheet1!$BF44<=4,Sheet1!$S44*0,IF(Sheet1!$BF44=5,Sheet1!$S44*20%,IF(Sheet1!$BF44=6,Sheet1!$S44*40%,IF(Sheet1!$BF44=7,Sheet1!$S44*50%,IF(Sheet1!$BF44>7,Sheet1!$S44*100%,""))))) -> 0 | BP44: =IF(Sheet1!$BG44<=2,Sheet1!$S44*0,IF(Sheet1!$BG44=3,Sheet1!$S44*30%,IF(Sheet1!$BG44=4,Sheet1!$S44*40%,IF(Sheet1!$BG44=5,Sheet1!$S44*50%,IF(Sheet1!$BG44>5,Sheet1!$S44*100%,""))))) -> 0 | BQ44: 4.12 | BR44: 0 | BS44: 0 | BT44: 3 | BU44: 0 | BV44: 0 | BW44: 0 | BX44: 0 | BY44: 0 | BZ44: 0 | CA44: 0 | CC44: 0 | CD44: 0 | CE44: 0 | CF44: 0 | CG44: 3.76 | CH44: 5 | CI44: 0 | CK44: 0 | CL44: 0 | CN44: 0 | CO44: =ROUND(IF(G44=#REF!,(BE44-AY44)*40%,0),2) ->  | CP44: 477.44 | CQ44: 0 | CS44: =ROUND(IF($D44=#REF!,$BE44-SUM(BJ44:CQ44,0),0),2) ->  | CT44: =ROUND(IF($D44=#REF!,$BE44-SUM(BJ44:CQ44,0),0),2) ->  | CU44: =ROUND(IF($G44=#REF!,$BE44-SUM(BK44:CR44,0),0),2) -> 
B45: 202042 | C45: 21730 | D45: بنك مصر 1 | E45: عصام الدين عفيفي محمود عفيفى | F45: 0 | G45: دوام كامل | H45: ادارى | I45: الثانية | M45: 26610291000772 | N45: 202042عصام الدين عفيفي محمود عفيفىالثانية | P45: 2254.16 | Q45: 2637.37 | R45: 0 | S45: 3560.45 | T45: 395.61 | U45: 0 | V45: 0 | W45: 0 | Y45: 0 | Z45: 300 | AB45: 0 | AC45: 0 | AD45: 0 | AE45: 0 | AF45: 300 | AG45: 79.09 | AH45: 88.3 | AI45: 106 | AJ45: 0 | AK45: 190 | AL45: 45.06 | AM45: 80.36 | AN45: 103.18 | AO45: 147.2 | AP45: 157.51 | AQ45: 168.54 | AS45: 112.708 | AT45: 600 | AU45: 6 | AV45: 1883.95 | AW45: 10 | AX45: 0 | AY45: 474.56 | AZ45: 0 | BB45: 0 | BC45: 9261.94 | BD45: 0 | BE45: 9261.94 | BF45: 0 | BG45: 0 | BJ45: 847 | BK45: 29 | BL45: 0 | BM45: 0 | BN45: =IF(Sheet1!$BH45=1,Sheet1!$S45*20%,IF(Sheet1!$BH45=2,Sheet1!$S45*100%,IF(Sheet1!$BH45>2,Sheet1!$S45*100%,""))) ->  | BO45: =IF(Sheet1!$BF45<=4,Sheet1!$S45*0,IF(Sheet1!$BF45=5,Sheet1!$S45*20%,IF(Sheet1!$BF45=6,Sheet1!$S45*40%,IF(Sheet1!$BF45=7,Sheet1!$S45*50%,IF(Sheet1!$BF45>7,Sheet1!$S45*100%,""))))) -> 0 | BP45: =IF(Sheet1!$BG45<=2,Sheet1!$S45*0,IF(Sheet1!$BG45=3,Sheet1!$S45*30%,IF(Sheet1!$BG45=4,Sheet1!$S45*40%,IF(Sheet1!$BG45=5,Sheet1!$S45*50%,IF(Sheet1!$BG45>5,Sheet1!$S45*100%,""))))) -> 0 | BQ45: 172.82 | BR45: 0 | BS45: 0 | BT45: 3 | BU45: 750 | BV45: 0 | BW45: 0 | BX45: 0 | BY45: 0 | BZ45: 0 | CA45: 0 | CC45: 0 | CD45: 0 | CE45: 0 | CF45: 0 | CG45: 3.45 | CH45: 3 | CI45: 0 | CK45: 0 | CL45: 0 | CN45: 0 | CO45: =ROUND(IF(G45=#REF!,(BE45-AY45)*40%,0),2) ->  | CP45: 474.56 | CQ45: 0 | CS45: =ROUND(IF($D45=#REF!,$BE45-SUM(BJ45:CQ45,0),0),2) ->  | CT45: =ROUND(IF($D45=#REF!,$BE45-SUM(BJ45:CQ45,0),0),2) ->  | CU45: =ROUND(IF($G45=#REF!,$BE45-SUM(BK45:CR45,0),0),2) -> 
B46: 202043 | C46: 21813 | D46: بنك مصر 1 | E46: محرم فكرى جلال عبد الباقى | F46: 0 | G46: دوام كامل | H46: فنى | I46: الثالثة | J46: الثالثة | K46: حرفى ميكانيكى | L46: الاميرية | M46: 27503162101777 | N46: 202043محرم فكرى جلال عبد الباقىالثالثةالثالثةحرفى ميكانيكى الاميرية | O46: نعم | P46: 1998.07 | Q46: 2337.7419 | R46: 0 | S46: 3155.95 | T46: 350.66 | U46: 0 | V46: 0 | W46: 0 | Y46: 350.661285 | Z46: 300 | AB46: 0 | AC46: 0 | AD46: 0 | AE46: 0 | AF46: 650.66 | AG46: 70.76 | AH46: 78.98 | AI46: 94.28 | AJ46: 0 | AK46: 200 | AL46: 39.94 | AM46: 71.23 | AN46: 91.46 | AO46: 130.48 | AP46: 139.62 | AQ46: 149.39 | AS46: 99.9035 | AT46: 600 | AU46: 10 | AV46: 1776.04 | AW46: 10 | AX46: 0 | AY46: 420.6463 | AZ46: 0 | BB46: 0 | BC46: 8701.7 | BD46: 0 | BE46: 8701.7 | BF46: 0 | BG46: 0 | BJ46: 770 | BK46: 0 | BL46: 0 | BM46: 0 | BN46: =IF(Sheet1!$BH46=1,Sheet1!$S46*20%,IF(Sheet1!$BH46=2,Sheet1!$S46*100%,IF(Sheet1!$BH46>2,Sheet1!$S46*100%,""))) ->  | BO46: =IF(Sheet1!$BF46<=4,Sheet1!$S46*0,IF(Sheet1!$BF46=5,Sheet1!$S46*20%,IF(Sheet1!$BF46=6,Sheet1!$S46*40%,IF(Sheet1!$BF46=7,Sheet1!$S46*50%,IF(Sheet1!$BF46>7,Sheet1!$S46*100%,""))))) -> 0 | BP46: =IF(Sheet1!$BG46<=2,Sheet1!$S46*0,IF(Sheet1!$BG46=3,Sheet1!$S46*30%,IF(Sheet1!$BG46=4,Sheet1!$S46*40%,IF(Sheet1!$BG46=5,Sheet1!$S46*50%,IF(Sheet1!$BG46>5,Sheet1!$S46*100%,""))))) -> 0 | BQ46: 0 | BR46: 0 | BS46: 0 | BT46: 3 | BU46: 0 | BV46: 0 | BW46: 0 | BX46: 0 | BY46: 0 | BZ46: 0 | CA46: 0 | CC46: 0 | CD46: 0 | CE46: 0 | CF46: 0 | CG46: 3.35 | CH46: 3 | CI46: 0 | CK46: 0 | CL46: 0 | CN46: 0 | CO46: =ROUND(IF(G46=#REF!,(BE46-AY46)*40%,0),2) ->  | CP46: 420.6463 | CQ46: 0 | CS46: =ROUND(IF($D46=#REF!,$BE46-SUM(BJ46:CQ46,0),0),2) ->  | CT46: =ROUND(IF($D46=#REF!,$BE46-SUM(BJ46:CQ46,0),0),2) ->  | CU46: =ROUND(IF($G46=#REF!,$BE46-SUM(BK46:CR46,0),0),2) -> 
B47: 202044 | C47: 22120 | D47: بنك مصر 1 | E47: علاء الدين عبد الغنى عبد الرحمن | F47: 0 | G47: دوام كامل | H47: فنى | I47: الثالثة | J47: الثالثة | K47: حرفى ميكانيكى | L47: الاميرية | M47: 27809282102272 | N47: 202044علاء الدين عبد الغنى عبد الرحمن الثالثةالثالثةحرفى ميكانيكى الاميرية | O47: نعم | P47: 1660.9 | Q47: 1943.253 | R47: 0 | S47: 2623.39 | T47: 291.49 | U47: 0 | V47: 0 | W47: 0 | Y47: 291.48795 | Z47: 300 | AB47: 0 | AC47: 0 | AD47: 0 | AE47: 0 | AF47: 591.49 | AG47: 59.01 | AH47: 65.8 | AI47: 78.36 | AJ47: 0 | AK47: 200 | AL47: 33.2 | AM47: 59.21 | AN47: 76.03 | AO47: 108.46 | AP47: 116.06 | AQ47: 124.18 | AS47: 83.045 | AT47: 600 | AU47: 10 | AV47: 1613.36 | AW47: 10 | AX47: 0 | AY47: 349.6632 | AZ47: 0 | BB47: 0 | BC47: 7422.65 | BD47: 0 | BE47: 7422.65 | BF47: 0 | BG47: 0 | BJ47: 649 | BK47: 0 | BL47: 0 | BM47: 0 | BN47: =IF(Sheet1!$BH47=1,Sheet1!$S47*20%,IF(Sheet1!$BH47=2,Sheet1!$S47*100%,IF(Sheet1!$BH47>2,Sheet1!$S47*100%,""))) ->  | BO47: =IF(Sheet1!$BF47<=4,Sheet1!$S47*0,IF(Sheet1!$BF47=5,Sheet1!$S47*20%,IF(Sheet1!$BF47=6,Sheet1!$S47*40%,IF(Sheet1!$BF47=7,Sheet1!$S47*50%,IF(Sheet1!$BF47>7,Sheet1!$S47*100%,""))))) -> 0 | BP47: =IF(Sheet1!$BG47<=2,Sheet1!$S47*0,IF(Sheet1!$BG47=3,Sheet1!$S47*30%,IF(Sheet1!$BG47=4,Sheet1!$S47*40%,IF(Sheet1!$BG47=5,Sheet1!$S47*50%,IF(Sheet1!$BG47>5,Sheet1!$S47*100%,""))))) -> 0 | BQ47: 0 | BR47: 0 | BS47: 0 | BT47: 3 | BU47: 0 | BV47: 0 | BW47: 0 | BX47: 0 | BY47: 0 | BZ47: 0 | CA47: 0 | CC47: 0 | CD47: 0 | CE47: 0 | CF47: 0 | CG47: 2.92 | CH47: 3 | CI47: 0 | CK47: 0 | CL47: 0 | CN47: 0 | CO47: =ROUND(IF(G47=#REF!,(BE47-AY47)*40%,0),2) ->  | CP47: 349.6632 | CQ47: 0 | CS47: =ROUND(IF($D47=#REF!,$BE47-SUM(BJ47:CQ47,0),0),2) ->  | CT47: =ROUND(IF($D47=#REF!,$BE47-SUM(BJ47:CQ47,0),0),2) ->  | CU47: =ROUND(IF($G47=#REF!,$BE47-SUM(BK47:CR47,0),0),2) -> 
B48: 202045 | C48: 21983 | D48: بنك مصر 1 | E48: محمد عبد المقصود محمد عفيفى | F48: 0 | G48: دوام كامل | H48: فنى | I48: الثالثة | J48: الثالثة | K48: حرفى خراط | L48: الاميرية | M48: 27505230100418 | N48: 202045محمد عبد المقصود محمد عفيفىالثالثةالثالثةحرفى خراطالاميرية | O48: نعم | P48: 1893.84 | Q48: 2215.7928 | R48: 0 | S48: 2991.32 | T48: 332.37 | U48: 0 | V48: 0 | W48: 0 | Y48: 332.36892 | Z48: 300 | AB48: 0 | AC48: 0 | AD48: 0 | AE48: 0 | AF48: 632.37 | AG48: 67.21 | AH48: 74.98 | AI48: 89.38 | AJ48: 0 | AK48: 200 | AL48: 37.86 | AM48: 67.51 | AN48: 86.69 | AO48: 123.67 | AP48: 132.33 | AQ48: 141.6 | AS48: 94.692 | AT48: 600 | AU48: 8 | AV48: 1723.92 | AW48: 10 | AX48: 0 | AY48: 398.7032 | AZ48: 0 | BB48: 0 | BC48: 8304.48 | BD48: 0 | BE48: 8304.48 | BF48: 0 | BG48: 0 | BJ48: 737 | BK48: 0 | BL48: 0 | BM48: 0 | BN48: =IF(Sheet1!$BH48=1,Sheet1!$S48*20%,IF(Sheet1!$BH48=2,Sheet1!$S48*100%,IF(Sheet1!$BH48>2,Sheet1!$S48*100%,""))) ->  | BO48: =IF(Sheet1!$BF48<=4,Sheet1!$S48*0,IF(Sheet1!$BF48=5,Sheet1!$S48*20%,IF(Sheet1!$BF48=6,Sheet1!$S48*40%,IF(Sheet1!$BF48=7,Sheet1!$S48*50%,IF(Sheet1!$BF48>7,Sheet1!$S48*100%,""))))) -> 0 | BP48: =IF(Sheet1!$BG48<=2,Sheet1!$S48*0,IF(Sheet1!$BG48=3,Sheet1!$S48*30%,IF(Sheet1!$BG48=4,Sheet1!$S48*40%,IF(Sheet1!$BG48=5,Sheet1!$S48*50%,IF(Sheet1!$BG48>5,Sheet1!$S48*100%,""))))) -> 0 | BQ48: 0 | BR48: 0 | BS48: 0 | BT48: 3 | BU48: 0 | BV48: 0 | BW48: 0 | BX48: 0 | BY48: 0 | BZ48: 0 | CA48: 0 | CC48: 0 | CD48: 0 | CE48: 0 | CF48: 0 | CG48: 3.25 | CH48: 3 | CI48: 0 | CK48: 0 | CL48: 0 | CN48: 0 | CO48: =ROUND(IF(G48=#REF!,(BE48-AY48)*40%,0),2) ->  | CP48: 398.7032 | CQ48: 0 | CS48: =ROUND(IF($D48=#REF!,$BE48-SUM(BJ48:CQ48,0),0),2) ->  | CT48: =ROUND(IF($D48=#REF!,$BE48-SUM(BJ48:CQ48,0),0),2) ->  | CU48: =ROUND(IF($G48=#REF!,$BE48-SUM(BK48:CR48,0),0),2) -> 
B49: 202046 | C49: 21833 | D49: بنك مصر 1 | E49: دياب على محمد ابراهيم | F49: 0 | G49: دوام كامل | H49: فنى | I49: الثالثة | J49: الثالثة | K49: حرفى ميكانيكى | L49: الاميرية | M49: 27506290100758 | N49: 202046دياب على محمد ابراهيم الثالثةالثالثةحرفى ميكانيكى الاميرية | O49: نعم | P49: 1979.69 | Q49: 2316.2373 | R49: 0 | S49: 3126.92 | T49: 347.44 | U49: 0 | V49: 0 | W49: 0 | Y49: 347.435595 | Z49: 300 | AB49: 0 | AC49: 0 | AD49: 0 | AE49: 0 | AF49: 647.44 | AG49: 70.23 | AH49: 78.36 | AI49: 93.44 | AJ49: 0 | AK49: 200 | AL49: 39.57 | AM49: 70.57 | AN49: 90.62 | AO49: 129.28 | AP49: 138.33 | AQ49: 148.01 | AS49: 98.9845 | AT49: 600 | AU49: 10 | AV49: 1767.39 | AW49: 10 | AX49: 0 | AY49: 416.7768 | AZ49: 0 | BB49: 0 | BC49: 8632.2 | BD49: 0 | BE49: 8632.2 | BF49: 0 | BG49: 0 | BJ49: 759 | BK49: 0 | BL49: 0 | BM49: 0 | BN49: =IF(Sheet1!$BH49=1,Sheet1!$S49*20%,IF(Sheet1!$BH49=2,Sheet1!$S49*100%,IF(Sheet1!$BH49>2,Sheet1!$S49*100%,""))) ->  | BO49: =IF(Sheet1!$BF49<=4,Sheet1!$S49*0,IF(Sheet1!$BF49=5,Sheet1!$S49*20%,IF(Sheet1!$BF49=6,Sheet1!$S49*40%,IF(Sheet1!$BF49=7,Sheet1!$S49*50%,IF(Sheet1!$BF49>7,Sheet1!$S49*100%,""))))) -> 0 | BP49: =IF(Sheet1!$BG49<=2,Sheet1!$S49*0,IF(Sheet1!$BG49=3,Sheet1!$S49*30%,IF(Sheet1!$BG49=4,Sheet1!$S49*40%,IF(Sheet1!$BG49=5,Sheet1!$S49*50%,IF(Sheet1!$BG49>5,Sheet1!$S49*100%,""))))) -> 0 | BQ49: 0 | BR49: 0 | BS49: 0 | BT49: 3 | BU49: 0 | BV49: 0 | BW49: 0 | BX49: 0 | BY49: 0 | BZ49: 0 | CA49: 0 | CC49: 0 | CD49: 0 | CE49: 0 | CF49: 0 | CG49: 3.37 | CH49: 3 | CI49: 0 | CK49: 0 | CL49: 0 | CN49: 0 | CO49: =ROUND(IF(G49=#REF!,(BE49-AY49)*40%,0),2) ->  | CP49: 416.7768 | CQ49: 0 | CS49: =ROUND(IF($D49=#REF!,$BE49-SUM(BJ49:CQ49,0),0),2) ->  | CT49: =ROUND(IF($D49=#REF!,$BE49-SUM(BJ49:CQ49,0),0),2) ->  | CU49: =ROUND(IF($G49=#REF!,$BE49-SUM(BK49:CR49,0),0),2) -> 
B50: 202049 | C50: 21542 | D50: بنك مصر 1 | E50: رجب فتحى اسماعيل على | F50: 0 | G50: دوام كامل | H50: فنى | I50: الثانية | J50: الثانية | K50: ميكانيكى | L50: الهندسي | M50: 27208261500673 | N50: 202049رجب فتحى اسماعيل علىالثانيةالثانيةميكانيكى الهندسي | O50: نعم | P50: 2148.85 | Q50: 2514.1545 | R50: 0 | S50: 3394.11 | T50: 377.12 | U50: 0 | V50: 0 | W50: 0 | Y50: 377.123175 | Z50: 300 | AB50: 0 | AC50: 0 | AD50: 0 | AE50: 0 | AF50: 677.12 | AG50: 76.06 | AH50: 84.91 | AI50: 101.41 | AJ50: 0 | AK50: 190 | AL50: 42.96 | AM50: 76.6 | AN50: 98.36 | AO50: 140.33 | AP50: 150.15 | AQ50: 160.66 | AS50: 107.4425 | AT50: 600 | AU50: 10 | AV50: 1838.88 | AW50: 10 | AX50: 0 | AY50: 452.3895 | AZ50: 0 | BB50: 0 | BC50: 9263.77 | BD50: 0 | BE50: 9263.77 | BF50: 0 | BG50: 0 | BJ50: 814 | BK50: 124.25 | BL50: 0 | BM50: 0 | BN50: =IF(Sheet1!$BH50=1,Sheet1!$S50*20%,IF(Sheet1!$BH50=2,Sheet1!$S50*100%,IF(Sheet1!$BH50>2,Sheet1!$S50*100%,""))) ->  | BO50: =IF(Sheet1!$BF50<=4,Sheet1!$S50*0,IF(Sheet1!$BF50=5,Sheet1!$S50*20%,IF(Sheet1!$BF50=6,Sheet1!$S50*40%,IF(Sheet1!$BF50=7,Sheet1!$S50*50%,IF(Sheet1!$BF50>7,Sheet1!$S50*100%,""))))) -> 0 | BP50: =IF(Sheet1!$BG50<=2,Sheet1!$S50*0,IF(Sheet1!$BG50=3,Sheet1!$S50*30%,IF(Sheet1!$BG50=4,Sheet1!$S50*40%,IF(Sheet1!$BG50=5,Sheet1!$S50*50%,IF(Sheet1!$BG50>5,Sheet1!$S50*100%,""))))) -> 0 | BQ50: 0 | BR50: 0 | BS50: 0 | BT50: 3 | BU50: 0 | BV50: 0 | BW50: 0 | BX50: 0 | BY50: 0 | BZ50: 0 | CA50: 0 | CC50: 0 | CD50: 0 | CE50: 0 | CF50: 0 | CG50: 3.89 | CH50: 3 | CI50: 0 | CK50: 0 | CL50: 0 | CN50: 0 | CO50: =ROUND(IF(G50=#REF!,(BE50-AY50)*40%,0),2) ->  | CP50: 452.3895 | CQ50: 0 | CS50: =ROUND(IF($D50=#REF!,$BE50-SUM(BJ50:CQ50,0),0),2) ->  | CT50: =ROUND(IF($D50=#REF!,$BE50-SUM(BJ50:CQ50,0),0),2) ->  | CU50: =ROUND(IF($G50=#REF!,$BE50-SUM(BK50:CR50,0),0),2) -> 
B51: 202050 | C51: 22036 | D51: بنك مصر 1 | E51: محمد فؤاد فؤاد السيد | F51: 0 | G51: دوام كامل | H51: فنى | I51: الثالثة | J51: الثالثة | K51: حرفى سمكرى | L51: الاميرية | M51: 27740401004517 | N51: 202050محمد فؤاد فؤاد السيد الثالثةالثالثةحرفى سمكرىالاميرية | O51: نعم | P51: 1824.3 | Q51: 2134.431 | R51: 0 | S51: 2881.48 | T51: 320.16 | U51: 0 | V51: 0 | W51: 0 | Y51: 320.16465 | Z51: 300 | AB51: 0 | AC51: 0 | AD51: 0 | AE51: 0 | AF51: 620.16 | AG51: 64.76 | AH51: 72.24 | AI51: 86.09 | AJ51: 0 | AK51: 200 | AL51: 36.47 | AM51: 65.03 | AN51: 83.5 | AO51: 119.13 | AP51: 127.47 | AQ51: 136.4 | AS51: 91.215 | AT51: 600 | AU51: 8 | AV51: 1690.31 | AW51: 10 | AX51: 0 | AY51: 384.0632 | AZ51: 0 | BB51: 0 | BC51: 8040.6 | BD51: 0 | BE51: 8040.6 | BF51: 0 | BG51: 0 | BJ51: 704 | BK51: 0 | BL51: 0 | BM51: 0 | BN51: =IF(Sheet1!$BH51=1,Sheet1!$S51*20%,IF(Sheet1!$BH51=2,Sheet1!$S51*100%,IF(Sheet1!$BH51>2,Sheet1!$S51*100%,""))) ->  | BO51: =IF(Sheet1!$BF51<=4,Sheet1!$S51*0,IF(Sheet1!$BF51=5,Sheet1!$S51*20%,IF(Sheet1!$BF51=6,Sheet1!$S51*40%,IF(Sheet1!$BF51=7,Sheet1!$S51*50%,IF(Sheet1!$BF51>7,Sheet1!$S51*100%,""))))) -> 0 | BP51: =IF(Sheet1!$BG51<=2,Sheet1!$S51*0,IF(Sheet1!$BG51=3,Sheet1!$S51*30%,IF(Sheet1!$BG51=4,Sheet1!$S51*40%,IF(Sheet1!$BG51=5,Sheet1!$S51*50%,IF(Sheet1!$BG51>5,Sheet1!$S51*100%,""))))) -> 0 | BQ51: 0 | BR51: 0 | BS51: 0 | BT51: 3 | BU51: 0 | BV51: 0 | BW51: 0 | BX51: 0 | BY51: 0 | BZ51: 0 | CA51: 0 | CC51: 0 | CD51: 0 | CE51: 0 | CF51: 0 | CG51: 3.15 | CH51: 3 | CI51: 0 | CK51: 0 | CL51: 0 | CN51: 0 | CO51: =ROUND(IF(G51=#REF!,(BE51-AY51)*40%,0),2) ->  | CP51: 384.0632 | CQ51: 0 | CS51: =ROUND(IF($D51=#REF!,$BE51-SUM(BJ51:CQ51,0),0),2) ->  | CT51: =ROUND(IF($D51=#REF!,$BE51-SUM(BJ51:CQ51,0),0),2) ->  | CU51: =ROUND(IF($G51=#REF!,$BE51-SUM(BK51:CR51,0),0),2) -> 
B52: 202053 | C52: 21897 | D52: البنك الاهلى | E52: صفوت كمال عبد العظيم رفاعى | F52: مروه | G52: دوام كامل | H52: فنى | I52: الثالثة | J52: الثالثة | K52: حرفى ميكانيكى | L52: الاميرية | M52: 27401300102391 | N52: 202053صفوت كمال عبد العظيم رفاعىمروهالثالثةالثالثةحرفى ميكانيكى الاميرية | O52: نعم | P52: 1890.74 | Q52: 2212.1658 | R52: 0 | S52: 2986.42 | T52: 331.82 | U52: 0 | V52: 0 | W52: 0 | Y52: 331.82487 | Z52: 300 | AB52: 0 | AC52: 0 | AD52: 0 | AE52: 0 | AF52: 631.82 | AG52: 62.31 | AH52: 69.52 | AI52: 83.32 | AJ52: 0 | AK52: 200 | AL52: 37.8 | AM52: 67.4 | AN52: 86.55 | AO52: 123.47 | AP52: 132.12 | AQ52: 141.36 | AS52: 94.537 | AT52: 600 | AU52: 10 | AV52: 1708.39 | AW52: 10 | AX52: 0 | AY52: 398.0505 | AZ52: 0 | BB52: 0 | BC52: 8278.67 | BD52: 0 | BE52: 8278.67 | BF52: 0 | BG52: 0 | BJ52: 726 | BK52: 0 | BL52: 0 | BM52: 0 | BN52: =IF(Sheet1!$BH52=1,Sheet1!$S52*20%,IF(Sheet1!$BH52=2,Sheet1!$S52*100%,IF(Sheet1!$BH52>2,Sheet1!$S52*100%,""))) ->  | BO52: =IF(Sheet1!$BF52<=4,Sheet1!$S52*0,IF(Sheet1!$BF52=5,Sheet1!$S52*20%,IF(Sheet1!$BF52=6,Sheet1!$S52*40%,IF(Sheet1!$BF52=7,Sheet1!$S52*50%,IF(Sheet1!$BF52>7,Sheet1!$S52*100%,""))))) -> 0 | BP52: =IF(Sheet1!$BG52<=2,Sheet1!$S52*0,IF(Sheet1!$BG52=3,Sheet1!$S52*30%,IF(Sheet1!$BG52=4,Sheet1!$S52*40%,IF(Sheet1!$BG52=5,Sheet1!$S52*50%,IF(Sheet1!$BG52>5,Sheet1!$S52*100%,""))))) -> 0 | BQ52: 58.64 | BR52: 0 | BS52: 0 | BT52: 3 | BU52: 0 | BV52: 0 | BW52: 0 | BX52: 0 | BY52: 0 | BZ52: 0 | CA52: 0 | CC52: 0 | CD52: 0 | CE52: 0 | CF52: 0 | CG52: 3.21 | CH52: 3 | CI52: 0 | CK52: 0 | CL52: 0 | CN52: 0 | CO52: =ROUND(IF(G52=#REF!,(BE52-AY52)*40%,0),2) ->  | CP52: 398.0505 | CQ52: 0 | CS52: =ROUND(IF($D52=#REF!,$BE52-SUM(BJ52:CQ52,0),0),2) ->  | CT52: =ROUND(IF($D52=#REF!,$BE52-SUM(BJ52:CQ52,0),0),2) ->  | CU52: =ROUND(IF($G52=#REF!,$BE52-SUM(BK52:CR52,0),0),2) -> 
B53: 202054 | C53: 1130 | D53: بنك مصر 2 | E53: عبد النبي محمد عبد الحميد علي | F53: 0 | G53: دوام كامل | H53: فنى | I53: الثانية | J53: الثانية | K53: سمكرى | L53: الامن | M53: 27306251301194 | N53: 202054عبد النبي محمد عبد الحميد عليالثانيةالثانيةسمكرىالامن | O53: نعم | P53: 1879.01 | Q53: 2198.4417 | R53: 0 | S53: 2967.9 | T53: 329.77 | U53: 0 | V53: 0 | W53: 0 | Y53: 329.766255 | Z53: 300 | AB53: 0 | AD53: 0 | AE53: 0 | AF53: 629.77 | AG53: 62.21 | AH53: 69.28 | AI53: 83.14 | AJ53: 0 | AK53: 190 | AL53: 37.56 | AM53: 66.99 | AN53: 86.01 | AO53: 122.71 | AP53: 131.3 | AQ53: 140.49 | AS53: 93.9505 | AT53: 600 | AU53: 10 | AV53: 1693.64 | AW53: 10 | AX53: 0 | AY53: 397.68 | AZ53: 0 | BB53: 0 | BC53: 8227.2 | BD53: 0 | BE53: 8227.2 | BF53: 0 | BG53: 0 | BJ53: 718.752085 | BK53: 0 | BL53: 0 | BM53: 0 | BN53: =IF(Sheet1!$BH53=1,Sheet1!$S53*20%,IF(Sheet1!$BH53=2,Sheet1!$S53*100%,IF(Sheet1!$BH53>2,Sheet1!$S53*100%,""))) ->  | BO53: =IF(Sheet1!$BF53<=4,Sheet1!$S53*0,IF(Sheet1!$BF53=5,Sheet1!$S53*20%,IF(Sheet1!$BF53=6,Sheet1!$S53*40%,IF(Sheet1!$BF53=7,Sheet1!$S53*50%,IF(Sheet1!$BF53>7,Sheet1!$S53*100%,""))))) -> 0 | BP53: =IF(Sheet1!$BG53<=2,Sheet1!$S53*0,IF(Sheet1!$BG53=3,Sheet1!$S53*30%,IF(Sheet1!$BG53=4,Sheet1!$S53*40%,IF(Sheet1!$BG53=5,Sheet1!$S53*50%,IF(Sheet1!$BG53>5,Sheet1!$S53*100%,""))))) -> 0 | BQ53: 0 | BR53: 0 | BT53: 3 | BU53: 0 | BX53: 0 | CC53: 0 | CE53: 0 | CG53: 3.14 | CH53: 4 | CI53: 0 | CL53: 0 | CN53: 0 | CO53: =ROUND(IF(G53=#REF!,(BE53-AY53)*40%,0),2) ->  | CP53: 397.68 | CQ53: 0 | CS53: =ROUND(IF($D53=#REF!,$BE53-SUM(BJ53:CQ53,0),0),2) ->  | CT53: =ROUND(IF($D53=#REF!,$BE53-SUM(BJ53:CQ53,0),0),2) ->  | CU53: =ROUND(IF($G53=#REF!,$BE53-SUM(BK53:CR53,0),0),2) -> 
B54: 202055 | C54: 1151 | D54: بنك مصر 2 | E54: أسامة محمد كمال أحمد | F54: 0 | G54: دوام كامل | H54: فنى | I54: الاولى | M54: 16908080101856 | N54: 202055أسامة محمد كمال أحمدالاولى | P54: 2141.78 | Q54: 2355.958 | R54: 0 | S54: 3180.54 | T54: 353.39 | U54: 0 | V54: 0 | W54: 0 | Y54: 353.3937 | Z54: 300 | AB54: 0 | AD54: 0 | AE54: 0 | AF54: 653.39 | AG54: 70.84 | AH54: 78.92 | AI54: 94.79 | AJ54: 0 | AK54: 190 | AL54: 42.81 | AM54: 76.35 | AN54: 98.04 | AO54: 139.87 | AP54: 149.66 | AQ54: 160.13 | AS54: 107.089 | AT54: 600 | AU54: 10 | AV54: 1818.5 | AW54: 10 | AX54: 0 | AY54: 450.9011 | AZ54: 0 | BB54: 30 | BC54: 8822.68 | BD54: 0 | BE54: 8852.68 | BF54: 0 | BG54: 0 | BJ54: 806.7939258 | BK54: 39.83 | BL54: 0 | BM54: 0 | BN54: =IF(Sheet1!$BH54=1,Sheet1!$S54*20%,IF(Sheet1!$BH54=2,Sheet1!$S54*100%,IF(Sheet1!$BH54>2,Sheet1!$S54*100%,""))) ->  | BO54: =IF(Sheet1!$BF54<=4,Sheet1!$S54*0,IF(Sheet1!$BF54=5,Sheet1!$S54*20%,IF(Sheet1!$BF54=6,Sheet1!$S54*40%,IF(Sheet1!$BF54=7,Sheet1!$S54*50%,IF(Sheet1!$BF54>7,Sheet1!$S54*100%,""))))) -> 0 | BP54: =IF(Sheet1!$BG54<=2,Sheet1!$S54*0,IF(Sheet1!$BG54=3,Sheet1!$S54*30%,IF(Sheet1!$BG54=4,Sheet1!$S54*40%,IF(Sheet1!$BG54=5,Sheet1!$S54*50%,IF(Sheet1!$BG54>5,Sheet1!$S54*100%,""))))) -> 0 | BQ54: 0 | BR54: 0 | BT54: 3 | BU54: 0 | BX54: 0 | CC54: 0 | CE54: 0 | CG54: 3.52 | CH54: 5 | CI54: 0 | CL54: 0 | CN54: 0 | CO54: =ROUND(IF(G54=#REF!,(BE54-AY54)*40%,0),2) ->  | CP54: 450.9011 | CQ54: 0 | CS54: =ROUND(IF($D54=#REF!,$BE54-SUM(BJ54:CQ54,0),0),2) ->  | CT54: =ROUND(IF($D54=#REF!,$BE54-SUM(BJ54:CQ54,0),0),2) ->  | CU54: =ROUND(IF($G54=#REF!,$BE54-SUM(BK54:CR54,0),0),2) -> 
B55: 202056 | C55: 1137 | D55: بنك مصر 2 | E55: ياسر عبد اللطيف النور محمد | F55: 0 | G55: دوام كامل | H55: فنى | I55: الثالثة | J55: الثالثة | K55: فنى حداه | L55: كفر الزيات | M55: 28201012800313 | N55: 202056ياسر عبد اللطيف النور محمد الثالثةالثالثةفنى حداه كفر الزيات | O55: نعم | P55: 895.8 | Q55: 1048.086 | R55: 0 | S55: 1414.92 | T55: 157.21 | U55: 0 | V55: 0 | W55: 0 | Y55: 157.2129 | Z55: 300 | AB55: 0 | AD55: 0 | AE55: 0 | AF55: 457.21 | AG55: 30.03 | AH55: 33.71 | AI55: 65 | AJ55: 0 | AK55: 200 | AL55: 33.93 | AM55: 31.93 | AN55: 41 | AO55: 58.5 | AP55: 70.23 | AQ55: 91.4 | AS55: 60.42 | AT55: 600 | AU55: 8 | AV55: 1324.15 | AW55: 10 | AX55: 0 | AY55: 189.11 | AZ55: 0 | BB55: 0 | BC55: 4600.69 | BD55: 2399.31 | BE55: 7000 | BF55: 0 | BG55: 0 | BJ55: 576.4923828 | BK55: 0 | BL55: 0 | BM55: 0 | BN55: =IF(Sheet1!$BH55=1,Sheet1!$S55*20%,IF(Sheet1!$BH55=2,Sheet1!$S55*100%,IF(Sheet1!$BH55>2,Sheet1!$S55*100%,""))) ->  | BO55: =IF(Sheet1!$BF55<=4,Sheet1!$S55*0,IF(Sheet1!$BF55=5,Sheet1!$S55*20%,IF(Sheet1!$BF55=6,Sheet1!$S55*40%,IF(Sheet1!$BF55=7,Sheet1!$S55*50%,IF(Sheet1!$BF55>7,Sheet1!$S55*100%,""))))) -> 0 | BP55: =IF(Sheet1!$BG55<=2,Sheet1!$S55*0,IF(Sheet1!$BG55=3,Sheet1!$S55*30%,IF(Sheet1!$BG55=4,Sheet1!$S55*40%,IF(Sheet1!$BG55=5,Sheet1!$S55*50%,IF(Sheet1!$BG55>5,Sheet1!$S55*100%,""))))) -> 0 | BQ55: 0 | BR55: 0 | BT55: 3 | BU55: 0 | BX55: 0 | CC55: 0 | CE55: 0 | CG55: 2.96 | CH55: 2.84 | CI55: 0 | CL55: 0 | CN55: 0 | CO55: =ROUND(IF(G55=#REF!,(BE55-AY55)*40%,0),2) ->  | CP55: 189.11 | CQ55: 0 | CS55: =ROUND(IF($D55=#REF!,$BE55-SUM(BJ55:CQ55,0),0),2) ->  | CT55: =ROUND(IF($D55=#REF!,$BE55-SUM(BJ55:CQ55,0),0),2) ->  | CU55: =ROUND(IF($G55=#REF!,$BE55-SUM(BK55:CR55,0),0),2) -> 
B56: 202057 | C56: 1166 | D56: بنك مصر 2 | E56: عماد سعيد سيد على | F56: 0 | G56: دوام كامل | H56: فنى | I56: الرابعة | J56: الرابعة | K56: حرفى خراط | L56: الورش | M56: 28206120102551 | N56: 202057عماد سعيد سيد علىالرابعةالرابعةحرفى خراطالورش | O56: نعم | P56: 575.41 | Q56: 673.2297 | R56: 0 | S56: 908.86 | T56: 100.98 | U56: 0 | V56: 0 | W56: 0 | Y56: 100.984455 | Z56: 300 | AB56: 0 | AD56: 0 | AE56: 0 | AF56: 400.98 | AG56: 28.89 | AH56: 30.29 | AI56: 65 | AJ56: 0 | AK56: 200 | AL56: 0 | AM56: 46.28 | AN56: 44.27 | AO56: 67.12 | AP56: 89.82 | AQ56: 112.36 | AS56: 92.459 | AT56: 600 | AU56: 10 | AV56: 1386.49 | AW56: 10 | AX56: 0 | AY56: 121.1389 | AZ56: 0 | BB56: 0 | BC56: 3601.68 | BD56: 3398.32 | BE56: 7000 | BF56: 0 | BG56: 0 | BJ56: 576.3933936 | BK56: 92.92 | BL56: 0 | BM56: 0 | BN56: =IF(Sheet1!$BH56=1,Sheet1!$S56*20%,IF(Sheet1!$BH56=2,Sheet1!$S56*100%,IF(Sheet1!$BH56>2,Sheet1!$S56*100%,""))) ->  | BO56: =IF(Sheet1!$BF56<=4,Sheet1!$S56*0,IF(Sheet1!$BF56=5,Sheet1!$S56*20%,IF(Sheet1!$BF56=6,Sheet1!$S56*40%,IF(Sheet1!$BF56=7,Sheet1!$S56*50%,IF(Sheet1!$BF56>7,Sheet1!$S56*100%,""))))) -> 0 | BP56: =IF(Sheet1!$BG56<=2,Sheet1!$S56*0,IF(Sheet1!$BG56=3,Sheet1!$S56*30%,IF(Sheet1!$BG56=4,Sheet1!$S56*40%,IF(Sheet1!$BG56=5,Sheet1!$S56*50%,IF(Sheet1!$BG56>5,Sheet1!$S56*100%,""))))) -> 0 | BQ56: 0 | BR56: 0 | BT56: 3 | BU56: 0 | BX56: 0 | CC56: 0 | CE56: 0 | CG56: 3.46 | CH56: 3 | CI56: 0 | CL56: 0 | CN56: 0 | CO56: =ROUND(IF(G56=#REF!,(BE56-AY56)*40%,0),2) ->  | CP56: 121.1389 | CQ56: 0 | CS56: =ROUND(IF($D56=#REF!,$BE56-SUM(BJ56:CQ56,0),0),2) ->  | CT56: =ROUND(IF($D56=#REF!,$BE56-SUM(BJ56:CQ56,0),0),2) ->  | CU56: =ROUND(IF($G56=#REF!,$BE56-SUM(BK56:CR56,0),0),2) -> 
B57: 202058 | C57: 1139 | D57: بنك مصر 2 | E57: محمود علي محمد احمد محمد | F57: 0 | G57: دوام كامل | H57: فنى | I57: الرابعة | J57: الرابعة | K57: حرفى ميكانيكى | L57: الاميرية | M57: 2880101130077 | N57: 202058محمود علي محمد احمد محمدالرابعةالرابعةحرفى ميكانيكىالاميرية | O57: نعم | P57: 825.24 | Q57: 965.5308 | R57: 0 | S57: 1303.47 | T57: 144.83 | U57: 0 | V57: 0 | W57: 0 | Y57: 144.82962 | Z57: 300 | AB57: 0 | AD57: 0 | AE57: 0 | AF57: 444.83 | AG57: 28.79 | AH57: 30.29 | AI57: 65 | AJ57: 0 | AK57: 200 | AL57: 36.51 | AM57: 33.81 | AN57: 37.77 | AO57: 53.89 | AP57: 74.54 | AQ57: 96.01 | AS57: 67.476 | AT57: 600 | AU57: 4 | AV57: 1328.09 | AW57: 10 | AX57: 0 | AY57: 173.7347 | AZ57: 0 | BB57: 0 | BC57: 4370.49 | BD57: 2629.51 | BE57: 7000 | BF57: 0 | BG57: 0 | BJ57: 583.8382129 | BK57: 0 | BL57: 0 | BM57: 0 | BN57: =IF(Sheet1!$BH57=1,Sheet1!$S57*20%,IF(Sheet1!$BH57=2,Sheet1!$S57*100%,IF(Sheet1!$BH57>2,Sheet1!$S57*100%,""))) ->  | BO57: =IF(Sheet1!$BF57<=4,Sheet1!$S57*0,IF(Sheet1!$BF57=5,Sheet1!$S57*20%,IF(Sheet1!$BF57=6,Sheet1!$S57*40%,IF(Sheet1!$BF57=7,Sheet1!$S57*50%,IF(Sheet1!$BF57>7,Sheet1!$S57*100%,""))))) -> 0 | BP57: =IF(Sheet1!$BG57<=2,Sheet1!$S57*0,IF(Sheet1!$BG57=3,Sheet1!$S57*30%,IF(Sheet1!$BG57=4,Sheet1!$S57*40%,IF(Sheet1!$BG57=5,Sheet1!$S57*50%,IF(Sheet1!$BG57>5,Sheet1!$S57*100%,""))))) -> 0 | BQ57: 0 | BR57: 0 | BT57: 3 | BU57: 0 | BX57: 0 | CC57: 0 | CE57: 0 | CG57: 3.07 | CH57: 3 | CI57: 0 | CL57: 0 | CN57: 0 | CO57: =ROUND(IF(G57=#REF!,(BE57-AY57)*40%,0),2) ->  | CP57: 173.7347 | CQ57: 0 | CS57: =ROUND(IF($D57=#REF!,$BE57-SUM(BJ57:CQ57,0),0),2) ->  | CT57: =ROUND(IF($D57=#REF!,$BE57-SUM(BJ57:CQ57,0),0),2) ->  | CU57: =ROUND(IF($G57=#REF!,$BE57-SUM(BK57:CR57,0),0),2) -> 
B58: 202059 | C58: 1261 | D58: بنك مصر 2 | E58: محمد كامل محمد مصطفى | F58: 0 | G58: دوام كامل | H58: فنى | I58: الرابعة | J58: الرابعة | K58: حرفى عامل بطاريات | L58: الورش | M58: 27506031401413 | N58: 202059محمد كامل محمد مصطفىالرابعةالرابعةحرفى عامل بطارياتالورش | O58: نعم | P58: 862.29 | Q58: 1008.8793 | R58: 0 | S58: 1361.99 | T58: 151.33 | U58: 0 | V58: 0 | W58: 0 | Y58: 151.331895 | Z58: 300 | AB58: 0 | AD58: 0 | AE58: 0 | AF58: 451.33 | AG58: 28.74 | AH58: 32.31 | AI58: 65 | AJ58: 0 | AK58: 200 | AL58: 34.78 | AM58: 31.96 | AN58: 39.47 | AO58: 56.31 | AP58: 72.28 | AQ58: 93.59 | AS58: 63.771 | AT58: 600 | AU58: 10 | AV58: 1328.21 | AW58: 10 | AX58: 0 | AY58: 181.5347 | AZ58: 0 | BB58: 0 | BC58: 4493.27 | BD58: 2506.73 | BE58: 7000 | BF58: 0 | BG58: 0 | BJ58: 577.3647021 | BK58: 0 | BL58: 0 | BM58: 0 | BN58: =IF(Sheet1!$BH58=1,Sheet1!$S58*20%,IF(Sheet1!$BH58=2,Sheet1!$S58*100%,IF(Sheet1!$BH58>2,Sheet1!$S58*100%,""))) ->  | BO58: =IF(Sheet1!$BF58<=4,Sheet1!$S58*0,IF(Sheet1!$BF58=5,Sheet1!$S58*20%,IF(Sheet1!$BF58=6,Sheet1!$S58*40%,IF(Sheet1!$BF58=7,Sheet1!$S58*50%,IF(Sheet1!$BF58>7,Sheet1!$S58*100%,""))))) -> 0 | BP58: =IF(Sheet1!$BG58<=2,Sheet1!$S58*0,IF(Sheet1!$BG58=3,Sheet1!$S58*30%,IF(Sheet1!$BG58=4,Sheet1!$S58*40%,IF(Sheet1!$BG58=5,Sheet1!$S58*50%,IF(Sheet1!$BG58>5,Sheet1!$S58*100%,""))))) -> 0 | BQ58: 0 | BR58: 0 | BT58: 3 | BU58: 0 | BX58: 0 | CC58: 0 | CE58: 0 | CG58: 3.02 | CH58: 5 | CI58: 0 | CL58: 0 | CN58: 0 | CO58: =ROUND(IF(G58=#REF!,(BE58-AY58)*40%,0),2) ->  | CP58: 181.5347 | CQ58: 0 | CS58: =ROUND(IF($D58=#REF!,$BE58-SUM(BJ58:CQ58,0),0),2) ->  | CT58: =ROUND(IF($D58=#REF!,$BE58-SUM(BJ58:CQ58,0),0),2) ->  | CU58: =ROUND(IF($G58=#REF!,$BE58-SUM(BK58:CR58,0),0),2) -> 
B59: 202060 | C59: 1164 | D59: بنك مصر 2 | E59: رمضان راضى محمود محسب | F59: 0 | G59: دوام كامل | H59: فنى | I59: الرابعة | J59: الرابعة | K59: حرفى حداد | L59: الورش | M59: 28007280104019 | N59: 202060رمضان راضى محمود محسبالرابعةالرابعةحرفى حدادالورش | O59: نعم | P59: 713.26 | Q59: 834.5142 | R59: 0 | S59: 1126.59 | T59: 125.18 | U59: 0 | V59: 0 | W59: 0 | Y59: 125.17713 | Z59: 300 | AB59: 0 | AD59: 0 | AE59: 0 | AF59: 425.18 | AG59: 28.79 | AH59: 30.79 | AI59: 65 | AJ59: 0 | AK59: 200 | AL59: 41.73 | AM59: 39.4 | AN59: 36.91 | AO59: 59.24 | AP59: 81.39 | AQ59: 103.34 | AS59: 78.674 | AT59: 600 | AU59: 10 | AV59: 1375.26 | AW59: 10 | AX59: 0 | AY59: 150.08 | AZ59: 0 | BB59: 0 | BC59: =ROUND(SUM(Q59:W59,AF59,AV59,AW59:AY59),2) -> 4046.8 | BD59: 2953.2 | BE59: 7000 | BF59: 0 | BG59: 0 | BJ59: 574.4980957 | BK59: 45.42 | BL59: 0 | BM59: 0 | BN59: =IF(Sheet1!$BH59=1,Sheet1!$S59*20%,IF(Sheet1!$BH59=2,Sheet1!$S59*100%,IF(Sheet1!$BH59>2,Sheet1!$S59*100%,""))) ->  | BO59: =IF(Sheet1!$BF59<=4,Sheet1!$S59*0,IF(Sheet1!$BF59=5,Sheet1!$S59*20%,IF(Sheet1!$BF59=6,Sheet1!$S59*40%,IF(Sheet1!$BF59=7,Sheet1!$S59*50%,IF(Sheet1!$BF59>7,Sheet1!$S59*100%,""))))) -> 0 | BP59: =IF(Sheet1!$BG59<=2,Sheet1!$S59*0,IF(Sheet1!$BG59=3,Sheet1!$S59*30%,IF(Sheet1!$BG59=4,Sheet1!$S59*40%,IF(Sheet1!$BG59=5,Sheet1!$S59*50%,IF(Sheet1!$BG59>5,Sheet1!$S59*100%,""))))) -> 0 | BQ59: 0 | BR59: 0 | BT59: 3 | BU59: 0 | BX59: 0 | CC59: 0 | CE59: 0 | CG59: 3.22 | CH59: 3 | CI59: 0 | CL59: 0 | CN59: 0 | CO59: =ROUND(IF(G59=#REF!,(BE59-AY59)*40%,0),2) ->  | CP59: =AY59 -> 150.08 | CQ59: 0 | CS59: =ROUND(IF($D59=#REF!,$BE59-SUM(BJ59:CQ59,0),0),2) ->  | CT59: =ROUND(IF($D59=#REF!,$BE59-SUM(BJ59:CQ59,0),0),2) ->  | CU59: =ROUND(IF($G59=#REF!,$BE59-SUM(BK59:CR59,0),0),2) ->  | CV59: =ROUND(SUM(BJ59:CU59),2) ->  | CW59: =BE59-CV59 -> 
B60: 202061 | C60: 1169 | D60: بنك مصر 2 | E60: مصطفى أحمد إبراهيم أحمد | F60: مروه | G60: دوام كامل | H60: فنى | I60: الثانية | J60: الثانية | K60: ميكانيكى | L60: الملاكى | M60: 26707231701651 | N60: 202061مصطفى أحمد إبراهيم أحمدمروهالثانيةالثانيةميكانيكىالملاكى | O60: نعم | P60: 1810.9 | Q60: 2118.753 | R60: 0 | S60: =ROUND(Q60*135%,2) -> 2860.32 | T60: =ROUND(Q60*15%,2) -> 317.81 | U60: 0 | V60: 0 | W60: 0 | Y60: 317.81295 | Z60: 300 | AB60: 0 | AD60: 0 | AE60: 0 | AF60: =ROUND(SUM(X60:AA60,AC60:AE60),2) -> 617.81 | AG60: 63.67 | AH60: 70.91 | AI60: 85.11 | AJ60: 0 | AK60: 190 | AL60: 36.2 | AM60: 64.56 | AN60: 82.86 | AO60: 118.26 | AP60: 126.54 | AQ60: 135.39 | AS60: 90.545 | AT60: 600 | AU60: 10 | AV60: =ROUND(SUM(AG60:AU60),2) -> 1674.05 | AW60: 10 | AX60: 0 | AY60: 381.2421 | AZ60: 0 | BB60: 0 | BC60: 7979.99 | BD60: =IF(BC60<7000,7000-BC60,0) -> 0 | BE60: =ROUND(SUM(AB60,AZ60:BD60),2) -> 7979.99 | BF60: 0 | BG60: 0 | BJ60: 697.3702979 | BK60: 0 | BL60: =(BE60-SUM($S60,AY60:BB60))/30*BH60 -> 0 | BM60: =(BE60-SUM($S60,AY60:BB60))/30*BI60 -> 0 | BN60: =IF(Sheet1!$BH60=1,Sheet1!$S60*20%,IF(Sheet1!$BH60=2,Sheet1!$S60*100%,IF(Sheet1!$BH60>2,Sheet1!$S60*100%,""))) ->  | BO60: =IF(Sheet1!$BF60<=4,Sheet1!$S60*0,IF(Sheet1!$BF60=5,Sheet1!$S60*20%,IF(Sheet1!$BF60=6,Sheet1!$S60*40%,IF(Sheet1!$BF60=7,Sheet1!$S60*50%,IF(Sheet1!$BF60>7,Sheet1!$S60*100%,""))))) -> 0 | BP60: =IF(Sheet1!$BG60<=2,Sheet1!$S60*0,IF(Sheet1!$BG60=3,Sheet1!$S60*30%,IF(Sheet1!$BG60=4,Sheet1!$S60*40%,IF(Sheet1!$BG60=5,Sheet1!$S60*50%,IF(Sheet1!$BG60>5,Sheet1!$S60*100%,""))))) -> 0 | BQ60: 0 | BR60: 1.25 | BT60: 3 | BU60: 0 | BX60: 0 | CC60: 0 | CE60: 0 | CG60: 3.05 | CH60: 3 | CI60: 0 | CL60: 0 | CN60: 0 | CO60: =ROUND(IF(G60=#REF!,(BE60-AY60)*40%,0),2) ->  | CP60: 381.2421 | CQ60: 0 | CS60: =ROUND(IF($D60=#REF!,$BE60-SUM(BJ60:CQ60,0),0),2) ->  | CT60: =ROUND(IF($D60=#REF!,$BE60-SUM(BJ60:CQ60,0),0),2) ->  | CU60: =ROUND(IF($G60=#REF!,$BE60-SUM(BK60:CR60,0),0),2) -> 
B61: 202062 | C61: 1162 | D61: بنك مصر 2 | E61: هاني سمير خلة غبريال | F61: 0 | G61: دوام كامل | H61: فنى | I61: الرابعة | J61: الرابعة | K61: حرفى كهربائى سيارات | L61: الورش | M61: 27711220105593 | N61: 202062هاني سمير خلة غبريالالرابعةالرابعةحرفى كهربائى سياراتالورش | O61: نعم | P61: 1070.48 | Q61: 1252.4616 | R61: 0 | S61: 1690.82 | T61: 187.87 | U61: 0 | V61: 0 | W61: 0 | Y61: 187.86924 | Z61: 300 | AB61: 0 | AD61: 0 | AE61: 0 | AF61: 487.87 | AG61: 38.27 | AH61: 42.47 | AI61: 65 | AJ61: 0 | AK61: 200 | AL61: 25.07 | AM61: 38.16 | AN61: 49 | AO61: 69.91 | AP61: 74.8 | AQ61: 80 | AS61: 53.524 | AT61: 600 | AU61: 10 | AV61: 1346.2 | AW61: 10 | AX61: 0 | AY61: 225.3642 | AZ61: 0 | BB61: 0 | BC61: 5200.59 | BD61: 1799.41 | BE61: 7000 | BF61: 0 | BG61: 0 | BJ61: 569.0707129 | BK61: 0 | BL61: 0 | BM61: 0 | BN61: =IF(Sheet1!$BH61=1,Sheet1!$S61*20%,IF(Sheet1!$BH61=2,Sheet1!$S61*100%,IF(Sheet1!$BH61>2,Sheet1!$S61*100%,""))) ->  | BO61: =IF(Sheet1!$BF61<=4,Sheet1!$S61*0,IF(Sheet1!$BF61=5,Sheet1!$S61*20%,IF(Sheet1!$BF61=6,Sheet1!$S61*40%,IF(Sheet1!$BF61=7,Sheet1!$S61*50%,IF(Sheet1!$BF61>7,Sheet1!$S61*100%,""))))) -> 0 | BP61: =IF(Sheet1!$BG61<=2,Sheet1!$S61*0,IF(Sheet1!$BG61=3,Sheet1!$S61*30%,IF(Sheet1!$BG61=4,Sheet1!$S61*40%,IF(Sheet1!$BG61=5,Sheet1!$S61*50%,IF(Sheet1!$BG61>5,Sheet1!$S61*100%,""))))) -> 0 | BQ61: 0 | BR61: 0 | BT61: 3 | BU61: 0 | BX61: 0 | CC61: 0 | CE61: 0 | CG61: 3.07 | CH61: 3 | CI61: 0 | CL61: 0 | CN61: 0 | CO61: =ROUND(IF(G61=#REF!,(BE61-AY61)*40%,0),2) ->  | CP61: 225.3642 | CQ61: 0 | CS61: =ROUND(IF($D61=#REF!,$BE61-SUM(BJ61:CQ61,0),0),2) ->  | CT61: =ROUND(IF($D61=#REF!,$BE61-SUM(BJ61:CQ61,0),0),2) ->  | CU61: =ROUND(IF($G61=#REF!,$BE61-SUM(BK61:CR61,0),0),2) -> 
B62: 202064 | C62: 1133 | D62: بنك مصر 2 | E62: محمد ذكر الله السيد ذكر الله | F62: 0 | G62: دوام كامل | H62: فنى | I62: الثانية | J62: الثانية | K62: فني ميكانيكي | L62: الاميرية | M62: 28701170102715 | N62: 202064محمد ذكر الله السيد ذكر الله الثانيةالثانيةفني ميكانيكيالاميرية | O62: نعم | P62: 1095.96 | Q62: 1282.2732 | R62: 0 | S62: 1731.07 | T62: 192.34 | U62: 0 | V62: 0 | W62: 0 | Y62: 192.34098 | Z62: 300 | AB62: 0 | AD62: 0 | AE62: 0 | AF62: 492.34 | AG62: 39.04 | AH62: 43.35 | AI62: 65 | AJ62: 0 | AK62: 190 | AL62: 23.88 | AM62: 39.07 | AN62: 50.17 | AO62: 71.57 | AP62: 76.58 | AQ62: 81.94 | AS62: 54.798 | AT62: 600 | AU62: 6 | AV62: 1341.4 | AW62: 10 | AX62: 0 | AY62: 230.7284 | AZ62: 0 | BB62: 60 | BC62: 5280.15 | BD62: 1719.85 | BE62: 7060 | BF62: 0 | BG62: 0 | BJ62: 568.6725 | BK62: 0 | BL62: 0 | BM62: 0 | BN62: =IF(Sheet1!$BH62=1,Sheet1!$S62*20%,IF(Sheet1!$BH62=2,Sheet1!$S62*100%,IF(Sheet1!$BH62>2,Sheet1!$S62*100%,""))) ->  | BO62: =IF(Sheet1!$BF62<=4,Sheet1!$S62*0,IF(Sheet1!$BF62=5,Sheet1!$S62*20%,IF(Sheet1!$BF62=6,Sheet1!$S62*40%,IF(Sheet1!$BF62=7,Sheet1!$S62*50%,IF(Sheet1!$BF62>7,Sheet1!$S62*100%,""))))) -> 0 | BP62: =IF(Sheet1!$BG62<=2,Sheet1!$S62*0,IF(Sheet1!$BG62=3,Sheet1!$S62*30%,IF(Sheet1!$BG62=4,Sheet1!$S62*40%,IF(Sheet1!$BG62=5,Sheet1!$S62*50%,IF(Sheet1!$BG62>5,Sheet1!$S62*100%,""))))) -> 0 | BQ62: 0 | BR62: 0 | BT62: 3 | BU62: 0 | BX62: 0 | CC62: 0 | CE62: 0 | CG62: 2.63 | CH62: 3 | CI62: 0 | CL62: 0 | CN62: 0 | CO62: =ROUND(IF(G62=#REF!,(BE62-AY62)*40%,0),2) ->  | CP62: 230.7284 | CQ62: 0 | CS62: =ROUND(IF($D62=#REF!,$BE62-SUM(BJ62:CQ62,0),0),2) ->  | CT62: =ROUND(IF($D62=#REF!,$BE62-SUM(BJ62:CQ62,0),0),2) ->  | CU62: =ROUND(IF($G62=#REF!,$BE62-SUM(BK62:CR62,0),0),2) -> 
B63: 202065 | C63: 1159 | D63: بنك مصر 2 | E63: حاتم إبراهيم مدبولي سعدون | F63: 0 | G63: دوام كامل | H63: فنى | I63: الثالثة | J63: الثالثة | K63: حرفى لحام | L63: فرع الاسكندرية | M63: 27001030102515 | N63: 202065حاتم إبراهيم مدبولي سعدونالثالثةالثالثةحرفى لحامفرع الاسكندرية | O63: نعم | P63: 1092.43 | Q63: 1278.1431 | R63: 0 | S63: 1725.49 | T63: 191.72 | U63: 0 | V63: 0 | W63: 0 | Y63: 191.721465 | Z63: 300 | AB63: 0 | AD63: 0 | AE63: 0 | AF63: 491.72 | AG63: 38.89 | AH63: 43.11 | AI63: 65 | AJ63: 0 | AK63: 200 | AL63: 24.04 | AM63: 38.94 | AN63: 50 | AO63: 71.34 | AP63: 76.33 | AQ63: 81.68 | AS63: 54.6215 | AT63: 600 | AU63: 10 | AV63: 1353.95 | AW63: 10 | AX63: 0 | AY63: 229.9853 | AZ63: 0 | BB63: 0 | BC63: 5281.01 | BD63: 1718.99 | BE63: 7000 | BF63: 0 | BG63: 0 | BJ63: 568.4822021 | BK63: 0.00 | BL63: 0 | BM63: 0 | BN63: =IF(Sheet1!$BH63=1,Sheet1!$S63*20%,IF(Sheet1!$BH63=2,Sheet1!$S63*100%,IF(Sheet1!$BH63>2,Sheet1!$S63*100%,""))) ->  | BO63: =IF(Sheet1!$BF63<=4,Sheet1!$S63*0,IF(Sheet1!$BF63=5,Sheet1!$S63*20%,IF(Sheet1!$BF63=6,Sheet1!$S63*40%,IF(Sheet1!$BF63=7,Sheet1!$S63*50%,IF(Sheet1!$BF63>7,Sheet1!$S63*100%,""))))) -> 0 | BP63: =IF(Sheet1!$BG63<=2,Sheet1!$S63*0,IF(Sheet1!$BG63=3,Sheet1!$S63*30%,IF(Sheet1!$BG63=4,Sheet1!$S63*40%,IF(Sheet1!$BG63=5,Sheet1!$S63*50%,IF(Sheet1!$BG63>5,Sheet1!$S63*100%,""))))) -> 0 | BQ63: 0 | BR63: 0 | BT63: 3 | BU63: 0 | BX63: 0 | CC63: 0 | CE63: 0 | CG63: 2.63 | CH63: 3 | CI63: 0 | CL63: 0 | CN63: 0 | CO63: =ROUND(IF(G63=#REF!,(BE63-AY63)*40%,0),2) ->  | CP63: 229.9853 | CQ63: 0 | CS63: =ROUND(IF($D63=#REF!,$BE63-SUM(BJ63:CQ63,0),0),2) ->  | CT63: =ROUND(IF($D63=#REF!,$BE63-SUM(BJ63:CQ63,0),0),2) ->  | CU63: =ROUND(IF($G63=#REF!,$BE63-SUM(BK63:CR63,0),0),2) -> 
B64: 202066 | C64: 31333 | D64: بنك مصر 1 | E64: عاطف خليل محمود جاد | F64: 0 | G64: دوام كامل | H64: فنى | I64: الثالثة | J64: الثالثة | K64: حرفى كهربائى | L64: الاميرية | M64: 27311230102535 | N64: 202066عاطف خليل محمود جادالثالثةالثالثةحرفى كهربائىالاميرية | O64: نعم | P64: 1092.43 | Q64: 1278.1431 | R64: 0 | S64: 1725.49 | T64: 191.72 | U64: 0 | V64: 0 | W64: 0 | Y64: 191.721465 | Z64: 300 | AB64: 0 | AD64: 0 | AE64: 0 | AF64: 491.72 | AG64: 38.89 | AH64: 43.11 | AI64: 65 | AJ64: 0 | AK64: 200 | AL64: 24.04 | AM64: 38.94 | AN64: 50 | AO64: 71.34 | AP64: 76.33 | AQ64: 81.68 | AS64: 54.6215 | AT64: 600 | AU64: 10 | AV64: 1353.95 | AW64: 10 | AX64: 0 | AY64: 232 | AZ64: 0 | BB64: 0 | BC64: 5283.02 | BD64: 1716.98 | BE64: 7000 | BF64: 0 | BG64: 0 | BJ64: 568.464585 | BK64: 0 | BL64: 0 | BM64: 0 | BN64: =IF(Sheet1!$BH64=1,Sheet1!$S64*20%,IF(Sheet1!$BH64=2,Sheet1!$S64*100%,IF(Sheet1!$BH64>2,Sheet1!$S64*100%,""))) ->  | BO64: =IF(Sheet1!$BF64<=4,Sheet1!$S64*0,IF(Sheet1!$BF64=5,Sheet1!$S64*20%,IF(Sheet1!$BF64=6,Sheet1!$S64*40%,IF(Sheet1!$BF64=7,Sheet1!$S64*50%,IF(Sheet1!$BF64>7,Sheet1!$S64*100%,""))))) -> 0 | BP64: =IF(Sheet1!$BG64<=2,Sheet1!$S64*0,IF(Sheet1!$BG64=3,Sheet1!$S64*30%,IF(Sheet1!$BG64=4,Sheet1!$S64*40%,IF(Sheet1!$BG64=5,Sheet1!$S64*50%,IF(Sheet1!$BG64>5,Sheet1!$S64*100%,""))))) -> 0 | BQ64: 0 | BR64: 0 | BT64: 3 | BU64: 0 | BX64: 0 | CC64: 0 | CE64: 0 | CG64: 2.63 | CH64: 4 | CI64: 0 | CL64: 0 | CN64: 0 | CO64: =ROUND(IF(G64=#REF!,(BE64-AY64)*40%,0),2) ->  | CP64: 232 | CQ64: 0 | CS64: =ROUND(IF($D64=#REF!,$BE64-SUM(BJ64:CQ64,0),0),2) ->  | CT64: =ROUND(IF($D64=#REF!,$BE64-SUM(BJ64:CQ64,0),0),2) ->  | CU64: =ROUND(IF($G64=#REF!,$BE64-SUM(BK64:CR64,0),0),2) -> 
B65: 202067 | C65: 1141 | D65: بنك مصر 2 | E65: عبد الرحمن عبد الله عبده أبو العينين | F65: 0 | G65: دوام كامل | H65: فنى | I65: الرابعة | J65: الرابعة | K65: حرفى ميكانيكى | L65: الإدارة العامة | M65: 27804011305591 | N65: 202067عبد الرحمن عبد الله عبده أبو العينينالرابعةالرابعةحرفى ميكانيكىالإدارة العامة | O65: نعم | P65: 1070.48 | Q65: 1252.4616 | R65: 0 | S65: 1690.82 | T65: 187.87 | U65: 0 | V65: 0 | W65: 0 | Y65: 187.86924 | Z65: 300 | AB65: 0 | AD65: 0 | AE65: 0 | AF65: 487.87 | AG65: 38.08 | AH65: 42.17 | AI65: 65 | AJ65: 0 | AK65: 200 | AL65: 25.07 | AM65: 38.16 | AN65: 49 | AO65: 69.91 | AP65: 74.8 | AQ65: 80.04 | AS65: 53.524 | AT65: 600 | AU65: 10 | AV65: 1345.75 | AW65: 10 | AX65: 0 | AY65: 225.3642 | AZ65: 0 | BB65: 0 | BC65: 5200.14 | BD65: 1799.86 | BE65: 7000 | BF65: 0 | BG65: 0 | BJ65: 569.58 | BK65: 0 | BL65: 0 | BM65: 0 | BN65: =IF(Sheet1!$BH65=1,Sheet1!$S65*20%,IF(Sheet1!$BH65=2,Sheet1!$S65*100%,IF(Sheet1!$BH65>2,Sheet1!$S65*100%,""))) ->  | BO65: =IF(Sheet1!$BF65<=4,Sheet1!$S65*0,IF(Sheet1!$BF65=5,Sheet1!$S65*20%,IF(Sheet1!$BF65=6,Sheet1!$S65*40%,IF(Sheet1!$BF65=7,Sheet1!$S65*50%,IF(Sheet1!$BF65>7,Sheet1!$S65*100%,""))))) -> 0 | BP65: =IF(Sheet1!$BG65<=2,Sheet1!$S65*0,IF(Sheet1!$BG65=3,Sheet1!$S65*30%,IF(Sheet1!$BG65=4,Sheet1!$S65*40%,IF(Sheet1!$BG65=5,Sheet1!$S65*50%,IF(Sheet1!$BG65>5,Sheet1!$S65*100%,""))))) -> 0 | BQ65: 0 | BR65: 0 | BT65: 3 | BU65: 0 | BX65: 0 | CC65: 0 | CE65: 0 | CG65: 2.64 | CH65: 3 | CI65: 0 | CL65: 0 | CN65: 0 | CO65: =ROUND(IF(G65=#REF!,(BE65-AY65)*40%,0),2) ->  | CP65: 225.3642 | CQ65: 0 | CS65: =ROUND(IF($D65=#REF!,$BE65-SUM(BJ65:CQ65,0),0),2) ->  | CT65: =ROUND(IF($D65=#REF!,$BE65-SUM(BJ65:CQ65,0),0),2) ->  | CU65: =ROUND(IF($G65=#REF!,$BE65-SUM(BK65:CR65,0),0),2) -> 
B66: 202069 | C66: 1147 | D66: بنك مصر 2 | E66: خالد محمد محمد بكير | F66: 0 | G66: دوام كامل | H66: فنى | I66: الاولى | M66: 26602120100457 | N66: 202069خالد محمد محمد بكيرالاولى | P66: 2332.45 | Q66: 2565.695 | R66: 0 | S66: 3463.69 | T66: 384.85 | U66: 0 | V66: 0 | W66: 0 | Y66: 384.85425 | Z66: 300 | AB66: 100 | AD66: 0 | AE66: 0 | AF66: 684.85 | AG66: 77.1 | AH66: 85.91 | AI66: 103.24 | AJ66: 0 | AK66: 190 | AL66: 46.63 | AM66: 83.15 | AN66: 106.76 | AO66: 152.32 | AP66: 162.98 | AQ66: 174.39 | AS66: 116.6225 | AT66: 600 | AU66: 10 | AV66: 1909.1 | AW66: 10 | AX66: 0 | AY66: 491.0421 | AZ66: 0 | BB66: 0 | BC66: 9509.23 | BD66: 0 | BE66: 9609.23 | BF66: 0 | BG66: 0 | BJ66: 870.6785742 | BK66: 81.17 | BL66: 0 | BM66: 0 | BN66: =IF(Sheet1!$BH66=1,Sheet1!$S66*20%,IF(Sheet1!$BH66=2,Sheet1!$S66*100%,IF(Sheet1!$BH66>2,Sheet1!$S66*100%,""))) ->  | BO66: =IF(Sheet1!$BF66<=4,Sheet1!$S66*0,IF(Sheet1!$BF66=5,Sheet1!$S66*20%,IF(Sheet1!$BF66=6,Sheet1!$S66*40%,IF(Sheet1!$BF66=7,Sheet1!$S66*50%,IF(Sheet1!$BF66>7,Sheet1!$S66*100%,""))))) -> 0 | BP66: =IF(Sheet1!$BG66<=2,Sheet1!$S66*0,IF(Sheet1!$BG66=3,Sheet1!$S66*30%,IF(Sheet1!$BG66=4,Sheet1!$S66*40%,IF(Sheet1!$BG66=5,Sheet1!$S66*50%,IF(Sheet1!$BG66>5,Sheet1!$S66*100%,""))))) -> 0 | BQ66: 0 | BR66: 0 | BT66: 3 | BU66: 0 | BX66: 0 | CC66: 0 | CE66: 0 | CG66: 3.8 | CH66: 5 | CI66: 0 | CL66: 0 | CN66: 0 | CO66: =ROUND(IF(G66=#REF!,(BE66-AY66)*40%,0),2) ->  | CP66: 491.0421 | CQ66: 0 | CS66: =ROUND(IF($D66=#REF!,$BE66-SUM(BJ66:CQ66,0),0),2) ->  | CT66: =ROUND(IF($D66=#REF!,$BE66-SUM(BJ66:CQ66,0),0),2) ->  | CU66: =ROUND(IF($G66=#REF!,$BE66-SUM(BK66:CR66,0),0),2) -> 
B67: 202070 | C67: 1168 | D67: بنك مصر 2 | E67: محمود زكريا محمود يونس | F67: 0 | G67: دوام كامل | H67: فنى | I67: الثانية | J67: الثانية | K67: ميكانيكى | L67: محطة الخدمة | M67: 27312100103277 | N67: 202070محمود زكريا محمود يونسالثانيةالثانيةميكانيكىمحطة الخدمة | O67: نعم | P67: 1879.01 | Q67: 2198.4417 | R67: 0 | S67: 2967.9 | T67: 329.77 | U67: 0 | V67: 0 | W67: 0 | Y67: 329.766255 | Z67: 300 | AB67: 0 | AD67: 0 | AE67: 0 | AF67: 629.77 | AG67: 62.21 | AH67: 69.28 | AI67: 83.14 | AJ67: 0 | AK67: 190 | AL67: 37.56 | AM67: 66.99 | AN67: 86.01 | AO67: 122.71 | AP67: 131.3 | AQ67: 140.49 | AS67: 93.9505 | AT67: 600 | AU67: 10 | AV67: 1693.64 | AW67: 10 | AX67: 0 | AY67: 395.5811 | AZ67: 0 | BB67: 0 | BC67: 8225.1 | BD67: 0 | BE67: 8225.1 | BF67: 0 | BG67: 0 | BJ67: 718.752085 | BK67: 0 | BL67: 0 | BM67: 0 | BN67: =IF(Sheet1!$BH67=1,Sheet1!$S67*20%,IF(Sheet1!$BH67=2,Sheet1!$S67*100%,IF(Sheet1!$BH67>2,Sheet1!$S67*100%,""))) ->  | BO67: =IF(Sheet1!$BF67<=4,Sheet1!$S67*0,IF(Sheet1!$BF67=5,Sheet1!$S67*20%,IF(Sheet1!$BF67=6,Sheet1!$S67*40%,IF(Sheet1!$BF67=7,Sheet1!$S67*50%,IF(Sheet1!$BF67>7,Sheet1!$S67*100%,""))))) -> 0 | BP67: =IF(Sheet1!$BG67<=2,Sheet1!$S67*0,IF(Sheet1!$BG67=3,Sheet1!$S67*30%,IF(Sheet1!$BG67=4,Sheet1!$S67*40%,IF(Sheet1!$BG67=5,Sheet1!$S67*50%,IF(Sheet1!$BG67>5,Sheet1!$S67*100%,""))))) -> 0 | BQ67: 0 | BR67: 0 | BT67: 3 | BU67: 0 | BX67: 0 | CC67: 0 | CE67: 0 | CG67: 3.14 | CH67: 3 | CI67: 0 | CL67: 0 | CN67: 0 | CO67: =ROUND(IF(G67=#REF!,(BE67-AY67)*40%,0),2) ->  | CP67: 395.5811 | CQ67: 0 | CS67: =ROUND(IF($D67=#REF!,$BE67-SUM(BJ67:CQ67,0),0),2) ->  | CT67: =ROUND(IF($D67=#REF!,$BE67-SUM(BJ67:CQ67,0),0),2) ->  | CU67: =ROUND(IF($G67=#REF!,$BE67-SUM(BK67:CR67,0),0),2) -> 
B68: 202071 | C68: 1155 | D68: بنك مصر 2 | E68: أشرف هاشم عثمان عبد المغيث | F68: 0 | G68: دوام كامل | H68: فنى | I68: الثالثة | J68: الثالثة | K68: حرفى نقاش دوكو | L68: الادارة العامة | M68: 27003190101755 | N68: 202071أشرف هاشم عثمان عبد المغيثالثالثةالثالثةحرفى نقاش دوكوالادارة العامة | O68: نعم | P68: 1092.43 | Q68: 1278.1431 | R68: 0 | S68: 1725.49 | T68: 191.72 | U68: 0 | V68: 0 | W68: 0 | Y68: 191.721465 | Z68: 300 | AB68: 0 | AD68: 0 | AE68: 0 | AF68: 491.72 | AG68: 38.89 | AH68: 43.11 | AI68: 65 | AJ68: 0 | AK68: 200 | AL68: 24.04 | AM68: 38.94 | AN68: 50 | AO68: 71.34 | AP68: 76.33 | AQ68: 81.67 | AS68: 54.6215 | AT68: 600 | AU68: 10 | AV68: 1353.94 | AW68: 10 | AX68: 0 | AY68: 229.9853 | AZ68: 0 | BB68: 0 | BC68: 5281 | BD68: 1719 | BE68: 7000 | BF68: 0 | BG68: 0 | BJ68: 568.3172021 | BK68: 0 | BL68: 0 | BM68: 0 | BN68: =IF(Sheet1!$BH68=1,Sheet1!$S68*20%,IF(Sheet1!$BH68=2,Sheet1!$S68*100%,IF(Sheet1!$BH68>2,Sheet1!$S68*100%,""))) ->  | BO68: =IF(Sheet1!$BF68<=4,Sheet1!$S68*0,IF(Sheet1!$BF68=5,Sheet1!$S68*20%,IF(Sheet1!$BF68=6,Sheet1!$S68*40%,IF(Sheet1!$BF68=7,Sheet1!$S68*50%,IF(Sheet1!$BF68>7,Sheet1!$S68*100%,""))))) -> 0 | BP68: =IF(Sheet1!$BG68<=2,Sheet1!$S68*0,IF(Sheet1!$BG68=3,Sheet1!$S68*30%,IF(Sheet1!$BG68=4,Sheet1!$S68*40%,IF(Sheet1!$BG68=5,Sheet1!$S68*50%,IF(Sheet1!$BG68>5,Sheet1!$S68*100%,""))))) -> 0 | BQ68: 0 | BR68: 0 | BT68: 3 | BU68: 0 | BX68: 0 | CC68: 0 | CE68: 0 | CG68: 2.63 | CH68: 3 | CI68: 0 | CL68: 0 | CN68: 0 | CO68: =ROUND(IF(G68=#REF!,(BE68-AY68)*40%,0),2) ->  | CP68: 229.9853 | CQ68: 0 | CS68: =ROUND(IF($D68=#REF!,$BE68-SUM(BJ68:CQ68,0),0),2) ->  | CT68: =ROUND(IF($D68=#REF!,$BE68-SUM(BJ68:CQ68,0),0),2) ->  | CU68: =ROUND(IF($G68=#REF!,$BE68-SUM(BK68:CR68,0),0),2) -> 
B69: 202072 | C69: 1313 | D69: بنك مصر 2 | E69: محمود رزق إبراهيم هيكل | F69: 0 | G69: دوام كامل | H69: فنى | I69: الثالثة | J69: الثالثة | K69: حرفى سروجى | L69: الادارة العامة بالورش المركزية | M69: 27608010101695 | N69: 202072محمود رزق إبراهيم هيكلالثالثةالثالثةحرفى سروجىالادارة العامة بالورش المركزية | O69: نعم | P69: 1092.43 | Q69: 1278.1431 | R69: 0 | S69: 1725.49 | T69: 191.72 | U69: 0 | V69: 0 | W69: 0 | Y69: 191.721465 | Z69: 300 | AB69: 0 | AD69: 0 | AE69: 0 | AF69: 491.72 | AG69: 38.89 | AH69: 43.11 | AI69: 65 | AJ69: 0 | AK69: 200 | AL69: 24.04 | AM69: 38.94 | AN69: 50 | AO69: 71.34 | AP69: 76.33 | AQ69: 81.68 | AS69: 54.6215 | AT69: 600 | AU69: 10 | AV69: 1353.95 | AW69: 10 | AX69: 0 | AY69: 229.9853 | AZ69: 0 | BB69: 0 | BC69: 5281.01 | BD69: 1718.99 | BE69: 7000 | BF69: 0 | BG69: 0 | BJ69: 569.399585 | BK69: 0 | BL69: 0 | BM69: 0 | BN69: =IF(Sheet1!$BH69=1,Sheet1!$S69*20%,IF(Sheet1!$BH69=2,Sheet1!$S69*100%,IF(Sheet1!$BH69>2,Sheet1!$S69*100%,""))) ->  | BO69: =IF(Sheet1!$BF69<=4,Sheet1!$S69*0,IF(Sheet1!$BF69=5,Sheet1!$S69*20%,IF(Sheet1!$BF69=6,Sheet1!$S69*40%,IF(Sheet1!$BF69=7,Sheet1!$S69*50%,IF(Sheet1!$BF69>7,Sheet1!$S69*100%,""))))) -> 0 | BP69: =IF(Sheet1!$BG69<=2,Sheet1!$S69*0,IF(Sheet1!$BG69=3,Sheet1!$S69*30%,IF(Sheet1!$BG69=4,Sheet1!$S69*40%,IF(Sheet1!$BG69=5,Sheet1!$S69*50%,IF(Sheet1!$BG69>5,Sheet1!$S69*100%,""))))) -> 0 | BQ69: 0 | BR69: 0 | BT69: 3 | BU69: 0 | BX69: 0 | CC69: 0 | CE69: 0 | CG69: 2.63 | CH69: 3 | CI69: 0 | CL69: 0 | CN69: 0 | CO69: =ROUND(IF(G69=#REF!,(BE69-AY69)*40%,0),2) ->  | CP69: 229.9853 | CQ69: 0 | CS69: =ROUND(IF($D69=#REF!,$BE69-SUM(BJ69:CQ69,0),0),2) ->  | CT69: =ROUND(IF($D69=#REF!,$BE69-SUM(BJ69:CQ69,0),0),2) ->  | CU69: =ROUND(IF($G69=#REF!,$BE69-SUM(BK69:CR69,0),0),2) -> 
B70: 202073 | C70: 1163 | D70: بنك مصر 2 | E70: عبد اللاه محمد خميس صالح | F70: 0 | G70: دوام كامل | H70: فنى | I70: الثالثة | M70: 27204090101435 | N70: 202073عبد اللاه محمد خميس صالحالثالثة | P70: 989.69 | Q70: 1157.94 | R70: 0 | S70: 1563.22 | T70: 173.69 | U70: 0 | V70: 0 | W70: 0 | Y70: 173.691 | Z70: 300 | AB70: 0 | AD70: 0 | AE70: 0 | AF70: 473.69 | AG70: 32.5 | AH70: 36.38 | AI70: 65 | AJ70: 0 | AK70: 200 | AL70: 28.84 | AM70: 35.28 | AN70: 45.3 | AO70: 64.63 | AP70: 69.15 | AQ70: 85.25 | AS70: 51.031 | AT70: 600 | AU70: 8 | AV70: 1321.36 | AW70: 10 | AX70: 0 | AY70: 208.94 | AZ70: 0 | BB70: 30 | BC70: 4908.84 | BD70: 2091.16 | BE70: 7030 | BF70: 0 | BG70: 0 | BJ70: 574.3814893 | BK70: 0 | BL70: 0 | BM70: 0 | BN70: =IF(Sheet1!$BH70=1,Sheet1!$S70*20%,IF(Sheet1!$BH70=2,Sheet1!$S70*100%,IF(Sheet1!$BH70>2,Sheet1!$S70*100%,""))) ->  | BO70: =IF(Sheet1!$BF70<=4,Sheet1!$S70*0,IF(Sheet1!$BF70=5,Sheet1!$S70*20%,IF(Sheet1!$BF70=6,Sheet1!$S70*40%,IF(Sheet1!$BF70=7,Sheet1!$S70*50%,IF(Sheet1!$BF70>7,Sheet1!$S70*100%,""))))) -> 0 | BP70: =IF(Sheet1!$BG70<=2,Sheet1!$S70*0,IF(Sheet1!$BG70=3,Sheet1!$S70*30%,IF(Sheet1!$BG70=4,Sheet1!$S70*40%,IF(Sheet1!$BG70=5,Sheet1!$S70*50%,IF(Sheet1!$BG70>5,Sheet1!$S70*100%,""))))) -> 0 | BQ70: 0 | BR70: 0 | BT70: 3 | BU70: 0 | BX70: 0 | CC70: 0 | CE70: 0 | CG70: 1.96 | CH70: 3 | CI70: 0 | CL70: 0 | CN70: 0 | CO70: =ROUND(IF(G70=#REF!,(BE70-AY70)*40%,0),2) ->  | CP70: 208.94 | CQ70: 0 | CS70: =ROUND(IF($D70=#REF!,$BE70-SUM(BJ70:CQ70,0),0),2) ->  | CT70: =ROUND(IF($D70=#REF!,$BE70-SUM(BJ70:CQ70,0),0),2) ->  | CU70: =ROUND(IF($G70=#REF!,$BE70-SUM(BK70:CR70,0),0),2) -> 
B71: 202074 | C71: 1150 | D71: بنك مصر 2 | E71: سيد نجيب محمد سيد | F71: 0 | G71: دوام كامل | H71: فنى | I71: الاولى | J71: الأولى | K71: حرفى لحام كهربائى | L71: قطاع شئون الفنية | M71: 26709180102733 | N71: 202074سيد نجيب محمد سيدالاولىالأولىحرفى لحام كهربائىقطاع شئون الفنية | O71: نعم | P71: 2029.15 | Q71: 2374.1055 | R71: 0 | S71: 3205.04 | T71: 356.12 | U71: 0 | V71: 0 | W71: 0 | Y71: 356.115825 | Z71: 300 | AB71: 0 | AD71: 0 | AE71: 0 | AF71: 656.12 | AG71: 71.79 | AH71: 79.95 | AI71: 95.3 | AJ71: 0 | AK71: 190 | AL71: 40.56 | AM71: 72.34 | AN71: 92.88 | AO71: 132.51 | AP71: 141.79 | AQ71: 151.71 | AS71: 101.4575 | AT71: 600 | AU71: 10 | AV71: 1780.29 | AW71: 10 | AX71: 0 | AY71: 428.38 | AZ71: 0 | BB71: 0 | BC71: 8810.06 | BD71: 0 | BE71: 8810.06 | BF71: 0 | BG71: 0 | BJ71: 770.7061914 | BK71: 0 | BL71: 0 | BM71: 0 | BN71: =IF(Sheet1!$BH71=1,Sheet1!$S71*20%,IF(Sheet1!$BH71=2,Sheet1!$S71*100%,IF(Sheet1!$BH71>2,Sheet1!$S71*100%,""))) ->  | BO71: =IF(Sheet1!$BF71<=4,Sheet1!$S71*0,IF(Sheet1!$BF71=5,Sheet1!$S71*20%,IF(Sheet1!$BF71=6,Sheet1!$S71*40%,IF(Sheet1!$BF71=7,Sheet1!$S71*50%,IF(Sheet1!$BF71>7,Sheet1!$S71*100%,""))))) -> 0 | BP71: =IF(Sheet1!$BG71<=2,Sheet1!$S71*0,IF(Sheet1!$BG71=3,Sheet1!$S71*30%,IF(Sheet1!$BG71=4,Sheet1!$S71*40%,IF(Sheet1!$BG71=5,Sheet1!$S71*50%,IF(Sheet1!$BG71>5,Sheet1!$S71*100%,""))))) -> 0 | BQ71: 0 | BR71: 0 | BT71: 3 | BU71: 0 | BX71: 0 | CC71: 0 | CE71: 0 | CG71: 3.37 | CH71: 5 | CI71: 0 | CL71: 0 | CN71: 0 | CO71: =ROUND(IF(G71=#REF!,(BE71-AY71)*40%,0),2) ->  | CP71: 428.38 | CQ71: 0 | CS71: =ROUND(IF($D71=#REF!,$BE71-SUM(BJ71:CQ71,0),0),2) ->  | CT71: =ROUND(IF($D71=#REF!,$BE71-SUM(BJ71:CQ71,0),0),2) ->  | CU71: =ROUND(IF($G71=#REF!,$BE71-SUM(BK71:CR71,0),0),2) -> 
B72: 202075 | C72: 1131 | D72: بنك مصر 2 | E72: ميلاد سمير خله غبريال | F72: 0 | G72: دوام كامل | H72: فنى | I72: الثانية | J72: الثانية | K72: فنى كهربائى توصيلات | L72: الاميرية | M72: 28301060104498 | N72: 202075ميلاد سمير خله غبريالالثانيةالثانيةفنى كهربائى توصيلات الاميرية | O72: نعم | P72: 1137.36 | Q72: 1330.7112 | R72: 0 | S72: 1796.46 | T72: 199.61 | U72: 0 | V72: 0 | W72: 0 | Y72: 199.60668 | Z72: 300 | AB72: 0 | AD72: 0 | AE72: 0 | AF72: 499.61 | AG72: 40.59 | AH72: 45.2 | AI72: 65 | AJ72: 0 | AK72: 190 | AL72: 22.74 | AM72: 40.55 | AN72: 52.06 | AO72: 74.27 | AP72: 79.47 | AQ72: 85.04 | AS72: 56.868 | AT72: 600 | AU72: 8 | AV72: 1359.79 | AW72: 10 | AX72: 0 | AY72: 239.4442 | AZ72: 0 | BB72: 0 | BC72: 5435.63 | BD72: 1564.37 | BE72: 7000 | BF72: 0 | BG72: 0 | BJ72: 566.0182129 | BK72: 0 | BL72: 0 | BM72: 0 | BN72: =IF(Sheet1!$BH72=1,Sheet1!$S72*20%,IF(Sheet1!$BH72=2,Sheet1!$S72*100%,IF(Sheet1!$BH72>2,Sheet1!$S72*100%,""))) ->  | BO72: =IF(Sheet1!$BF72<=4,Sheet1!$S72*0,IF(Sheet1!$BF72=5,Sheet1!$S72*20%,IF(Sheet1!$BF72=6,Sheet1!$S72*40%,IF(Sheet1!$BF72=7,Sheet1!$S72*50%,IF(Sheet1!$BF72>7,Sheet1!$S72*100%,""))))) -> 0 | BP72: =IF(Sheet1!$BG72<=2,Sheet1!$S72*0,IF(Sheet1!$BG72=3,Sheet1!$S72*30%,IF(Sheet1!$BG72=4,Sheet1!$S72*40%,IF(Sheet1!$BG72=5,Sheet1!$S72*50%,IF(Sheet1!$BG72>5,Sheet1!$S72*100%,""))))) -> 0 | BQ72: 0 | BR72: 0 | BT72: 3 | BU72: 0 | BX72: 0 | CC72: 0 | CE72: 0 | CG72: 2.6 | CH72: 3 | CI72: 0 | CL72: 0 | CN72: 0 | CO72: =ROUND(IF(G72=#REF!,(BE72-AY72)*40%,0),2) ->  | CP72: 239.4442 | CQ72: 0 | CS72: =ROUND(IF($D72=#REF!,$BE72-SUM(BJ72:CQ72,0),0),2) ->  | CT72: =ROUND(IF($D72=#REF!,$BE72-SUM(BJ72:CQ72,0),0),2) ->  | CU72: =ROUND(IF($G72=#REF!,$BE72-SUM(BK72:CR72,0),0),2) -> 
B73: 202076 | C73: 1170 | D73: بنك مصر 2 | E73: هيثم أحمد عبد العظيم محمد | F73: 0 | G73: دوام كامل | H73: فنى | I73: الثانية | J73: الثانية | K73: فنى كهربائى | L73: الاميرية | M73: 8008142100599 | N73: 202076هيثم أحمد عبد العظيم محمد الثانيةالثانيةفنى كهربائىالاميرية | O73: نعم | P73: 1137.36 | Q73: 1330.7112 | R73: 0 | S73: 1796.46 | T73: 199.61 | U73: 0 | V73: 0 | W73: 0 | Y73: 199.60668 | Z73: 300 | AB73: 0 | AD73: 0 | AE73: 0 | AF73: 499.61 | AG73: 40.59 | AH73: 45.2 | AI73: 65 | AJ73: 0 | AK73: 190 | AL73: 22.74 | AM73: 40.55 | AN73: 52.06 | AO73: 74.27 | AP73: 79.47 | AQ73: 85.04 | AS73: 56.868 | AT73: 600 | AU73: 10 | AV73: 1361.79 | AW73: 10 | AX73: 0 | AY73: 239.4442 | AZ73: 0 | BB73: 0 | BC73: 5437.63 | BD73: 1562.37 | BE73: 7000 | BF73: 0 | BG73: 0 | BJ73: 565.9785742 | BK73: 0 | BL73: 0 | BM73: 0 | BN73: =IF(Sheet1!$BH73=1,Sheet1!$S73*20%,IF(Sheet1!$BH73=2,Sheet1!$S73*100%,IF(Sheet1!$BH73>2,Sheet1!$S73*100%,""))) ->  | BO73: =IF(Sheet1!$BF73<=4,Sheet1!$S73*0,IF(Sheet1!$BF73=5,Sheet1!$S73*20%,IF(Sheet1!$BF73=6,Sheet1!$S73*40%,IF(Sheet1!$BF73=7,Sheet1!$S73*50%,IF(Sheet1!$BF73>7,Sheet1!$S73*100%,""))))) -> 0 | BP73: =IF(Sheet1!$BG73<=2,Sheet1!$S73*0,IF(Sheet1!$BG73=3,Sheet1!$S73*30%,IF(Sheet1!$BG73=4,Sheet1!$S73*40%,IF(Sheet1!$BG73=5,Sheet1!$S73*50%,IF(Sheet1!$BG73>5,Sheet1!$S73*100%,""))))) -> 0 | BQ73: 0 | BR73: 0 | BT73: 3 | BU73: 0 | BX73: 0 | CC73: 0 | CE73: 0 | CG73: 2.6 | CH73: 3 | CI73: 0 | CL73: 0 | CN73: 0 | CO73: =ROUND(IF(G73=#REF!,(BE73-AY73)*40%,0),2) ->  | CP73: 239.4442 | CQ73: 0 | CS73: =ROUND(IF($D73=#REF!,$BE73-SUM(BJ73:CQ73,0),0),2) ->  | CT73: =ROUND(IF($D73=#REF!,$BE73-SUM(BJ73:CQ73,0),0),2) ->  | CU73: =ROUND(IF($G73=#REF!,$BE73-SUM(BK73:CR73,0),0),2) -> 
B74: 202077 | C74: 1284 | D74: بنك مصر 2 | E74: عبد النبي عطا محمود محمد | F74: 0 | G74: دوام كامل | H74: فنى | I74: الثانية | J74: الثانية | K74: فني كهربائي | L74: الاميرية | M74: 28302051405279 | N74: 202077عبد النبي عطا محمود محمد الثانيةالثانيةفني كهربائي الاميرية | O74: نعم | P74: 1137.36 | Q74: 1330.7112 | R74: 0 | S74: 1796.46 | T74: 199.61 | U74: 0 | V74: 0 | W74: 0 | Y74: 199.60668 | Z74: 300 | AB74: 0 | AD74: 0 | AE74: 0 | AF74: 499.61 | AG74: 40.59 | AH74: 45.02 | AI74: 65 | AJ74: 0 | AK74: 190 | AL74: 22.74 | AM74: 40.55 | AN74: 52.06 | AO74: 74.27 | AP74: 79.47 | AQ74: 85.04 | AS74: 56.868 | AT74: 600 | AU74: 8 | AV74: 1359.61 | AW74: 10 | AX74: 0 | AY74: 239.4442 | AZ74: 0 | BB74: 0 | BC74: 5435.45 | BD74: 1564.55 | BE74: 7000 | BF74: 0 | BG74: 0 | BJ74: 565.9983936 | BK74: 0 | BL74: 0 | BM74: 0 | BN74: =IF(Sheet1!$BH74=1,Sheet1!$S74*20%,IF(Sheet1!$BH74=2,Sheet1!$S74*100%,IF(Sheet1!$BH74>2,Sheet1!$S74*100%,""))) ->  | BO74: =IF(Sheet1!$BF74<=4,Sheet1!$S74*0,IF(Sheet1!$BF74=5,Sheet1!$S74*20%,IF(Sheet1!$BF74=6,Sheet1!$S74*40%,IF(Sheet1!$BF74=7,Sheet1!$S74*50%,IF(Sheet1!$BF74>7,Sheet1!$S74*100%,""))))) -> 0 | BP74: =IF(Sheet1!$BG74<=2,Sheet1!$S74*0,IF(Sheet1!$BG74=3,Sheet1!$S74*30%,IF(Sheet1!$BG74=4,Sheet1!$S74*40%,IF(Sheet1!$BG74=5,Sheet1!$S74*50%,IF(Sheet1!$BG74>5,Sheet1!$S74*100%,""))))) -> 0 | BQ74: 0 | BR74: 0 | BT74: 3 | BU74: 0 | BX74: 0 | CC74: 0 | CE74: 0 | CG74: 2.6 | CH74: 3 | CI74: 0 | CL74: 0 | CN74: 0 | CO74: =ROUND(IF(G74=#REF!,(BE74-AY74)*40%,0),2) ->  | CP74: 239.4442 | CQ74: 0 | CS74: =ROUND(IF($D74=#REF!,$BE74-SUM(BJ74:CQ74,0),0),2) ->  | CT74: =ROUND(IF($D74=#REF!,$BE74-SUM(BJ74:CQ74,0),0),2) ->  | CU74: =ROUND(IF($G74=#REF!,$BE74-SUM(BK74:CR74,0),0),2) -> 
B75: 202078 | C75: 31142 | D75: بنك مصر 1 | E75: علي إبراهيـم علـي أحمد | F75: 0 | G75: دوام كامل | H75: فنى | I75: الاولى | J75: الأولى | K75: حرفى ميكانيكى سيارات | L75: فرع القاهرة | M75: 26907180102691 | N75: 202078علي إبراهيـم علـي أحمدالاولىالأولىحرفى ميكانيكى سياراتفرع القاهرة | O75: نعم | P75: 2029.15 | Q75: 2374.1055 | R75: 0 | S75: 3205.04 | T75: 356.12 | U75: 0 | V75: 0 | W75: 0 | Y75: 356.115825 | Z75: 300 | AB75: 0 | AD75: 0 | AE75: 0 | AF75: 656.12 | AG75: 71.79 | AH75: 79.95 | AI75: 95.3 | AJ75: 0 | AK75: 190 | AL75: 40.56 | AM75: 72.34 | AN75: 92.88 | AO75: 132.51 | AP75: 141.79 | AQ75: 151.71 | AS75: 101.4575 | AT75: 600 | AU75: 10 | AV75: 1780.29 | AW75: 10 | AX75: 0 | AY75: 428.38 | AZ75: 0 | BB75: 0 | BC75: 8810.06 | BD75: 0 | BE75: 8810.06 | BF75: 0 | BG75: 0 | BJ75: 770.7414258 | BK75: 20.75 | BL75: 0 | BM75: 0 | BN75: =IF(Sheet1!$BH75=1,Sheet1!$S75*20%,IF(Sheet1!$BH75=2,Sheet1!$S75*100%,IF(Sheet1!$BH75>2,Sheet1!$S75*100%,""))) ->  | BO75: =IF(Sheet1!$BF75<=4,Sheet1!$S75*0,IF(Sheet1!$BF75=5,Sheet1!$S75*20%,IF(Sheet1!$BF75=6,Sheet1!$S75*40%,IF(Sheet1!$BF75=7,Sheet1!$S75*50%,IF(Sheet1!$BF75>7,Sheet1!$S75*100%,""))))) -> 0 | BP75: =IF(Sheet1!$BG75<=2,Sheet1!$S75*0,IF(Sheet1!$BG75=3,Sheet1!$S75*30%,IF(Sheet1!$BG75=4,Sheet1!$S75*40%,IF(Sheet1!$BG75=5,Sheet1!$S75*50%,IF(Sheet1!$BG75>5,Sheet1!$S75*100%,""))))) -> 0 | BQ75: 0 | BR75: 0 | BT75: 3 | BU75: 0 | BX75: 0 | CC75: 0 | CE75: 0 | CG75: 3.37 | CH75: 5 | CI75: 0 | CL75: 0 | CN75: 0 | CO75: =ROUND(IF(G75=#REF!,(BE75-AY75)*40%,0),2) ->  | CP75: 428.38 | CQ75: 0 | CS75: =ROUND(IF($D75=#REF!,$BE75-SUM(BJ75:CQ75,0),0),2) ->  | CT75: =ROUND(IF($D75=#REF!,$BE75-SUM(BJ75:CQ75,0),0),2) ->  | CU75: =ROUND(IF($G75=#REF!,$BE75-SUM(BK75:CR75,0),0),2) -> 
B76: 202079 | C76: 1119 | D76: بنك مصر 2 | E76: مسعـد محمود شعبان علـي | F76: 0 | G76: دوام كامل | H76: فنى | I76: الاولى | J76: الأولى | K76: حرفى ميكانيكى سيارات | L76: قطاع شئون الفنية | M76: 26804191701534 | N76: 202079مسعـد محمود شعبان علـيالاولىالأولىحرفى ميكانيكى سياراتقطاع شئون الفنية | O76: نعم | P76: 2029.15 | Q76: 2374.1055 | R76: 0 | S76: 3205.04 | T76: 356.12 | U76: 0 | V76: 0 | W76: 0 | Y76: 356.115825 | Z76: 300 | AB76: 0 | AD76: 0 | AE76: 0 | AF76: 656.12 | AG76: 71.79 | AH76: 79.95 | AI76: 95.3 | AJ76: 0 | AK76: 190 | AL76: 40.56 | AM76: 72.34 | AN76: 92.88 | AO76: 132.51 | AP76: 141.79 | AQ76: 151.71 | AS76: 101.4575 | AT76: 600 | AU76: 10 | AV76: 1780.29 | AW76: 10 | AX76: 0 | AY76: 428.38 | AZ76: 0 | BB76: 60 | BC76: 8810.06 | BD76: 0 | BE76: 8870.06 | BF76: 0 | BG76: 0 | BJ76: 770.7414258 | BK76: 21 | BL76: 0 | BM76: 0 | BN76: =IF(Sheet1!$BH76=1,Sheet1!$S76*20%,IF(Sheet1!$BH76=2,Sheet1!$S76*100%,IF(Sheet1!$BH76>2,Sheet1!$S76*100%,""))) ->  | BO76: =IF(Sheet1!$BF76<=4,Sheet1!$S76*0,IF(Sheet1!$BF76=5,Sheet1!$S76*20%,IF(Sheet1!$BF76=6,Sheet1!$S76*40%,IF(Sheet1!$BF76=7,Sheet1!$S76*50%,IF(Sheet1!$BF76>7,Sheet1!$S76*100%,""))))) -> 0 | BP76: =IF(Sheet1!$BG76<=2,Sheet1!$S76*0,IF(Sheet1!$BG76=3,Sheet1!$S76*30%,IF(Sheet1!$BG76=4,Sheet1!$S76*40%,IF(Sheet1!$BG76=5,Sheet1!$S76*50%,IF(Sheet1!$BG76>5,Sheet1!$S76*100%,""))))) -> 0 | BQ76: 0 | BR76: 0 | BT76: 3 | BU76: 0 | BX76: 0 | CC76: 0 | CE76: 0 | CG76: 3.37 | CH76: 5 | CI76: 0 | CL76: 0 | CN76: 0 | CO76: =ROUND(IF(G76=#REF!,(BE76-AY76)*40%,0),2) ->  | CP76: 428.38 | CQ76: 0 | CS76: =ROUND(IF($D76=#REF!,$BE76-SUM(BJ76:CQ76,0),0),2) ->  | CT76: =ROUND(IF($D76=#REF!,$BE76-SUM(BJ76:CQ76,0),0),2) ->  | CU76: =ROUND(IF($G76=#REF!,$BE76-SUM(BK76:CR76,0),0),2) -> 
B77: 202080 | C77: 1127 | D77: بنك مصر 2 | E77: رمضـان سعـد طه صالح | F77: 0 | G77: دوام كامل | H77: فنى | I77: الاولى | J77: الأولى | K77: حرفى ميكانيكى سيارات | L77: فرع الاميرية | M77: 27011010103791 | N77: 202080رمضـان سعـد طه صالحالاولىالأولىحرفى ميكانيكى سياراتفرع الاميرية | O77: نعم | P77: 2029.15 | Q77: 2374.1055 | R77: 0 | S77: 3205.04 | T77: 356.12 | U77: 0 | V77: 0 | W77: 0 | Y77: 356.115825 | Z77: 300 | AB77: 0 | AD77: 0 | AE77: 0 | AF77: 656.12 | AG77: 71.79 | AH77: 79.95 | AI77: 95.3 | AJ77: 0 | AK77: 190 | AL77: 40.56 | AM77: 72.34 | AN77: 92.88 | AO77: 132.51 | AP77: 141.79 | AQ77: 151.71 | AS77: 101.4575 | AT77: 600 | AU77: 10 | AV77: 1780.29 | AW77: 10 | AX77: 0 | AY77: 427.1895 | AZ77: 0 | BB77: 0 | BC77: 8808.87 | BD77: 0 | BE77: 8808.87 | BF77: 0 | BG77: 0 | BJ77: 770.7402979 | BK77: 20.75 | BL77: 0 | BM77: 0 | BN77: =IF(Sheet1!$BH77=1,Sheet1!$S77*20%,IF(Sheet1!$BH77=2,Sheet1!$S77*100%,IF(Sheet1!$BH77>2,Sheet1!$S77*100%,""))) ->  | BO77: =IF(Sheet1!$BF77<=4,Sheet1!$S77*0,IF(Sheet1!$BF77=5,Sheet1!$S77*20%,IF(Sheet1!$BF77=6,Sheet1!$S77*40%,IF(Sheet1!$BF77=7,Sheet1!$S77*50%,IF(Sheet1!$BF77>7,Sheet1!$S77*100%,""))))) -> 0 | BP77: =IF(Sheet1!$BG77<=2,Sheet1!$S77*0,IF(Sheet1!$BG77=3,Sheet1!$S77*30%,IF(Sheet1!$BG77=4,Sheet1!$S77*40%,IF(Sheet1!$BG77=5,Sheet1!$S77*50%,IF(Sheet1!$BG77>5,Sheet1!$S77*100%,""))))) -> 0 | BQ77: 0 | BR77: 0 | BT77: 3 | BU77: 0 | BX77: 0 | CC77: 0 | CE77: 0 | CG77: 3.37 | CH77: 5 | CI77: 0 | CL77: 0 | CN77: 0 | CO77: =ROUND(IF(G77=#REF!,(BE77-AY77)*40%,0),2) ->  | CP77: 427.1895 | CQ77: 0 | CS77: =ROUND(IF($D77=#REF!,$BE77-SUM(BJ77:CQ77,0),0),2) ->  | CT77: =ROUND(IF($D77=#REF!,$BE77-SUM(BJ77:CQ77,0),0),2) ->  | CU77: =ROUND(IF($G77=#REF!,$BE77-SUM(BK77:CR77,0),0),2) -> 
B78: 202081 | C78: 1120 | D78: بنك مصر 2 | E78: عبد الجواد عبد الفتاح عبد الجواد منصور | F78: 0 | G78: دوام كامل | H78: فنى | I78: الثانية | J78: الثانية | K78: ميكانيكى | L78: الاميرية | M78: 27312150102816 | N78: 202081عبد الجواد عبد الفتاح عبد الجواد منصورالثانيةالثانيةميكانيكىالاميرية | O78: نعم | P78: 1140.04 | Q78: 1333.8468 | R78: 0 | S78: 1800.69 | T78: 200.08 | U78: 0 | V78: 0 | W78: 0 | Y78: 200.07702 | Z78: 300 | AB78: 0 | AD78: 0 | AE78: 0 | AF78: 500.08 | AG78: 41.08 | AH78: 45.54 | AI78: 65 | AJ78: 0 | AK78: 190 | AL78: 22.79 | AM78: 40.64 | AN78: 52.18 | AO78: 74.45 | AP78: 79.16 | AQ78: 85.24 | AS78: 57.002 | AT78: 600 | AU78: 10 | AV78: 1363.08 | AW78: 10 | AX78: 0 | AY78: 240.0084 | AZ78: 0 | BB78: 0 | BC78: 5447.79 | BD78: 1552.21 | BE78: 7000 | BF78: 0 | BG78: 0 | BJ78: 565.604585 | BK78: 0 | BL78: 0 | BM78: 0 | BN78: =IF(Sheet1!$BH78=1,Sheet1!$S78*20%,IF(Sheet1!$BH78=2,Sheet1!$S78*100%,IF(Sheet1!$BH78>2,Sheet1!$S78*100%,""))) ->  | BO78: =IF(Sheet1!$BF78<=4,Sheet1!$S78*0,IF(Sheet1!$BF78=5,Sheet1!$S78*20%,IF(Sheet1!$BF78=6,Sheet1!$S78*40%,IF(Sheet1!$BF78=7,Sheet1!$S78*50%,IF(Sheet1!$BF78>7,Sheet1!$S78*100%,""))))) -> 0 | BP78: =IF(Sheet1!$BG78<=2,Sheet1!$S78*0,IF(Sheet1!$BG78=3,Sheet1!$S78*30%,IF(Sheet1!$BG78=4,Sheet1!$S78*40%,IF(Sheet1!$BG78=5,Sheet1!$S78*50%,IF(Sheet1!$BG78>5,Sheet1!$S78*100%,""))))) -> 0 | BQ78: 0 | BR78: 0 | BT78: 3 | BU78: 0 | BX78: 0 | CC78: 0 | CE78: 0 | CG78: 2.59 | CH78: 3 | CI78: 0 | CL78: 0 | CN78: 0 | CO78: =ROUND(IF(G78=#REF!,(BE78-AY78)*40%,0),2) ->  | CP78: 240.0084 | CQ78: 0 | CS78: =ROUND(IF($D78=#REF!,$BE78-SUM(BJ78:CQ78,0),0),2) ->  | CT78: =ROUND(IF($D78=#REF!,$BE78-SUM(BJ78:CQ78,0),0),2) ->  | CU78: =ROUND(IF($G78=#REF!,$BE78-SUM(BK78:CR78,0),0),2) -> 
B79: 202082 | C79: 1128 | D79: بنك مصر 2 | E79: ابراهيم محمد عبد الحميد علي | F79: 0 | G79: دوام كامل | H79: فنى | I79: الثانية | J79: الثانية | K79: ميكانيكى | L79: القاهرة | M79: 27512250103355 | N79: 202082ابراهيم محمد عبد الحميد عليالثانيةالثانيةميكانيكىالقاهرة | O79: نعم | P79: 1879.01 | Q79: 2198.4417 | R79: 0 | S79: 2967.9 | T79: 329.77 | U79: 0 | V79: 0 | W79: 0 | Y79: 329.766255 | Z79: 300 | AB79: 0 | AD79: 0 | AE79: 0 | AF79: 629.77 | AG79: 62.21 | AH79: 69.28 | AI79: 83.14 | AJ79: 0 | AK79: 190 | AL79: 37.56 | AM79: 66.99 | AN79: 86.01 | AO79: 122.71 | AP79: 131.3 | AQ79: 140.49 | AS79: 93.9505 | AT79: 600 | AU79: 8 | AV79: 1691.64 | AW79: 10 | AX79: 0 | AY79: 395.5811 | AZ79: 0 | BB79: 30 | BC79: 8223.1 | BD79: 0 | BE79: 8253.1 | BF79: 0 | BG79: 0 | BJ79: 732.2766064 | BK79: 0.00 | BL79: 0 | BM79: 0 | BN79: =IF(Sheet1!$BH79=1,Sheet1!$S79*20%,IF(Sheet1!$BH79=2,Sheet1!$S79*100%,IF(Sheet1!$BH79>2,Sheet1!$S79*100%,""))) ->  | BO79: =IF(Sheet1!$BF79<=4,Sheet1!$S79*0,IF(Sheet1!$BF79=5,Sheet1!$S79*20%,IF(Sheet1!$BF79=6,Sheet1!$S79*40%,IF(Sheet1!$BF79=7,Sheet1!$S79*50%,IF(Sheet1!$BF79>7,Sheet1!$S79*100%,""))))) -> 0 | BP79: =IF(Sheet1!$BG79<=2,Sheet1!$S79*0,IF(Sheet1!$BG79=3,Sheet1!$S79*30%,IF(Sheet1!$BG79=4,Sheet1!$S79*40%,IF(Sheet1!$BG79=5,Sheet1!$S79*50%,IF(Sheet1!$BG79>5,Sheet1!$S79*100%,""))))) -> 0 | BQ79: 0 | BR79: 0 | BT79: 3 | BU79: 0 | BX79: 0 | CC79: 0 | CE79: 0 | CG79: 3.14 | CH79: 3 | CI79: 0 | CL79: 0 | CN79: 0 | CO79: =ROUND(IF(G79=#REF!,(BE79-AY79)*40%,0),2) ->  | CP79: 395.5811 | CQ79: 0 | CS79: =ROUND(IF($D79=#REF!,$BE79-SUM(BJ79:CQ79,0),0),2) ->  | CT79: =ROUND(IF($D79=#REF!,$BE79-SUM(BJ79:CQ79,0),0),2) ->  | CU79: =ROUND(IF($G79=#REF!,$BE79-SUM(BK79:CR79,0),0),2) -> 
B80: 202083 | C80: 1160 | D80: بنك مصر 2 | E80: حلمي محمد عبد المجيد عبد الرحيم | F80: 0 | G80: دوام كامل | H80: فنى | I80: الثانية | J80: الثانية | K80: ميكانيكى | L80: الورش | M80: 27503210102632 | N80: 202083حلمي محمد عبد المجيد عبد الرحيمالثانيةالثانيةميكانيكىالورش | O80: نعم | P80: 1879.01 | Q80: 2198.4417 | R80: 0 | S80: 2967.9 | T80: 329.77 | U80: 0 | V80: 0 | W80: 0 | Y80: 329.766255 | Z80: 300 | AB80: 0 | AD80: 0 | AE80: 0 | AF80: 629.77 | AG80: 62.21 | AH80: 69.25 | AI80: 83.14 | AJ80: 0 | AK80: 190 | AL80: 37.56 | AM80: 66.99 | AN80: 86.01 | AO80: 122.71 | AP80: 131.3 | AQ80: 140.49 | AS80: 93.9505 | AT80: 600 | AU80: 10 | AV80: 1693.61 | AW80: 10 | AX80: 0 | AY80: 395.5811 | AZ80: 0 | BB80: 90 | BC80: 8225.07 | BD80: 0 | BE80: 8315.07 | BF80: 0 | BG80: 0 | BJ80: 732.502085 | BK80: 0 | BL80: 0 | BM80: 0 | BN80: =IF(Sheet1!$BH80=1,Sheet1!$S80*20%,IF(Sheet1!$BH80=2,Sheet1!$S80*100%,IF(Sheet1!$BH80>2,Sheet1!$S80*100%,""))) ->  | BO80: =IF(Sheet1!$BF80<=4,Sheet1!$S80*0,IF(Sheet1!$BF80=5,Sheet1!$S80*20%,IF(Sheet1!$BF80=6,Sheet1!$S80*40%,IF(Sheet1!$BF80=7,Sheet1!$S80*50%,IF(Sheet1!$BF80>7,Sheet1!$S80*100%,""))))) -> 0 | BP80: =IF(Sheet1!$BG80<=2,Sheet1!$S80*0,IF(Sheet1!$BG80=3,Sheet1!$S80*30%,IF(Sheet1!$BG80=4,Sheet1!$S80*40%,IF(Sheet1!$BG80=5,Sheet1!$S80*50%,IF(Sheet1!$BG80>5,Sheet1!$S80*100%,""))))) -> 0 | BQ80: 0 | BR80: 0 | BT80: 3 | BU80: 0 | BX80: 0 | CC80: 0 | CE80: 0 | CG80: 3.14 | CH80: 3 | CI80: 0 | CL80: 0 | CN80: 0 | CO80: =ROUND(IF(G80=#REF!,(BE80-AY80)*40%,0),2) ->  | CP80: 395.5811 | CQ80: 0 | CS80: =ROUND(IF($D80=#REF!,$BE80-SUM(BJ80:CQ80,0),0),2) ->  | CT80: =ROUND(IF($D80=#REF!,$BE80-SUM(BJ80:CQ80,0),0),2) ->  | CU80: =ROUND(IF($G80=#REF!,$BE80-SUM(BK80:CR80,0),0),2) -> 
B81: 202084 | C81: 1157 | D81: بنك مصر 2 | E81: طه حسين حسن محمد | F81: 0 | G81: دوام كامل | H81: فنى | I81: الثالثة | J81: الثالثة | K81: حرفى ميكانيكى | L81: الادارة العامة بالورش المركزية | M81: 27203161401099 | N81: 202084طه حسين حسن محمدالثالثةالثالثةحرفى ميكانيكىالادارة العامة بالورش المركزية | O81: نعم | P81: 1092.43 | Q81: 1278.1431 | R81: 0 | S81: 1725.49 | T81: 191.72 | U81: 0 | V81: 0 | W81: 0 | Y81: 191.721465 | Z81: 300 | AB81: 0 | AD81: 0 | AE81: 0 | AF81: 491.72 | AG81: 38.89 | AH81: 43.11 | AI81: 65 | AJ81: 0 | AK81: 200 | AL81: 24.04 | AM81: 38.94 | AN81: 50 | AO81: 71.34 | AP81: 76.34 | AQ81: 81.68 | AS81: 54.6215 | AT81: 600 | AU81: 10 | AV81: 1353.96 | AW81: 10 | AX81: 0 | AY81: 229.9853 | AZ81: 0 | BB81: 30 | BC81: 5281.02 | BD81: 1718.98 | BE81: 7030 | BF81: 0 | BG81: 0 | BJ81: 568.519585 | BK81: 0 | BL81: 0 | BM81: 0 | BN81: =IF(Sheet1!$BH81=1,Sheet1!$S81*20%,IF(Sheet1!$BH81=2,Sheet1!$S81*100%,IF(Sheet1!$BH81>2,Sheet1!$S81*100%,""))) ->  | BO81: =IF(Sheet1!$BF81<=4,Sheet1!$S81*0,IF(Sheet1!$BF81=5,Sheet1!$S81*20%,IF(Sheet1!$BF81=6,Sheet1!$S81*40%,IF(Sheet1!$BF81=7,Sheet1!$S81*50%,IF(Sheet1!$BF81>7,Sheet1!$S81*100%,""))))) -> 0 | BP81: =IF(Sheet1!$BG81<=2,Sheet1!$S81*0,IF(Sheet1!$BG81=3,Sheet1!$S81*30%,IF(Sheet1!$BG81=4,Sheet1!$S81*40%,IF(Sheet1!$BG81=5,Sheet1!$S81*50%,IF(Sheet1!$BG81>5,Sheet1!$S81*100%,""))))) -> 0 | BQ81: 0 | BR81: 0 | BT81: 3 | BU81: 0 | BX81: 0 | CC81: 0 | CE81: 0 | CG81: 2.63 | CH81: 3 | CI81: 0 | CL81: 0 | CN81: 0 | CO81: =ROUND(IF(G81=#REF!,(BE81-AY81)*40%,0),2) ->  | CP81: 229.9853 | CQ81: 0 | CS81: =ROUND(IF($D81=#REF!,$BE81-SUM(BJ81:CQ81,0),0),2) ->  | CT81: =ROUND(IF($D81=#REF!,$BE81-SUM(BJ81:CQ81,0),0),2) ->  | CU81: =ROUND(IF($G81=#REF!,$BE81-SUM(BK81:CR81,0),0),2) -> 
B82: 202085 | C82: 1135 | D82: بنك مصر 2 | E82: شعبان عطية عبده ابو النور | F82: 0 | G82: دوام كامل | H82: فنى | I82: الثالثة | J82: الثالثة | K82: حرفى عامل كاوتش | L82: الادارة العامة بالورش المركزية | M82: 26811041700536 | N82: 202085شعبان عطية عبده ابو النورالثالثةالثالثةحرفى عامل كاوتشالادارة العامة بالورش المركزية | O82: نعم | P82: 1092.43 | Q82: 1278.1431 | R82: 0 | S82: 1725.49 | T82: 191.72 | U82: 0 | V82: 0 | W82: 0 | Y82: 191.721465 | Z82: 300 | AB82: 0 | AD82: 0 | AE82: 0 | AF82: 491.72 | AG82: 38.89 | AH82: 43.11 | AI82: 65 | AJ82: 0 | AK82: 200 | AL82: 24.04 | AM82: 38.94 | AN82: 50 | AO82: 71.34 | AP82: 76.33 | AQ82: 81.68 | AS82: 54.6215 | AT82: 600 | AU82: 10 | AV82: 1353.95 | AW82: 10 | AX82: 0 | AY82: 229.9853 | AZ82: 0 | BB82: 180 | BC82: 5281.01 | BD82: 1718.99 | BE82: 7180 | BF82: 0 | BG82: 0 | BJ82: 568.0092236 | BK82: 0 | BL82: 0 | BM82: 0 | BN82: =IF(Sheet1!$BH82=1,Sheet1!$S82*20%,IF(Sheet1!$BH82=2,Sheet1!$S82*100%,IF(Sheet1!$BH82>2,Sheet1!$S82*100%,""))) ->  | BO82: =IF(Sheet1!$BF82<=4,Sheet1!$S82*0,IF(Sheet1!$BF82=5,Sheet1!$S82*20%,IF(Sheet1!$BF82=6,Sheet1!$S82*40%,IF(Sheet1!$BF82=7,Sheet1!$S82*50%,IF(Sheet1!$BF82>7,Sheet1!$S82*100%,""))))) -> 0 | BP82: =IF(Sheet1!$BG82<=2,Sheet1!$S82*0,IF(Sheet1!$BG82=3,Sheet1!$S82*30%,IF(Sheet1!$BG82=4,Sheet1!$S82*40%,IF(Sheet1!$BG82=5,Sheet1!$S82*50%,IF(Sheet1!$BG82>5,Sheet1!$S82*100%,""))))) -> 0 | BQ82: 0 | BR82: 0 | BT82: 3 | BU82: 0 | BX82: 0 | CC82: 0 | CE82: 0 | CG82: 2.63 | CH82: 3 | CI82: 0 | CL82: 0 | CN82: 0 | CO82: =ROUND(IF(G82=#REF!,(BE82-AY82)*40%,0),2) ->  | CP82: 229.9853 | CQ82: 0 | CS82: =ROUND(IF($D82=#REF!,$BE82-SUM(BJ82:CQ82,0),0),2) ->  | CT82: =ROUND(IF($D82=#REF!,$BE82-SUM(BJ82:CQ82,0),0),2) ->  | CU82: =ROUND(IF($G82=#REF!,$BE82-SUM(BK82:CR82,0),0),2) -> 
B83: 202086 | C83: 1122 | D83: بنك مصر 2 | E83: مصطفى حميدة محمد مازن | F83: 0 | G83: دوام كامل | H83: فنى | I83: الثانية | J83: الثانية | K83: فني لحام | L83: الاميرية | M83: 28101011711932 | N83: 202086مصطفى حميدة محمد مازن الثانيةالثانيةفني لحام الاميرية | O83: نعم | P83: 1137.36 | Q83: 1330.7112 | R83: 0 | S83: 1796.46 | T83: 199.61 | U83: 0 | V83: 0 | W83: 0 | Y83: 199.60668 | Z83: 300 | AB83: 0 | AD83: 0 | AE83: 0 | AF83: 499.61 | AG83: 40.02 | AH83: 45.02 | AI83: 65 | AJ83: 0 | AK83: 190 | AL83: 22.74 | AM83: 40.55 | AN83: 52.06 | AO83: 74.27 | AP83: 79.47 | AQ83: 85.04 | AS83: 56.868 | AT83: 600 | AU83: 10 | AV83: 1361.04 | AW83: 10 | AX83: 0 | AY83: 239.4442 | AZ83: 0 | BB83: 30 | BC83: 5436.88 | BD83: 1563.12 | BE83: 7030 | BF83: 0 | BG83: 0 | BJ83: 566.3085742 | BK83: 0 | BL83: 0 | BM83: 0 | BN83: =IF(Sheet1!$BH83=1,Sheet1!$S83*20%,IF(Sheet1!$BH83=2,Sheet1!$S83*100%,IF(Sheet1!$BH83>2,Sheet1!$S83*100%,""))) ->  | BO83: =IF(Sheet1!$BF83<=4,Sheet1!$S83*0,IF(Sheet1!$BF83=5,Sheet1!$S83*20%,IF(Sheet1!$BF83=6,Sheet1!$S83*40%,IF(Sheet1!$BF83=7,Sheet1!$S83*50%,IF(Sheet1!$BF83>7,Sheet1!$S83*100%,""))))) -> 0 | BP83: =IF(Sheet1!$BG83<=2,Sheet1!$S83*0,IF(Sheet1!$BG83=3,Sheet1!$S83*30%,IF(Sheet1!$BG83=4,Sheet1!$S83*40%,IF(Sheet1!$BG83=5,Sheet1!$S83*50%,IF(Sheet1!$BG83>5,Sheet1!$S83*100%,""))))) -> 0 | BQ83: 0 | BR83: 0 | BT83: 3 | BU83: 0 | BX83: 0 | CC83: 0 | CE83: 0 | CG83: 2.6 | CH83: 3 | CI83: 0 | CL83: 0 | CN83: 0 | CO83: =ROUND(IF(G83=#REF!,(BE83-AY83)*40%,0),2) ->  | CP83: 239.4442 | CQ83: 0 | CS83: =ROUND(IF($D83=#REF!,$BE83-SUM(BJ83:CQ83,0),0),2) ->  | CT83: =ROUND(IF($D83=#REF!,$BE83-SUM(BJ83:CQ83,0),0),2) ->  | CU83: =ROUND(IF($G83=#REF!,$BE83-SUM(BK83:CR83,0),0),2) -> 
B84: 202088 | C84: 1129 | D84: بنك مصر 2 | E84: احمد حنفي محمود عبد الرازق | F84: 0 | G84: دوام كامل | H84: فنى | I84: الثانية | J84: الثانية | K84: ميكانيكى | L84: الاميرية | M84: 27502161401975 | N84: 202088احمد حنفي محمود عبد الرازقالثانيةالثانيةميكانيكىالاميرية | O84: نعم | P84: 1879.01 | Q84: 2198.4417 | R84: 0 | S84: 2967.9 | T84: 329.77 | U84: 0 | V84: 0 | W84: 0 | Y84: 329.766255 | Z84: 300 | AB84: 0 | AD84: 0 | AE84: 0 | AF84: 629.77 | AG84: 62.21 | AH84: 69.28 | AI84: 83.14 | AJ84: 0 | AK84: 190 | AL84: 37.56 | AM84: 66.99 | AN84: 86.01 | AO84: 122.71 | AP84: 131.3 | AQ84: 140.49 | AS84: 93.9505 | AT84: 600 | AU84: 8 | AV84: 1691.64 | AW84: 10 | AX84: 0 | AY84: 395.5811 | AZ84: 0 | BB84: 0 | BC84: 8223.1 | BD84: 0 | BE84: 8223.1 | BF84: 0 | BG84: 0 | BJ84: 716.057085 | BK84: 0 | BL84: 0 | BM84: 0 | BN84: =IF(Sheet1!$BH84=1,Sheet1!$S84*20%,IF(Sheet1!$BH84=2,Sheet1!$S84*100%,IF(Sheet1!$BH84>2,Sheet1!$S84*100%,""))) ->  | BO84: =IF(Sheet1!$BF84<=4,Sheet1!$S84*0,IF(Sheet1!$BF84=5,Sheet1!$S84*20%,IF(Sheet1!$BF84=6,Sheet1!$S84*40%,IF(Sheet1!$BF84=7,Sheet1!$S84*50%,IF(Sheet1!$BF84>7,Sheet1!$S84*100%,""))))) -> 0 | BP84: =IF(Sheet1!$BG84<=2,Sheet1!$S84*0,IF(Sheet1!$BG84=3,Sheet1!$S84*30%,IF(Sheet1!$BG84=4,Sheet1!$S84*40%,IF(Sheet1!$BG84=5,Sheet1!$S84*50%,IF(Sheet1!$BG84>5,Sheet1!$S84*100%,""))))) -> 0 | BQ84: 0 | BR84: 0 | BT84: 3 | BU84: 0 | BX84: 0 | CC84: 0 | CE84: 0 | CG84: 3.14 | CH84: 3 | CI84: 0 | CL84: 0 | CN84: 0 | CO84: =ROUND(IF(G84=#REF!,(BE84-AY84)*40%,0),2) ->  | CP84: 395.5811 | CQ84: 0 | CS84: =ROUND(IF($D84=#REF!,$BE84-SUM(BJ84:CQ84,0),0),2) ->  | CT84: =ROUND(IF($D84=#REF!,$BE84-SUM(BJ84:CQ84,0),0),2) ->  | CU84: =ROUND(IF($G84=#REF!,$BE84-SUM(BK84:CR84,0),0),2) -> 
B85: 202089 | C85: 31365 | D85: بنك مصر 1 | E85: احمد محمد عبد الفتاح ماجد | F85: 0 | G85: دوام كامل | H85: فنى | I85: عقد مؤقت | M85: 28312131700234 | N85: 202089احمد محمد عبد الفتاح ماجدعقد مؤقت | P85: 410.26 | Q85: 451.29 | R85: 0 | S85: 609.24 | T85: 67.69 | U85: 0 | V85: 0 | W85: 0 | Y85: 67.6935 | Z85: 300 | AB85: 0 | AD85: 0 | AE85: 0 | AF85: 367.69 | AG85: 28.79 | AH85: 30.29 | AI85: 65 | AJ85: 0 | AK85: 200 | AL85: 0 | AM85: 0 | AN85: 0 | AO85: 0 | AP85: 0 | AQ85: 0 | AS85: 0 | AT85: 600 | AU85: 10 | AV85: 934.08 | AW85: 10 | AX85: 0 | AY85: 86.37053 | AZ85: 0 | BB85: 390 | BC85: 2526.36 | BD85: 4473.64 | BE85: 7390 | BF85: 0 | BG85: 0 | BJ85: 581.8548828 | BK85: 0 | BL85: 0 | BM85: 0 | BN85: =IF(Sheet1!$BH85=1,Sheet1!$S85*20%,IF(Sheet1!$BH85=2,Sheet1!$S85*100%,IF(Sheet1!$BH85>2,Sheet1!$S85*100%,""))) ->  | BO85: =IF(Sheet1!$BF85<=4,Sheet1!$S85*0,IF(Sheet1!$BF85=5,Sheet1!$S85*20%,IF(Sheet1!$BF85=6,Sheet1!$S85*40%,IF(Sheet1!$BF85=7,Sheet1!$S85*50%,IF(Sheet1!$BF85>7,Sheet1!$S85*100%,""))))) -> 0 | BP85: =IF(Sheet1!$BG85<=2,Sheet1!$S85*0,IF(Sheet1!$BG85=3,Sheet1!$S85*30%,IF(Sheet1!$BG85=4,Sheet1!$S85*40%,IF(Sheet1!$BG85=5,Sheet1!$S85*50%,IF(Sheet1!$BG85>5,Sheet1!$S85*100%,""))))) -> 0 | BQ85: 0 | BR85: 0 | BT85: 3 | BU85: 0 | BX85: 0 | CC85: 0 | CE85: 0 | CG85: 2.52 | CH85: 3 | CI85: 0 | CL85: 0 | CN85: 0 | CO85: =ROUND(IF(G85=#REF!,(BE85-AY85)*40%,0),2) ->  | CP85: 86.37053 | CQ85: 0 | CS85: =ROUND(IF($D85=#REF!,$BE85-SUM(BJ85:CQ85,0),0),2) ->  | CT85: =ROUND(IF($D85=#REF!,$BE85-SUM(BJ85:CQ85,0),0),2) ->  | CU85: =ROUND(IF($G85=#REF!,$BE85-SUM(BK85:CR85,0),0),2) -> 
B86: 202091 | C86: 22150 | D86: بنك مصر 1 | E86: اشرف لطفى يونس محمد | F86: 0 | G86: دوام كامل | H86: فنى | I86: الرابعة | J86: الرابعة | K86: حرفى سمكرى | L86: الاميرية | M86: 27703111401554 | N86: 202091اشرف لطفى يونس محمدالرابعةالرابعةحرفى سمكرىالاميرية | O86: نعم | P86: 1059.88 | Q86: 1240.0596 | R86: 0 | S86: 1674.08 | T86: 186.01 | U86: 0 | V86: 0 | W86: 0 | Y86: 186.00894 | Z86: 300 | AB86: 0 | AC86: 0 | AD86: 0 | AE86: 0 | AF86: 486.01 | AG86: 35.33 | AH86: 39.36 | AI86: 65 | AJ86: 0 | AK86: 200 | AL86: 25.57 | AM86: 37.78 | AN86: 48.51 | AO86: 69.21 | AP86: 74.06 | AQ86: 80.66 | AS86: 52.994 | AT86: 600 | AU86: 10 | AV86: 1338.47 | AW86: 10 | AX86: 0 | AY86: 223.1326 | AZ86: 0 | BB86: 0 | BC86: 5157.76 | BD86: 1842.24 | BE86: 7000 | BF86: 0 | BG86: 0 | BJ86: 550 | BK86: 0 | BL86: 0 | BM86: 0 | BN86: =IF(Sheet1!$BH86=1,Sheet1!$S86*20%,IF(Sheet1!$BH86=2,Sheet1!$S86*100%,IF(Sheet1!$BH86>2,Sheet1!$S86*100%,""))) ->  | BO86: =IF(Sheet1!$BF86<=4,Sheet1!$S86*0,IF(Sheet1!$BF86=5,Sheet1!$S86*20%,IF(Sheet1!$BF86=6,Sheet1!$S86*40%,IF(Sheet1!$BF86=7,Sheet1!$S86*50%,IF(Sheet1!$BF86>7,Sheet1!$S86*100%,""))))) -> 0 | BP86: =IF(Sheet1!$BG86<=2,Sheet1!$S86*0,IF(Sheet1!$BG86=3,Sheet1!$S86*30%,IF(Sheet1!$BG86=4,Sheet1!$S86*40%,IF(Sheet1!$BG86=5,Sheet1!$S86*50%,IF(Sheet1!$BG86>5,Sheet1!$S86*100%,""))))) -> 0 | BQ86: 0 | BR86: 0 | BS86: 0 | BT86: 3 | BU86: 0 | BV86: 0 | BW86: 0 | BX86: 0 | BY86: 0 | BZ86: 0 | CA86: 0 | CC86: 0 | CD86: 0 | CE86: 0 | CF86: 0 | CG86: 3.01 | CH86: 3 | CI86: 0 | CK86: 0 | CL86: 0 | CN86: 0 | CO86: =ROUND(IF(G86=#REF!,(BE86-AY86)*40%,0),2) ->  | CP86: 223.1326 | CQ86: 0 | CS86: =ROUND(IF($D86=#REF!,$BE86-SUM(BJ86:CQ86,0),0),2) ->  | CT86: =ROUND(IF($D86=#REF!,$BE86-SUM(BJ86:CQ86,0),0),2) ->  | CU86: =ROUND(IF($G86=#REF!,$BE86-SUM(BK86:CR86,0),0),2) -> 
B87: 202092 | C87: 21734 | D87: بنك مصر 1 | E87: عبد الباقى عبد الموجود عبد الباقي | F87: 0 | G87: دوام كامل | H87: فنى | I87: الثالثة | J87: الثالثة | K87: حرفى سمكرى | L87: الاميرية | M87: 27408120100531 | N87: 202092عبد الباقى عبد الموجود عبد الباقيالثالثةالثالثةحرفى سمكرىالاميرية | O87: نعم | P87: 1900.5 | Q87: 2223.585 | R87: 0 | S87: 3001.84 | T87: 333.54 | U87: 0 | V87: 0 | W87: 0 | Y87: 333.53775 | Z87: 300 | AB87: 0 | AC87: 0 | AD87: 0 | AE87: 0 | AF87: 633.54 | AG87: 67.32 | AH87: 75.14 | AI87: 89.66 | AJ87: 0 | AK87: 200 | AL87: 37.99 | AM87: 67.75 | AN87: 86.99 | AO87: 124.11 | AP87: 132.8 | AQ87: 142.09 | AS87: 95.025 | AT87: 600 | AU87: 10 | AV87: 1728.88 | AW87: 10 | AX87: 0 | AY87: 400.1053 | AZ87: 0 | BB87: 30 | BC87: 8331.49 | BD87: 0 | BE87: 8361.49 | BF87: 0 | BG87: 0 | BJ87: 737 | BK87: 0 | BL87: 0 | BM87: 0 | BN87: =IF(Sheet1!$BH87=1,Sheet1!$S87*20%,IF(Sheet1!$BH87=2,Sheet1!$S87*100%,IF(Sheet1!$BH87>2,Sheet1!$S87*100%,""))) ->  | BO87: =IF(Sheet1!$BF87<=4,Sheet1!$S87*0,IF(Sheet1!$BF87=5,Sheet1!$S87*20%,IF(Sheet1!$BF87=6,Sheet1!$S87*40%,IF(Sheet1!$BF87=7,Sheet1!$S87*50%,IF(Sheet1!$BF87>7,Sheet1!$S87*100%,""))))) -> 0 | BP87: =IF(Sheet1!$BG87<=2,Sheet1!$S87*0,IF(Sheet1!$BG87=3,Sheet1!$S87*30%,IF(Sheet1!$BG87=4,Sheet1!$S87*40%,IF(Sheet1!$BG87=5,Sheet1!$S87*50%,IF(Sheet1!$BG87>5,Sheet1!$S87*100%,""))))) -> 0 | BQ87: 0 | BR87: 0 | BS87: 0 | BT87: 3 | BU87: 0 | BV87: 0 | BW87: 0 | BX87: 0 | BY87: 0 | BZ87: 0 | CA87: 0 | CC87: 0 | CD87: 0 | CE87: 0 | CF87: 0 | CG87: 3.26 | CH87: 3 | CI87: 0 | CK87: 0 | CL87: 0 | CN87: 0 | CO87: =ROUND(IF(G87=#REF!,(BE87-AY87)*40%,0),2) ->  | CP87: 400.1053 | CQ87: 0 | CS87: =ROUND(IF($D87=#REF!,$BE87-SUM(BJ87:CQ87,0),0),2) ->  | CT87: =ROUND(IF($D87=#REF!,$BE87-SUM(BJ87:CQ87,0),0),2) ->  | CU87: =ROUND(IF($G87=#REF!,$BE87-SUM(BK87:CR87,0),0),2) -> 
B88: 202094 | C88: 21266 | D88: بنك مصر 1 | E88: ممدوح عبد العزيز عبد الوهاب | F88: 0 | G88: دوام كامل | H88: فنى | I88: الثانية | J88: الثانية | K88: حداد | L88: الاميرية | M88: 26604020104512 | N88: 202094ممدوح عبد العزيز عبد الوهابالثانيةالثانيةحدادالاميرية | O88: نعم | P88: 2264.1 | Q88: 2648.997 | R88: 0 | S88: 3576.15 | T88: 397.35 | U88: 0 | V88: 0 | W88: 0 | Y88: 397.34955 | Z88: 300 | AB88: 0 | AC88: 0 | AD88: 0 | AE88: 0 | AF88: 697.35 | AG88: 74.91 | AH88: 83.64 | AI88: 107.23 | AJ88: 0 | AK88: 190 | AL88: 45.26 | AM88: 80.71 | AN88: 103.64 | AO88: 147.85 | AP88: 158.2 | AQ88: 169.28 | AS88: 113.205 | AT88: 600 | AU88: 4 | AV88: 1877.93 | AW88: 10 | AX88: 0 | AY88: 476.6526 | AZ88: 0 | BB88: 0 | BC88: 9684.43 | BD88: 0 | BE88: 9684.43 | BF88: 0 | BG88: 0 | BJ88: 858 | BK88: 91.33 | BL88: 0 | BM88: 0 | BN88: =IF(Sheet1!$BH88=1,Sheet1!$S88*20%,IF(Sheet1!$BH88=2,Sheet1!$S88*100%,IF(Sheet1!$BH88>2,Sheet1!$S88*100%,""))) ->  | BO88: =IF(Sheet1!$BF88<=4,Sheet1!$S88*0,IF(Sheet1!$BF88=5,Sheet1!$S88*20%,IF(Sheet1!$BF88=6,Sheet1!$S88*40%,IF(Sheet1!$BF88=7,Sheet1!$S88*50%,IF(Sheet1!$BF88>7,Sheet1!$S88*100%,""))))) -> 0 | BP88: =IF(Sheet1!$BG88<=2,Sheet1!$S88*0,IF(Sheet1!$BG88=3,Sheet1!$S88*30%,IF(Sheet1!$BG88=4,Sheet1!$S88*40%,IF(Sheet1!$BG88=5,Sheet1!$S88*50%,IF(Sheet1!$BG88>5,Sheet1!$S88*100%,""))))) -> 0 | BQ88: 0 | BR88: 0 | BS88: 0 | BT88: 3 | BU88: 0 | BV88: 0 | BW88: 0 | BX88: 0 | BY88: 0 | BZ88: 0 | CA88: 0 | CC88: 0 | CD88: 0 | CE88: 0 | CF88: 0 | CG88: 3.75 | CH88: 3 | CI88: 0 | CK88: 0 | CL88: 0 | CN88: 0 | CO88: =ROUND(IF(G88=#REF!,(BE88-AY88)*40%,0),2) ->  | CP88: 476.6526 | CQ88: 0 | CS88: =ROUND(IF($D88=#REF!,$BE88-SUM(BJ88:CQ88,0),0),2) ->  | CT88: =ROUND(IF($D88=#REF!,$BE88-SUM(BJ88:CQ88,0),0),2) ->  | CU88: =ROUND(IF($G88=#REF!,$BE88-SUM(BK88:CR88,0),0),2) -> 
B89: 202095 | C89: 21572 | D89: بنك مصر 1 | E89: مصطفي ابراهيم طلبة | F89: 0 | G89: دوام كامل | H89: فنى | I89: الثالثة | M89: 27304160102951 | N89: 202095مصطفي ابراهيم طلبةالثالثة | P89: 2063.44 | Q89: 2414.32 | R89: 0 | S89: 3259.33 | T89: 362.15 | U89: 0 | V89: 0 | W89: 0 | Y89: 362.148 | Z89: 300 | AB89: 0 | AC89: 0 | AD89: 0 | AE89: 0 | AF89: 662.15 | AG89: 67.78 | AH89: 75.65 | AI89: 90.99 | AJ89: 0 | AK89: 190 | AL89: 41.24 | AM89: 73.56 | AN89: 94.45 | AO89: 134.75 | AP89: 144.18 | AQ89: 154.28 | AS89: 103.172 | AT89: 600 | AU89: 10 | AV89: 1780.05 | AW89: 10 | AX89: 0 | AY89: 434.4084 | AZ89: 382.77 | BB89: 0 | BC89: 8922.41 | BD89: 0 | BE89: 9305.18 | BF89: 0 | BG89: 0 | BJ89: 781 | BK89: 10 | BL89: 0 | BM89: 0 | BN89: =IF(Sheet1!$BH89=1,Sheet1!$S89*20%,IF(Sheet1!$BH89=2,Sheet1!$S89*100%,IF(Sheet1!$BH89>2,Sheet1!$S89*100%,""))) ->  | BO89: =IF(Sheet1!$BF89<=4,Sheet1!$S89*0,IF(Sheet1!$BF89=5,Sheet1!$S89*20%,IF(Sheet1!$BF89=6,Sheet1!$S89*40%,IF(Sheet1!$BF89=7,Sheet1!$S89*50%,IF(Sheet1!$BF89>7,Sheet1!$S89*100%,""))))) -> 0 | BP89: =IF(Sheet1!$BG89<=2,Sheet1!$S89*0,IF(Sheet1!$BG89=3,Sheet1!$S89*30%,IF(Sheet1!$BG89=4,Sheet1!$S89*40%,IF(Sheet1!$BG89=5,Sheet1!$S89*50%,IF(Sheet1!$BG89>5,Sheet1!$S89*100%,""))))) -> 0 | BQ89: 42.28 | BR89: 0 | BS89: 0 | BT89: 3 | BU89: 0 | BV89: 0 | BW89: 0 | BX89: 0 | BY89: 0 | BZ89: 0 | CA89: 0 | CC89: 0 | CD89: 0 | CE89: 0 | CF89: 0 | CG89: 3.47 | CH89: 3 | CI89: 0 | CK89: 0 | CL89: 0 | CN89: 0 | CO89: =ROUND(IF(G89=#REF!,(BE89-AY89)*40%,0),2) ->  | CP89: 434.4084 | CQ89: 0 | CS89: =ROUND(IF($D89=#REF!,$BE89-SUM(BJ89:CQ89,0),0),2) ->  | CT89: =ROUND(IF($D89=#REF!,$BE89-SUM(BJ89:CQ89,0),0),2) ->  | CU89: =ROUND(IF($G89=#REF!,$BE89-SUM(BK89:CR89,0),0),2) -> 
B90: 202096 | C90: 22117 | D90: بنك مصر 1 | E90: اسماعيل حسين احمد محمود | F90: 0 | G90: دوام كامل | H90: فنى | I90: الثالثة | J90: الثالثة | K90: حرفى كهربائى | L90: الاميرية | M90: 27707200100776 | N90: 202096اسماعيل حسين احمد محمودالثالثةالثالثةحرفى كهربائىالاميرية | O90: نعم | P90: 1755.91 | Q90: 2054.4147 | R90: 0 | S90: 2773.46 | T90: 308.16 | U90: 0 | V90: 0 | W90: 0 | Y90: 308.162205 | Z90: 300 | AB90: 0 | AC90: 0 | AD90: 0 | AE90: 0 | AF90: 608.16 | AG90: 62.35 | AH90: 69.55 | AI90: 82.87 | AJ90: 0 | AK90: 200 | AL90: 35.1 | AM90: 62.6 | AN90: 80.37 | AO90: 114.67 | AP90: 122.69 | AQ90: 131.28 | AS90: 87.7955 | AT90: 600 | AU90: 10 | AV90: 1659.28 | AW90: 10 | AX90: 0 | AY90: 369.6653 | AZ90: 0 | BB90: 0 | BC90: 7783.14 | BD90: 0 | BE90: 7783.14 | BF90: 0 | BG90: 0 | BJ90: 682 | BK90: 0 | BL90: 0 | BM90: 0 | BN90: =IF(Sheet1!$BH90=1,Sheet1!$S90*20%,IF(Sheet1!$BH90=2,Sheet1!$S90*100%,IF(Sheet1!$BH90>2,Sheet1!$S90*100%,""))) ->  | BO90: =IF(Sheet1!$BF90<=4,Sheet1!$S90*0,IF(Sheet1!$BF90=5,Sheet1!$S90*20%,IF(Sheet1!$BF90=6,Sheet1!$S90*40%,IF(Sheet1!$BF90=7,Sheet1!$S90*50%,IF(Sheet1!$BF90>7,Sheet1!$S90*100%,""))))) -> 0 | BP90: =IF(Sheet1!$BG90<=2,Sheet1!$S90*0,IF(Sheet1!$BG90=3,Sheet1!$S90*30%,IF(Sheet1!$BG90=4,Sheet1!$S90*40%,IF(Sheet1!$BG90=5,Sheet1!$S90*50%,IF(Sheet1!$BG90>5,Sheet1!$S90*100%,""))))) -> 0 | BQ90: 0 | BR90: 0 | BS90: 0 | BT90: 3 | BU90: 0 | BV90: 0 | BW90: 0 | BX90: 0 | BY90: 0 | BZ90: 0 | CA90: 0 | CC90: 0 | CD90: 0 | CE90: 0 | CF90: 0 | CG90: 3.06 | CH90: 3 | CI90: 0 | CK90: 0 | CL90: 0 | CN90: 0 | CO90: =ROUND(IF(G90=#REF!,(BE90-AY90)*40%,0),2) ->  | CP90: 369.6653 | CQ90: 0 | CS90: =ROUND(IF($D90=#REF!,$BE90-SUM(BJ90:CQ90,0),0),2) ->  | CT90: =ROUND(IF($D90=#REF!,$BE90-SUM(BJ90:CQ90,0),0),2) ->  | CU90: =ROUND(IF($G90=#REF!,$BE90-SUM(BK90:CR90,0),0),2) -> 
B91: 202097 | C91: 22088 | D91: بنك مصر 1 | E91: محمد فاروق عباس عبد الله | F91: 0 | G91: دوام كامل | H91: فنى | I91: الثالثة | J91: الثالثة | K91: حرفى كهربائى | L91: فرع سفاجا | M91: 27804052101631 | N91: 202097محمد فاروق عباس عبد اللهالثالثةالثالثةحرفى كهربائىفرع سفاجا | O91: نعم | P91: 1821.11 | Q91: 2130.6987 | R91: 0 | S91: 2876.44 | T91: 319.6 | U91: 0 | V91: 0 | W91: 0 | Y91: 319.604805 | Z91: 300 | AB91: 0 | AC91: 0 | AD91: 0 | AE91: 0 | AF91: 619.6 | AG91: 64.62 | AH91: 71.99 | AI91: 85.57 | AJ91: 0 | AK91: 200 | AL91: 36.4 | AM91: 64.92 | AN91: 83.36 | AO91: 118.93 | AP91: 127.25 | AQ91: 136.16 | AS91: 91.0555 | AT91: 600 | AU91: 10 | AV91: 1690.26 | AW91: 10 | AX91: 0 | AY91: 383.3916 | AZ91: 0 | BB91: 0 | BC91: 8029.99 | BD91: 0 | BE91: 8029.99 | BF91: 0 | BG91: 0 | BJ91: 704 | BK91: 0 | BL91: 0 | BM91: 0 | BN91: =IF(Sheet1!$BH91=1,Sheet1!$S91*20%,IF(Sheet1!$BH91=2,Sheet1!$S91*100%,IF(Sheet1!$BH91>2,Sheet1!$S91*100%,""))) ->  | BO91: =IF(Sheet1!$BF91<=4,Sheet1!$S91*0,IF(Sheet1!$BF91=5,Sheet1!$S91*20%,IF(Sheet1!$BF91=6,Sheet1!$S91*40%,IF(Sheet1!$BF91=7,Sheet1!$S91*50%,IF(Sheet1!$BF91>7,Sheet1!$S91*100%,""))))) -> 0 | BP91: =IF(Sheet1!$BG91<=2,Sheet1!$S91*0,IF(Sheet1!$BG91=3,Sheet1!$S91*30%,IF(Sheet1!$BG91=4,Sheet1!$S91*40%,IF(Sheet1!$BG91=5,Sheet1!$S91*50%,IF(Sheet1!$BG91>5,Sheet1!$S91*100%,""))))) -> 0 | BQ91: 0 | BR91: 0 | BS91: 0 | BT91: 3 | BU91: 0 | BV91: 0 | BW91: 0 | BX91: 0 | BY91: 0 | BZ91: 0 | CA91: 0 | CC91: 0 | CD91: 0 | CE91: 0 | CF91: 0 | CG91: 3.15 | CH91: 3 | CI91: 0 | CK91: 0 | CL91: 0 | CN91: 0 | CO91: =ROUND(IF(G91=#REF!,(BE91-AY91)*40%,0),2) ->  | CP91: 383.3916 | CQ91: 0 | CS91: =ROUND(IF($D91=#REF!,$BE91-SUM(BJ91:CQ91,0),0),2) ->  | CT91: =ROUND(IF($D91=#REF!,$BE91-SUM(BJ91:CQ91,0),0),2) ->  | CU91: =ROUND(IF($G91=#REF!,$BE91-SUM(BK91:CR91,0),0),2) -> 
B92: 202099 | C92: 22102 | D92: بنك مصر 1 | E92: محمد محمود مصطفى عبد الله | F92: 0 | G92: دوام كامل | H92: فنى | I92: الاولى | J92: الأولى | K92: فنى حداد | L92: فرع جسر السويس | M92: 26612301700516 | N92: 202099محمد محمود مصطفى عبد الله الاولىالأولىفنى حدادفرع جسر السويس | O92: نعم | P92: 2129.48 | Q92: 2491.4916 | R92: 0 | S92: 3363.51 | T92: 373.72 | U92: 0 | V92: 0 | W92: 0 | Y92: 373.72374 | Z92: 300 | AB92: 0 | AC92: 0 | AD92: 0 | AE92: 0 | AF92: 673.72 | AG92: 69.93 | AH92: 78.06 | AI92: 93.9 | AJ92: 0 | AK92: 190 | AL92: 42.57 | AM92: 75.91 | AN92: 97.47 | AO92: 139.06 | AP92: 148.8 | AQ92: 159.21 | AS92: 106.474 | AT92: 600 | AU92: 10 | AV92: 1811.38 | AW92: 10 | AX92: 0 | AY92: 448.3116 | AZ92: 0 | BB92: 0 | BC92: 9172.13 | BD92: 0 | BE92: 9172.13 | BF92: 0 | BG92: 0 | BJ92: 803 | BK92: 25.75 | BL92: 0 | BM92: 0 | BN92: =IF(Sheet1!$BH92=1,Sheet1!$S92*20%,IF(Sheet1!$BH92=2,Sheet1!$S92*100%,IF(Sheet1!$BH92>2,Sheet1!$S92*100%,""))) ->  | BO92: =IF(Sheet1!$BF92<=4,Sheet1!$S92*0,IF(Sheet1!$BF92=5,Sheet1!$S92*20%,IF(Sheet1!$BF92=6,Sheet1!$S92*40%,IF(Sheet1!$BF92=7,Sheet1!$S92*50%,IF(Sheet1!$BF92>7,Sheet1!$S92*100%,""))))) -> 0 | BP92: =IF(Sheet1!$BG92<=2,Sheet1!$S92*0,IF(Sheet1!$BG92=3,Sheet1!$S92*30%,IF(Sheet1!$BG92=4,Sheet1!$S92*40%,IF(Sheet1!$BG92=5,Sheet1!$S92*50%,IF(Sheet1!$BG92>5,Sheet1!$S92*100%,""))))) -> 0 | BQ92: 0 | BR92: 0 | BS92: 0 | BT92: 3 | BU92: 0 | BV92: 0 | BW92: 0 | BX92: 0 | BY92: 0 | BZ92: 0 | CA92: 0 | CC92: 0 | CD92: 0 | CE92: 0 | CF92: 0 | CG92: 3.52 | CH92: 5 | CI92: 0 | CK92: 0 | CL92: 0 | CN92: 0 | CO92: =ROUND(IF(G92=#REF!,(BE92-AY92)*40%,0),2) ->  | CP92: 448.3116 | CQ92: 0 | CS92: =ROUND(IF($D92=#REF!,$BE92-SUM(BJ92:CQ92,0),0),2) ->  | CT92: =ROUND(IF($D92=#REF!,$BE92-SUM(BJ92:CQ92,0),0),2) ->  | CU92: =ROUND(IF($G92=#REF!,$BE92-SUM(BK92:CR92,0),0),2) -> 
B93: 202100 | C93: 22170 | D93: بنك مصر 1 | E93: عارف كامل عبد الرحمن احمد | F93: 0 | G93: دوام كامل | H93: فنى | I93: الرابعة | J93: الرابعة | K93: حرفى سروجى | L93: الاميرية | M93: 27301011404792 | N93: 202100عارف كامل عبد الرحمن احمدالرابعةالرابعةحرفى سروجىالاميرية | O93: نعم | P93: 1017.69 | Q93: 1190.6973 | R93: 0 | S93: 1607.44 | T93: 178.6 | U93: 0 | V93: 0 | W93: 0 | Y93: 178.604595 | Z93: 300 | AB93: 0 | AC93: 0 | AD93: 0 | AE93: 0 | AF93: 478.6 | AG93: 33.74 | AH93: 37.66 | AI93: 65 | AJ93: 0 | AK93: 200 | AL93: 27.53 | AM93: 36.28 | AN93: 46.58 | AO93: 66.46 | AP93: 71.11 | AQ93: 83.43 | AS93: 50.8845 | AT93: 600 | AU93: 10 | AV93: 1328.67 | AW93: 10 | AX93: 0 | AY93: 214.2505 | AZ93: 0 | BB93: 0 | BC93: 5008.26 | BD93: 1991.74 | BE93: 7000 | BF93: 0 | BG93: 0 | BJ93: 550 | BK93: 0 | BL93: 0 | BM93: 0 | BN93: =IF(Sheet1!$BH93=1,Sheet1!$S93*20%,IF(Sheet1!$BH93=2,Sheet1!$S93*100%,IF(Sheet1!$BH93>2,Sheet1!$S93*100%,""))) ->  | BO93: =IF(Sheet1!$BF93<=4,Sheet1!$S93*0,IF(Sheet1!$BF93=5,Sheet1!$S93*20%,IF(Sheet1!$BF93=6,Sheet1!$S93*40%,IF(Sheet1!$BF93=7,Sheet1!$S93*50%,IF(Sheet1!$BF93>7,Sheet1!$S93*100%,""))))) -> 0 | BP93: =IF(Sheet1!$BG93<=2,Sheet1!$S93*0,IF(Sheet1!$BG93=3,Sheet1!$S93*30%,IF(Sheet1!$BG93=4,Sheet1!$S93*40%,IF(Sheet1!$BG93=5,Sheet1!$S93*50%,IF(Sheet1!$BG93>5,Sheet1!$S93*100%,""))))) -> 0 | BQ93: 0 | BR93: 0 | BS93: 0 | BT93: 3 | BU93: 0 | BV93: 0 | BW93: 0 | BX93: 0 | BY93: 0 | BZ93: 0 | CA93: 0 | CC93: 0 | CD93: 0 | CE93: 0 | CF93: 0 | CG93: 3.02 | CH93: 3 | CI93: 0 | CK93: 0 | CL93: 0 | CN93: 0 | CO93: =ROUND(IF(G93=#REF!,(BE93-AY93)*40%,0),2) ->  | CP93: 214.2505 | CQ93: 0 | CS93: =ROUND(IF($D93=#REF!,$BE93-SUM(BJ93:CQ93,0),0),2) ->  | CT93: =ROUND(IF($D93=#REF!,$BE93-SUM(BJ93:CQ93,0),0),2) ->  | CU93: =ROUND(IF($G93=#REF!,$BE93-SUM(BK93:CR93,0),0),2) -> 
B94: 202102 | C94: 22089 | D94: بنك مصر 1 | E94: وائل سعيد عطية خلاف | F94: 0 | G94: دوام كامل | H94: فنى | I94: الثالثة | J94: الثالثة | K94: حرفى ميكانيكى | L94: الاميرية | M94: 27709060102938 | N94: 202102وائل سعيد عطية خلافالثالثةالثالثةحرفى ميكانيكى الاميرية | O94: نعم | P94: 1755.89 | Q94: 2333 | R94: 0 | S94: 3149.55 | T94: 349.95 | U94: 0 | V94: 0 | W94: 0 | Y94: 349.95 | Z94: 300 | AB94: 0 | AC94: 0 | AD94: 0 | AE94: 0 | AF94: 649.95 | AG94: 62.35 | AH94: 69.55 | AI94: 82.86 | AJ94: 0 | AK94: 200 | AL94: 35.1 | AM94: 62.59 | AN94: 80.37 | AO94: 114.67 | AP94: 122.69 | AQ94: 131.28 | AS94: 87.7945 | AT94: 600 | AU94: 10 | AV94: 1659.25 | AW94: 10 | AX94: 0 | AY94: 369.661 | AZ94: 0 | BB94: 0 | BC94: 8521.36 | BD94: 0 | BE94: 8521.36 | BF94: 0 | BG94: 0 | BJ94: 682 | BK94: 0 | BL94: 0 | BM94: 0 | BN94: =IF(Sheet1!$BH94=1,Sheet1!$S94*20%,IF(Sheet1!$BH94=2,Sheet1!$S94*100%,IF(Sheet1!$BH94>2,Sheet1!$S94*100%,""))) ->  | BO94: =IF(Sheet1!$BF94<=4,Sheet1!$S94*0,IF(Sheet1!$BF94=5,Sheet1!$S94*20%,IF(Sheet1!$BF94=6,Sheet1!$S94*40%,IF(Sheet1!$BF94=7,Sheet1!$S94*50%,IF(Sheet1!$BF94>7,Sheet1!$S94*100%,""))))) -> 0 | BP94: =IF(Sheet1!$BG94<=2,Sheet1!$S94*0,IF(Sheet1!$BG94=3,Sheet1!$S94*30%,IF(Sheet1!$BG94=4,Sheet1!$S94*40%,IF(Sheet1!$BG94=5,Sheet1!$S94*50%,IF(Sheet1!$BG94>5,Sheet1!$S94*100%,""))))) -> 0 | BQ94: 0 | BR94: 0 | BS94: 0 | BT94: 3 | BU94: 0 | BV94: 0 | BW94: 0 | BX94: 0 | BY94: 0 | BZ94: 0 | CA94: 0 | CC94: 0 | CD94: 0 | CE94: 0 | CF94: 0 | CG94: 3.06 | CH94: 3 | CI94: 0 | CK94: 0 | CL94: 0 | CN94: 0 | CO94: =ROUND(IF(G94=#REF!,(BE94-AY94)*40%,0),2) ->  | CP94: 369.661 | CQ94: 0 | CS94: =ROUND(IF($D94=#REF!,$BE94-SUM(BJ94:CQ94,0),0),2) ->  | CT94: =ROUND(IF($D94=#REF!,$BE94-SUM(BJ94:CQ94,0),0),2) ->  | CU94: =ROUND(IF($G94=#REF!,$BE94-SUM(BK94:CR94,0),0),2) -> 
B95: 202103 | C95: 21903 | D95: بنك مصر 1 | E95: هانى ابو الفتوح على مصطفى | F95: 0 | G95: دوام كامل | H95: فنى | I95: الثالثة | J95: الثالثة | K95: حرفى ميكانيكى | L95: الاسكندرية | M95: 27312070101118 | N95: 202103هانى ابو الفتوح على مصطفىالثالثةالثالثةحرفى ميكانيكى الاسكندرية | O95: نعم | P95: 1994.02 | Q95: 2333.0034 | R95: 0 | S95: 3149.55 | T95: 349.95 | U95: 0 | V95: 0 | W95: 0 | Y95: 349.95051 | Z95: 300 | AB95: 0 | AC95: 0 | AD95: 0 | AE95: 0 | AF95: 649.95 | AG95: 65.68 | AH95: 73.3 | AI95: 87.88 | AJ95: 0 | AK95: 200 | AL95: 39.86 | AM95: 71.09 | AN95: 91.27 | AO95: 130.22 | AP95: 139.33 | AQ95: 149.09 | AS95: 99.701 | AT95: 600 | AU95: 10 | AV95: 1757.42 | AW95: 10 | AX95: 0 | AY95: 419.7937 | AZ95: 0 | BB95: 0 | BC95: 8669.67 | BD95: 0 | BE95: 8669.67 | BF95: 0 | BG95: 0 | BJ95: 759 | BK95: 0 | BL95: 0 | BM95: 0 | BN95: =IF(Sheet1!$BH95=1,Sheet1!$S95*20%,IF(Sheet1!$BH95=2,Sheet1!$S95*100%,IF(Sheet1!$BH95>2,Sheet1!$S95*100%,""))) ->  | BO95: =IF(Sheet1!$BF95<=4,Sheet1!$S95*0,IF(Sheet1!$BF95=5,Sheet1!$S95*20%,IF(Sheet1!$BF95=6,Sheet1!$S95*40%,IF(Sheet1!$BF95=7,Sheet1!$S95*50%,IF(Sheet1!$BF95>7,Sheet1!$S95*100%,""))))) -> 0 | BP95: =IF(Sheet1!$BG95<=2,Sheet1!$S95*0,IF(Sheet1!$BG95=3,Sheet1!$S95*30%,IF(Sheet1!$BG95=4,Sheet1!$S95*40%,IF(Sheet1!$BG95=5,Sheet1!$S95*50%,IF(Sheet1!$BG95>5,Sheet1!$S95*100%,""))))) -> 0 | BQ95: 14.2 | BR95: 0 | BS95: 0 | BT95: 3 | BU95: 0 | BV95: 0 | BW95: 0 | BX95: 0 | BY95: 0 | BZ95: 0 | CA95: 0 | CC95: 0 | CD95: 0 | CE95: 0 | CF95: 0 | CG95: 3.06 | CH95: 3 | CI95: 0 | CK95: 0 | CL95: 0 | CN95: 0 | CO95: =ROUND(IF(G95=#REF!,(BE95-AY95)*40%,0),2) ->  | CP95: 419.7937 | CQ95: 0 | CS95: =ROUND(IF($D95=#REF!,$BE95-SUM(BJ95:CQ95,0),0),2) ->  | CT95: =ROUND(IF($D95=#REF!,$BE95-SUM(BJ95:CQ95,0),0),2) ->  | CU95: =ROUND(IF($G95=#REF!,$BE95-SUM(BK95:CR95,0),0),2) -> 
B96: 202104 | C96: 21346 | D96: بنك مصر 1 | E96: زينهم محمد زينهم عبد الواحد | F96: 0 | G96: دوام كامل | H96: فنى | I96: الرابعة | J96: الرابعة | K96: حرفى ميكانيكى | L96: الاميرية | M96: 27301011701615 | N96: 202104زينهم محمد زينهم عبد الواحدالرابعةالرابعةحرفى ميكانيكىالاميرية | O96: نعم | P96: 1981.13 | Q96: 2317.9221 | R96: 0 | S96: 3129.19 | T96: 347.69 | U96: 0 | V96: 0 | W96: 0 | Y96: 347.688315 | Z96: 300 | AB96: 0 | AC96: 0 | AD96: 0 | AE96: 0 | AF96: 647.69 | AG96: 70.33 | AH96: 78.44 | AI96: 93.51 | AJ96: 0 | AK96: 200 | AL96: 39.6 | AM96: 70.63 | AN96: 90.68 | AO96: 129.38 | AP96: 138.43 | AQ96: 148.12 | AS96: 99.0565 | AT96: 600 | AU96: 10 | AV96: 1768.18 | AW96: 10 | AX96: 0 | AY96: 417.08 | AZ96: 0 | BB96: 0 | BC96: 8637.75 | BD96: 0 | BE96: 8637.75 | BF96: 0 | BG96: 0 | BJ96: 759 | BK96: 0 | BL96: 0 | BM96: 0 | BN96: =IF(Sheet1!$BH96=1,Sheet1!$S96*20%,IF(Sheet1!$BH96=2,Sheet1!$S96*100%,IF(Sheet1!$BH96>2,Sheet1!$S96*100%,""))) ->  | BO96: =IF(Sheet1!$BF96<=4,Sheet1!$S96*0,IF(Sheet1!$BF96=5,Sheet1!$S96*20%,IF(Sheet1!$BF96=6,Sheet1!$S96*40%,IF(Sheet1!$BF96=7,Sheet1!$S96*50%,IF(Sheet1!$BF96>7,Sheet1!$S96*100%,""))))) -> 0 | BP96: =IF(Sheet1!$BG96<=2,Sheet1!$S96*0,IF(Sheet1!$BG96=3,Sheet1!$S96*30%,IF(Sheet1!$BG96=4,Sheet1!$S96*40%,IF(Sheet1!$BG96=5,Sheet1!$S96*50%,IF(Sheet1!$BG96>5,Sheet1!$S96*100%,""))))) -> 0 | BQ96: 77.94 | BR96: 0 | BS96: 0 | BT96: 3 | BU96: 0 | BV96: 0 | BW96: 0 | BX96: 0 | BY96: 0 | BZ96: 0 | CA96: 0 | CC96: 0 | CD96: 0 | CE96: 0 | CF96: 0 | CG96: 3.38 | CH96: 3 | CI96: 0 | CK96: 0 | CL96: 0 | CN96: 0 | CO96: =ROUND(IF(G96=#REF!,(BE96-AY96)*40%,0),2) ->  | CP96: 417.08 | CQ96: 0 | CS96: =ROUND(IF($D96=#REF!,$BE96-SUM(BJ96:CQ96,0),0),2) ->  | CT96: =ROUND(IF($D96=#REF!,$BE96-SUM(BJ96:CQ96,0),0),2) ->  | CU96: =ROUND(IF($G96=#REF!,$BE96-SUM(BK96:CR96,0),0),2) -> 
B97: 202107 | C97: 21714 | D97: بنك مصر 1 | E97: منصور عبده دوينى سيد احمد | F97: 0 | G97: دوام كامل | H97: فنى | I97: الثالثة | J97: الثالثة | K97: حرفى ميكانيكى | L97: حلون | M97: 27402250104939 | N97: 202107منصور عبده دوينى سيد احمدالثالثةالثالثةحرفى ميكانيكى حلون | O97: نعم | P97: 2005.79 | Q97: 2346.7743 | R97: 0 | S97: 3168.15 | T97: 352.02 | U97: 0 | V97: 0 | W97: 0 | Y97: 352.016145 | Z97: 300 | AB97: 0 | AC97: 0 | AD97: 0 | AE97: 0 | AF97: 652.02 | AG97: 66.43 | AH97: 74.15 | AI97: 94.97 | AJ97: 0 | AK97: 200 | AL97: 40.1 | AM97: 71.51 | AN97: 91.81 | AO97: 130.99 | AP97: 140.15 | AQ97: 149.97 | AS97: 100.2895 | AT97: 600 | AU97: 10 | AV97: 1770.37 | AW97: 10 | AX97: 0 | AY97: 422.2716 | AZ97: 0 | BB97: 0 | BC97: 8721.61 | BD97: 0 | BE97: 8721.61 | BF97: 0 | BG97: 0 | BJ97: 770 | BK97: 0 | BL97: 0 | BM97: 0 | BN97: =IF(Sheet1!$BH97=1,Sheet1!$S97*20%,IF(Sheet1!$BH97=2,Sheet1!$S97*100%,IF(Sheet1!$BH97>2,Sheet1!$S97*100%,""))) ->  | BO97: =IF(Sheet1!$BF97<=4,Sheet1!$S97*0,IF(Sheet1!$BF97=5,Sheet1!$S97*20%,IF(Sheet1!$BF97=6,Sheet1!$S97*40%,IF(Sheet1!$BF97=7,Sheet1!$S97*50%,IF(Sheet1!$BF97>7,Sheet1!$S97*100%,""))))) -> 0 | BP97: =IF(Sheet1!$BG97<=2,Sheet1!$S97*0,IF(Sheet1!$BG97=3,Sheet1!$S97*30%,IF(Sheet1!$BG97=4,Sheet1!$S97*40%,IF(Sheet1!$BG97=5,Sheet1!$S97*50%,IF(Sheet1!$BG97>5,Sheet1!$S97*100%,""))))) -> 0 | BQ97: 15.25 | BR97: 0 | BS97: 0 | BT97: 3 | BU97: 0 | BV97: 0 | BW97: 0 | BX97: 0 | BY97: 0 | BZ97: 0 | CA97: 0 | CC97: 0 | CD97: 0 | CE97: 0 | CF97: 0 | CG97: 3.42 | CH97: 3 | CI97: 0 | CK97: 0 | CL97: 0 | CN97: 0 | CO97: =ROUND(IF(G97=#REF!,(BE97-AY97)*40%,0),2) ->  | CP97: 422.2716 | CQ97: 0 | CS97: =ROUND(IF($D97=#REF!,$BE97-SUM(BJ97:CQ97,0),0),2) ->  | CT97: =ROUND(IF($D97=#REF!,$BE97-SUM(BJ97:CQ97,0),0),2) ->  | CU97: =ROUND(IF($G97=#REF!,$BE97-SUM(BK97:CR97,0),0),2) -> 
B98: 202108 | C98: 21080 | D98: بنك مصر 1 | E98: مصطفى عبد الغنى مصطفى ابو العلا | F98: 0 | G98: دوام كامل | H98: فنى | I98: الثانية | J98: الثانية | K98: ميكانيكى | L98: الاميرية | M98: 26910101700415 | N98: 202108مصطفى عبد الغنى مصطفى ابو العلاالثانيةالثانيةميكانيكىالاميرية | O98: نعم | P98: 2249.01 | Q98: 2631.3417 | R98: 0 | S98: 3552.31 | T98: 394.7 | U98: 0 | V98: 0 | W98: 0 | Y98: 394.701255 | Z98: 300 | AB98: 0 | AC98: 0 | AD98: 0 | AE98: 0 | AF98: 694.7 | AG98: 74.42 | AH98: 83.09 | AI98: 106.52 | AJ98: 0 | AK98: 190 | AL98: 44.95 | AM98: 80.17 | AN98: 102.95 | AO98: 146.87 | AP98: 157.15 | AQ98: 168.15 | AS98: 112.4505 | AT98: 600 | AU98: 8 | AV98: 1874.72 | AW98: 10 | AX98: 0 | AY98: 473.4758 | AZ98: 0 | BB98: 0 | BC98: 9631.25 | BD98: 0 | BE98: 9631.25 | BF98: 0 | BG98: 0 | BJ98: 847 | BK98: 90 | BL98: 0 | BM98: 0 | BN98: =IF(Sheet1!$BH98=1,Sheet1!$S98*20%,IF(Sheet1!$BH98=2,Sheet1!$S98*100%,IF(Sheet1!$BH98>2,Sheet1!$S98*100%,""))) ->  | BO98: =IF(Sheet1!$BF98<=4,Sheet1!$S98*0,IF(Sheet1!$BF98=5,Sheet1!$S98*20%,IF(Sheet1!$BF98=6,Sheet1!$S98*40%,IF(Sheet1!$BF98=7,Sheet1!$S98*50%,IF(Sheet1!$BF98>7,Sheet1!$S98*100%,""))))) -> 0 | BP98: =IF(Sheet1!$BG98<=2,Sheet1!$S98*0,IF(Sheet1!$BG98=3,Sheet1!$S98*30%,IF(Sheet1!$BG98=4,Sheet1!$S98*40%,IF(Sheet1!$BG98=5,Sheet1!$S98*50%,IF(Sheet1!$BG98>5,Sheet1!$S98*100%,""))))) -> 0 | BQ98: 0 | BR98: 0 | BS98: 0 | BT98: 3 | BU98: 0 | BV98: 0 | BW98: 0 | BX98: 0 | BY98: 0 | BZ98: 0 | CA98: 0 | CC98: 0 | CD98: 0 | CE98: 0 | CF98: 0 | CG98: 3.73 | CH98: 5 | CI98: 0 | CK98: 0 | CL98: 0 | CN98: 0 | CO98: =ROUND(IF(G98=#REF!,(BE98-AY98)*40%,0),2) ->  | CP98: 473.4758 | CQ98: 0 | CS98: =ROUND(IF($D98=#REF!,$BE98-SUM(BJ98:CQ98,0),0),2) ->  | CT98: =ROUND(IF($D98=#REF!,$BE98-SUM(BJ98:CQ98,0),0),2) ->  | CU98: =ROUND(IF($G98=#REF!,$BE98-SUM(BK98:CR98,0),0),2) -> 
B99: 202109 | C99: 21362 | D99: بنك مصر 1 | E99: فرج ابراهيم فرج ابراهيم | F99: 0 | G99: دوام كامل | H99: فنى | I99: الثالثة | M99: 27108030104517 | N99: 202109فرج ابراهيم فرج ابراهيمالثالثة | P99: 2210.91 | Q99: 2586.77 | R99: 0 | S99: 3492.14 | T99: 388.02 | U99: 0 | V99: 0 | W99: 0 | Y99: 388.0155 | Z99: 300 | AB99: 0 | AC99: 0 | AD99: 0 | AE99: 0 | AF99: 688.02 | AG99: 72.78 | AH99: 81.24 | AI99: 97.47 | AJ99: 0 | AK99: 190 | AL99: 44.2 | AM99: 78.82 | AN99: 101.2 | AO99: 144.38 | AP99: 154.49 | AQ99: 165.3 | AS99: 110.5455 | AT99: 600 | AU99: 10 | AV99: 1850.43 | AW99: 10 | AX99: 0 | AY99: 465.4547 | AZ99: 410.14 | BB99: 0 | BC99: 9480.83 | BD99: 0 | BE99: 9890.97 | BF99: 0 | BG99: 0 | BJ99: 836 | BK99: 31.83 | BL99: 0 | BM99: 0 | BN99: =IF(Sheet1!$BH99=1,Sheet1!$S99*20%,IF(Sheet1!$BH99=2,Sheet1!$S99*100%,IF(Sheet1!$BH99>2,Sheet1!$S99*100%,""))) ->  | BO99: =IF(Sheet1!$BF99<=4,Sheet1!$S99*0,IF(Sheet1!$BF99=5,Sheet1!$S99*20%,IF(Sheet1!$BF99=6,Sheet1!$S99*40%,IF(Sheet1!$BF99=7,Sheet1!$S99*50%,IF(Sheet1!$BF99>7,Sheet1!$S99*100%,""))))) -> 0 | BP99: =IF(Sheet1!$BG99<=2,Sheet1!$S99*0,IF(Sheet1!$BG99=3,Sheet1!$S99*30%,IF(Sheet1!$BG99=4,Sheet1!$S99*40%,IF(Sheet1!$BG99=5,Sheet1!$S99*50%,IF(Sheet1!$BG99>5,Sheet1!$S99*100%,""))))) -> 0 | BQ99: 0 | BR99: 0 | BS99: 0 | BT99: 3 | BU99: 0 | BV99: 0 | BW99: 0 | BX99: 0 | BY99: 0 | BZ99: 187.5 | CA99: 0 | CC99: 0 | CD99: 0 | CE99: 0 | CF99: 0 | CG99: 3.42 | CH99: 3 | CI99: 0 | CK99: 0 | CL99: 0 | CN99: 0 | CO99: =ROUND(IF(G99=#REF!,(BE99-AY99)*40%,0),2) ->  | CP99: 465.4547 | CQ99: 0 | CS99: =ROUND(IF($D99=#REF!,$BE99-SUM(BJ99:CQ99,0),0),2) ->  | CT99: =ROUND(IF($D99=#REF!,$BE99-SUM(BJ99:CQ99,0),0),2) ->  | CU99: =ROUND(IF($G99=#REF!,$BE99-SUM(BK99:CR99,0),0),2) -> 
B100: 202110 | C100: 21448 | D100: بنك مصر 1 | E100: محمد عبد اللطيف عبد المعطى بدوى | F100: 0 | G100: دوام كامل | H100: فنى | I100: الثانية | J100: الثانية | K100: ميكانيكى | L100: الاميرية | M100: 27209230103971 | N100: 202110محمد عبد اللطيف عبد المعطى بدوىالثانيةالثانيةميكانيكى الاميرية | O100: نعم | P100: 2155.48 | Q100: 2521.9116 | R100: 0 | S100: 3404.58 | T100: 378.29 | U100: 0 | V100: 0 | W100: 0 | Y100: 378.28674 | Z100: 300 | AB100: 0 | AC100: 0 | AD100: 0 | AE100: 0 | AF100: 678.29 | AG100: 71.34 | AH100: 79.65 | AI100: 102.07 | AJ100: 0 | AK100: 190 | AL100: 43.09 | AM100: 76.84 | AN100: 98.66 | AO100: 140.76 | AP100: 150.61 | AQ100: 161.16 | AS100: 107.774 | AT100: 600 | AU100: 10 | AV100: 1831.95 | AW100: 10 | AX100: 0 | AY100: 453.7852 | AZ100: 0 | BB100: 0 | BC100: 9278.81 | BD100: 0 | BE100: 9278.81 | BF100: 0 | BG100: 0 | BJ100: 814 | BK100: 33.17 | BL100: 0 | BM100: 0 | BN100: =IF(Sheet1!$BH100=1,Sheet1!$S100*20%,IF(Sheet1!$BH100=2,Sheet1!$S100*100%,IF(Sheet1!$BH100>2,Sheet1!$S100*100%,""))) ->  | BO100: =IF(Sheet1!$BF100<=4,Sheet1!$S100*0,IF(Sheet1!$BF100=5,Sheet1!$S100*20%,IF(Sheet1!$BF100=6,Sheet1!$S100*40%,IF(Sheet1!$BF100=7,Sheet1!$S100*50%,IF(Sheet1!$BF100>7,Sheet1!$S100*100%,""))))) -> 0 | BP100: =IF(Sheet1!$BG100<=2,Sheet1!$S100*0,IF(Sheet1!$BG100=3,Sheet1!$S100*30%,IF(Sheet1!$BG100=4,Sheet1!$S100*40%,IF(Sheet1!$BG100=5,Sheet1!$S100*50%,IF(Sheet1!$BG100>5,Sheet1!$S100*100%,""))))) -> 0 | BQ100: 0 | BR100: 0 | BS100: 0 | BT100: 3 | BU100: 0 | BV100: 0 | BW100: 0 | BX100: 0 | BY100: 0 | BZ100: 0 | CA100: 0 | CC100: 0 | CD100: 0 | CE100: 0 | CF100: 0 | CG100: 2.59 | CH100: 3 | CI100: 0 | CK100: 0 | CL100: 0 | CN100: 0 | CO100: =ROUND(IF(G100=#REF!,(BE100-AY100)*40%,0),2) ->  | CP100: 453.7852 | CQ100: 0 | CS100: =ROUND(IF($D100=#REF!,$BE100-SUM(BJ100:CQ100,0),0),2) ->  | CT100: =ROUND(IF($D100=#REF!,$BE100-SUM(BJ100:CQ100,0),0),2) ->  | CU100: =ROUND(IF($G100=#REF!,$BE100-SUM(BK100:CR100,0),0),2) -> 
B101: 202112 | C101: 22153 | D101: بنك مصر 1 | E101: سامح محمد حسين عبد النبى | F101: 0 | G101: دوام كامل | H101: فنى | I101: الرابعة | J101: الرابعة | K101: حرفى ميكانيكى | L101: الاميرية | M101: 28807200102858 | N101: 202112سامح محمد حسين عبد النبىالرابعةالرابعةحرفى ميكانيكىالاميرية | O101: نعم | P101: 1060 | Q101: 1240.2 | R101: 0 | S101: 1674.27 | T101: 186.03 | U101: 0 | V101: 0 | W101: 0 | Y101: 186.03 | Z101: 300 | AB101: 0 | AC101: 0 | AD101: 0 | AE101: 0 | AF101: 486.03 | AG101: 35.33 | AH101: 39.36 | AI101: 65 | AJ101: 0 | AK101: 200 | AL101: 25.56 | AM101: 37.78 | AN101: 48.52 | AO101: 69.22 | AP101: 74.06 | AQ101: 80.65 | AS101: 53 | AT101: 600 | AU101: 8 | AV101: 1336.48 | AW101: 10 | AX101: 0 | AY101: 223.1579 | AZ101: 0 | BB101: 30 | BC101: 5156.17 | BD101: 1843.83 | BE101: 7030 | BF101: 0 | BG101: 0 | BJ101: 550 | BK101: 0 | BL101: 0 | BM101: 0 | BN101: =IF(Sheet1!$BH101=1,Sheet1!$S101*20%,IF(Sheet1!$BH101=2,Sheet1!$S101*100%,IF(Sheet1!$BH101>2,Sheet1!$S101*100%,""))) ->  | BO101: =IF(Sheet1!$BF101<=4,Sheet1!$S101*0,IF(Sheet1!$BF101=5,Sheet1!$S101*20%,IF(Sheet1!$BF101=6,Sheet1!$S101*40%,IF(Sheet1!$BF101=7,Sheet1!$S101*50%,IF(Sheet1!$BF101>7,Sheet1!$S101*100%,""))))) -> 0 | BP101: =IF(Sheet1!$BG101<=2,Sheet1!$S101*0,IF(Sheet1!$BG101=3,Sheet1!$S101*30%,IF(Sheet1!$BG101=4,Sheet1!$S101*40%,IF(Sheet1!$BG101=5,Sheet1!$S101*50%,IF(Sheet1!$BG101>5,Sheet1!$S101*100%,""))))) -> 0 | BQ101: 0 | BR101: 0 | BS101: 0 | BT101: 3 | BU101: 0 | BV101: 0 | BW101: 0 | BX101: 0 | BY101: 0 | BZ101: 0 | CA101: 0 | CC101: 0 | CD101: 0 | CE101: 0 | CF101: 0 | CG101: 3.01 | CH101: 3 | CI101: 0 | CK101: 0 | CL101: 0 | CN101: 0 | CO101: =ROUND(IF(G101=#REF!,(BE101-AY101)*40%,0),2) ->  | CP101: 223.1579 | CQ101: 0 | CS101: =ROUND(IF($D101=#REF!,$BE101-SUM(BJ101:CQ101,0),0),2) ->  | CT101: =ROUND(IF($D101=#REF!,$BE101-SUM(BJ101:CQ101,0),0),2) ->  | CU101: =ROUND(IF($G101=#REF!,$BE101-SUM(BK101:CR101,0),0),2) -> 
B102: 202113 | C102: 21705 | D102: بنك مصر 1 | E102: اشرف عبد المحسن محمد متولى | F102: 0 | G102: دوام كامل | H102: فنى | I102: الثالثة | J102: الثالثة | K102: حرفى كهربائى | L102: الاميرية | M102: 27212201701472 | N102: 202113اشرف عبد المحسن محمد متولىالثالثةالثالثةحرفى كهربائىالاميرية | O102: نعم | P102: 1997.75 | Q102: 2337.3675 | R102: 0 | S102: 3155.45 | T102: 350.61 | U102: 0 | V102: 0 | W102: 0 | Y102: 350.605125 | Z102: 300 | AB102: 0 | AC102: 0 | AD102: 0 | AE102: 0 | AF102: 650.61 | AG102: 70.75 | AH102: 78.97 | AI102: 94.26 | AJ102: 0 | AK102: 200 | AL102: 39.93 | AM102: 71.21 | AN102: 91.44 | AO102: 130.46 | AP102: 139.59 | AQ102: 149.36 | AS102: 99.8875 | AT102: 600 | AU102: 10 | AV102: 1775.86 | AW102: 10 | AX102: 0 | AY102: 420.5789 | AZ102: 0 | BB102: 0 | BC102: 8700.48 | BD102: 0 | BE102: 8700.48 | BF102: 0 | BG102: 0 | BJ102: 770 | BK102: 0 | BL102: 0 | BM102: 0 | BN102: =IF(Sheet1!$BH102=1,Sheet1!$S102*20%,IF(Sheet1!$BH102=2,Sheet1!$S102*100%,IF(Sheet1!$BH102>2,Sheet1!$S102*100%,""))) ->  | BO102: =IF(Sheet1!$BF102<=4,Sheet1!$S102*0,IF(Sheet1!$BF102=5,Sheet1!$S102*20%,IF(Sheet1!$BF102=6,Sheet1!$S102*40%,IF(Sheet1!$BF102=7,Sheet1!$S102*50%,IF(Sheet1!$BF102>7,Sheet1!$S102*100%,""))))) -> 0 | BP102: =IF(Sheet1!$BG102<=2,Sheet1!$S102*0,IF(Sheet1!$BG102=3,Sheet1!$S102*30%,IF(Sheet1!$BG102=4,Sheet1!$S102*40%,IF(Sheet1!$BG102=5,Sheet1!$S102*50%,IF(Sheet1!$BG102>5,Sheet1!$S102*100%,""))))) -> 0 | BQ102: 4.52 | BR102: 0 | BS102: 0 | BT102: 3 | BU102: 1300 | BV102: 0 | BW102: 0 | BX102: 0 | BY102: 0 | BZ102: 0 | CA102: 0 | CC102: 0 | CD102: 0 | CE102: 0 | CF102: 0 | CG102: 3.37 | CH102: 3 | CI102: 0 | CK102: 0 | CL102: 0 | CN102: 0 | CO102: =ROUND(IF(G102=#REF!,(BE102-AY102)*40%,0),2) ->  | CP102: 420.5789 | CQ102: 0 | CS102: =ROUND(IF($D102=#REF!,$BE102-SUM(BJ102:CQ102,0),0),2) ->  | CT102: =ROUND(IF($D102=#REF!,$BE102-SUM(BJ102:CQ102,0),0),2) ->  | CU102: =ROUND(IF($G102=#REF!,$BE102-SUM(BK102:CR102,0),0),2) -> 
B103: 202114 | C103: 21978 | D103: بنك مصر 1 | E103: على حسن ذكى عبد الرحمن | F103: 0 | G103: دوام كامل | H103: فنى | I103: الاولى | J103: الأولى | K103: حرفى لحام اكسجين | L103: فرع الاميرية | M103: 26901201400894 | N103: 202114على حسن ذكى عبد الرحمنالاولىالأولىحرفى لحام اكسجينفرع الاميرية | O103: نعم | P103: 2312.92 | Q103: 2706.1164 | R103: 0 | S103: 3653.26 | T103: 405.92 | U103: 0 | V103: 0 | W103: 0 | Y103: 405.91746 | Z103: 300 | AB103: 0 | AC103: 0 | AD103: 0 | AE103: 0 | AF103: 705.92 | AG103: 75.74 | AH103: 84.82 | AI103: 102.04 | AJ103: 0 | AK103: 190 | AL103: 46.23 | AM103: 82.45 | AN103: 105.87 | AO103: 151.04 | AP103: 161.62 | AQ103: 172.93 | AS103: 115.646 | AT103: 600 | AU103: 10 | AV103: 1898.39 | AW103: 10 | AX103: 0 | AY103: 486.9305 | AZ103: 0 | BB103: 0 | BC103: 9866.54 | BD103: 0 | BE103: 9866.54 | BF103: 0 | BG103: 0 | BJ103: 869 | BK103: 106.17 | BL103: 0 | BM103: 0 | BN103: =IF(Sheet1!$BH103=1,Sheet1!$S103*20%,IF(Sheet1!$BH103=2,Sheet1!$S103*100%,IF(Sheet1!$BH103>2,Sheet1!$S103*100%,""))) ->  | BO103: =IF(Sheet1!$BF103<=4,Sheet1!$S103*0,IF(Sheet1!$BF103=5,Sheet1!$S103*20%,IF(Sheet1!$BF103=6,Sheet1!$S103*40%,IF(Sheet1!$BF103=7,Sheet1!$S103*50%,IF(Sheet1!$BF103>7,Sheet1!$S103*100%,""))))) -> 0 | BP103: =IF(Sheet1!$BG103<=2,Sheet1!$S103*0,IF(Sheet1!$BG103=3,Sheet1!$S103*30%,IF(Sheet1!$BG103=4,Sheet1!$S103*40%,IF(Sheet1!$BG103=5,Sheet1!$S103*50%,IF(Sheet1!$BG103>5,Sheet1!$S103*100%,""))))) -> 0 | BQ103: 0 | BR103: 0 | BS103: 0 | BT103: 3 | BU103: 0 | BV103: 0 | BW103: 0 | BX103: 0 | BY103: 0 | BZ103: 0 | CA103: 0 | CC103: 0 | CD103: 0 | CE103: 0 | CF103: 0 | CG103: 3.82 | CH103: 3 | CI103: 0 | CK103: 0 | CL103: 0 | CN103: 0 | CO103: =ROUND(IF(G103=#REF!,(BE103-AY103)*40%,0),2) ->  | CP103: 486.9305 | CQ103: 0 | CS103: =ROUND(IF($D103=#REF!,$BE103-SUM(BJ103:CQ103,0),0),2) ->  | CT103: =ROUND(IF($D103=#REF!,$BE103-SUM(BJ103:CQ103,0),0),2) ->  | CU103: =ROUND(IF($G103=#REF!,$BE103-SUM(BK103:CR103,0),0),2) -> 
B104: 202115 | C104: 21910 | D104: بنك مصر 1 | E104: عبد العليم سعد ابراهيم بليف | F104: 0 | G104: دوام كامل | H104: فنى | I104: الاولى | J104: الأولى | K104: فنى ميكانيكى سيارات | L104: فرع جسر السويس | M104: 26802021700697 | N104: 202115عبد العليم سعد ابراهيم بليفالاولىالأولىفنى ميكانيكى سياراتفرع جسر السويس | O104: نعم | P104: 2233.1 | Q104: 2612.727 | R104: 0 | S104: 3527.18 | T104: 391.91 | U104: 0 | V104: 0 | W104: 0 | Y104: 391.90905 | Z104: 300 | AB104: 0 | AC104: 0 | AD104: 0 | AE104: 0 | AF104: 691.91 | AG104: 73.27 | AH104: 82.02 | AI104: 98.55 | AJ104: 0 | AK104: 190 | AL104: 44.64 | AM104: 79.6 | AN104: 102.22 | AO104: 145.84 | AP104: 156.04 | AQ104: 166.96 | AS104: 111.655 | AT104: 600 | AU104: 10 | AV104: 1860.8 | AW104: 10 | AX104: 0 | AY104: 470.1263 | AZ104: 0 | BB104: 0 | BC104: 9564.65 | BD104: 0 | BE104: 9564.65 | BF104: 0 | BG104: 0 | BJ104: 847 | BK104: 33.25 | BL104: 0 | BM104: 0 | BN104: =IF(Sheet1!$BH104=1,Sheet1!$S104*20%,IF(Sheet1!$BH104=2,Sheet1!$S104*100%,IF(Sheet1!$BH104>2,Sheet1!$S104*100%,""))) ->  | BO104: =IF(Sheet1!$BF104<=4,Sheet1!$S104*0,IF(Sheet1!$BF104=5,Sheet1!$S104*20%,IF(Sheet1!$BF104=6,Sheet1!$S104*40%,IF(Sheet1!$BF104=7,Sheet1!$S104*50%,IF(Sheet1!$BF104>7,Sheet1!$S104*100%,""))))) -> 0 | BP104: =IF(Sheet1!$BG104<=2,Sheet1!$S104*0,IF(Sheet1!$BG104=3,Sheet1!$S104*30%,IF(Sheet1!$BG104=4,Sheet1!$S104*40%,IF(Sheet1!$BG104=5,Sheet1!$S104*50%,IF(Sheet1!$BG104>5,Sheet1!$S104*100%,""))))) -> 0 | BQ104: 0 | BR104: 0 | BS104: 0 | BT104: 3 | BU104: 0 | BV104: 0 | BW104: 0 | BX104: 0 | BY104: 0 | BZ104: 0 | CA104: 0 | CC104: 0 | CD104: 0 | CE104: 0 | CF104: 0 | CG104: 3.44 | CH104: 3 | CI104: 0 | CK104: 0 | CL104: 0 | CN104: 0 | CO104: =ROUND(IF(G104=#REF!,(BE104-AY104)*40%,0),2) ->  | CP104: 470.1263 | CQ104: 0 | CS104: =ROUND(IF($D104=#REF!,$BE104-SUM(BJ104:CQ104,0),0),2) ->  | CT104: =ROUND(IF($D104=#REF!,$BE104-SUM(BJ104:CQ104,0),0),2) ->  | CU104: =ROUND(IF($G104=#REF!,$BE104-SUM(BK104:CR104,0),0),2) -> 
B105: 202117 | C105: 1136 | D105: بنك مصر 2 | E105: احمد لبيب احمد الغول | F105: 0 | G105: دوام كامل | H105: فنى | I105: الرابعة | J105: الرابعة | K105: حرفى عامل كاوتش | L105: الاميرية | M105: 27709281700813 | N105: 202117احمد لبيب احمد الغولالرابعةالرابعةحرفى عامل كاوتشالاميرية | O105: نعم | P105: 862.29 | Q105: 1008.8793 | R105: 0 | S105: 1361.99 | T105: 151.33 | U105: 0 | V105: 0 | W105: 0 | Y105: 151.331895 | Z105: 300 | AB105: 0 | AD105: 0 | AE105: 0 | AF105: 451.33 | AG105: 28.79 | AH105: 32.31 | AI105: 65 | AJ105: 0 | AK105: 200 | AL105: 34.78 | AM105: 31.96 | AN105: 39.47 | AO105: 56.31 | AP105: 72.28 | AQ105: 93.59 | AS105: 63.771 | AT105: 600 | AU105: 10 | AV105: 1328.26 | AW105: 10 | AX105: 0 | AY105: 181.5347 | AZ105: 0 | BB105: 210 | BC105: 4493.32 | BD105: 2506.68 | BE105: 7210 | BF105: 0 | BG105: 0 | BJ105: 574.4244043 | BK105: 0 | BL105: 0 | BM105: 0 | BN105: =IF(Sheet1!$BH105=1,Sheet1!$S105*20%,IF(Sheet1!$BH105=2,Sheet1!$S105*100%,IF(Sheet1!$BH105>2,Sheet1!$S105*100%,""))) ->  | BO105: =IF(Sheet1!$BF105<=4,Sheet1!$S105*0,IF(Sheet1!$BF105=5,Sheet1!$S105*20%,IF(Sheet1!$BF105=6,Sheet1!$S105*40%,IF(Sheet1!$BF105=7,Sheet1!$S105*50%,IF(Sheet1!$BF105>7,Sheet1!$S105*100%,""))))) -> 0 | BP105: =IF(Sheet1!$BG105<=2,Sheet1!$S105*0,IF(Sheet1!$BG105=3,Sheet1!$S105*30%,IF(Sheet1!$BG105=4,Sheet1!$S105*40%,IF(Sheet1!$BG105=5,Sheet1!$S105*50%,IF(Sheet1!$BG105>5,Sheet1!$S105*100%,""))))) -> 0 | BQ105: 0 | BR105: 0 | BT105: 3 | BU105: 0 | BX105: 0 | CC105: 0 | CE105: 0 | CG105: 3 | CH105: 3 | CI105: 0 | CL105: 0 | CN105: 0 | CO105: =ROUND(IF(G105=#REF!,(BE105-AY105)*40%,0),2) ->  | CP105: 181.5347 | CQ105: 0 | CS105: =ROUND(IF($D105=#REF!,$BE105-SUM(BJ105:CQ105,0),0),2) ->  | CT105: =ROUND(IF($D105=#REF!,$BE105-SUM(BJ105:CQ105,0),0),2) ->  | CU105: =ROUND(IF($G105=#REF!,$BE105-SUM(BK105:CR105,0),0),2) -> 
B106: 202120 | C106: 4388 | D106: بنك مصر 1 | E106: هشام مجدي عبدالحميد حافظ | F106: مروه | G106: دوام كامل | H106: ادارى | I106: الثالثة | J106: الثالثة | K106: خراط | L106: الاميرية | M106: 28902011405435 | N106: 202120هشام مجدي عبدالحميد حافظمروه الثالثةالثالثةخراطالاميرية | O106: نعم | P106: 905.04 | Q106: 1058.8968 | R106: 0 | S106: 1429.51 | T106: 158.83 | U106: 0 | V106: 0 | W106: 0 | Y106: 0 | Z106: 300 | AB106: 0 | AD106: 0 | AE106: 0 | AF106: 300 | AG106: 0 | AH106: 0 | AI106: 0 | AJ106: 340.07 | AK106: 0 | AL106: 32.79 | AM106: 32.26 | AN106: 41.43 | AO106: 59.1 | AP106: 69.67 | AQ106: 90.79 | AS106: 59.496 | AT106: 600 | AU106: 8 | AV106: 1333.61 | AW106: 10 | AX106: 0 | AY106: 190.5347 | AZ106: 0 | BB106: 0 | BC106: 4481.38 | BD106: 2518.62 | BE106: 7000 | BF106: 0 | BG106: 0 | BJ106: 522.7266064 | BK106: 0 | BL106: 0 | BM106: 0 | BN106: =IF(Sheet1!$BH106=1,Sheet1!$S106*20%,IF(Sheet1!$BH106=2,Sheet1!$S106*100%,IF(Sheet1!$BH106>2,Sheet1!$S106*100%,""))) ->  | BO106: =IF(Sheet1!$BF106<=4,Sheet1!$S106*0,IF(Sheet1!$BF106=5,Sheet1!$S106*20%,IF(Sheet1!$BF106=6,Sheet1!$S106*40%,IF(Sheet1!$BF106=7,Sheet1!$S106*50%,IF(Sheet1!$BF106>7,Sheet1!$S106*100%,""))))) -> 0 | BP106: =IF(Sheet1!$BG106<=2,Sheet1!$S106*0,IF(Sheet1!$BG106=3,Sheet1!$S106*30%,IF(Sheet1!$BG106=4,Sheet1!$S106*40%,IF(Sheet1!$BG106=5,Sheet1!$S106*50%,IF(Sheet1!$BG106>5,Sheet1!$S106*100%,""))))) -> 0 | BQ106: 0 | BR106: 0 | BT106: 3 | BU106: 0 | BX106: 0 | CB106: 1571.68 | CC106: 0 | CE106: 0 | CG106: 2.55 | CH106: 3 | CI106: 0 | CL106: 0 | CN106: 0 | CO106: =ROUND(IF(G106=#REF!,(BE106-AY106)*40%,0),2) ->  | CP106: 190.5347 | CQ106: 0 | CS106: =ROUND(IF($D106=#REF!,$BE106-SUM(BJ106:CQ106,0),0),2) ->  | CT106: =ROUND(IF($D106=#REF!,$BE106-SUM(BJ106:CQ106,0),0),2) ->  | CU106: =ROUND(IF($G106=#REF!,$BE106-SUM(BK106:CR106,0),0),2) -> 
B107: 202121 | C107: 1082 | D107: بنك مصر 2 | E107: طارق محمد عبد الرحمن عبد العزيز | F107: 0 | G107: دوام كامل | H107: فنى | I107: الثانية | J107: الثانية | K107: فنى كهربائى | L107: الادارة العامة | M107: 28103200103831 | N107: 202121طارق محمد عبد الرحمن عبد العزيز الثانيةالثانيةفنى كهربائىالادارة العامة | O107: نعم | P107: 1137.36 | Q107: 1330.7112 | R107: 0 | S107: 1796.46 | T107: 199.61 | U107: 0 | V107: 0 | W107: 0 | Y107: 199.60668 | Z107: 300 | AB107: 0 | AD107: 0 | AE107: 0 | AF107: 499.61 | AG107: 40.59 | AH107: 45.02 | AI107: 65 | AJ107: 0 | AK107: 190 | AL107: 22.74 | AM107: 40.55 | AN107: 52.06 | AO107: 74.7 | AP107: 79.47 | AQ107: 85.04 | AS107: 56.868 | AT107: 600 | AU107: 4 | AV107: 1356.04 | AW107: 10 | AX107: 0 | AY107: 240.1 | AZ107: 0 | BB107: 0 | BC107: 5432.53 | BD107: 1567.47 | BE107: 7000 | BF107: 0 | BG107: 0 | BJ107: 565.9807764 | BK107: 0 | BL107: 0 | BM107: 0 | BN107: =IF(Sheet1!$BH107=1,Sheet1!$S107*20%,IF(Sheet1!$BH107=2,Sheet1!$S107*100%,IF(Sheet1!$BH107>2,Sheet1!$S107*100%,""))) ->  | BO107: =IF(Sheet1!$BF107<=4,Sheet1!$S107*0,IF(Sheet1!$BF107=5,Sheet1!$S107*20%,IF(Sheet1!$BF107=6,Sheet1!$S107*40%,IF(Sheet1!$BF107=7,Sheet1!$S107*50%,IF(Sheet1!$BF107>7,Sheet1!$S107*100%,""))))) -> 0 | BP107: =IF(Sheet1!$BG107<=2,Sheet1!$S107*0,IF(Sheet1!$BG107=3,Sheet1!$S107*30%,IF(Sheet1!$BG107=4,Sheet1!$S107*40%,IF(Sheet1!$BG107=5,Sheet1!$S107*50%,IF(Sheet1!$BG107>5,Sheet1!$S107*100%,""))))) -> 0 | BQ107: 0 | BR107: 0 | BT107: 3 | BU107: 0 | BX107: 0 | CC107: 0 | CE107: 0 | CG107: 2.6 | CH107: 3 | CI107: 0 | CL107: 0 | CN107: 0 | CO107: =ROUND(IF(G107=#REF!,(BE107-AY107)*40%,0),2) ->  | CP107: 240.1 | CQ107: 0 | CS107: =ROUND(IF($D107=#REF!,$BE107-SUM(BJ107:CQ107,0),0),2) ->  | CT107: =ROUND(IF($D107=#REF!,$BE107-SUM(BJ107:CQ107,0),0),2) ->  | CU107: =ROUND(IF($G107=#REF!,$BE107-SUM(BK107:CR107,0),0),2) -> 
B108: 202126 | C108: 11111 | D108: البنك الاهلى | E108: مصطفى عبد الرحمن ابراهيم شلبى | F108: 0 | G108: دوام كامل | H108: فنى | I108: الثالثة | J108: الثالثة | K108: حرفى ميكانيكى | L108: الاميرية | M108: 27505180102198 | N108: 202126مصطفى عبد الرحمن ابراهيم شلبىالثالثةالثالثةحرفى ميكانيكى الاميرية | O108: نعم | P108: 1979.8 | Q108: 2316.366 | R108: 0 | S108: 3127.09 | T108: 347.45 | U108: 0 | V108: 0 | W108: 0 | Y108: 347.4549 | Z108: 300 | AB108: 0 | AC108: 0 | AD108: 0 | AE108: 0 | AF108: 647.45 | AG108: 70.23 | AH108: 78.36 | AI108: 93.46 | AJ108: 0 | AK108: 200 | AL108: 39.58 | AM108: 70.57 | AN108: 90.62 | AO108: 129.29 | AP108: 138.34 | AQ108: 148.02 | AS108: 98.99001 | AT108: 600 | AU108: 6 | AV108: 1763.46 | AW108: 10 | AX108: 0 | AY108: 416.8 | AZ108: 0 | BB108: 0 | BC108: 8628.62 | BD108: 0 | BE108: 8628.62 | BF108: 0 | BG108: 0 | BJ108: 759 | BK108: 0 | BL108: 0 | BM108: 0 | BN108: =IF(Sheet1!$BH108=1,Sheet1!$S108*20%,IF(Sheet1!$BH108=2,Sheet1!$S108*100%,IF(Sheet1!$BH108>2,Sheet1!$S108*100%,""))) ->  | BO108: =IF(Sheet1!$BF108<=4,Sheet1!$S108*0,IF(Sheet1!$BF108=5,Sheet1!$S108*20%,IF(Sheet1!$BF108=6,Sheet1!$S108*40%,IF(Sheet1!$BF108=7,Sheet1!$S108*50%,IF(Sheet1!$BF108>7,Sheet1!$S108*100%,""))))) -> 0 | BP108: =IF(Sheet1!$BG108<=2,Sheet1!$S108*0,IF(Sheet1!$BG108=3,Sheet1!$S108*30%,IF(Sheet1!$BG108=4,Sheet1!$S108*40%,IF(Sheet1!$BG108=5,Sheet1!$S108*50%,IF(Sheet1!$BG108>5,Sheet1!$S108*100%,""))))) -> 0 | BQ108: 0 | BR108: 0 | BS108: 0 | BT108: 3 | BU108: 0 | BV108: 0 | BW108: 0 | BX108: 0 | BY108: 0 | BZ108: 0 | CA108: 0 | CC108: 0 | CD108: 0 | CE108: 0 | CF108: 0 | CG108: 3.36 | CH108: 3 | CI108: 0 | CK108: 0 | CL108: 0 | CN108: 0 | CO108: =ROUND(IF(G108=#REF!,(BE108-AY108)*40%,0),2) ->  | CP108: 416.8 | CQ108: 0 | CS108: =ROUND(IF($D108=#REF!,$BE108-SUM(BJ108:CQ108,0),0),2) ->  | CT108: =ROUND(IF($D108=#REF!,$BE108-SUM(BJ108:CQ108,0),0),2) ->  | CU108: =ROUND(IF($G108=#REF!,$BE108-SUM(BK108:CR108,0),0),2) -> 
B109: 203001 | C109: 31360 | D109: بنك مصر 1 | E109: عصام معوض محمد | F109: 0 | G109: دوام كامل | H109: فنى | I109: عقد مؤقت | M109: 27809010108212 | N109: 203001عصام معوض محمدعقد مؤقت | P109: 428.24 | Q109: 428.24 | R109: 0 | S109: 578.12 | T109: 64.24 | U109: 0 | V109: 0 | W109: 0 | Y109: 64.236 | Z109: 300 | AB109: 0 | AD109: 0 | AE109: 0 | AF109: 364.24 | AG109: 0 | AH109: 0 | AI109: 65 | AJ109: 261.64 | AK109: 0 | AL109: 0 | AM109: 0 | AN109: 0 | AO109: 0 | AP109: 0 | AQ109: 0 | AS109: 0 | AT109: 600 | AU109: 10 | AV109: 936.64 | AW109: 10 | AX109: 0 | AY109: 90.4 | AZ109: 0 | BB109: 0 | BC109: 2471.88 | BD109: 4528.12 | BE109: 7000 | BF109: 0 | BG109: 0 | BJ109: 595.6676172 | BK109: 0 | BL109: 0 | BM109: 0 | BN109: =IF(Sheet1!$BH109=1,Sheet1!$S109*20%,IF(Sheet1!$BH109=2,Sheet1!$S109*100%,IF(Sheet1!$BH109>2,Sheet1!$S109*100%,""))) ->  | BO109: =IF(Sheet1!$BF109<=4,Sheet1!$S109*0,IF(Sheet1!$BF109=5,Sheet1!$S109*20%,IF(Sheet1!$BF109=6,Sheet1!$S109*40%,IF(Sheet1!$BF109=7,Sheet1!$S109*50%,IF(Sheet1!$BF109>7,Sheet1!$S109*100%,""))))) -> 0 | BP109: =IF(Sheet1!$BG109<=2,Sheet1!$S109*0,IF(Sheet1!$BG109=3,Sheet1!$S109*30%,IF(Sheet1!$BG109=4,Sheet1!$S109*40%,IF(Sheet1!$BG109=5,Sheet1!$S109*50%,IF(Sheet1!$BG109>5,Sheet1!$S109*100%,""))))) -> 0 | BQ109: 26.69 | BR109: 0 | BT109: 3 | BU109: 0 | BX109: 0 | CC109: 0 | CE109: 0 | CG109: 1.95 | CH109: 3 | CI109: 0 | CL109: 0 | CN109: 0 | CO109: =ROUND(IF(G109=#REF!,(BE109-AY109)*40%,0),2) ->  | CP109: 90.4 | CQ109: 0 | CS109: =ROUND(IF($D109=#REF!,$BE109-SUM(BJ109:CQ109,0),0),2) ->  | CT109: =ROUND(IF($D109=#REF!,$BE109-SUM(BJ109:CQ109,0),0),2) ->  | CU109: =ROUND(IF($G109=#REF!,$BE109-SUM(BK109:CR109,0),0),2) -> 
B110: 207001 | C110: 50029 | D110: البنك الاهلى | E110: اشرف محمد طلبه عطية | F110: 0 | G110: دوام كامل | H110: فنى | I110: الاولى | J110: الأولى | K110: فنى كهربائى سيارات | L110: فرع بورسعيد | M110: 26602220300151 | N110: 207001اشرف محمد طلبه عطية الاولىالأولىفنى كهربائى سياراتفرع بورسعيد | O110: نعم | P110: 2158.46 | Q110: 2525.3982 | R110: 0 | S110: 3409.29 | T110: 378.81 | U110: 0 | V110: 0 | W110: 0 | Y110: 378.80973 | Z110: 300 | AB110: 0 | AD110: 0 | AE110: 0 | AF110: 678.81 | AG110: 0 | AH110: 0 | AI110: 0 | AJ110: 453.02 | AK110: 0 | AL110: 43.15 | AM110: 76.95 | AN110: 98.8 | AO110: 140.96 | AP110: 150.82 | AQ110: 161.38 | AS110: 107.923 | AT110: 600 | AU110: 10 | AV110: 1843 | AW110: 10 | AX110: 0 | AY110: 454.4126 | AZ110: 0 | BB110: 0 | BC110: 9299.72 | BD110: 0 | BE110: 9299.72 | BF110: 0 | BG110: 0 | BJ110: 822.7889893 | BK110: 44.92 | BL110: 0 | BM110: 0 | BN110: =IF(Sheet1!$BH110=1,Sheet1!$S110*20%,IF(Sheet1!$BH110=2,Sheet1!$S110*100%,IF(Sheet1!$BH110>2,Sheet1!$S110*100%,""))) ->  | BO110: =IF(Sheet1!$BF110<=4,Sheet1!$S110*0,IF(Sheet1!$BF110=5,Sheet1!$S110*20%,IF(Sheet1!$BF110=6,Sheet1!$S110*40%,IF(Sheet1!$BF110=7,Sheet1!$S110*50%,IF(Sheet1!$BF110>7,Sheet1!$S110*100%,""))))) -> 0 | BP110: =IF(Sheet1!$BG110<=2,Sheet1!$S110*0,IF(Sheet1!$BG110=3,Sheet1!$S110*30%,IF(Sheet1!$BG110=4,Sheet1!$S110*40%,IF(Sheet1!$BG110=5,Sheet1!$S110*50%,IF(Sheet1!$BG110>5,Sheet1!$S110*100%,""))))) -> 0 | BQ110: 0 | BR110: 0 | BT110: 3 | BU110: 0 | BX110: 0 | CC110: 0 | CE110: 0 | CG110: 3.83 | CH110: 5 | CI110: 0 | CL110: 0 | CM110: 533.06 | CN110: 0 | CO110: =ROUND(IF(G110=#REF!,(BE110-AY110)*40%,0),2) ->  | CP110: 454.4126 | CQ110: 0 | CS110: =ROUND(IF($D110=#REF!,$BE110-SUM(BJ110:CQ110,0),0),2) ->  | CT110: =ROUND(IF($D110=#REF!,$BE110-SUM(BJ110:CQ110,0),0),2) ->  | CU110: =ROUND(IF($G110=#REF!,$BE110-SUM(BK110:CR110,0),0),2) -> 
B111: 207003 | C111: 50700 | D111: البنك الاهلى | E111: محمد محمد احمد محمد | F111: 0 | G111: دوام كامل | H111: فنى | I111: الخامسة | J111: الخامسة | K111: حرفى نشحيم | L111: بور سعيد | M111: 27111302401517 | N111: 207003محمد محمد احمد محمدالخامسةالخامسةحرفى نشحيمبور سعيد | O111: نعم | P111: 919.47 | Q111: 1075.7799 | R111: 0 | S111: 1452.3 | T111: 161.37 | U111: 0 | V111: 0 | W111: 0 | Y111: 161.366985 | Z111: 300 | AB111: 0 | AD111: 0 | AE111: 0 | AF111: 461.37 | AG111: 0 | AH111: 0 | AI111: 0 | AJ111: 1263 | AK111: 0 | AL111: 0 | AM111: 0 | AN111: 0 | AO111: 0 | AP111: 0 | AQ111: 0 | AS111: 58.053 | AT111: 0 | AU111: 0 | AV111: 1321.05 | AW111: 10 | AX111: 0 | AY111: 193.5726 | AZ111: 0 | BB111: 0 | BC111: 4675.44 | BD111: 2324.56 | BE111: 7000 | BF111: 0 | BG111: 0 | BJ111: 523.1292236 | BK111: 0 | BL111: 0 | BM111: 0 | BN111: =IF(Sheet1!$BH111=1,Sheet1!$S111*20%,IF(Sheet1!$BH111=2,Sheet1!$S111*100%,IF(Sheet1!$BH111>2,Sheet1!$S111*100%,""))) ->  | BO111: =IF(Sheet1!$BF111<=4,Sheet1!$S111*0,IF(Sheet1!$BF111=5,Sheet1!$S111*20%,IF(Sheet1!$BF111=6,Sheet1!$S111*40%,IF(Sheet1!$BF111=7,Sheet1!$S111*50%,IF(Sheet1!$BF111>7,Sheet1!$S111*100%,""))))) -> 0 | BP111: =IF(Sheet1!$BG111<=2,Sheet1!$S111*0,IF(Sheet1!$BG111=3,Sheet1!$S111*30%,IF(Sheet1!$BG111=4,Sheet1!$S111*40%,IF(Sheet1!$BG111=5,Sheet1!$S111*50%,IF(Sheet1!$BG111>5,Sheet1!$S111*100%,""))))) -> 0 | BQ111: 0 | BR111: 0 | BT111: 3 | BU111: 0 | BX111: 0 | CC111: 0 | CE111: 0 | CG111: 2.64 | CH111: 3 | CI111: 0 | CL111: 0 | CM111: 232.64 | CN111: 0 | CO111: =ROUND(IF(G111=#REF!,(BE111-AY111)*40%,0),2) ->  | CP111: 193.5726 | CQ111: 0 | CS111: =ROUND(IF($D111=#REF!,$BE111-SUM(BJ111:CQ111,0),0),2) ->  | CT111: =ROUND(IF($D111=#REF!,$BE111-SUM(BJ111:CQ111,0),0),2) ->  | CU111: =ROUND(IF($G111=#REF!,$BE111-SUM(BK111:CR111,0),0),2) -> 
B112: 207004 | C112: 50353 | D112: البنك الاهلى | E112: محمد محمد عبدالحكيم | F112: 0 | G112: دوام كامل | H112: فنى | I112: الخامسة | J112: الخامسة | K112: حرفى ميكانيكى | L112: بور سعيد | M112: 27504141200061 | N112: 207004محمد محمد عبدالحكيم الخامسةالخامسةحرفى ميكانيكىبور سعيد | O112: نعم | P112: 919.47 | Q112: 1075.7799 | R112: 0 | S112: 1452.3 | T112: 161.37 | U112: 0 | V112: 0 | W112: 0 | Y112: 161.366985 | Z112: 300 | AB112: 0 | AD112: 0 | AE112: 0 | AF112: 461.37 | AG112: 0 | AH112: 0 | AI112: 0 | AJ112: 332.23 | AK112: 0 | AL112: 32.11 | AM112: 32.78 | AN112: 42.09 | AO112: 60.04 | AP112: 64.35 | AQ112: 89.85 | AS112: 58.053 | AT112: 600 | AU112: 10 | AV112: 1321.5 | AW112: 10 | AX112: 0 | AY112: 193.5726 | AZ112: 0 | BB112: 0 | BC112: 4675.89 | BD112: 2324.11 | BE112: 7000 | BF112: 0 | BG112: 0 | BJ112: 523.1292236 | BK112: 0 | BL112: 0 | BM112: 0 | BN112: =IF(Sheet1!$BH112=1,Sheet1!$S112*20%,IF(Sheet1!$BH112=2,Sheet1!$S112*100%,IF(Sheet1!$BH112>2,Sheet1!$S112*100%,""))) ->  | BO112: =IF(Sheet1!$BF112<=4,Sheet1!$S112*0,IF(Sheet1!$BF112=5,Sheet1!$S112*20%,IF(Sheet1!$BF112=6,Sheet1!$S112*40%,IF(Sheet1!$BF112=7,Sheet1!$S112*50%,IF(Sheet1!$BF112>7,Sheet1!$S112*100%,""))))) -> 0 | BP112: =IF(Sheet1!$BG112<=2,Sheet1!$S112*0,IF(Sheet1!$BG112=3,Sheet1!$S112*30%,IF(Sheet1!$BG112=4,Sheet1!$S112*40%,IF(Sheet1!$BG112=5,Sheet1!$S112*50%,IF(Sheet1!$BG112>5,Sheet1!$S112*100%,""))))) -> 0 | BQ112: 0 | BR112: 0 | BT112: 3 | BU112: 0 | BX112: 0 | CC112: 0 | CE112: 0 | CG112: 2.63 | CH112: 3 | CI112: 0 | CL112: 0 | CM112: 232.64 | CN112: 0 | CO112: =ROUND(IF(G112=#REF!,(BE112-AY112)*40%,0),2) ->  | CP112: 193.5726 | CQ112: 0 | CS112: =ROUND(IF($D112=#REF!,$BE112-SUM(BJ112:CQ112,0),0),2) ->  | CT112: =ROUND(IF($D112=#REF!,$BE112-SUM(BJ112:CQ112,0),0),2) ->  | CU112: =ROUND(IF($G112=#REF!,$BE112-SUM(BK112:CR112,0),0),2) -> 
B113: 208002 | C113: 26203 | D113: بنك مصر 1 | E113: أمين محمد السيد محمد | F113: 0 | G113: دوام كامل | H113: فنى | I113: الخامسة | J113: الخامسة | K113: حرفى سمكرى | L113: المنصورة | M113: 28002181202791 | N113: 208002أمين محمد السيد محمدالخامسةالخامسةحرفى سمكرىالمنصورة | O113: نعم | P113: 811.1433 | Q113: 949.037661 | R113: 0 | S113: 1281.2 | T113: 142.36 | U113: 0 | V113: 0 | W113: 0 | Y113: 142.3556492 | Z113: 300 | AB113: 0 | AD113: 0 | AE113: 0 | AF113: 442.36 | AG113: 28.18 | AH113: 29.63299 | AI113: 65 | AJ113: 0 | AK113: 200 | AL113: 37.16507 | AM113: 75 | AN113: 37.12904 | AO113: 53.65 | AP113: 75.4 | AQ113: 96.9 | AS113: 68.88567 | AT113: 600 | AU113: 10 | AV113: 1376.94 | AW113: 10 | AX113: 0 | AY113: 170.767 | AZ113: 0 | BB113: 0 | BC113: 4372.66 | BD113: 2627.34 | BE113: 7000 | BF113: 0 | BG113: 0 | BJ113: 530.8060742 | BK113: 0 | BL113: 0 | BM113: 0 | BN113: =IF(Sheet1!$BH113=1,Sheet1!$S113*20%,IF(Sheet1!$BH113=2,Sheet1!$S113*100%,IF(Sheet1!$BH113>2,Sheet1!$S113*100%,""))) ->  | BO113: =IF(Sheet1!$BF113<=4,Sheet1!$S113*0,IF(Sheet1!$BF113=5,Sheet1!$S113*20%,IF(Sheet1!$BF113=6,Sheet1!$S113*40%,IF(Sheet1!$BF113=7,Sheet1!$S113*50%,IF(Sheet1!$BF113>7,Sheet1!$S113*100%,""))))) -> 0 | BP113: =IF(Sheet1!$BG113<=2,Sheet1!$S113*0,IF(Sheet1!$BG113=3,Sheet1!$S113*30%,IF(Sheet1!$BG113=4,Sheet1!$S113*40%,IF(Sheet1!$BG113=5,Sheet1!$S113*50%,IF(Sheet1!$BG113>5,Sheet1!$S113*100%,""))))) -> 0 | BQ113: 0 | BR113: 0 | BT113: 3 | BU113: 0 | BX113: 0 | CC113: 0 | CE113: 0 | CG113: 2.66 | CH113: 5 | CI113: 0 | CL113: 0 | CN113: 0 | CO113: =ROUND(IF(G113=#REF!,(BE113-AY113)*40%,0),2) ->  | CP113: 170.767 | CQ113: 0 | CS113: =ROUND(IF($D113=#REF!,$BE113-SUM(BJ113:CQ113,0),0),2) ->  | CT113: =ROUND(IF($D113=#REF!,$BE113-SUM(BJ113:CQ113,0),0),2) ->  | CU113: =ROUND(IF($G113=#REF!,$BE113-SUM(BK113:CR113,0),0),2) -> 
B114: 208003 | C114: 26211 | D114: بنك مصر 1 | E114: احمد حسين امين عطيه | F114: 0 | G114: دوام كامل | H114: فنى | I114: الثانية | J114: الثانية | K114: فنى لحام | L114: فرع المنصورة | M114: 28811141202531 | N114: 208003احمد حسين امين عطيهالثانيةالثانيةفنى لحام فرع المنصورة | O114: نعم | P114: 985.1562 | Q114: 1152.632754 | R114: 0 | S114: 1556.05 | T114: 172.89 | U114: 0 | V114: 0 | W114: 0 | Y114: 172.8949131 | Z114: 300 | AB114: 0 | AD114: 0 | AE114: 0 | AF114: 472.89 | AG114: 34.04053 | AH114: 38.11461 | AI114: 65 | AJ114: 0 | AK114: 190 | AL114: 29.04842 | AM114: 35.12014 | AN114: 45.09425 | AO114: 64.33447 | AP114: 68.83788 | AQ114: 85.5 | AS114: 51.48438 | AT114: 600 | AU114: 4 | AV114: 1310.57 | AW114: 10 | AX114: 0 | AY114: 207.4013 | AZ114: 0 | BB114: 0 | BC114: 4882.43 | BD114: 2117.57 | BE114: 7000 | BF114: 0 | BG114: 0 | BJ114: 530.3848193 | BK114: 0 | BL114: 0 | BM114: 0 | BN114: =IF(Sheet1!$BH114=1,Sheet1!$S114*20%,IF(Sheet1!$BH114=2,Sheet1!$S114*100%,IF(Sheet1!$BH114>2,Sheet1!$S114*100%,""))) ->  | BO114: =IF(Sheet1!$BF114<=4,Sheet1!$S114*0,IF(Sheet1!$BF114=5,Sheet1!$S114*20%,IF(Sheet1!$BF114=6,Sheet1!$S114*40%,IF(Sheet1!$BF114=7,Sheet1!$S114*50%,IF(Sheet1!$BF114>7,Sheet1!$S114*100%,""))))) -> 0 | BP114: =IF(Sheet1!$BG114<=2,Sheet1!$S114*0,IF(Sheet1!$BG114=3,Sheet1!$S114*30%,IF(Sheet1!$BG114=4,Sheet1!$S114*40%,IF(Sheet1!$BG114=5,Sheet1!$S114*50%,IF(Sheet1!$BG114>5,Sheet1!$S114*100%,""))))) -> 0 | BQ114: 0 | BR114: 0 | BT114: 3 | BU114: 0 | BX114: 0 | CC114: 0 | CE114: 0 | CG114: 2.69 | CH114: 5 | CI114: 0 | CL114: 0 | CN114: 0 | CO114: =ROUND(IF(G114=#REF!,(BE114-AY114)*40%,0),2) ->  | CP114: 207.4013 | CQ114: 0 | CS114: =ROUND(IF($D114=#REF!,$BE114-SUM(BJ114:CQ114,0),0),2) ->  | CT114: =ROUND(IF($D114=#REF!,$BE114-SUM(BJ114:CQ114,0),0),2) ->  | CU114: =ROUND(IF($G114=#REF!,$BE114-SUM(BK114:CR114,0),0),2) -> 
B115: 208004 | C115: 26229 | D115: بنك مصر 1 | E115: السيد احمد عيد احمد شمس | F115: 0 | G115: دوام كامل | H115: فنى | I115: الثالثة | J115: الثالثة | K115: تباع | L115: فرع كفر الزيات | M115: 26906061200557 | N115: 208004السيد احمد عيد احمد شمسالثالثةالثالثةتباعفرع كفر الزيات | O115: نعم | P115: 2095.108 | Q115: 2451.27636 | R115: 0 | S115: 3309.22 | T115: 367.69 | U115: 0 | V115: 0 | W115: 0 | Y115: 367.691454 | Z115: 300 | AB115: 0 | AD115: 0 | AE115: 0 | AF115: 667.69 | AG115: 72.7148 | AH115: 81.37761 | AI115: 97.73365 | AJ115: 0 | AK115: 200 | AL115: 41.88177 | AM115: 74.68916 | AN115: 95.90088 | AO115: 0 | AP115: 0 | AQ115: 156.6436 | AS115: 104.7554 | AT115: 600 | AU115: 10 | AV115: 1535.7 | AW115: 10 | AX115: 0 | AY115: 441.0754 | AZ115: 0 | BB115: 0 | BC115: 8782.65 | BD115: 0 | BE115: 8782.65 | BF115: 0 | BG115: 0 | BJ115: 758.874585 | BK115: 54.75 | BL115: 0 | BM115: 0 | BN115: =IF(Sheet1!$BH115=1,Sheet1!$S115*20%,IF(Sheet1!$BH115=2,Sheet1!$S115*100%,IF(Sheet1!$BH115>2,Sheet1!$S115*100%,""))) ->  | BO115: =IF(Sheet1!$BF115<=4,Sheet1!$S115*0,IF(Sheet1!$BF115=5,Sheet1!$S115*20%,IF(Sheet1!$BF115=6,Sheet1!$S115*40%,IF(Sheet1!$BF115=7,Sheet1!$S115*50%,IF(Sheet1!$BF115>7,Sheet1!$S115*100%,""))))) -> 0 | BP115: =IF(Sheet1!$BG115<=2,Sheet1!$S115*0,IF(Sheet1!$BG115=3,Sheet1!$S115*30%,IF(Sheet1!$BG115=4,Sheet1!$S115*40%,IF(Sheet1!$BG115=5,Sheet1!$S115*50%,IF(Sheet1!$BG115>5,Sheet1!$S115*100%,""))))) -> 0 | BQ115: 0 | BR115: 0 | BT115: 3 | BU115: 0 | BX115: 0 | CC115: 0 | CE115: 0 | CG115: 3.59 | CH115: 5 | CI115: 0 | CL115: 0 | CN115: 0 | CO115: =ROUND(IF(G115=#REF!,(BE115-AY115)*40%,0),2) ->  | CP115: 441.0754 | CQ115: 0 | CS115: =ROUND(IF($D115=#REF!,$BE115-SUM(BJ115:CQ115,0),0),2) ->  | CT115: =ROUND(IF($D115=#REF!,$BE115-SUM(BJ115:CQ115,0),0),2) ->  | CU115: =ROUND(IF($G115=#REF!,$BE115-SUM(BK115:CR115,0),0),2) -> 
B116: 208005 | C116: 26259 | D116: بنك مصر 1 | E116: رجب إبراهيم عبدالعزيز | F116: 0 | G116: دوام كامل | H116: فنى | I116: الثالثة | J116: الثالثة | K116: حرفى ميكانيكى | L116: الاميرية | M116: 26710071200618 | N116: 208005رجب إبراهيم عبدالعزيزالثالثةالثالثةحرفى ميكانيكى الاميرية | O116: نعم | P116: 1365.885 | Q116: 1598.08545 | R116: 0 | S116: 2157.42 | T116: 239.71 | U116: 0 | V116: 0 | W116: 0 | Y116: 239.7128175 | Z116: 300 | AB116: 0 | AD116: 0 | AE116: 0 | AF116: 539.71 | AG116: 47.60003 | AH116: 53.03458 | AI116: 65 | AJ116: 0 | AK116: 200 | AL116: 27.3044 | AM116: 48.69284 | AN116: 62.5216 | AO116: 89.19749 | AP116: 95.44131 | AQ116: 102.1222 | AS116: 68.29423 | AT116: 600 | AU116: 10 | AV116: 1469.21 | AW116: 10 | AX116: 0 | AY116: 287.5546 | AZ116: 0 | BB116: 0 | BC116: 6301.69 | BD116: 698.31 | BE116: 7000 | BF116: 0 | BG116: 0 | BJ116: 546.2226172 | BK116: 0 | BL116: 0 | BM116: 0 | BN116: =IF(Sheet1!$BH116=1,Sheet1!$S116*20%,IF(Sheet1!$BH116=2,Sheet1!$S116*100%,IF(Sheet1!$BH116>2,Sheet1!$S116*100%,""))) ->  | BO116: =IF(Sheet1!$BF116<=4,Sheet1!$S116*0,IF(Sheet1!$BF116=5,Sheet1!$S116*20%,IF(Sheet1!$BF116=6,Sheet1!$S116*40%,IF(Sheet1!$BF116=7,Sheet1!$S116*50%,IF(Sheet1!$BF116>7,Sheet1!$S116*100%,""))))) -> 0 | BP116: =IF(Sheet1!$BG116<=2,Sheet1!$S116*0,IF(Sheet1!$BG116=3,Sheet1!$S116*30%,IF(Sheet1!$BG116=4,Sheet1!$S116*40%,IF(Sheet1!$BG116=5,Sheet1!$S116*50%,IF(Sheet1!$BG116>5,Sheet1!$S116*100%,""))))) -> 0 | BQ116: 0 | BR116: 0 | BT116: 3 | BU116: 0 | BX116: 0 | CC116: 0 | CE116: 0 | CG116: 3.23 | CH116: 5 | CI116: 0 | CL116: 0 | CN116: 0 | CO116: =ROUND(IF(G116=#REF!,(BE116-AY116)*40%,0),2) ->  | CP116: 287.5546 | CQ116: 0 | CS116: =ROUND(IF($D116=#REF!,$BE116-SUM(BJ116:CQ116,0),0),2) ->  | CT116: =ROUND(IF($D116=#REF!,$BE116-SUM(BJ116:CQ116,0),0),2) ->  | CU116: =ROUND(IF($G116=#REF!,$BE116-SUM(BK116:CR116,0),0),2) -> 
B117: 208006 | C117: 26262 | D117: بنك مصر 1 | E117: احمد عبده حماد صلاح | F117: 0 | G117: دوام كامل | H117: فنى | I117: الثالثة | J117: الثالثة | K117: حرفى حداد | L117: فرع المنيا | M117: 27901011251471 | N117: 208006احمد عبده حماد صلاحالثالثةالثالثة حرفى حداد فرع المنيا | O117: نعم | P117: 1369.857 | Q117: 1602.73269 | R117: 0 | S117: 2163.69 | T117: 240.41 | U117: 240.4099121 | V117: 0 | W117: 0 | Y117: 240.4099035 | Z117: 300 | AB117: 0 | AD117: 0 | AE117: 0 | AF117: 540.41 | AG117: 48.54 | AH117: 54 | AI117: 65 | AJ117: 0 | AK117: 200 | AL117: 27.3838 | AM117: 48.83445 | AN117: 62.70343 | AO117: 89.4569 | AP117: 95.71889 | AQ117: 102.4192 | AS117: 68.49284 | AT117: 600 | AU117: 4 | AV117: 1466.55 | AW117: 10 | AX117: 0 | AY117: 288.3909 | AZ117: 0 | BB117: 0 | BC117: 6552.59 | BD117: 447.41 | BE117: 7000 | BF117: 0 | BG117: 0 | BJ117: 547.0498193 | BK117: 0 | BL117: 0 | BM117: 0 | BN117: =IF(Sheet1!$BH117=1,Sheet1!$S117*20%,IF(Sheet1!$BH117=2,Sheet1!$S117*100%,IF(Sheet1!$BH117>2,Sheet1!$S117*100%,""))) ->  | BO117: =IF(Sheet1!$BF117<=4,Sheet1!$S117*0,IF(Sheet1!$BF117=5,Sheet1!$S117*20%,IF(Sheet1!$BF117=6,Sheet1!$S117*40%,IF(Sheet1!$BF117=7,Sheet1!$S117*50%,IF(Sheet1!$BF117>7,Sheet1!$S117*100%,""))))) -> 0 | BP117: =IF(Sheet1!$BG117<=2,Sheet1!$S117*0,IF(Sheet1!$BG117=3,Sheet1!$S117*30%,IF(Sheet1!$BG117=4,Sheet1!$S117*40%,IF(Sheet1!$BG117=5,Sheet1!$S117*50%,IF(Sheet1!$BG117>5,Sheet1!$S117*100%,""))))) -> 0 | BQ117: 0 | BR117: 0 | BT117: 3 | BU117: 0 | BX117: 0 | CC117: 0 | CE117: 0 | CG117: 2.98 | CH117: 5 | CI117: 0 | CL117: 0 | CN117: 0 | CO117: =ROUND(IF(G117=#REF!,(BE117-AY117)*40%,0),2) ->  | CP117: 288.3909 | CQ117: 0 | CS117: =ROUND(IF($D117=#REF!,$BE117-SUM(BJ117:CQ117,0),0),2) ->  | CT117: =ROUND(IF($D117=#REF!,$BE117-SUM(BJ117:CQ117,0),0),2) ->  | CU117: =ROUND(IF($G117=#REF!,$BE117-SUM(BK117:CR117,0),0),2) -> 
B118: 208008 | C118: 26290 | D118: بنك مصر 1 | E118: جمال محمد أحمد لطفي | F118: 0 | G118: دوام كامل | H118: فنى | I118: الاولى | J118: الأولى | K118: حرفى نقاش | L118: فرع المنصورة | M118: 26610041200198 | N118: 208008جمال محمد أحمد لطفيالاولىالأولىحرفى نقاش فرع المنصورة | O118: نعم | P118: 2267.445 | Q118: 2652.91065 | R118: 0 | S118: 3581.43 | T118: 397.94 | U118: 0 | V118: 0 | W118: 0 | Y118: 397.9365975 | Z118: 300 | AB118: 0 | AD118: 0 | AE118: 0 | AF118: 697.94 | AG118: 79.0128 | AH118: 88.1357 | AI118: 105.5677 | AJ118: 0 | AK118: 190 | AL118: 45.32683 | AM118: 80.83284 | AN118: 103.7894 | AO118: 148.0728 | AP118: 158.4379 | AQ118: 169.5286 | AS118: 113.3722 | AT118: 600 | AU118: 8 | AV118: 1890.08 | AW118: 10 | AX118: 0 | AY118: 477.3568 | AZ118: 0 | BB118: 0 | BC118: 9707.66 | BD118: 0 | BE118: 9707.66 | BF118: 0 | BG118: 0 | BJ118: 846.3839893 | BK118: 304.62 | BL118: 0 | BM118: 0 | BN118: =IF(Sheet1!$BH118=1,Sheet1!$S118*20%,IF(Sheet1!$BH118=2,Sheet1!$S118*100%,IF(Sheet1!$BH118>2,Sheet1!$S118*100%,""))) ->  | BO118: =IF(Sheet1!$BF118<=4,Sheet1!$S118*0,IF(Sheet1!$BF118=5,Sheet1!$S118*20%,IF(Sheet1!$BF118=6,Sheet1!$S118*40%,IF(Sheet1!$BF118=7,Sheet1!$S118*50%,IF(Sheet1!$BF118>7,Sheet1!$S118*100%,""))))) -> 0 | BP118: =IF(Sheet1!$BG118<=2,Sheet1!$S118*0,IF(Sheet1!$BG118=3,Sheet1!$S118*30%,IF(Sheet1!$BG118=4,Sheet1!$S118*40%,IF(Sheet1!$BG118=5,Sheet1!$S118*50%,IF(Sheet1!$BG118>5,Sheet1!$S118*100%,""))))) -> 0 | BQ118: 0 | BR118: 0 | BT118: 3 | BU118: 0 | BX118: 0 | CC118: 0 | CE118: 0 | CG118: 4.63 | CH118: 5 | CI118: 0 | CL118: 0 | CN118: 0 | CO118: =ROUND(IF(G118=#REF!,(BE118-AY118)*40%,0),2) ->  | CP118: 477.3568 | CQ118: 0 | CS118: =ROUND(IF($D118=#REF!,$BE118-SUM(BJ118:CQ118,0),0),2) ->  | CT118: =ROUND(IF($D118=#REF!,$BE118-SUM(BJ118:CQ118,0),0),2) ->  | CU118: =ROUND(IF($G118=#REF!,$BE118-SUM(BK118:CR118,0),0),2) -> 
B119: 208009 | C119: 26303 | D119: بنك مصر 1 | E119: ميمي فضل حسن فضل | F119: 0 | G119: دوام كامل | H119: فنى | I119: الثالثة | J119: الثالثة | K119: حرفي كهربائي | L119: فرع الزقازيق | M119: 27012251200157 | N119: 208009ميمي فضل حسن فضلالثالثةالثالثةحرفي كهربائي فرع الزقازيق | O119: نعم | P119: 1589.159 | Q119: 1859.31603 | R119: 0 | S119: 2510.08 | T119: 278.9 | U119: 0 | V119: 0 | W119: 0 | Y119: 278.8974045 | Z119: 300 | AB119: 0 | AD119: 0 | AE119: 0 | AF119: 578.9 | AG119: 55.26344 | AH119: 61.64103 | AI119: 74.00755 | AJ119: 0 | AK119: 200 | AL119: 31.76772 | AM119: 56.65242 | AN119: 72.74171 | AO119: 103.7782 | AP119: 111.0426 | AQ119: 118.8156 | AS119: 79.45796 | AT119: 600 | AU119: 10 | AV119: 1575.17 | AW119: 10 | AX119: 0 | AY119: 334.5598 | AZ119: 0 | BB119: 0 | BC119: 7146.93 | BD119: 0 | BE119: 7146.93 | BF119: 0 | BG119: 0 | BJ119: 620.7508936 | BL119: 0 | BM119: 0 | BN119: =IF(Sheet1!$BH119=1,Sheet1!$S119*20%,IF(Sheet1!$BH119=2,Sheet1!$S119*100%,IF(Sheet1!$BH119>2,Sheet1!$S119*100%,""))) ->  | BO119: =IF(Sheet1!$BF119<=4,Sheet1!$S119*0,IF(Sheet1!$BF119=5,Sheet1!$S119*20%,IF(Sheet1!$BF119=6,Sheet1!$S119*40%,IF(Sheet1!$BF119=7,Sheet1!$S119*50%,IF(Sheet1!$BF119>7,Sheet1!$S119*100%,""))))) -> 0 | BP119: =IF(Sheet1!$BG119<=2,Sheet1!$S119*0,IF(Sheet1!$BG119=3,Sheet1!$S119*30%,IF(Sheet1!$BG119=4,Sheet1!$S119*40%,IF(Sheet1!$BG119=5,Sheet1!$S119*50%,IF(Sheet1!$BG119>5,Sheet1!$S119*100%,""))))) -> 0 | BQ119: 0 | BR119: 0 | BT119: 3 | BU119: 0 | BX119: 0 | CC119: 0 | CE119: 0 | CG119: 0 | CH119: 5 | CI119: 0 | CL119: 0 | CN119: 0 | CO119: =ROUND(IF(G119=#REF!,(BE119-AY119)*40%,0),2) ->  | CP119: 334.5598 | CQ119: 0 | CS119: =ROUND(IF($D119=#REF!,$BE119-SUM(BJ119:CQ119,0),0),2) ->  | CT119: =ROUND(IF($D119=#REF!,$BE119-SUM(BJ119:CQ119,0),0),2) ->  | CU119: =ROUND(IF($G119=#REF!,$BE119-SUM(BK119:CR119,0),0),2) -> 
B120: 208010 | C120: 23758 | D120: بنك مصر 1 | E120: صبيح ابو المعاطى عبد الرحمن | F120: 0 | G120: دوام كامل | H120: فنى | I120: الرابعة | J120: الرابعة | K120: حرفى ميكانيكى | L120: الاميرية | M120: 28001010112739 | N120: 208010صبيح ابو المعاطى عبد الرحمنالرابعةالرابعةحرفى ميكانيكىالاميرية | O120: نعم | P120: 1011.168 | Q120: 1183.06656 | R120: 0 | S120: 1597.14 | T120: 177.46 | U120: 177.4600372 | V120: 0 | W120: 0 | Y120: 177.459984 | Z120: 300 | AB120: 0 | AD120: 0 | AE120: 0 | AF120: 477.46 | AG120: 35.32719 | AH120: 39.35801 | AI120: 65 | AJ120: 0 | AK120: 200 | AL120: 27.83511 | AM120: 36.04745 | AN120: 46.28493 | AO120: 66.03317 | AP120: 70.65549 | AQ120: 83.8 | AS120: 50.55842 | AT120: 600 | AU120: 10 | AV120: 1330.9 | AW120: 10 | AX120: 0 | AY120: 212.8775 | AZ120: 0 | BB120: 0 | BC120: 5166.36 | BD120: 1833.64 | BE120: 7000 | BF120: 0 | BG120: 0 | BJ120: 530.0372021 | BK120: 0 | BL120: 0 | BM120: 0 | BN120: =IF(Sheet1!$BH120=1,Sheet1!$S120*20%,IF(Sheet1!$BH120=2,Sheet1!$S120*100%,IF(Sheet1!$BH120>2,Sheet1!$S120*100%,""))) ->  | BO120: =IF(Sheet1!$BF120<=4,Sheet1!$S120*0,IF(Sheet1!$BF120=5,Sheet1!$S120*20%,IF(Sheet1!$BF120=6,Sheet1!$S120*40%,IF(Sheet1!$BF120=7,Sheet1!$S120*50%,IF(Sheet1!$BF120>7,Sheet1!$S120*100%,""))))) -> 0 | BP120: =IF(Sheet1!$BG120<=2,Sheet1!$S120*0,IF(Sheet1!$BG120=3,Sheet1!$S120*30%,IF(Sheet1!$BG120=4,Sheet1!$S120*40%,IF(Sheet1!$BG120=5,Sheet1!$S120*50%,IF(Sheet1!$BG120>5,Sheet1!$S120*100%,""))))) -> 0 | BQ120: 0 | BR120: 0 | BT120: 3 | BU120: 0 | BX120: 0 | CC120: 0 | CE120: 0 | CG120: 3.39 | CH120: 5 | CI120: 0 | CL120: 0 | CN120: 0 | CO120: =ROUND(IF(G120=#REF!,(BE120-AY120)*40%,0),2) ->  | CP120: 212.8775 | CQ120: 0 | CS120: =ROUND(IF($D120=#REF!,$BE120-SUM(BJ120:CQ120,0),0),2) ->  | CT120: =ROUND(IF($D120=#REF!,$BE120-SUM(BJ120:CQ120,0),0),2) ->  | CU120: =ROUND(IF($G120=#REF!,$BE120-SUM(BK120:CR120,0),0),2) -> 
B121: 209001 | C121: 21590 | D121: بنك مصر 1 | E121: هشام عبد الودود احمد السيد | F121: 0 | G121: دوام كامل | H121: فنى | I121: الثالثة | M121: 27309010105334 | N121: 209001هشام عبد الودود احمد السيدالثالثة | P121: 2170.52 | Q121: 2539.51 | R121: 0 | S121: 3428.34 | T121: 380.93 | U121: 0 | V121: 0 | W121: 0 | Y121: 380.9265 | Z121: 300 | AB121: 0 | AC121: 0 | AD121: 0 | AE121: 0 | AF121: 680.93 | AG121: 71.46 | AH121: 79.77 | AI121: 95.68 | AJ121: 0 | AK121: 190 | AL121: 43.39 | AM121: 77.38 | AN121: 99.35 | AO121: 141.74 | AP121: 151.66 | AQ121: 162.28 | AS121: 108.526 | AT121: 600 | AU121: 10 | AV121: 1831.24 | AW121: 10 | AX121: 0 | AY121: 456.9516 | AZ121: 402.65 | BB121: 0 | BC121: 9327.9 | BD121: 0 | BE121: 9730.55 | BF121: 0 | BG121: 0 | BJ121: 825 | BK121: 32.58 | BL121: 0 | BM121: 0 | BN121: =IF(Sheet1!$BH121=1,Sheet1!$S121*20%,IF(Sheet1!$BH121=2,Sheet1!$S121*100%,IF(Sheet1!$BH121>2,Sheet1!$S121*100%,""))) ->  | BO121: =IF(Sheet1!$BF121<=4,Sheet1!$S121*0,IF(Sheet1!$BF121=5,Sheet1!$S121*20%,IF(Sheet1!$BF121=6,Sheet1!$S121*40%,IF(Sheet1!$BF121=7,Sheet1!$S121*50%,IF(Sheet1!$BF121>7,Sheet1!$S121*100%,""))))) -> 0 | BP121: =IF(Sheet1!$BG121<=2,Sheet1!$S121*0,IF(Sheet1!$BG121=3,Sheet1!$S121*30%,IF(Sheet1!$BG121=4,Sheet1!$S121*40%,IF(Sheet1!$BG121=5,Sheet1!$S121*50%,IF(Sheet1!$BG121>5,Sheet1!$S121*100%,""))))) -> 0 | BQ121: 0 | BR121: 0 | BS121: 150 | BT121: 3 | BU121: 0 | BV121: 0 | BW121: 0 | BX121: 0 | BY121: 0 | BZ121: 0 | CA121: 0 | CC121: 0 | CD121: 0 | CE121: 0 | CF121: 0 | CG121: 3.41 | CH121: 3 | CI121: 0 | CK121: 0 | CL121: 0 | CN121: 0 | CO121: =ROUND(IF(G121=#REF!,(BE121-AY121)*40%,0),2) ->  | CP121: 456.9516 | CQ121: 0 | CS121: =ROUND(IF($D121=#REF!,$BE121-SUM(BJ121:CQ121,0),0),2) ->  | CT121: =ROUND(IF($D121=#REF!,$BE121-SUM(BJ121:CQ121,0),0),2) ->  | CU121: =ROUND(IF($G121=#REF!,$BE121-SUM(BK121:CR121,0),0),2) -> 
B122: 209002 | C122: 21831 | D122: بنك مصر 1 | E122: احمد شحاتة عبادى احمد | F122: 0 | G122: دوام كامل | H122: فنى | I122: الثالثة | M122: 27401120107875 | N122: 209002احمد شحاتة عبادى احمدالثالثة | P122: 2098.89 | Q122: 2455.71 | R122: 0 | S122: 3315.21 | T122: 368.36 | U122: 0 | V122: 0 | W122: 0 | Y122: 368.3565 | Z122: 300 | AB122: 0 | AC122: 0 | AD122: 0 | AE122: 0 | AF122: 668.36 | AG122: 69.11 | AH122: 77.13 | AI122: 92.56 | AJ122: 0 | AK122: 190 | AL122: 41.96 | AM122: 74.82 | AN122: 96.07 | AO122: 137.09 | AP122: 146.66 | AQ122: 156.93 | AS122: 104.9445 | AT122: 600 | AU122: 10 | AV122: 1797.27 | AW122: 10 | AX122: 0 | AY122: 441.8716 | AZ122: 389.37 | BB122: 0 | BC122: =ROUND(SUM(Q122:W122,AF122,AV122,AW122:AY122),2) -> 9056.78 | BD122: 0 | BE122: 9446.15 | BF122: 0 | BG122: 0 | BJ122: 792 | BK122: 0 | BL122: 0 | BM122: 0 | BN122: =IF(Sheet1!$BH122=1,Sheet1!$S122*20%,IF(Sheet1!$BH122=2,Sheet1!$S122*100%,IF(Sheet1!$BH122>2,Sheet1!$S122*100%,""))) ->  | BO122: =IF(Sheet1!$BF122<=4,Sheet1!$S122*0,IF(Sheet1!$BF122=5,Sheet1!$S122*20%,IF(Sheet1!$BF122=6,Sheet1!$S122*40%,IF(Sheet1!$BF122=7,Sheet1!$S122*50%,IF(Sheet1!$BF122>7,Sheet1!$S122*100%,""))))) -> 0 | BP122: =IF(Sheet1!$BG122<=2,Sheet1!$S122*0,IF(Sheet1!$BG122=3,Sheet1!$S122*30%,IF(Sheet1!$BG122=4,Sheet1!$S122*40%,IF(Sheet1!$BG122=5,Sheet1!$S122*50%,IF(Sheet1!$BG122>5,Sheet1!$S122*100%,""))))) -> 0 | BQ122: 0 | BR122: 0 | BS122: 0 | BT122: 3 | BU122: 0 | BV122: 0 | BW122: 0 | BX122: 0 | BY122: 0 | BZ122: 0 | CA122: 0 | CC122: 0 | CD122: 0 | CE122: 0 | CF122: 0 | CG122: 3.52 | CH122: 3 | CI122: 0 | CK122: 0 | CL122: 0 | CN122: 0 | CO122: =ROUND(IF(G122=#REF!,(BE122-AY122)*40%,0),2) ->  | CP122: =AY122 -> 441.8716 | CQ122: 0 | CS122: =ROUND(IF($D122=#REF!,$BE122-SUM(BJ122:CQ122,0),0),2) ->  | CT122: =ROUND(IF($D122=#REF!,$BE122-SUM(BJ122:CQ122,0),0),2) ->  | CU122: =ROUND(IF($G122=#REF!,$BE122-SUM(BK122:CR122,0),0),2) ->  | CV122: =ROUND(SUM(BJ122:CU122),2) ->  | CW122: =BE122-CV122 -> 
B123: 209003 | C123: 21374 | D123: بنك مصر 1 | E123: حمدى عيد سعد الدين محمود | F123: 0 | G123: دوام كامل | H123: فنى | I123: الثالثة | J123: الثالثة | K123: حرفى ميكانيكى | L123: الاسكندرية | M123: 27109242600774 | N123: 209003حمدى عيد سعد الدين محمودالثالثةالثالثةحرفى ميكانيكى الاسكندرية | O123: نعم | P123: 2070.36 | Q123: 2422.3212 | R123: 0 | S123: =ROUND(Q123*135%,2) -> 3270.13 | T123: =ROUND(Q123*15%,2) -> 363.35 | U123: 0 | V123: 0 | W123: 0 | Y123: 363.34818 | Z123: 300 | AB123: 0 | AC123: 0 | AD123: 0 | AE123: 0 | AF123: =ROUND(SUM(X123:AA123,AC123:AE123),2) -> 663.35 | AG123: 73.3 | AH123: 81.83 | AI123: 97.69 | AJ123: 0 | AK123: 200 | AL123: 41.39 | AM123: 73.81 | AN123: 94.77 | AO123: 135.2 | AP123: 144.66 | AQ123: 154.79 | AS123: 103.518 | AT123: 600 | AU123: 10 | AV123: =ROUND(SUM(AG123:AU123),2) -> 1810.96 | AW123: 10 | AX123: 0 | AY123: 435.8653 | AZ123: 0 | BB123: 0 | BC123: 8975.98 | BD123: =IF(BC123<7000,7000-BC123,0) -> 0 | BE123: =ROUND(SUM(AB123,AZ123:BD123),2) -> 8975.98 | BF123: 0 | BG123: 0 | BJ123: 792 | BK123: 51 | BL123: =(BE123-SUM($S123,AY123:BB123))/30*BH123 -> 0 | BM123: =(BE123-SUM($S123,AY123:BB123))/30*BI123 -> 0 | BN123: =IF(Sheet1!$BH123=1,Sheet1!$S123*20%,IF(Sheet1!$BH123=2,Sheet1!$S123*100%,IF(Sheet1!$BH123>2,Sheet1!$S123*100%,""))) ->  | BO123: =IF(Sheet1!$BF123<=4,Sheet1!$S123*0,IF(Sheet1!$BF123=5,Sheet1!$S123*20%,IF(Sheet1!$BF123=6,Sheet1!$S123*40%,IF(Sheet1!$BF123=7,Sheet1!$S123*50%,IF(Sheet1!$BF123>7,Sheet1!$S123*100%,""))))) -> 0 | BP123: =IF(Sheet1!$BG123<=2,Sheet1!$S123*0,IF(Sheet1!$BG123=3,Sheet1!$S123*30%,IF(Sheet1!$BG123=4,Sheet1!$S123*40%,IF(Sheet1!$BG123=5,Sheet1!$S123*50%,IF(Sheet1!$BG123>5,Sheet1!$S123*100%,""))))) -> 0 | BQ123: 0 | BR123: 0 | BS123: 0 | BT123: 3 | BU123: 0 | BV123: 0 | BW123: 0 | BX123: 0 | BY123: 0 | BZ123: 0 | CA123: 0 | CC123: 0 | CD123: 0 | CE123: 0 | CF123: 0 | CG123: 3.5 | CH123: 3 | CI123: 0 | CK123: 0 | CL123: 0 | CN123: 0 | CO123: =ROUND(IF(G123=#REF!,(BE123-AY123)*40%,0),2) ->  | CP123: 435.8653 | CQ123: 0 | CS123: =ROUND(IF($D123=#REF!,$BE123-SUM(BJ123:CQ123,0),0),2) ->  | CT123: =ROUND(IF($D123=#REF!,$BE123-SUM(BJ123:CQ123,0),0),2) ->  | CU123: =ROUND(IF($G123=#REF!,$BE123-SUM(BK123:CR123,0),0),2) -> 
B124: 209004 | C124: 21408 | D124: بنك مصر 1 | E124: جمال احمد طه عبد الله | F124: 0 | G124: دوام كامل | H124: فنى | I124: الثالثة | M124: 27210042200057 | N124: 209004جمال احمد طه عبد الله الثالثة | P124: 2210.91 | Q124: 2586.77 | R124: 0 | S124: 3492.14 | T124: 388.02 | U124: 0 | V124: 0 | W124: 0 | Y124: 388.0155 | Z124: 300 | AB124: 0 | AC124: 0 | AD124: 0 | AE124: 0 | AF124: 688.02 | AG124: 72.78 | AH124: 81.24 | AI124: 97.46 | AJ124: 0 | AK124: 190 | AL124: 44.4 | AM124: 78.82 | AN124: 101.2 | AO124: 144.38 | AP124: 154.48 | AQ124: 165.38 | AS124: 110.5455 | AT124: 600 | AU124: 8 | AV124: 1848.69 | AW124: 10 | AX124: 0 | AY124: 465.4547 | AZ124: 410.14 | BB124: 0 | BC124: 9479.09 | BD124: 0 | BE124: 9889.23 | BF124: 0 | BG124: 0 | BJ124: 836 | BK124: 35.17 | BL124: 0 | BM124: 0 | BN124: =IF(Sheet1!$BH124=1,Sheet1!$S124*20%,IF(Sheet1!$BH124=2,Sheet1!$S124*100%,IF(Sheet1!$BH124>2,Sheet1!$S124*100%,""))) ->  | BO124: =IF(Sheet1!$BF124<=4,Sheet1!$S124*0,IF(Sheet1!$BF124=5,Sheet1!$S124*20%,IF(Sheet1!$BF124=6,Sheet1!$S124*40%,IF(Sheet1!$BF124=7,Sheet1!$S124*50%,IF(Sheet1!$BF124>7,Sheet1!$S124*100%,""))))) -> 0 | BP124: =IF(Sheet1!$BG124<=2,Sheet1!$S124*0,IF(Sheet1!$BG124=3,Sheet1!$S124*30%,IF(Sheet1!$BG124=4,Sheet1!$S124*40%,IF(Sheet1!$BG124=5,Sheet1!$S124*50%,IF(Sheet1!$BG124>5,Sheet1!$S124*100%,""))))) -> 0 | BQ124: 0 | BR124: 0 | BS124: 150 | BT124: 3 | BU124: 0 | BV124: 0 | BW124: 0 | BX124: 0 | BY124: 0 | BZ124: 0 | CA124: 0 | CC124: 0 | CD124: 0 | CE124: 0 | CF124: 0 | CG124: 3.44 | CH124: 3 | CI124: 0 | CK124: 0 | CL124: 0 | CN124: 0 | CO124: =ROUND(IF(G124=#REF!,(BE124-AY124)*40%,0),2) ->  | CP124: 465.4547 | CQ124: 0 | CS124: =ROUND(IF($D124=#REF!,$BE124-SUM(BJ124:CQ124,0),0),2) ->  | CT124: =ROUND(IF($D124=#REF!,$BE124-SUM(BJ124:CQ124,0),0),2) ->  | CU124: =ROUND(IF($G124=#REF!,$BE124-SUM(BK124:CR124,0),0),2) -> 
B125: 209005 | C125: 22071 | D125: بنك مصر 1 | E125: على صلاح على حسن | F125: 0 | G125: دوام كامل | H125: فنى | I125: الاولى | J125: الأولى | K125: فنى ميكانيكى سيارات | L125: فرع السويس | M125: 26607052601348 | N125: 209005على صلاح على حسن الاولىالأولىفنى ميكانيكى سياراتفرع السويس | O125: نعم | P125: 2129.49 | Q125: 2491.5033 | R125: 0 | S125: 3363.53 | T125: 373.73 | U125: 0 | V125: 0 | W125: 0 | Y125: 373.725495 | Z125: 300 | AB125: 0 | AC125: 0 | AD125: 0 | AE125: 0 | AF125: 673.73 | AG125: 69.93 | AH125: 78.06 | AI125: 93.9 | AJ125: 0 | AK125: 190 | AL125: 42.57 | AM125: 75.92 | AN125: 97.47 | AO125: 139.06 | AP125: 148.79 | AQ125: 159.21 | AS125: 106.4745 | AT125: 600 | AU125: 10 | AV125: 1811.38 | AW125: 10 | AX125: 0 | AY125: 448.3137 | AZ125: 0 | BB125: 0 | BC125: 9172.19 | BD125: 0 | BE125: 9172.19 | BF125: 0 | BG125: 0 | BJ125: 814 | BK125: 63.67 | BL125: 0 | BM125: 0 | BN125: =IF(Sheet1!$BH125=1,Sheet1!$S125*20%,IF(Sheet1!$BH125=2,Sheet1!$S125*100%,IF(Sheet1!$BH125>2,Sheet1!$S125*100%,""))) ->  | BO125: =IF(Sheet1!$BF125<=4,Sheet1!$S125*0,IF(Sheet1!$BF125=5,Sheet1!$S125*20%,IF(Sheet1!$BF125=6,Sheet1!$S125*40%,IF(Sheet1!$BF125=7,Sheet1!$S125*50%,IF(Sheet1!$BF125>7,Sheet1!$S125*100%,""))))) -> 0 | BP125: =IF(Sheet1!$BG125<=2,Sheet1!$S125*0,IF(Sheet1!$BG125=3,Sheet1!$S125*30%,IF(Sheet1!$BG125=4,Sheet1!$S125*40%,IF(Sheet1!$BG125=5,Sheet1!$S125*50%,IF(Sheet1!$BG125>5,Sheet1!$S125*100%,""))))) -> 0 | BQ125: 0 | BR125: 0 | BS125: 0 | BT125: 3 | BU125: 0 | BV125: 0 | BW125: 0 | BX125: 0 | BY125: 0 | BZ125: 0 | CA125: 0 | CC125: 0 | CD125: 0 | CE125: 0 | CF125: 0 | CG125: 3.56 | CH125: 3 | CI125: 0 | CK125: 0 | CL125: 0 | CN125: 0 | CO125: =ROUND(IF(G125=#REF!,(BE125-AY125)*40%,0),2) ->  | CP125: 448.3137 | CQ125: 0 | CS125: =ROUND(IF($D125=#REF!,$BE125-SUM(BJ125:CQ125,0),0),2) ->  | CT125: =ROUND(IF($D125=#REF!,$BE125-SUM(BJ125:CQ125,0),0),2) ->  | CU125: =ROUND(IF($G125=#REF!,$BE125-SUM(BK125:CR125,0),0),2) -> 
B126: 209006 | C126: 21017 | D126: بنك مصر 1 | E126: احمد سامى احمد محمد | F126: 0 | G126: دوام كامل | H126: فنى | I126: الثانية | J126: الثانية | K126: ميكانيكى | L126: فرع السويس | M126: 26804252200991 | N126: 209006احمد سامى احمد محمد الثانيةالثانيةميكانيكىفرع السويس | O126: نعم | P126: 2256.83 | Q126: 2640.4911 | R126: 0 | S126: 3564.66 | T126: 396.07 | U126: 0 | V126: 0 | W126: 0 | Y126: 396.073665 | Z126: 300 | AB126: 0 | AC126: 0 | AD126: 0 | AE126: 0 | AF126: 696.07 | AG126: 79.19 | AH126: 88.42 | AI126: 106.13 | AJ126: 0 | AK126: 190 | AL126: 45.11 | AM126: 80.45 | AN126: 103.3 | AO126: 147.38 | AP126: 157.69 | AQ126: 168.73 | AS126: 112.8415 | AT126: 600 | AU126: 10 | AV126: 1889.24 | AW126: 10 | AX126: 0 | AY126: 475.1221 | AZ126: 0 | BB126: 0 | BC126: 9671.65 | BD126: 0 | BE126: 9671.65 | BF126: 0 | BG126: 0 | BJ126: 858 | BK126: 31.58 | BL126: 0 | BM126: 0 | BN126: =IF(Sheet1!$BH126=1,Sheet1!$S126*20%,IF(Sheet1!$BH126=2,Sheet1!$S126*100%,IF(Sheet1!$BH126>2,Sheet1!$S126*100%,""))) ->  | BO126: =IF(Sheet1!$BF126<=4,Sheet1!$S126*0,IF(Sheet1!$BF126=5,Sheet1!$S126*20%,IF(Sheet1!$BF126=6,Sheet1!$S126*40%,IF(Sheet1!$BF126=7,Sheet1!$S126*50%,IF(Sheet1!$BF126>7,Sheet1!$S126*100%,""))))) -> 0 | BP126: =IF(Sheet1!$BG126<=2,Sheet1!$S126*0,IF(Sheet1!$BG126=3,Sheet1!$S126*30%,IF(Sheet1!$BG126=4,Sheet1!$S126*40%,IF(Sheet1!$BG126=5,Sheet1!$S126*50%,IF(Sheet1!$BG126>5,Sheet1!$S126*100%,""))))) -> 0 | BQ126: 0 | BR126: 0 | BS126: 150 | BT126: 3 | BU126: 0 | BV126: 0 | BW126: 0 | BX126: 0 | BY126: 0 | BZ126: 0 | CA126: 0 | CC126: 0 | CD126: 0 | CE126: 0 | CF126: 0 | CG126: 3.46 | CH126: 3 | CI126: 0 | CK126: 0 | CL126: 0 | CN126: 0 | CO126: =ROUND(IF(G126=#REF!,(BE126-AY126)*40%,0),2) ->  | CP126: 475.1221 | CQ126: 0 | CS126: =ROUND(IF($D126=#REF!,$BE126-SUM(BJ126:CQ126,0),0),2) ->  | CT126: =ROUND(IF($D126=#REF!,$BE126-SUM(BJ126:CQ126,0),0),2) ->  | CU126: =ROUND(IF($G126=#REF!,$BE126-SUM(BK126:CR126,0),0),2) -> 
B127: 209007 | C127: 21312 | D127: البنك الاهلى | E127: حسن ابراهيم الدسوقى ابو زيد | F127: 0 | G127: دوام كامل | H127: ادارى | I127: الاولى | J127: الأولى | K127: كاتب شئون فنية ومتابعة | L127: فرع السويس | M127: 26702091300136 | N127: 209007حسن ابراهيم الدسوقى ابو زيدالاولىالأولىكاتب شئون فنية ومتابعةفرع السويس | O127: نعم | P127: 2416.53 | Q127: 2827.3401 | R127: 0 | S127: 3816.91 | T127: 424.1 | U127: 0 | V127: 0 | W127: 0 | Y127: 0 | Z127: 300 | AB127: 0 | AC127: 0 | AD127: 0 | AE127: 0 | AF127: 300 | AG127: 79.28 | AH127: 88.53 | AI127: 106.58 | AJ127: 0 | AK127: 190 | AL127: 48.31 | AM127: 86.15 | AN127: 110.61 | AO127: 157.81 | AP127: 168.85 | AQ127: 180.67 | AS127: 120.8265 | AT127: 600 | AU127: 8 | AV127: 1945.62 | AW127: 10 | AX127: 0 | AY127: 508.7432 | AZ127: 0 | BB127: 0 | BC127: 9832.71 | BD127: 0 | BE127: 9832.71 | BF127: 0 | BG127: 0 | BJ127: 902 | BK127: 111.83 | BL127: 0 | BM127: 0 | BN127: =IF(Sheet1!$BH127=1,Sheet1!$S127*20%,IF(Sheet1!$BH127=2,Sheet1!$S127*100%,IF(Sheet1!$BH127>2,Sheet1!$S127*100%,""))) ->  | BO127: =IF(Sheet1!$BF127<=4,Sheet1!$S127*0,IF(Sheet1!$BF127=5,Sheet1!$S127*20%,IF(Sheet1!$BF127=6,Sheet1!$S127*40%,IF(Sheet1!$BF127=7,Sheet1!$S127*50%,IF(Sheet1!$BF127>7,Sheet1!$S127*100%,""))))) -> 0 | BP127: =IF(Sheet1!$BG127<=2,Sheet1!$S127*0,IF(Sheet1!$BG127=3,Sheet1!$S127*30%,IF(Sheet1!$BG127=4,Sheet1!$S127*40%,IF(Sheet1!$BG127=5,Sheet1!$S127*50%,IF(Sheet1!$BG127>5,Sheet1!$S127*100%,""))))) -> 0 | BQ127: 147 | BR127: 0 | BS127: 0 | BT127: 3 | BU127: 1800 | BV127: 0 | BW127: 0 | BX127: 0 | BY127: 0 | BZ127: 0 | CA127: 0 | CC127: 0 | CD127: 0 | CE127: 0 | CF127: 0 | CG127: 3.95 | CH127: 5 | CI127: 0 | CK127: 0 | CL127: 0 | CN127: 0 | CO127: =ROUND(IF(G127=#REF!,(BE127-AY127)*40%,0),2) ->  | CP127: 508.7432 | CQ127: 0 | CS127: =ROUND(IF($D127=#REF!,$BE127-SUM(BJ127:CQ127,0),0),2) ->  | CT127: =ROUND(IF($D127=#REF!,$BE127-SUM(BJ127:CQ127,0),0),2) ->  | CU127: =ROUND(IF($G127=#REF!,$BE127-SUM(BK127:CR127,0),0),2) -> 
B128: 209008 | C128: 541885 | D128: بنك مصر 1 | E128: صلاح مدبولى محمد أبو زيد | F128: 0 | G128: دوام كامل | H128: فنى | I128: الاولى | J128: الأولى | K128: حرفى ميكانيكى سيارات | L128: فرع السويس | M128: 26806020400032 | N128: 209008صلاح مدبولى محمد أبو زيدالاولىالأولىحرفى ميكانيكى سياراتفرع السويس | O128: نعم | P128: 1562.4 | Q128: 1828.008 | R128: 0 | S128: 2467.81 | T128: 274.2 | U128: 0 | V128: 0 | W128: 0 | Y128: 274.2012 | Z128: 300 | AB128: 0 | AD128: 0 | AE128: 0 | AF128: 574.2 | AG128: 0 | AH128: 0 | AI128: 0 | AJ128: 192.72 | AK128: 190 | AL128: 31.23 | AM128: 55.7 | AN128: 71.52 | AO128: 102.03 | AP128: 109.17 | AQ128: 116.82 | AS128: 78.12 | AT128: 600 | AU128: 10 | AV128: 1557.31 | AW128: 10 | AX128: 0 | AY128: 328.9263 | AZ128: 0 | BB128: 0 | BC128: 7040.45 | BD128: 0 | BE128: 7040.45 | BF128: 0 | BG128: 0 | BJ128: 673.4386914 | BK128: 0 | BL128: 0 | BM128: 0 | BN128: =IF(Sheet1!$BH128=1,Sheet1!$S128*20%,IF(Sheet1!$BH128=2,Sheet1!$S128*100%,IF(Sheet1!$BH128>2,Sheet1!$S128*100%,""))) ->  | BO128: =IF(Sheet1!$BF128<=4,Sheet1!$S128*0,IF(Sheet1!$BF128=5,Sheet1!$S128*20%,IF(Sheet1!$BF128=6,Sheet1!$S128*40%,IF(Sheet1!$BF128=7,Sheet1!$S128*50%,IF(Sheet1!$BF128>7,Sheet1!$S128*100%,""))))) -> 0 | BP128: =IF(Sheet1!$BG128<=2,Sheet1!$S128*0,IF(Sheet1!$BG128=3,Sheet1!$S128*30%,IF(Sheet1!$BG128=4,Sheet1!$S128*40%,IF(Sheet1!$BG128=5,Sheet1!$S128*50%,IF(Sheet1!$BG128>5,Sheet1!$S128*100%,""))))) -> 0 | BQ128: 0 | BR128: 0 | BT128: 3 | BU128: 0 | BX128: 0 | CC128: 0 | CE128: 0 | CG128: 2.99 | CH128: 5 | CI128: 0 | CL128: 0 | CN128: 0 | CO128: =ROUND(IF(G128=#REF!,(BE128-AY128)*40%,0),2) ->  | CP128: 328.9263 | CQ128: 0 | CS128: =ROUND(IF($D128=#REF!,$BE128-SUM(BJ128:CQ128,0),0),2) ->  | CT128: =ROUND(IF($D128=#REF!,$BE128-SUM(BJ128:CQ128,0),0),2) ->  | CU128: =ROUND(IF($G128=#REF!,$BE128-SUM(BK128:CR128,0),0),2) -> 
B129: 209009 | C129: 541891 | D129: بنك مصر 1 | E129: عطا عبادي حسن محمود | F129: 0 | G129: دوام كامل | H129: فنى | I129: الثانية | J129: الثانية | K129: صانع ثالث كهربائى | L129: فرع السويس | M129: 27112202701757 | N129: 209009عطا عبادي حسن محمود الثانيةالثانيةصانع ثالث كهربائى فرع السويس | O129: نعم | P129: 1503.61 | Q129: 1759.2237 | R129: 0 | S129: 2374.95 | T129: 263.88 | U129: 0 | V129: 0 | W129: 0 | Y129: 263.883555 | Z129: 300 | AB129: 0 | AD129: 0 | AE129: 0 | AF129: 563.88 | AG129: 0 | AH129: 0 | AI129: 0 | AJ129: 182.43 | AK129: 190 | AL129: 30.06 | AM129: 53.6 | AN129: 68.83 | AO129: 98.19 | AP129: 105.06 | AQ129: 112.42 | AS129: 75.1805 | AT129: 600 | AU129: 10 | AV129: 1525.77 | AW129: 10 | AX129: 0 | AY129: 316.5495 | AZ129: 0 | BB129: 0 | BC129: 6814.25 | BD129: 185.75 | BE129: 7000 | BF129: 0 | BG129: 0 | BJ129: 651.4067871 | BK129: 0 | BL129: 0 | BM129: 0 | BN129: =IF(Sheet1!$BH129=1,Sheet1!$S129*20%,IF(Sheet1!$BH129=2,Sheet1!$S129*100%,IF(Sheet1!$BH129>2,Sheet1!$S129*100%,""))) ->  | BO129: =IF(Sheet1!$BF129<=4,Sheet1!$S129*0,IF(Sheet1!$BF129=5,Sheet1!$S129*20%,IF(Sheet1!$BF129=6,Sheet1!$S129*40%,IF(Sheet1!$BF129=7,Sheet1!$S129*50%,IF(Sheet1!$BF129>7,Sheet1!$S129*100%,""))))) -> 0 | BP129: =IF(Sheet1!$BG129<=2,Sheet1!$S129*0,IF(Sheet1!$BG129=3,Sheet1!$S129*30%,IF(Sheet1!$BG129=4,Sheet1!$S129*40%,IF(Sheet1!$BG129=5,Sheet1!$S129*50%,IF(Sheet1!$BG129>5,Sheet1!$S129*100%,""))))) -> 0 | BQ129: 0 | BR129: 0 | BT129: 3 | BU129: 0 | BX129: 0 | CC129: 0 | CE129: 0 | CG129: 3.5 | CH129: 3 | CI129: 0 | CL129: 0 | CN129: 0 | CO129: =ROUND(IF(G129=#REF!,(BE129-AY129)*40%,0),2) ->  | CP129: 316.5495 | CQ129: 0 | CS129: =ROUND(IF($D129=#REF!,$BE129-SUM(BJ129:CQ129,0),0),2) ->  | CT129: =ROUND(IF($D129=#REF!,$BE129-SUM(BJ129:CQ129,0),0),2) ->  | CU129: =ROUND(IF($G129=#REF!,$BE129-SUM(BK129:CR129,0),0),2) -> 
B130: 211001 | C130: 24213 | D130: بنك مصر 1 | E130: السيد محمد محمد أحمد قناوى | F130: 0 | G130: دوام كامل | H130: فنى | I130: الثانية | J130: الثانية | K130: حرفى نقاش | L130: فرع الاسكندرية | M130: 27412140200211 | N130: 211001السيد محمد محمد أحمد قناوىالثانيةالثانيةحرفى نقاش فرع الاسكندرية | O130: نعم | P130: 1597.14 | Q130: 1868.6538 | R130: 0 | S130: 2522.68 | T130: 280.3 | U130: 0 | V130: 0 | W130: 0 | Y130: 280.29807 | Z130: 300 | AB130: 0 | AD130: 0 | AE130: 0 | AF130: 580.3 | AG130: 55.56614 | AH130: 62.12247 | AI130: 74.44919 | AJ130: 0 | AK130: 190 | AL130: 31.92725 | AM130: 56.93693 | AN130: 73.10701 | AO130: 104.2993 | AP130: 111.6003 | AQ130: 119.4123 | AS130: 79.85698 | AT130: 600 | AU130: 10 | AV130: 1569.28 | AW130: 10 | AX130: 0 | AY130: 336.2399 | AZ130: 0 | BB130: 0 | BC130: 7167.45 | BD130: 0 | BE130: 7167.45 | BF130: 0 | BG130: 0 | BJ130: 622.3470215 | BK130: 71.17 | BL130: 0 | BM130: 0 | BN130: =IF(Sheet1!$BH130=1,Sheet1!$S130*20%,IF(Sheet1!$BH130=2,Sheet1!$S130*100%,IF(Sheet1!$BH130>2,Sheet1!$S130*100%,""))) ->  | BO130: =IF(Sheet1!$BF130<=4,Sheet1!$S130*0,IF(Sheet1!$BF130=5,Sheet1!$S130*20%,IF(Sheet1!$BF130=6,Sheet1!$S130*40%,IF(Sheet1!$BF130=7,Sheet1!$S130*50%,IF(Sheet1!$BF130>7,Sheet1!$S130*100%,""))))) -> 0 | BP130: =IF(Sheet1!$BG130<=2,Sheet1!$S130*0,IF(Sheet1!$BG130=3,Sheet1!$S130*30%,IF(Sheet1!$BG130=4,Sheet1!$S130*40%,IF(Sheet1!$BG130=5,Sheet1!$S130*50%,IF(Sheet1!$BG130>5,Sheet1!$S130*100%,""))))) -> 0 | BQ130: 0 | BR130: 0 | BT130: 3 | BU130: 0 | BX130: 0 | CC130: 0 | CE130: 0 | CG130: 3.52 | CH130: 5 | CI130: 0 | CL130: 0 | CN130: 0 | CO130: =ROUND(IF(G130=#REF!,(BE130-AY130)*40%,0),2) ->  | CP130: 336.2399 | CQ130: 0 | CS130: =ROUND(IF($D130=#REF!,$BE130-SUM(BJ130:CQ130,0),0),2) ->  | CT130: =ROUND(IF($D130=#REF!,$BE130-SUM(BJ130:CQ130,0),0),2) ->  | CU130: =ROUND(IF($G130=#REF!,$BE130-SUM(BK130:CR130,0),0),2) -> 
B131: 211002 | C131: 24220 | D131: بنك مصر 1 | E131: محمد محفوظ محمد حسن | F131: 0 | G131: دوام كامل | H131: فنى | I131: الاولى | J131: الأولى | K131: فنى لحام | L131: فرع الاسكندرية | M131: 26909190200473 | N131: 211002محمد محفوظ محمد حسنالاولىالأولىفنى لحامفرع الاسكندرية | O131: نعم | P131: 1393.893 | Q131: 1630.85481 | R131: 0 | S131: 2201.65 | T131: 244.63 | U131: 0 | V131: 0 | W131: 0 | Y131: 244.6282215 | Z131: 300 | AB131: 0 | AD131: 0 | AE131: 0 | AF131: 544.63 | AG131: 50.63 | AH131: 56.74 | AI131: 65 | AJ131: 0 | AK131: 190 | AL131: 27.8643 | AM131: 49.69134 | AN131: 63.80367 | AO131: 91.02657 | AP131: 97.39844 | AQ131: 104.2163 | AS131: 69.69467 | AT131: 600 | AU131: 10 | AV131: 1476.07 | AW131: 10 | AX131: 0 | AY131: 293.4513 | AZ131: 0 | BB131: 0 | BC131: 6401.29 | BD131: 598.71 | BE131: 7000 | BF131: 0 | BG131: 0 | BJ131: 554.8564893 | BK131: 0 | BL131: 0 | BM131: 0 | BN131: =IF(Sheet1!$BH131=1,Sheet1!$S131*20%,IF(Sheet1!$BH131=2,Sheet1!$S131*100%,IF(Sheet1!$BH131>2,Sheet1!$S131*100%,""))) ->  | BO131: =IF(Sheet1!$BF131<=4,Sheet1!$S131*0,IF(Sheet1!$BF131=5,Sheet1!$S131*20%,IF(Sheet1!$BF131=6,Sheet1!$S131*40%,IF(Sheet1!$BF131=7,Sheet1!$S131*50%,IF(Sheet1!$BF131>7,Sheet1!$S131*100%,""))))) -> 0 | BP131: =IF(Sheet1!$BG131<=2,Sheet1!$S131*0,IF(Sheet1!$BG131=3,Sheet1!$S131*30%,IF(Sheet1!$BG131=4,Sheet1!$S131*40%,IF(Sheet1!$BG131=5,Sheet1!$S131*50%,IF(Sheet1!$BG131>5,Sheet1!$S131*100%,""))))) -> 0 | BQ131: 0 | BR131: 0 | BT131: 3 | BU131: 0 | BX131: 0 | CC131: 0 | CE131: 0 | CG131: 3.17 | CH131: 5 | CI131: 0 | CL131: 0 | CN131: 0 | CO131: =ROUND(IF(G131=#REF!,(BE131-AY131)*40%,0),2) ->  | CP131: 293.4513 | CQ131: 0 | CS131: =ROUND(IF($D131=#REF!,$BE131-SUM(BJ131:CQ131,0),0),2) ->  | CT131: =ROUND(IF($D131=#REF!,$BE131-SUM(BJ131:CQ131,0),0),2) ->  | CU131: =ROUND(IF($G131=#REF!,$BE131-SUM(BK131:CR131,0),0),2) -> 
B132: 211003 | C132: 24223 | D132: بنك مصر 1 | E132: طلعت حسين حسن ابو هبل | F132: 0 | G132: دوام كامل | H132: فنى | I132: الرابعة | J132: الرابعة | K132: حرفى كهربائى | L132: اسكندرية | M132: 28302151802071 | N132: 211003طلعت حسين حسن ابو هبلالرابعةالرابعةحرفى كهربائى اسكندرية | O132: نعم | P132: 888.4413 | Q132: 1039.476321 | R132: 0 | S132: 1403.29 | T132: 155.92 | U132: 155.9214478 | V132: 0 | W132: 0 | Y132: 155.9214482 | Z132: 300 | AB132: 0 | AD132: 0 | AE132: 0 | AF132: 455.92 | AG132: 29.86031 | AH132: 33.50845 | AI132: 65 | AJ132: 0 | AK132: 200 | AL132: 33.55958 | AM132: 31.67232 | AN132: 40.66726 | AO132: 58.01862 | AP132: 70.68 | AQ132: 91.8 | AS132: 61.15586 | AT132: 600 | AU132: 10 | AV132: 1325.92 | AW132: 10 | AX132: 0 | AY132: 187.0403 | AZ132: 0 | BB132: 0 | BC132: 4733.49 | BD132: 2266.51 | BE132: 7000 | BF132: 0 | BG132: 0 | BJ132: 536.347915 | BK132: 0 | BL132: 0 | BM132: 0 | BN132: =IF(Sheet1!$BH132=1,Sheet1!$S132*20%,IF(Sheet1!$BH132=2,Sheet1!$S132*100%,IF(Sheet1!$BH132>2,Sheet1!$S132*100%,""))) ->  | BO132: =IF(Sheet1!$BF132<=4,Sheet1!$S132*0,IF(Sheet1!$BF132=5,Sheet1!$S132*20%,IF(Sheet1!$BF132=6,Sheet1!$S132*40%,IF(Sheet1!$BF132=7,Sheet1!$S132*50%,IF(Sheet1!$BF132>7,Sheet1!$S132*100%,""))))) -> 0 | BP132: =IF(Sheet1!$BG132<=2,Sheet1!$S132*0,IF(Sheet1!$BG132=3,Sheet1!$S132*30%,IF(Sheet1!$BG132=4,Sheet1!$S132*40%,IF(Sheet1!$BG132=5,Sheet1!$S132*50%,IF(Sheet1!$BG132>5,Sheet1!$S132*100%,""))))) -> 0 | BQ132: 0 | BR132: 0 | BT132: 3 | BU132: 0 | BX132: 0 | CC132: 0 | CE132: 0 | CG132: 2.53 | CH132: 5 | CI132: 0 | CL132: 0 | CN132: 0 | CO132: =ROUND(IF(G132=#REF!,(BE132-AY132)*40%,0),2) ->  | CP132: 187.0403 | CQ132: 0 | CS132: =ROUND(IF($D132=#REF!,$BE132-SUM(BJ132:CQ132,0),0),2) ->  | CT132: =ROUND(IF($D132=#REF!,$BE132-SUM(BJ132:CQ132,0),0),2) ->  | CU132: =ROUND(IF($G132=#REF!,$BE132-SUM(BK132:CR132,0),0),2) -> 
B133: 211004 | C133: 24229 | D133: بنك مصر 1 | E133: احمد محمود عبدالراضى احمد | F133: فاطمه | G133: دوام كامل | H133: حراسة وخدمات | I133: الثالثة | J133: الثالثة | K133: حرفى براد | L133: فرع المنصورة | M133: 26902062701392 | N133: 211004احمد محمود عبدالراضى احمدفاطمهالثالثةالثالثةحرفى براد فرع المنصورة | O133: نعم | P133: 1776.635 | Q133: 2078.66295 | R133: 0 | S133: 2806.19 | T133: 311.8 | U133: 0 | V133: 0 | W133: 0 | Y133: 0 | Z133: 300 | AB133: 0 | AD133: 0 | AE133: 0 | AF133: 300 | AG133: 61.712 | AH133: 68.86841 | AI133: 82.76831 | AJ133: 0 | AK133: 200 | AL133: 35.51542 | AM133: 63.33582 | AN133: 81.3232 | AO133: 116.0211 | AP133: 124.1426 | AQ133: 132.8326 | AS133: 88.83177 | AT133: 600 | AU133: 10 | AV133: 1665.35 | AW133: 10 | AX133: 0 | AY133: 374.0285 | AZ133: 0 | BB133: 0 | BC133: 7546.03 | BD133: 0 | BE133: 7546.03 | BF133: 0 | BG133: 0 | BJ133: 683.4597021 | BK133: 140.5 | BL133: 0 | BM133: 0 | BN133: =IF(Sheet1!$BH133=1,Sheet1!$S133*20%,IF(Sheet1!$BH133=2,Sheet1!$S133*100%,IF(Sheet1!$BH133>2,Sheet1!$S133*100%,""))) ->  | BO133: =IF(Sheet1!$BF133<=4,Sheet1!$S133*0,IF(Sheet1!$BF133=5,Sheet1!$S133*20%,IF(Sheet1!$BF133=6,Sheet1!$S133*40%,IF(Sheet1!$BF133=7,Sheet1!$S133*50%,IF(Sheet1!$BF133>7,Sheet1!$S133*100%,""))))) -> 0 | BP133: =IF(Sheet1!$BG133<=2,Sheet1!$S133*0,IF(Sheet1!$BG133=3,Sheet1!$S133*30%,IF(Sheet1!$BG133=4,Sheet1!$S133*40%,IF(Sheet1!$BG133=5,Sheet1!$S133*50%,IF(Sheet1!$BG133>5,Sheet1!$S133*100%,""))))) -> 0 | BQ133: 0 | BR133: 0 | BT133: 3 | BU133: 0 | BX133: 0 | CA133: 500 | CC133: 0 | CE133: 0 | CG133: 3.93 | CH133: 5 | CI133: 0 | CL133: 0 | CN133: 0 | CO133: =ROUND(IF(G133=#REF!,(BE133-AY133)*40%,0),2) ->  | CP133: 374.0285 | CQ133: 0 | CS133: =ROUND(IF($D133=#REF!,$BE133-SUM(BJ133:CQ133,0),0),2) ->  | CT133: =ROUND(IF($D133=#REF!,$BE133-SUM(BJ133:CQ133,0),0),2) ->  | CU133: =ROUND(IF($G133=#REF!,$BE133-SUM(BK133:CR133,0),0),2) -> 
B134: 211005 | C134: 24235 | D134: بنك مصر 1 | E134: محمد انور محمد بيومي | F134: 0 | G134: دوام كامل | H134: فنى | I134: الاولى | J134: الأولى | K134: فنى ميكانيكى سيارات | L134: فرع الاسكندرية | M134: 27803250200355 | N134: 211005محمد انور محمد بيوميالاولىالأولىفنى ميكانيكى سياراتفرع الاسكندرية | O134: نعم | P134: 1463.843 | Q134: 1712.69631 | R134: 0 | S134: 2312.14 | T134: 256.9 | U134: 0 | V134: 0 | W134: 0 | Y134: 256.9044465 | Z134: 300 | AB134: 0 | AD134: 0 | AE134: 0 | AF134: 556.9 | AG134: 50.96166 | AH134: 56.81129 | AI134: 68.14503 | AJ134: 0 | AK134: 190 | AL134: 29.26261 | AM134: 52.18498 | AN134: 67.00552 | AO134: 95.59453 | AP134: 102.2862 | AQ134: 109.4462 | AS134: 73.19213 | AT134: 600 | AU134: 10 | AV134: 1504.89 | AW134: 10 | AX134: 0 | AY134: 308.1774 | AZ134: 0 | BB134: 0 | BC134: 6661.7 | BD134: 338.3 | BE134: 7000 | BF134: 0 | BG134: 0 | BJ134: 577.72 | BK134: 0 | BL134: 0 | BM134: 0 | BN134: =IF(Sheet1!$BH134=1,Sheet1!$S134*20%,IF(Sheet1!$BH134=2,Sheet1!$S134*100%,IF(Sheet1!$BH134>2,Sheet1!$S134*100%,""))) ->  | BO134: =IF(Sheet1!$BF134<=4,Sheet1!$S134*0,IF(Sheet1!$BF134=5,Sheet1!$S134*20%,IF(Sheet1!$BF134=6,Sheet1!$S134*40%,IF(Sheet1!$BF134=7,Sheet1!$S134*50%,IF(Sheet1!$BF134>7,Sheet1!$S134*100%,""))))) -> 0 | BP134: =IF(Sheet1!$BG134<=2,Sheet1!$S134*0,IF(Sheet1!$BG134=3,Sheet1!$S134*30%,IF(Sheet1!$BG134=4,Sheet1!$S134*40%,IF(Sheet1!$BG134=5,Sheet1!$S134*50%,IF(Sheet1!$BG134>5,Sheet1!$S134*100%,""))))) -> 0 | BQ134: 0 | BR134: 0 | BT134: 3 | BU134: 0 | BX134: 0 | CC134: 0 | CE134: 0 | CG134: 3.28 | CH134: 5 | CI134: 0 | CL134: 0 | CN134: 0 | CO134: =ROUND(IF(G134=#REF!,(BE134-AY134)*40%,0),2) ->  | CP134: 308.1774 | CQ134: 0 | CS134: =ROUND(IF($D134=#REF!,$BE134-SUM(BJ134:CQ134,0),0),2) ->  | CT134: =ROUND(IF($D134=#REF!,$BE134-SUM(BJ134:CQ134,0),0),2) ->  | CU134: =ROUND(IF($G134=#REF!,$BE134-SUM(BK134:CR134,0),0),2) -> 
B135: 211006 | C135: 24245 | D135: بنك مصر 1 | E135: تامر حافظ بسيونى حافظ | F135: 0 | G135: دوام كامل | H135: حراسة وخدمات | I135: الرابعة | J135: الرابعة | K135: حرفى سمكرى | L135: اسكندرية | M135: 27908220201612 | N135: 211006تامر حافظ بسيونى حافظالرابعةالرابعةحرفى سمكرىاسكندرية | O135: نعم | P135: 1011.168 | Q135: 1183.06656 | R135: 0 | S135: 1597.14 | T135: 177.46 | U135: 0 | V135: 0 | W135: 0 | Y135: 0 | Z135: 300 | AB135: 0 | AD135: 0 | AE135: 0 | AF135: 300 | AG135: 35.32719 | AH135: 39.35801 | AI135: 65 | AJ135: 0 | AK135: 200 | AL135: 27.83511 | AM135: 36.04745 | AN135: 46.28493 | AO135: 66.03317 | AP135: 70.65549 | AQ135: 83.8 | AS135: 50.55842 | AT135: 600 | AU135: 8 | AV135: 1328.9 | AW135: 10 | AX135: 0 | AY135: 212.8775 | AZ135: 0 | BB135: 0 | BC135: 4809.44 | BD135: 2190.56 | BE135: 7000 | BF135: 0 | BG135: 0 | BJ135: 530.6982764 | BK135: 0 | BL135: 0 | BM135: 0 | BN135: =IF(Sheet1!$BH135=1,Sheet1!$S135*20%,IF(Sheet1!$BH135=2,Sheet1!$S135*100%,IF(Sheet1!$BH135>2,Sheet1!$S135*100%,""))) ->  | BO135: =IF(Sheet1!$BF135<=4,Sheet1!$S135*0,IF(Sheet1!$BF135=5,Sheet1!$S135*20%,IF(Sheet1!$BF135=6,Sheet1!$S135*40%,IF(Sheet1!$BF135=7,Sheet1!$S135*50%,IF(Sheet1!$BF135>7,Sheet1!$S135*100%,""))))) -> 0 | BP135: =IF(Sheet1!$BG135<=2,Sheet1!$S135*0,IF(Sheet1!$BG135=3,Sheet1!$S135*30%,IF(Sheet1!$BG135=4,Sheet1!$S135*40%,IF(Sheet1!$BG135=5,Sheet1!$S135*50%,IF(Sheet1!$BG135>5,Sheet1!$S135*100%,""))))) -> 0 | BQ135: 0 | BR135: 0 | BT135: 3 | BU135: 0 | BX135: 0 | CC135: 0 | CE135: 0 | CG135: 2.62 | CH135: 5 | CI135: 0 | CL135: 0 | CN135: 0 | CO135: =ROUND(IF(G135=#REF!,(BE135-AY135)*40%,0),2) ->  | CP135: 212.8775 | CQ135: 0 | CS135: =ROUND(IF($D135=#REF!,$BE135-SUM(BJ135:CQ135,0),0),2) ->  | CT135: =ROUND(IF($D135=#REF!,$BE135-SUM(BJ135:CQ135,0),0),2) ->  | CU135: =ROUND(IF($G135=#REF!,$BE135-SUM(BK135:CR135,0),0),2) -> 
B136: 211007 | C136: 24272 | D136: بنك مصر 1 | E136: خالد خلف محمود بدوى | F136: 0 | G136: دوام كامل | H136: فنى | I136: الرابعة | J136: الرابعة | K136: حرفى ميكانيكى | L136: اسكندرية | M136: 27003120200438 | N136: 211007خالد خلف محمود بدوىالرابعةالرابعةحرفى ميكانيكىاسكندرية | O136: نعم | P136: 1041.653 | Q136: 1218.73401 | R136: 0 | S136: 1645.29 | T136: 182.81 | U136: 0 | V136: 0 | W136: 0 | Y136: 182.8101015 | Z136: 300 | AB136: 0 | AD136: 0 | AE136: 0 | AF136: 482.81 | AG136: 36.7534 | AH136: 40.92685 | AI136: 65 | AJ136: 0 | AK136: 200 | AL136: 26.41316 | AM136: 37.13422 | AN136: 47.68034 | AO136: 68.02396 | AP136: 72.78564 | AQ136: 81.8 | AS136: 52.08267 | AT136: 600 | AU136: 10 | AV136: 1338.6 | AW136: 10 | AX136: 0 | AY136: 219.2955 | AZ136: 0 | BB136: 0 | BC136: 5097.54 | BD136: 1902.46 | BE136: 7000 | BF136: 0 | BG136: 0 | BJ136: 529.1957129 | BK136: 0 | BL136: 0 | BM136: 0 | BN136: =IF(Sheet1!$BH136=1,Sheet1!$S136*20%,IF(Sheet1!$BH136=2,Sheet1!$S136*100%,IF(Sheet1!$BH136>2,Sheet1!$S136*100%,""))) ->  | BO136: =IF(Sheet1!$BF136<=4,Sheet1!$S136*0,IF(Sheet1!$BF136=5,Sheet1!$S136*20%,IF(Sheet1!$BF136=6,Sheet1!$S136*40%,IF(Sheet1!$BF136=7,Sheet1!$S136*50%,IF(Sheet1!$BF136>7,Sheet1!$S136*100%,""))))) -> 0 | BP136: =IF(Sheet1!$BG136<=2,Sheet1!$S136*0,IF(Sheet1!$BG136=3,Sheet1!$S136*30%,IF(Sheet1!$BG136=4,Sheet1!$S136*40%,IF(Sheet1!$BG136=5,Sheet1!$S136*50%,IF(Sheet1!$BG136>5,Sheet1!$S136*100%,""))))) -> 0 | BQ136: 0 | BR136: 0 | BT136: 3 | BU136: 0 | BX136: 0 | CC136: 0 | CE136: 0 | CG136: 3.23 | CH136: 5 | CI136: 0 | CL136: 0 | CN136: 0 | CO136: =ROUND(IF(G136=#REF!,(BE136-AY136)*40%,0),2) ->  | CP136: 219.2955 | CQ136: 0 | CS136: =ROUND(IF($D136=#REF!,$BE136-SUM(BJ136:CQ136,0),0),2) ->  | CT136: =ROUND(IF($D136=#REF!,$BE136-SUM(BJ136:CQ136,0),0),2) ->  | CU136: =ROUND(IF($G136=#REF!,$BE136-SUM(BK136:CR136,0),0),2) -> 
B137: 211008 | C137: 24274 | D137: بنك مصر 1 | E137: خالد عبد العزيز محمد مصطفى | F137: 0 | G137: دوام كامل | H137: حراسة وخدمات | I137: الثالثة | J137: الثالثة | K137: حرفى ميكانيكى | L137: فرع الزقازيق | M137: 27108130201374 | N137: 211008خالد عبد العزيز محمد مصطفىالثالثةالثالثةحرفى ميكانيكى فرع الزقازيق | O137: نعم | P137: 1839.869 | Q137: 2152.64673 | R137: 0 | S137: 2906.07 | T137: 322.9 | U137: 0 | V137: 0 | W137: 0 | Y137: 0 | Z137: 300 | AB137: 0 | AD137: 0 | AE137: 0 | AF137: 300 | AG137: 64.26529 | AH137: 71.72884 | AI137: 85.6546 | AJ137: 0 | AK137: 200 | AL137: 36.77946 | AM137: 65.59004 | AN137: 84.21762 | AO137: 120.1505 | AP137: 128.561 | AQ137: 137.5603 | AS137: 91.99343 | AT137: 600 | AU137: 10 | AV137: 1696.5 | AW137: 10 | AX137: 0 | AY137: 387.3408 | AZ137: 0 | BB137: 0 | BC137: 7775.46 | BD137: 0 | BE137: 7775.46 | BF137: 0 | BG137: 0 | BJ137: 704.6919043 | BK137: 120.25 | BL137: 0 | BM137: 0 | BN137: =IF(Sheet1!$BH137=1,Sheet1!$S137*20%,IF(Sheet1!$BH137=2,Sheet1!$S137*100%,IF(Sheet1!$BH137>2,Sheet1!$S137*100%,""))) ->  | BO137: =IF(Sheet1!$BF137<=4,Sheet1!$S137*0,IF(Sheet1!$BF137=5,Sheet1!$S137*20%,IF(Sheet1!$BF137=6,Sheet1!$S137*40%,IF(Sheet1!$BF137=7,Sheet1!$S137*50%,IF(Sheet1!$BF137>7,Sheet1!$S137*100%,""))))) -> 0 | BP137: =IF(Sheet1!$BG137<=2,Sheet1!$S137*0,IF(Sheet1!$BG137=3,Sheet1!$S137*30%,IF(Sheet1!$BG137=4,Sheet1!$S137*40%,IF(Sheet1!$BG137=5,Sheet1!$S137*50%,IF(Sheet1!$BG137>5,Sheet1!$S137*100%,""))))) -> 0 | BQ137: 0 | BR137: 0 | BT137: 3 | BU137: 0 | BX137: 0 | CC137: 0 | CE137: 0 | CG137: 3.85 | CH137: 5 | CI137: 0 | CL137: 0 | CN137: 0 | CO137: =ROUND(IF(G137=#REF!,(BE137-AY137)*40%,0),2) ->  | CP137: 387.3408 | CQ137: 0 | CS137: =ROUND(IF($D137=#REF!,$BE137-SUM(BJ137:CQ137,0),0),2) ->  | CT137: =ROUND(IF($D137=#REF!,$BE137-SUM(BJ137:CQ137,0),0),2) ->  | CU137: =ROUND(IF($G137=#REF!,$BE137-SUM(BK137:CR137,0),0),2) -> 
B138: 211009 | C138: 24293 | D138: بنك مصر 1 | E138: عزت أنور جيد سعدان | F138: 0 | G138: دوام كامل | H138: فنى | I138: الاولى | J138: الأولى | K138: حرفى ميكانيكى سيارات | L138: فرع الاسكندرية | M138: 27004260201155 | N138: 211009عزت أنور جيد سعدانالاولىالأولىحرفى ميكانيكى سياراتفرع الاسكندرية | O138: نعم | P138: 2219.595 | Q138: 2596.92615 | R138: 0 | S138: 3505.85 | T138: 389.54 | U138: 0 | V138: 0 | W138: 0 | Y138: 389.5389225 | Z138: 300 | AB138: 0 | AD138: 0 | AE138: 0 | AF138: 689.54 | AG138: 76.96215 | AH138: 85.94149 | AI138: 103.4541 | AJ138: 0 | AK138: 190 | AL138: 44.37029 | AM138: 79.12702 | AN138: 101.5991 | AO138: 144.948 | AP138: 155.0944 | AQ138: 165.951 | AS138: 110.9797 | AT138: 600 | AU138: 8 | AV138: 1866.43 | AW138: 10 | AX138: 0 | AY138: 467.2831 | AZ138: 0 | BB138: 0 | BC138: 9525.57 | BD138: 0 | BE138: 9525.57 | BF138: 0 | BG138: 0 | BJ138: 830.3085742 | BK138: 104 | BL138: 0 | BM138: 0 | BN138: =IF(Sheet1!$BH138=1,Sheet1!$S138*20%,IF(Sheet1!$BH138=2,Sheet1!$S138*100%,IF(Sheet1!$BH138>2,Sheet1!$S138*100%,""))) ->  | BO138: =IF(Sheet1!$BF138<=4,Sheet1!$S138*0,IF(Sheet1!$BF138=5,Sheet1!$S138*20%,IF(Sheet1!$BF138=6,Sheet1!$S138*40%,IF(Sheet1!$BF138=7,Sheet1!$S138*50%,IF(Sheet1!$BF138>7,Sheet1!$S138*100%,""))))) -> 0 | BP138: =IF(Sheet1!$BG138<=2,Sheet1!$S138*0,IF(Sheet1!$BG138=3,Sheet1!$S138*30%,IF(Sheet1!$BG138=4,Sheet1!$S138*40%,IF(Sheet1!$BG138=5,Sheet1!$S138*50%,IF(Sheet1!$BG138>5,Sheet1!$S138*100%,""))))) -> 0 | BQ138: 0 | BR138: 0 | BT138: 3 | BU138: 0 | BX138: 0 | CC138: 0 | CE138: 0 | CG138: 3.89 | CH138: 5 | CI138: 0 | CL138: 0 | CN138: 0 | CO138: =ROUND(IF(G138=#REF!,(BE138-AY138)*40%,0),2) ->  | CP138: 467.2831 | CQ138: 0 | CS138: =ROUND(IF($D138=#REF!,$BE138-SUM(BJ138:CQ138,0),0),2) ->  | CT138: =ROUND(IF($D138=#REF!,$BE138-SUM(BJ138:CQ138,0),0),2) ->  | CU138: =ROUND(IF($G138=#REF!,$BE138-SUM(BK138:CR138,0),0),2) -> 
B139: 211010 | C139: 24322 | D139: بنك مصر 1 | E139: صفوت إبراهيم حمزه الجمسي | F139: 0 | G139: دوام كامل | H139: فنى | I139: الثانية | J139: الثانية | K139: سروجى | L139: فرع الاسكندرية | M139: 26512120201611 | N139: 211010صفوت إبراهيم حمزه الجمسيالثانيةالثانيةسروجى فرع الاسكندرية | O139: نعم | P139: 1892.342 | Q139: 2214.04014 | R139: 0 | S139: 2988.95 | T139: 332.11 | U139: 0 | V139: 0 | W139: 0 | Y139: 332.106021 | Z139: 300 | AB139: 0 | AD139: 0 | AE139: 0 | AF139: 632.11 | AG139: 65.72939 | AH139: 73.53777 | AI139: 88.25484 | AJ139: 0 | AK139: 190 | AL139: 37.82842 | AM139: 67.46069 | AN139: 86.61952 | AO139: 123.5772 | AP139: 132.2276 | AQ139: 141.4835 | AS139: 94.6171 | AT139: 600 | AU139: 10 | AV139: 1711.34 | AW139: 10 | AX139: 0 | AY139: 398.3878 | AZ139: 0 | BB139: 0 | BC139: 8286.94 | BD139: 0 | BE139: 8286.94 | BF139: 0 | BG139: 0 | BJ139: 721.105 | BK139: 0 | BL139: 0 | BM139: 0 | BN139: =IF(Sheet1!$BH139=1,Sheet1!$S139*20%,IF(Sheet1!$BH139=2,Sheet1!$S139*100%,IF(Sheet1!$BH139>2,Sheet1!$S139*100%,""))) ->  | BO139: =IF(Sheet1!$BF139<=4,Sheet1!$S139*0,IF(Sheet1!$BF139=5,Sheet1!$S139*20%,IF(Sheet1!$BF139=6,Sheet1!$S139*40%,IF(Sheet1!$BF139=7,Sheet1!$S139*50%,IF(Sheet1!$BF139>7,Sheet1!$S139*100%,""))))) -> 0 | BP139: =IF(Sheet1!$BG139<=2,Sheet1!$S139*0,IF(Sheet1!$BG139=3,Sheet1!$S139*30%,IF(Sheet1!$BG139=4,Sheet1!$S139*40%,IF(Sheet1!$BG139=5,Sheet1!$S139*50%,IF(Sheet1!$BG139>5,Sheet1!$S139*100%,""))))) -> 0 | BQ139: 0 | BR139: 0 | BT139: 3 | BU139: 0 | BX139: 0 | CC139: 0 | CE139: 0 | CG139: 3.44 | CH139: 5 | CI139: 0 | CL139: 0 | CN139: 0 | CO139: =ROUND(IF(G139=#REF!,(BE139-AY139)*40%,0),2) ->  | CP139: 398.3878 | CQ139: 0 | CS139: =ROUND(IF($D139=#REF!,$BE139-SUM(BJ139:CQ139,0),0),2) ->  | CT139: =ROUND(IF($D139=#REF!,$BE139-SUM(BJ139:CQ139,0),0),2) ->  | CU139: =ROUND(IF($G139=#REF!,$BE139-SUM(BK139:CR139,0),0),2) -> 
B140: 211011 | C140: 24323 | D140: بنك مصر 1 | E140: عمر حنفى مرسى سرحان | F140: 0 | G140: دوام كامل | H140: فنى | I140: الثانية | J140: الثانية | K140: ميكانيكى | L140: فرع الاسكندرية | M140: 27610210201593 | N140: 211011عمر حنفى مرسى سرحانالثانيةالثانيةميكانيكى فرع الاسكندرية | O140: نعم | P140: 1892.342 | Q140: 2214.04014 | R140: 0 | S140: 2988.95 | T140: 332.11 | U140: 0 | V140: 0 | W140: 0 | Y140: 332.106021 | Z140: 300 | AB140: 0 | AD140: 0 | AE140: 0 | AF140: 632.11 | AG140: 65.72939 | AH140: 73.53777 | AI140: 88.25484 | AJ140: 0 | AK140: 190 | AL140: 37.82842 | AM140: 67.46069 | AN140: 86.61952 | AO140: 123.5772 | AP140: 132.2276 | AQ140: 141.4835 | AS140: 94.6171 | AT140: 600 | AU140: 10 | AV140: 1711.34 | AW140: 10 | AX140: 0 | AY140: 398.3878 | AZ140: 0 | BB140: 0 | BC140: 8286.94 | BD140: 0 | BE140: 8286.94 | BF140: 0 | BG140: 0 | BJ140: 721.105 | BK140: 0.08 | BL140: 0 | BM140: 0 | BN140: =IF(Sheet1!$BH140=1,Sheet1!$S140*20%,IF(Sheet1!$BH140=2,Sheet1!$S140*100%,IF(Sheet1!$BH140>2,Sheet1!$S140*100%,""))) ->  | BO140: =IF(Sheet1!$BF140<=4,Sheet1!$S140*0,IF(Sheet1!$BF140=5,Sheet1!$S140*20%,IF(Sheet1!$BF140=6,Sheet1!$S140*40%,IF(Sheet1!$BF140=7,Sheet1!$S140*50%,IF(Sheet1!$BF140>7,Sheet1!$S140*100%,""))))) -> 0 | BP140: =IF(Sheet1!$BG140<=2,Sheet1!$S140*0,IF(Sheet1!$BG140=3,Sheet1!$S140*30%,IF(Sheet1!$BG140=4,Sheet1!$S140*40%,IF(Sheet1!$BG140=5,Sheet1!$S140*50%,IF(Sheet1!$BG140>5,Sheet1!$S140*100%,""))))) -> 0 | BQ140: 0 | BR140: 0 | BT140: 3 | BU140: 0 | BX140: 0 | CC140: 0 | CE140: 0 | CG140: 3.42 | CH140: 5 | CI140: 0 | CL140: 0 | CN140: 0 | CO140: =ROUND(IF(G140=#REF!,(BE140-AY140)*40%,0),2) ->  | CP140: 398.3878 | CQ140: 0 | CS140: =ROUND(IF($D140=#REF!,$BE140-SUM(BJ140:CQ140,0),0),2) ->  | CT140: =ROUND(IF($D140=#REF!,$BE140-SUM(BJ140:CQ140,0),0),2) ->  | CU140: =ROUND(IF($G140=#REF!,$BE140-SUM(BK140:CR140,0),0),2) -> 
B141: 211012 | C141: 1279 | D141: بنك مصر 2 | E141: احمد لبيب محمد السعيد | F141: 0 | G141: دوام كامل | H141: فنى | I141: الاولى | J141: الأولى | K141: فنى ميكانيكى سيارات | L141: فرع الاسكندرية | M141: 17011050800871 | N141: 211012احمد لبيب محمد السعيدالاولىالأولىفنى ميكانيكى سياراتفرع الاسكندرية | O141: نعم | P141: 1898.04 | Q141: 2220.7068 | R141: 0 | S141: 2997.95 | T141: 333.11 | U141: 0 | V141: 0 | W141: 0 | Y141: 333.10602 | Z141: 300 | AB141: 0 | AD141: 0 | AE141: 0 | AF141: 633.11 | AG141: 66.71 | AH141: 74.31 | AI141: 89.22 | AJ141: 0 | AK141: 190 | AL141: 37.94 | AM141: 67.66 | AN141: 86.88 | AO141: 123.95 | AP141: 132.63 | AQ141: 141.91 | AS141: 94.902 | AT141: 600 | AU141: 8 | AV141: 1714.11 | AW141: 10 | AX141: 0 | AY141: 399.5874 | AZ141: 0 | BB141: 0 | BC141: 8308.57 | BD141: 0 | BE141: 8308.57 | BF141: 0 | BG141: 0 | BJ141: 726.3860742 | BK141: 0 | BL141: 0 | BM141: 0 | BN141: =IF(Sheet1!$BH141=1,Sheet1!$S141*20%,IF(Sheet1!$BH141=2,Sheet1!$S141*100%,IF(Sheet1!$BH141>2,Sheet1!$S141*100%,""))) ->  | BO141: =IF(Sheet1!$BF141<=4,Sheet1!$S141*0,IF(Sheet1!$BF141=5,Sheet1!$S141*20%,IF(Sheet1!$BF141=6,Sheet1!$S141*40%,IF(Sheet1!$BF141=7,Sheet1!$S141*50%,IF(Sheet1!$BF141>7,Sheet1!$S141*100%,""))))) -> 0 | BP141: =IF(Sheet1!$BG141<=2,Sheet1!$S141*0,IF(Sheet1!$BG141=3,Sheet1!$S141*30%,IF(Sheet1!$BG141=4,Sheet1!$S141*40%,IF(Sheet1!$BG141=5,Sheet1!$S141*50%,IF(Sheet1!$BG141>5,Sheet1!$S141*100%,""))))) -> 0 | BQ141: 0 | BR141: 0 | BT141: 3 | BU141: 0 | BX141: 0 | CC141: 0 | CE141: 0 | CG141: 3.17 | CH141: 5 | CI141: 0 | CL141: 0 | CN141: 0 | CO141: =ROUND(IF(G141=#REF!,(BE141-AY141)*40%,0),2) ->  | CP141: 399.5874 | CQ141: 0 | CS141: =ROUND(IF($D141=#REF!,$BE141-SUM(BJ141:CQ141,0),0),2) ->  | CT141: =ROUND(IF($D141=#REF!,$BE141-SUM(BJ141:CQ141,0),0),2) ->  | CU141: =ROUND(IF($G141=#REF!,$BE141-SUM(BK141:CR141,0),0),2) -> 
B142: 211013 | C142: 35037 | D142: البنك الاهلى | E142: نبيل علي حسين علي | F142: 0 | G142: دوام كامل | H142: فنى | I142: الثانية | J142: الثانية | K142: سمكري | L142: اسكندريه | M142: 26712260201211 | N142: 211013نبيل علي حسين علي الثانيةالثانيةسمكرياسكندريه | O142: نعم | P142: 2232.04 | Q142: 2611.4868 | R142: 0 | S142: 3525.51 | T142: 391.72 | U142: 0 | V142: 0 | W142: 0 | Y142: 391.72302 | Z142: 300 | AB142: 0 | AD142: 0 | AE142: 0 | AF142: 691.72 | AG142: 0 | AH142: 0 | AI142: 0 | AJ142: 460.81 | AK142: 0 | AL142: 44.62 | AM142: 79.57 | AN142: 102.17 | AO142: 145.76 | AP142: 155.96 | AQ142: 166.88 | AS142: 111.602 | AT142: 600 | AU142: 10 | AV142: 1877.37 | AW142: 10 | AX142: 0 | AY142: 469.9032 | AZ142: 0 | BB142: 0 | BC142: 9577.71 | BD142: 0 | BE142: 9577.71 | BF142: 0 | BG142: 0 | BJ142: 847.6864258 | BK142: 62.92 | BL142: 0 | BM142: 0 | BN142: =IF(Sheet1!$BH142=1,Sheet1!$S142*20%,IF(Sheet1!$BH142=2,Sheet1!$S142*100%,IF(Sheet1!$BH142>2,Sheet1!$S142*100%,""))) ->  | BO142: =IF(Sheet1!$BF142<=4,Sheet1!$S142*0,IF(Sheet1!$BF142=5,Sheet1!$S142*20%,IF(Sheet1!$BF142=6,Sheet1!$S142*40%,IF(Sheet1!$BF142=7,Sheet1!$S142*50%,IF(Sheet1!$BF142>7,Sheet1!$S142*100%,""))))) -> 0 | BP142: =IF(Sheet1!$BG142<=2,Sheet1!$S142*0,IF(Sheet1!$BG142=3,Sheet1!$S142*30%,IF(Sheet1!$BG142=4,Sheet1!$S142*40%,IF(Sheet1!$BG142=5,Sheet1!$S142*50%,IF(Sheet1!$BG142>5,Sheet1!$S142*100%,""))))) -> 0 | BQ142: 0 | BR142: 0 | BT142: 3 | BU142: 0 | BX142: 0 | CC142: 0 | CE142: 0 | CG142: 3.94 | CH142: 3 | CI142: 0 | CL142: 0 | CN142: 0 | CO142: =ROUND(IF(G142=#REF!,(BE142-AY142)*40%,0),2) ->  | CP142: 469.9032 | CQ142: 0 | CS142: =ROUND(IF($D142=#REF!,$BE142-SUM(BJ142:CQ142,0),0),2) ->  | CT142: =ROUND(IF($D142=#REF!,$BE142-SUM(BJ142:CQ142,0),0),2) ->  | CU142: =ROUND(IF($G142=#REF!,$BE142-SUM(BK142:CR142,0),0),2) -> 
B143: 211015 | C143: 35042 | D143: البنك الاهلى | E143: سعد راغب بشاي سويحه | F143: 0 | G143: دوام كامل | H143: فنى | I143: الثالثة | M143: 26609300200471 | N143: 211015سعد راغب بشاي سويحهالثالثة | P143: 2115.53 | Q143: 2476.34 | R143: 0 | S143: 3343.06 | T143: 371.45 | U143: 0 | V143: 0 | W143: 0 | Y143: 371.451 | Z143: 300 | AB143: 0 | AD143: 0 | AE143: 0 | AF143: 671.45 | AG143: 0 | AH143: 0 | AI143: 0 | AJ143: 430.58 | AK143: 0 | AL143: 42.29 | AM143: 75.41 | AN143: 96.84 | AO143: 138.15 | AP143: 147.82 | AQ143: 158.17 | AS143: 105.7765 | AT143: 600 | AU143: 10 | AV143: 1805.04 | AW143: 10 | AX143: 0 | AY143: 445.3748 | AZ143: 392.44 | BB143: 0 | BC143: 9122.71 | BD143: 0 | BE143: 9515.15 | BF143: 0 | BG143: 0 | BJ143: 806.2801807 | BK143: 0 | BL143: 0 | BM143: 0 | BN143: =IF(Sheet1!$BH143=1,Sheet1!$S143*20%,IF(Sheet1!$BH143=2,Sheet1!$S143*100%,IF(Sheet1!$BH143>2,Sheet1!$S143*100%,""))) ->  | BO143: =IF(Sheet1!$BF143<=4,Sheet1!$S143*0,IF(Sheet1!$BF143=5,Sheet1!$S143*20%,IF(Sheet1!$BF143=6,Sheet1!$S143*40%,IF(Sheet1!$BF143=7,Sheet1!$S143*50%,IF(Sheet1!$BF143>7,Sheet1!$S143*100%,""))))) -> 0 | BP143: =IF(Sheet1!$BG143<=2,Sheet1!$S143*0,IF(Sheet1!$BG143=3,Sheet1!$S143*30%,IF(Sheet1!$BG143=4,Sheet1!$S143*40%,IF(Sheet1!$BG143=5,Sheet1!$S143*50%,IF(Sheet1!$BG143>5,Sheet1!$S143*100%,""))))) -> 0 | BQ143: 0 | BR143: 0 | BT143: 3 | BU143: 0 | BX143: 0 | CC143: 0 | CE143: 0 | CG143: 3.76 | CH143: 3 | CI143: 0 | CL143: 0 | CN143: 0 | CO143: =ROUND(IF(G143=#REF!,(BE143-AY143)*40%,0),2) ->  | CP143: 445.3748 | CQ143: 0 | CS143: =ROUND(IF($D143=#REF!,$BE143-SUM(BJ143:CQ143,0),0),2) ->  | CT143: =ROUND(IF($D143=#REF!,$BE143-SUM(BJ143:CQ143,0),0),2) ->  | CU143: =ROUND(IF($G143=#REF!,$BE143-SUM(BK143:CR143,0),0),2) -> 
B144: 211016 | C144: 35304 | D144: البنك الاهلى | E144: محمد يونس حامد غزالي | F144: 0 | G144: دوام كامل | H144: فنى | I144: الثانية | J144: الثانية | K144: نقاش | L144: فرع الاسكندرية | M144: 27408090201736 | N144: 211016محمد يونس حامد غزاليالثانيةالثانيةنقاشفرع الاسكندرية | O144: نعم | P144: 1314.78 | Q144: 1538.2926 | R144: 0 | S144: 2076.7 | T144: 230.74 | U144: 0 | V144: 0 | W144: 0 | Y144: 230.74389 | Z144: 300 | AB144: 0 | AD144: 0 | AE144: 0 | AF144: 530.74 | AG144: 0 | AH144: 0 | AI144: 0 | AJ144: 361.04 | AK144: 0 | AL144: 28.12 | AM144: 50.15 | AN144: 64.4 | AO144: 91.87 | AP144: 0 | AQ144: 98.3 | AS144: 65.739 | AT144: 600 | AU144: 8 | AV144: 1367.62 | AW144: 10 | AX144: 0 | AY144: 276.7958 | AZ144: 0 | BB144: 0 | BC144: 6030.89 | BD144: 969.11 | BE144: 7000 | BF144: 0 | BG144: 0 | BJ144: 538.1551807 | BK144: 0 | BL144: 0 | BM144: 0 | BN144: =IF(Sheet1!$BH144=1,Sheet1!$S144*20%,IF(Sheet1!$BH144=2,Sheet1!$S144*100%,IF(Sheet1!$BH144>2,Sheet1!$S144*100%,""))) ->  | BO144: =IF(Sheet1!$BF144<=4,Sheet1!$S144*0,IF(Sheet1!$BF144=5,Sheet1!$S144*20%,IF(Sheet1!$BF144=6,Sheet1!$S144*40%,IF(Sheet1!$BF144=7,Sheet1!$S144*50%,IF(Sheet1!$BF144>7,Sheet1!$S144*100%,""))))) -> 0 | BP144: =IF(Sheet1!$BG144<=2,Sheet1!$S144*0,IF(Sheet1!$BG144=3,Sheet1!$S144*30%,IF(Sheet1!$BG144=4,Sheet1!$S144*40%,IF(Sheet1!$BG144=5,Sheet1!$S144*50%,IF(Sheet1!$BG144>5,Sheet1!$S144*100%,""))))) -> 0 | BQ144: 0 | BR144: 0 | BT144: 3 | BU144: 520 | BX144: 0 | CC144: 0 | CE144: 0 | CG144: 2.19 | CH144: 3 | CI144: 0 | CL144: 0 | CN144: 0 | CO144: =ROUND(IF(G144=#REF!,(BE144-AY144)*40%,0),2) ->  | CP144: 276.7958 | CQ144: 0 | CS144: =ROUND(IF($D144=#REF!,$BE144-SUM(BJ144:CQ144,0),0),2) ->  | CT144: =ROUND(IF($D144=#REF!,$BE144-SUM(BJ144:CQ144,0),0),2) ->  | CU144: =ROUND(IF($G144=#REF!,$BE144-SUM(BK144:CR144,0),0),2) -> 
B145: 211017 | C145: 35888 | D145: البنك الاهلى | E145: صلاح شحاته الصافي محمد | F145: 0 | G145: دوام كامل | H145: فنى | I145: الثالثة | J145: الثالثة | K145: ميكانيكي | L145: فرع الفيوم | M145: 28110151800519 | N145: 211017صلاح شحاته الصافي محمد الثالثةالثالثةميكانيكيفرع الفيوم | O145: نعم | P145: 831.71 | Q145: 973.1007 | R145: 0 | S145: 1313.69 | T145: 145.97 | U145: 0 | V145: 0 | W145: 0 | Y145: 145.965105 | Z145: 300 | AB145: 0 | AD145: 0 | AE145: 0 | AF145: 445.97 | AG145: 0 | AH145: 0 | AI145: 0 | AJ145: 334.19 | AK145: 0 | AL145: 36.21 | AM145: 33.49 | AN145: 38.07 | AO145: 54.31 | AP145: 58.12 | AQ145: 95.59 | AS145: 66.82899 | AT145: 600 | AU145: 10 | AV145: 1326.81 | AW145: 10 | AX145: 0 | AY145: 175.0968 | AZ145: 0 | BB145: 0 | BC145: 4390.64 | BD145: 2609.36 | BE145: 7000 | BF145: 0 | BG145: 0 | BJ145: 519.8555957 | BK145: 0 | BL145: 0 | BM145: 0 | BN145: =IF(Sheet1!$BH145=1,Sheet1!$S145*20%,IF(Sheet1!$BH145=2,Sheet1!$S145*100%,IF(Sheet1!$BH145>2,Sheet1!$S145*100%,""))) ->  | BO145: =IF(Sheet1!$BF145<=4,Sheet1!$S145*0,IF(Sheet1!$BF145=5,Sheet1!$S145*20%,IF(Sheet1!$BF145=6,Sheet1!$S145*40%,IF(Sheet1!$BF145=7,Sheet1!$S145*50%,IF(Sheet1!$BF145>7,Sheet1!$S145*100%,""))))) -> 0 | BP145: =IF(Sheet1!$BG145<=2,Sheet1!$S145*0,IF(Sheet1!$BG145=3,Sheet1!$S145*30%,IF(Sheet1!$BG145=4,Sheet1!$S145*40%,IF(Sheet1!$BG145=5,Sheet1!$S145*50%,IF(Sheet1!$BG145>5,Sheet1!$S145*100%,""))))) -> 0 | BQ145: 0 | BR145: 0 | BT145: 3 | BU145: 0 | BX145: 0 | CC145: 0 | CE145: 0 | CG145: 2.66 | CH145: 3 | CI145: 0 | CL145: 0 | CN145: 0 | CO145: =ROUND(IF(G145=#REF!,(BE145-AY145)*40%,0),2) ->  | CP145: 175.0968 | CQ145: 0 | CS145: =ROUND(IF($D145=#REF!,$BE145-SUM(BJ145:CQ145,0),0),2) ->  | CT145: =ROUND(IF($D145=#REF!,$BE145-SUM(BJ145:CQ145,0),0),2) ->  | CU145: =ROUND(IF($G145=#REF!,$BE145-SUM(BK145:CR145,0),0),2) -> 
B146: 211018 | C146: 35478 | D146: البنك الاهلى | E146: عثمان رزق عثمان ابراهيم | F146: 0 | G146: دوام كامل | H146: فنى | I146: الخامسة | J146: الخامسة | K146: حرفى خراط | L146: الاسكندرية | M146: 27705070201653 | N146: 211018عثمان رزق عثمان ابراهيم الخامسةالخامسةحرفى خراطالاسكندرية | O146: نعم | P146: 845.65 | Q146: 989.4105 | R146: 0 | S146: 1335.7 | T146: 148.41 | U146: 0 | V146: 0 | W146: 0 | Y146: 148.411575 | Z146: 300 | AB146: 0 | AD146: 0 | AE146: 0 | AF146: 448.41 | AG146: 0 | AH146: 0 | AI146: 0 | AJ146: 324.78 | AK146: 0 | AL146: 0 | AM146: 0 | AN146: 38.71 | AO146: 55.22 | AP146: 59.09 | AQ146: 94.68 | AS146: 65.435 | AT146: 600 | AU146: 10 | AV146: 1247.92 | AW146: 10 | AX146: 0 | AY146: 178.0316 | AZ146: 0 | BB146: 0 | BC146: 4357.88 | BD146: 2642.12 | BE146: 7000 | BF146: 0 | BG146: 0 | BJ146: 519.4364893 | BK146: 0 | BL146: 0 | BM146: 0 | BN146: =IF(Sheet1!$BH146=1,Sheet1!$S146*20%,IF(Sheet1!$BH146=2,Sheet1!$S146*100%,IF(Sheet1!$BH146>2,Sheet1!$S146*100%,""))) ->  | BO146: =IF(Sheet1!$BF146<=4,Sheet1!$S146*0,IF(Sheet1!$BF146=5,Sheet1!$S146*20%,IF(Sheet1!$BF146=6,Sheet1!$S146*40%,IF(Sheet1!$BF146=7,Sheet1!$S146*50%,IF(Sheet1!$BF146>7,Sheet1!$S146*100%,""))))) -> 0 | BP146: =IF(Sheet1!$BG146<=2,Sheet1!$S146*0,IF(Sheet1!$BG146=3,Sheet1!$S146*30%,IF(Sheet1!$BG146=4,Sheet1!$S146*40%,IF(Sheet1!$BG146=5,Sheet1!$S146*50%,IF(Sheet1!$BG146>5,Sheet1!$S146*100%,""))))) -> 0 | BQ146: 0 | BR146: 0 | BT146: 3 | BU146: 0 | BX146: 0 | CC146: 0 | CE146: 0 | CG146: 2.67 | CH146: 3 | CI146: 0 | CL146: 0 | CN146: 0 | CO146: =ROUND(IF(G146=#REF!,(BE146-AY146)*40%,0),2) ->  | CP146: 178.0316 | CQ146: 0 | CS146: =ROUND(IF($D146=#REF!,$BE146-SUM(BJ146:CQ146,0),0),2) ->  | CT146: =ROUND(IF($D146=#REF!,$BE146-SUM(BJ146:CQ146,0),0),2) ->  | CU146: =ROUND(IF($G146=#REF!,$BE146-SUM(BK146:CR146,0),0),2) -> 
B147: 211019 | C147: 35275 | D147: البنك الاهلى | E147: علاء الدين محمد عبدالمجيد حجاج | F147: 0 | G147: دوام كامل | H147: فنى | I147: الثالثة | J147: الثالثة | K147: حرفى كهربائى | L147: كفر الزيات | M147: 26607280200999 | N147: 211019علاء الدين محمد عبدالمجيد حجاجالثالثةالثالثةحرفى كهربائىكفر الزيات | O147: نعم | P147: 1947.79 | Q147: 2278.9143 | R147: 0 | S147: 3076.53 | T147: 341.84 | U147: 0 | V147: 0 | W147: 0 | Y147: 341.837145 | Z147: 300 | AB147: 0 | AD147: 0 | AE147: 0 | AF147: 641.84 | AG147: 0 | AH147: 0 | AI147: 0 | AJ147: 432.38 | AK147: 0 | AL147: 38.94 | AM147: 69.44 | AN147: 89.16 | AO147: 127.2 | AP147: 136.1 | AQ147: 145.63 | AS147: 97.3895 | AT147: 600 | AU147: 10 | AV147: 1746.24 | AW147: 10 | AX147: 0 | AY147: 410.0611 | AZ147: 0 | BB147: 0 | BC147: 8505.43 | BD147: 0 | BE147: 8505.43 | BF147: 0 | BG147: 0 | BJ147: 751.6245215 | BK147: 0 | BL147: 0 | BM147: 0 | BN147: =IF(Sheet1!$BH147=1,Sheet1!$S147*20%,IF(Sheet1!$BH147=2,Sheet1!$S147*100%,IF(Sheet1!$BH147>2,Sheet1!$S147*100%,""))) ->  | BO147: =IF(Sheet1!$BF147<=4,Sheet1!$S147*0,IF(Sheet1!$BF147=5,Sheet1!$S147*20%,IF(Sheet1!$BF147=6,Sheet1!$S147*40%,IF(Sheet1!$BF147=7,Sheet1!$S147*50%,IF(Sheet1!$BF147>7,Sheet1!$S147*100%,""))))) -> 0 | BP147: =IF(Sheet1!$BG147<=2,Sheet1!$S147*0,IF(Sheet1!$BG147=3,Sheet1!$S147*30%,IF(Sheet1!$BG147=4,Sheet1!$S147*40%,IF(Sheet1!$BG147=5,Sheet1!$S147*50%,IF(Sheet1!$BG147>5,Sheet1!$S147*100%,""))))) -> 0 | BQ147: 0 | BR147: 0 | BT147: 3 | BU147: 0 | BX147: 0 | CC147: 0 | CE147: 0 | CG147: 3.48 | CH147: 3 | CI147: 0 | CL147: 0 | CN147: 0 | CO147: =ROUND(IF(G147=#REF!,(BE147-AY147)*40%,0),2) ->  | CP147: 410.0611 | CQ147: 0 | CS147: =ROUND(IF($D147=#REF!,$BE147-SUM(BJ147:CQ147,0),0),2) ->  | CT147: =ROUND(IF($D147=#REF!,$BE147-SUM(BJ147:CQ147,0),0),2) ->  | CU147: =ROUND(IF($G147=#REF!,$BE147-SUM(BK147:CR147,0),0),2) -> 
B148: 211020 | C148: 35395 | D148: البنك الاهلى | E148: عماد حمدي سيد اسماعيل | F148: 0 | G148: دوام كامل | H148: فنى | I148: الثالثة | J148: الثالثة | K148: كهربائي سيارات | L148: الاميرية | M148: 28510060200738 | N148: 211020عماد حمدي سيد اسماعيلالثالثةالثالثةكهربائي سيارات الاميرية | O148: نعم | P148: 974.25 | Q148: 1139.8725 | R148: 0 | S148: 1538.83 | T148: 170.98 | U148: 0 | V148: 0 | W148: 0 | Y148: 170.980875 | Z148: 300 | AB148: 0 | AD148: 0 | AE148: 0 | AF148: 470.98 | AG148: 0 | AH148: 0 | AI148: 0 | AJ148: 336.73 | AK148: 0 | AL148: 29.56 | AM148: 34.73 | AN148: 44.6 | AO148: 63.62 | AP148: 68.08 | AQ148: 86.26 | AS148: 52.575 | AT148: 600 | AU148: 10 | AV148: 1326.16 | AW148: 10 | AX148: 0 | AY148: 205.1053 | AZ148: 0 | BB148: 0 | BC148: 4861.93 | BD148: 2138.07 | BE148: 7000 | BF148: 0 | BG148: 0 | BJ148: 525.2698193 | BK148: 0 | BL148: 0 | BM148: 0 | BN148: =IF(Sheet1!$BH148=1,Sheet1!$S148*20%,IF(Sheet1!$BH148=2,Sheet1!$S148*100%,IF(Sheet1!$BH148>2,Sheet1!$S148*100%,""))) ->  | BO148: =IF(Sheet1!$BF148<=4,Sheet1!$S148*0,IF(Sheet1!$BF148=5,Sheet1!$S148*20%,IF(Sheet1!$BF148=6,Sheet1!$S148*40%,IF(Sheet1!$BF148=7,Sheet1!$S148*50%,IF(Sheet1!$BF148>7,Sheet1!$S148*100%,""))))) -> 0 | BP148: =IF(Sheet1!$BG148<=2,Sheet1!$S148*0,IF(Sheet1!$BG148=3,Sheet1!$S148*30%,IF(Sheet1!$BG148=4,Sheet1!$S148*40%,IF(Sheet1!$BG148=5,Sheet1!$S148*50%,IF(Sheet1!$BG148>5,Sheet1!$S148*100%,""))))) -> 0 | BQ148: 0 | BR148: 0 | BT148: 3 | BU148: 0 | BX148: 0 | CC148: 0 | CE148: 0 | CG148: 2.31 | CH148: 3 | CI148: 0 | CL148: 0 | CN148: 0 | CO148: =ROUND(IF(G148=#REF!,(BE148-AY148)*40%,0),2) ->  | CP148: 205.1053 | CQ148: 0 | CS148: =ROUND(IF($D148=#REF!,$BE148-SUM(BJ148:CQ148,0),0),2) ->  | CT148: =ROUND(IF($D148=#REF!,$BE148-SUM(BJ148:CQ148,0),0),2) ->  | CU148: =ROUND(IF($G148=#REF!,$BE148-SUM(BK148:CR148,0),0),2) -> 
B149: 211021 | C149: 35409 | D149: البنك الاهلى | E149: محمد ابراهيم عبدالرازق ابراهيم | F149: 0 | G149: دوام كامل | H149: فنى | I149: الثالثة | J149: الثالثة | K149: ميكانيكي | L149: فرع بنى سويف | M149: 27703020200151 | N149: 211021محمد ابراهيم عبدالرازق ابراهيم الثالثةالثالثةميكانيكيفرع بنى سويف | O149: نعم | P149: 937.15 | Q149: 1096.4655 | R149: 0 | S149: 1480.23 | T149: 164.47 | U149: 0 | V149: 0 | W149: 0 | Y149: 164.469825 | Z149: 300 | AB149: 0 | AD149: 0 | AE149: 0 | AF149: 464.47 | AG149: 0 | AH149: 0 | AI149: 0 | AJ149: 333.09 | AK149: 0 | AL149: 31.29 | AM149: 33.41 | AN149: 42.9 | AO149: 61.2 | AP149: 65.48 | AQ149: 88.69 | AS149: 56.285 | AT149: 600 | AU149: 10 | AV149: 1322.35 | AW149: 10 | AX149: 0 | AY149: 197.2947 | AZ149: 0 | BB149: 0 | BC149: 4735.28 | BD149: 2264.72 | BE149: 7000 | BF149: 0 | BG149: 0 | BJ149: 558.4776807 | BK149: 0 | BL149: 0 | BM149: 0 | BN149: =IF(Sheet1!$BH149=1,Sheet1!$S149*20%,IF(Sheet1!$BH149=2,Sheet1!$S149*100%,IF(Sheet1!$BH149>2,Sheet1!$S149*100%,""))) ->  | BO149: =IF(Sheet1!$BF149<=4,Sheet1!$S149*0,IF(Sheet1!$BF149=5,Sheet1!$S149*20%,IF(Sheet1!$BF149=6,Sheet1!$S149*40%,IF(Sheet1!$BF149=7,Sheet1!$S149*50%,IF(Sheet1!$BF149>7,Sheet1!$S149*100%,""))))) -> 0 | BP149: =IF(Sheet1!$BG149<=2,Sheet1!$S149*0,IF(Sheet1!$BG149=3,Sheet1!$S149*30%,IF(Sheet1!$BG149=4,Sheet1!$S149*40%,IF(Sheet1!$BG149=5,Sheet1!$S149*50%,IF(Sheet1!$BG149>5,Sheet1!$S149*100%,""))))) -> 0 | BQ149: 0 | BR149: 0 | BT149: 3 | BU149: 0 | BX149: 0 | CC149: 0 | CE149: 0 | CG149: 2.62 | CH149: 3 | CI149: 0 | CL149: 0 | CN149: 0 | CO149: =ROUND(IF(G149=#REF!,(BE149-AY149)*40%,0),2) ->  | CP149: 197.2947 | CQ149: 0 | CS149: =ROUND(IF($D149=#REF!,$BE149-SUM(BJ149:CQ149,0),0),2) ->  | CT149: =ROUND(IF($D149=#REF!,$BE149-SUM(BJ149:CQ149,0),0),2) ->  | CU149: =ROUND(IF($G149=#REF!,$BE149-SUM(BK149:CR149,0),0),2) -> 
B150: 211022 | C150: 35367 | D150: البنك الاهلى | E150: محمد جمعه خميس رمضان | F150: 0 | G150: دوام كامل | H150: فنى | I150: الثالثة | J150: الثالثة | K150: حرفى كهربائي سيارات | L150: فرع الفيوم | M150: 27901030200216 | N150: 211022محمد جمعه خميس رمضان الثالثةالثالثةحرفى كهربائي سيارات فرع الفيوم | O150: نعم | P150: 1395.29 | Q150: 1632.4893 | R150: 0 | S150: 2203.86 | T150: 244.87 | U150: 0 | V150: 0 | W150: 0 | Y150: 244.873395 | Z150: 300 | AB150: 0 | AD150: 0 | AE150: 0 | AF150: 544.87 | AG150: 0 | AH150: 0 | AI150: 0 | AJ150: 362.5 | AK150: 0 | AL150: 27.89 | AM150: 49.74 | AN150: 63.87 | AO150: 91.12 | AP150: 97.5 | AQ150: 104.32 | AS150: 69.7645 | AT150: 600 | AU150: 10 | AV150: 1476.7 | AW150: 10 | AX150: 0 | AY150: 293.7453 | AZ150: 0 | BB150: 0 | BC150: 6406.53 | BD150: 593.47 | BE150: 7000 | BF150: 0 | BG150: 0 | BJ150: 563.2594043 | BK150: 0 | BL150: 0 | BM150: 0 | BN150: =IF(Sheet1!$BH150=1,Sheet1!$S150*20%,IF(Sheet1!$BH150=2,Sheet1!$S150*100%,IF(Sheet1!$BH150>2,Sheet1!$S150*100%,""))) ->  | BO150: =IF(Sheet1!$BF150<=4,Sheet1!$S150*0,IF(Sheet1!$BF150=5,Sheet1!$S150*20%,IF(Sheet1!$BF150=6,Sheet1!$S150*40%,IF(Sheet1!$BF150=7,Sheet1!$S150*50%,IF(Sheet1!$BF150>7,Sheet1!$S150*100%,""))))) -> 0 | BP150: =IF(Sheet1!$BG150<=2,Sheet1!$S150*0,IF(Sheet1!$BG150=3,Sheet1!$S150*30%,IF(Sheet1!$BG150=4,Sheet1!$S150*40%,IF(Sheet1!$BG150=5,Sheet1!$S150*50%,IF(Sheet1!$BG150>5,Sheet1!$S150*100%,""))))) -> 0 | BQ150: 0 | BR150: 0 | BT150: 3 | BU150: 0 | BX150: 0 | CC150: 0 | CE150: 0 | CG150: 2.67 | CH150: 3 | CI150: 0 | CL150: 0 | CN150: 0 | CO150: =ROUND(IF(G150=#REF!,(BE150-AY150)*40%,0),2) ->  | CP150: 293.7453 | CQ150: 0 | CS150: =ROUND(IF($D150=#REF!,$BE150-SUM(BJ150:CQ150,0),0),2) ->  | CT150: =ROUND(IF($D150=#REF!,$BE150-SUM(BJ150:CQ150,0),0),2) ->  | CU150: =ROUND(IF($G150=#REF!,$BE150-SUM(BK150:CR150,0),0),2) -> 
B151: 211023 | C151: 35302 | D151: البنك الاهلى | E151: ايمن فضل صموئيل دوس | F151: 0 | G151: دوام كامل | H151: فنى | I151: الرابعة | J151: الرابعة | K151: حرفى سمكرى | L151: اسكندرية | M151: 28701102400377 | N151: 211023ايمن فضل صموئيل دوسالرابعةالرابعةحرفى سمكرىاسكندرية | O151: نعم | P151: 1209.76 | Q151: 1415.4192 | R151: 0 | S151: 1910.82 | T151: 212.31 | U151: 0 | V151: 0 | W151: 0 | Y151: 212.31288 | Z151: 300 | AB151: 0 | AD151: 0 | AE151: 0 | AF151: 512.31 | AG151: 0 | AH151: 0 | AI151: 0 | AJ151: 355.82 | AK151: 0 | AL151: 24.18 | AM151: 43.12 | AN151: 55.38 | AO151: 79 | AP151: 84.53 | AQ151: 90.45 | AS151: 60.488 | AT151: 600 | AU151: 10 | AV151: 1402.97 | AW151: 10 | AX151: 0 | AY151: 254.6863 | AZ151: 0 | BB151: 0 | BC151: 5718.52 | BD151: 1281.48 | BE151: 7000 | BF151: 0 | BG151: 0 | BJ151: 534.7748828 | BK151: 0 | BL151: 0 | BM151: 0 | BN151: =IF(Sheet1!$BH151=1,Sheet1!$S151*20%,IF(Sheet1!$BH151=2,Sheet1!$S151*100%,IF(Sheet1!$BH151>2,Sheet1!$S151*100%,""))) ->  | BO151: =IF(Sheet1!$BF151<=4,Sheet1!$S151*0,IF(Sheet1!$BF151=5,Sheet1!$S151*20%,IF(Sheet1!$BF151=6,Sheet1!$S151*40%,IF(Sheet1!$BF151=7,Sheet1!$S151*50%,IF(Sheet1!$BF151>7,Sheet1!$S151*100%,""))))) -> 0 | BP151: =IF(Sheet1!$BG151<=2,Sheet1!$S151*0,IF(Sheet1!$BG151=3,Sheet1!$S151*30%,IF(Sheet1!$BG151=4,Sheet1!$S151*40%,IF(Sheet1!$BG151=5,Sheet1!$S151*50%,IF(Sheet1!$BG151>5,Sheet1!$S151*100%,""))))) -> 0 | BQ151: 0 | BR151: 0 | BT151: 3 | BU151: 0 | BX151: 0 | CC151: 0 | CE151: 0 | CG151: 2.54 | CH151: 3 | CI151: 0 | CL151: 0 | CN151: 0 | CO151: =ROUND(IF(G151=#REF!,(BE151-AY151)*40%,0),2) ->  | CP151: 254.6863 | CQ151: 0 | CS151: =ROUND(IF($D151=#REF!,$BE151-SUM(BJ151:CQ151,0),0),2) ->  | CT151: =ROUND(IF($D151=#REF!,$BE151-SUM(BJ151:CQ151,0),0),2) ->  | CU151: =ROUND(IF($G151=#REF!,$BE151-SUM(BK151:CR151,0),0),2) -> 
B152: 211025 | C152: 35802 | D152: البنك الاهلى | E152: احمد السيد احمد السيد محروس | F152: 0 | G152: دوام كامل | H152: فنى | I152: الخامسة | J152: الخامسة | K152: حرفى ميكانيكى | L152: الاسكندرية | M152: 27912150202133 | N152: 211025احمد السيد احمد السيد محروس الخامسةالخامسةحرفى ميكانيكىالاسكندرية | O152: نعم | P152: 919.47 | Q152: 1075.7799 | R152: 0 | S152: 1452.3 | T152: 161.37 | U152: 0 | V152: 0 | W152: 0 | Y152: 161.366985 | Z152: 300 | AB152: 0 | AD152: 0 | AE152: 0 | AF152: 461.37 | AG152: 0 | AH152: 0 | AI152: 0 | AJ152: 332.31 | AK152: 0 | AL152: 32.11 | AM152: 32.78 | AN152: 42.09 | AO152: 60.04 | AP152: 64.25 | AQ152: 89.85 | AS152: 58.053 | AT152: 600 | AU152: 6 | AV152: 1317.48 | AW152: 10 | AX152: 0 | AY152: 193.5726 | AZ152: 0 | BB152: 0 | BC152: 4671.87 | BD152: 2328.13 | BE152: 7000 | BF152: 0 | BG152: 0 | BJ152: 523.0819043 | BK152: 0 | BL152: 0 | BM152: 0 | BN152: =IF(Sheet1!$BH152=1,Sheet1!$S152*20%,IF(Sheet1!$BH152=2,Sheet1!$S152*100%,IF(Sheet1!$BH152>2,Sheet1!$S152*100%,""))) ->  | BO152: =IF(Sheet1!$BF152<=4,Sheet1!$S152*0,IF(Sheet1!$BF152=5,Sheet1!$S152*20%,IF(Sheet1!$BF152=6,Sheet1!$S152*40%,IF(Sheet1!$BF152=7,Sheet1!$S152*50%,IF(Sheet1!$BF152>7,Sheet1!$S152*100%,""))))) -> 0 | BP152: =IF(Sheet1!$BG152<=2,Sheet1!$S152*0,IF(Sheet1!$BG152=3,Sheet1!$S152*30%,IF(Sheet1!$BG152=4,Sheet1!$S152*40%,IF(Sheet1!$BG152=5,Sheet1!$S152*50%,IF(Sheet1!$BG152>5,Sheet1!$S152*100%,""))))) -> 0 | BQ152: 0 | BR152: 0 | BT152: 3 | BU152: 0 | BX152: 0 | CC152: 0 | CE152: 0 | CG152: 2.64 | CH152: 3 | CI152: 0 | CL152: 0 | CN152: 0 | CO152: =ROUND(IF(G152=#REF!,(BE152-AY152)*40%,0),2) ->  | CP152: 193.5726 | CQ152: 0 | CS152: =ROUND(IF($D152=#REF!,$BE152-SUM(BJ152:CQ152,0),0),2) ->  | CT152: =ROUND(IF($D152=#REF!,$BE152-SUM(BJ152:CQ152,0),0),2) ->  | CU152: =ROUND(IF($G152=#REF!,$BE152-SUM(BK152:CR152,0),0),2) -> 
B153: 211026 | C153: 35902 | D153: البنك الاهلى | E153: احمد عبدالوهاب عبدالغني | F153: 0 | G153: دوام كامل | H153: فنى | I153: الخامسة | J153: الخامسة | K153: حرفى كهربائى سيارات | L153: الاسكندرية | M153: 28406210200217 | N153: 211026احمد عبدالوهاب عبدالغني الخامسةالخامسةحرفى كهربائى سياراتالاسكندرية | O153: نعم | P153: 699.81 | Q153: 818.7777 | R153: 0 | S153: 1105.35 | T153: 122.82 | U153: 0 | V153: 0 | W153: 0 | Y153: 122.816655 | Z153: 300 | AB153: 0 | AD153: 0 | AE153: 0 | AF153: 422.82 | AG153: 0 | AH153: 0 | AI153: 0 | AJ153: 322.87 | AK153: 0 | AL153: 42.36 | AM153: 40.08 | AN153: 37.63 | AO153: 60.01 | AP153: 48.9 | AQ153: 104.22 | AS153: 80.019 | AT153: 600 | AU153: 10 | AV153: 1346.09 | AW153: 10 | AX153: 0 | AY153: 147.3284 | AZ153: 0 | BB153: 0 | BC153: 3973.19 | BD153: 3026.81 | BE153: 7000 | BF153: 0 | BG153: 0 | BJ153: 515.0695215 | BK153: 0 | BL153: 0 | BM153: 0 | BN153: =IF(Sheet1!$BH153=1,Sheet1!$S153*20%,IF(Sheet1!$BH153=2,Sheet1!$S153*100%,IF(Sheet1!$BH153>2,Sheet1!$S153*100%,""))) ->  | BO153: =IF(Sheet1!$BF153<=4,Sheet1!$S153*0,IF(Sheet1!$BF153=5,Sheet1!$S153*20%,IF(Sheet1!$BF153=6,Sheet1!$S153*40%,IF(Sheet1!$BF153=7,Sheet1!$S153*50%,IF(Sheet1!$BF153>7,Sheet1!$S153*100%,""))))) -> 0 | BP153: =IF(Sheet1!$BG153<=2,Sheet1!$S153*0,IF(Sheet1!$BG153=3,Sheet1!$S153*30%,IF(Sheet1!$BG153=4,Sheet1!$S153*40%,IF(Sheet1!$BG153=5,Sheet1!$S153*50%,IF(Sheet1!$BG153>5,Sheet1!$S153*100%,""))))) -> 0 | BQ153: 0 | BR153: 0 | BT153: 3 | BU153: 0 | BX153: 0 | CC153: 0 | CE153: 0 | CG153: 2.64 | CH153: 3 | CI153: 0 | CL153: 0 | CN153: 0 | CO153: =ROUND(IF(G153=#REF!,(BE153-AY153)*40%,0),2) ->  | CP153: 147.3284 | CQ153: 0 | CS153: =ROUND(IF($D153=#REF!,$BE153-SUM(BJ153:CQ153,0),0),2) ->  | CT153: =ROUND(IF($D153=#REF!,$BE153-SUM(BJ153:CQ153,0),0),2) ->  | CU153: =ROUND(IF($G153=#REF!,$BE153-SUM(BK153:CR153,0),0),2) -> 
B154: 211027 | C154: 35442 | D154: البنك الاهلى | E154: محمد عيسي السيد عيسي | F154: 0 | G154: دوام كامل | H154: فنى | I154: الخامسة | J154: الخامسة | K154: حرفى حداد | L154: الاسكندرية | M154: 28502280200299 | N154: 211027محمد عيسي السيد عيسي الخامسةالخامسةحرفى حداد الاسكندرية | O154: نعم | P154: 919.47 | Q154: 1075.7799 | R154: 0 | S154: 1452.3 | T154: 161.37 | U154: 0 | V154: 0 | W154: 0 | Y154: 161.366985 | Z154: 300 | AB154: 0 | AD154: 0 | AE154: 0 | AF154: 461.37 | AG154: 0 | AH154: 0 | AI154: 0 | AJ154: 332.31 | AK154: 0 | AL154: 32.11 | AM154: 32.78 | AN154: 42.09 | AO154: 60.04 | AP154: 64.25 | AQ154: 89.85 | AS154: 58.053 | AT154: 600 | AU154: 10 | AV154: 1321.48 | AW154: 10 | AX154: 0 | AY154: 193.5726 | AZ154: 0 | BB154: 0 | BC154: 4675.87 | BD154: 2324.13 | BE154: 7000 | BF154: 0 | BG154: 0 | BJ154: 523.1302979 | BK154: 0 | BL154: 0 | BM154: 0 | BN154: =IF(Sheet1!$BH154=1,Sheet1!$S154*20%,IF(Sheet1!$BH154=2,Sheet1!$S154*100%,IF(Sheet1!$BH154>2,Sheet1!$S154*100%,""))) ->  | BO154: =IF(Sheet1!$BF154<=4,Sheet1!$S154*0,IF(Sheet1!$BF154=5,Sheet1!$S154*20%,IF(Sheet1!$BF154=6,Sheet1!$S154*40%,IF(Sheet1!$BF154=7,Sheet1!$S154*50%,IF(Sheet1!$BF154>7,Sheet1!$S154*100%,""))))) -> 0 | BP154: =IF(Sheet1!$BG154<=2,Sheet1!$S154*0,IF(Sheet1!$BG154=3,Sheet1!$S154*30%,IF(Sheet1!$BG154=4,Sheet1!$S154*40%,IF(Sheet1!$BG154=5,Sheet1!$S154*50%,IF(Sheet1!$BG154>5,Sheet1!$S154*100%,""))))) -> 0 | BQ154: 0 | BR154: 0 | BT154: 3 | BU154: 0 | BX154: 0 | CC154: 0 | CE154: 0 | CG154: 2.64 | CH154: 3 | CI154: 0 | CL154: 0 | CN154: 0 | CO154: =ROUND(IF(G154=#REF!,(BE154-AY154)*40%,0),2) ->  | CP154: 193.5726 | CQ154: 0 | CS154: =ROUND(IF($D154=#REF!,$BE154-SUM(BJ154:CQ154,0),0),2) ->  | CT154: =ROUND(IF($D154=#REF!,$BE154-SUM(BJ154:CQ154,0),0),2) ->  | CU154: =ROUND(IF($G154=#REF!,$BE154-SUM(BK154:CR154,0),0),2) -> 
B155: 211028 | C155: 44001 | D155: بنك مصر 1 | E155: ابانوب ناجى حليم زكى | F155: 0 | G155: دوام كامل | H155: فنى | I155: عقد مؤقت | M155: 29209040200997 | N155: 211028ابانوب ناجى حليم زكىعقد مؤقت | P155: 428.22 | Q155: 428.22 | R155: 0 | S155: 578.1 | T155: 64.23 | U155: 0 | V155: 0 | W155: 0 | Y155: 64.233 | Z155: 300 | AB155: 0 | AD155: 0 | AE155: 0 | AF155: 364.23 | AG155: 0 | AH155: 0 | AI155: 0 | AJ155: 326.63 | AK155: 600 | AL155: 0 | AM155: 0 | AN155: 0 | AO155: 0 | AP155: 0 | AQ155: 0 | AS155: 107.178 | AT155: 0 | AU155: 4 | AV155: 1037.81 | AW155: 10 | AX155: 0 | AY155: 90.15158 | AZ155: 0 | BB155: 0 | BC155: 2572.74 | BD155: 4427.26 | BE155: 7000 | BF155: 0 | BG155: 0 | BJ155: 501.0279785 | BK155: 0 | BL155: 0 | BM155: 0 | BN155: =IF(Sheet1!$BH155=1,Sheet1!$S155*20%,IF(Sheet1!$BH155=2,Sheet1!$S155*100%,IF(Sheet1!$BH155>2,Sheet1!$S155*100%,""))) ->  | BO155: =IF(Sheet1!$BF155<=4,Sheet1!$S155*0,IF(Sheet1!$BF155=5,Sheet1!$S155*20%,IF(Sheet1!$BF155=6,Sheet1!$S155*40%,IF(Sheet1!$BF155=7,Sheet1!$S155*50%,IF(Sheet1!$BF155>7,Sheet1!$S155*100%,""))))) -> 0 | BP155: =IF(Sheet1!$BG155<=2,Sheet1!$S155*0,IF(Sheet1!$BG155=3,Sheet1!$S155*30%,IF(Sheet1!$BG155=4,Sheet1!$S155*40%,IF(Sheet1!$BG155=5,Sheet1!$S155*50%,IF(Sheet1!$BG155>5,Sheet1!$S155*100%,""))))) -> 0 | BQ155: 0 | BR155: 0 | BT155: 3 | BU155: 0 | BX155: 0 | CC155: 0 | CE155: 0 | CG155: 1.99 | CH155: 3 | CI155: 0 | CL155: 0 | CN155: 0 | CO155: =ROUND(IF(G155=#REF!,(BE155-AY155)*40%,0),2) ->  | CP155: 90.15158 | CQ155: 0 | CS155: =ROUND(IF($D155=#REF!,$BE155-SUM(BJ155:CQ155,0),0),2) ->  | CT155: =ROUND(IF($D155=#REF!,$BE155-SUM(BJ155:CQ155,0),0),2) ->  | CU155: =ROUND(IF($G155=#REF!,$BE155-SUM(BK155:CR155,0),0),2) -> 
B156: 211030 | C156: 2861 | D156: بنك مصر 1 | E156: احمد حسين حسن محمد | F156: 0 | G156: دوام كامل | H156: فنى | I156: الثانية | J156: الثانية | K156: ميكانيكى | L156: الاسكندرية | M156: 26605210700913 | N156: 211030احمد حسين حسن محمدالثانيةالثانيةميكانيكىالاسكندرية | O156: نعم | P156: 2390.76 | Q156: 2797.1892 | R156: 0 | S156: 3776.21 | T156: 419.58 | U156: 0 | V156: 0 | W156: 0 | Y156: 419.57838 | Z156: 300 | AB156: 0 | AC156: 0 | AD156: 0 | AE156: 0 | AF156: 719.58 | AG156: 84.55 | AH156: 94.43 | AI156: 112.84 | AJ156: 0 | AK156: 190 | AL156: 47.79 | AM156: 85.22 | AN156: 109.43 | AO156: 156.13 | AP156: 167.05 | AQ156: 178.75 | AS156: 119.538 | AT156: 600 | AU156: 8 | AV156: 1953.73 | AW156: 10 | AX156: 0 | AY156: 503.3179 | AZ156: 0 | BB156: 0 | BC156: 10179.61 | BD156: 0 | BE156: 10179.61 | BF156: 0 | BG156: 0 | BJ156: 902 | BK156: 117.83 | BL156: 0 | BM156: 0 | BN156: =IF(Sheet1!$BH156=1,Sheet1!$S156*20%,IF(Sheet1!$BH156=2,Sheet1!$S156*100%,IF(Sheet1!$BH156>2,Sheet1!$S156*100%,""))) ->  | BO156: =IF(Sheet1!$BF156<=4,Sheet1!$S156*0,IF(Sheet1!$BF156=5,Sheet1!$S156*20%,IF(Sheet1!$BF156=6,Sheet1!$S156*40%,IF(Sheet1!$BF156=7,Sheet1!$S156*50%,IF(Sheet1!$BF156>7,Sheet1!$S156*100%,""))))) -> 0 | BP156: =IF(Sheet1!$BG156<=2,Sheet1!$S156*0,IF(Sheet1!$BG156=3,Sheet1!$S156*30%,IF(Sheet1!$BG156=4,Sheet1!$S156*40%,IF(Sheet1!$BG156=5,Sheet1!$S156*50%,IF(Sheet1!$BG156>5,Sheet1!$S156*100%,""))))) -> 0 | BQ156: 21.47 | BR156: 0 | BS156: 0 | BT156: 3 | BU156: 0 | BV156: 0 | BW156: 0 | BX156: 0 | BY156: 0 | BZ156: 0 | CA156: 0 | CC156: 0 | CD156: 0 | CE156: 0 | CF156: 0 | CG156: 3.94 | CH156: 3 | CI156: 0 | CK156: 0 | CL156: 0 | CN156: 0 | CO156: =ROUND(IF(G156=#REF!,(BE156-AY156)*40%,0),2) ->  | CP156: 503.3179 | CQ156: 0 | CS156: =ROUND(IF($D156=#REF!,$BE156-SUM(BJ156:CQ156,0),0),2) ->  | CT156: =ROUND(IF($D156=#REF!,$BE156-SUM(BJ156:CQ156,0),0),2) ->  | CU156: =ROUND(IF($G156=#REF!,$BE156-SUM(BK156:CR156,0),0),2) -> 
B157: 211031 | C157: 22135 | D157: بنك مصر 1 | E157: محمد حسن عبد الفتاح حسن | F157: 0 | G157: دوام كامل | H157: فنى | I157: الثالثة | J157: الثالثة | K157: حرفى ميكانيكى | L157: الاسكندرية | M157: 28010140200817 | N157: 211031محمد حسن عبد الفتاح حسنالثالثةالثالثةحرفى ميكانيكى الاسكندرية | O157: نعم | P157: 1586.57 | Q157: 1856.2869 | R157: 0 | S157: 2505.99 | T157: 278.44 | U157: 0 | V157: 0 | W157: 0 | Y157: 278.443035 | Z157: 300 | AB157: 0 | AC157: 0 | AD157: 0 | AE157: 0 | AF157: 578.44 | AG157: 52.68 | AH157: 58.73 | AI157: 75.07 | AJ157: 0 | AK157: 200 | AL157: 31.71 | AM157: 56.56 | AN157: 72.62 | AO157: 103.61 | AP157: 110.86 | AQ157: 118.62 | AS157: 79.3285 | AT157: 600 | AU157: 10 | AV157: 1569.79 | AW157: 10 | AX157: 0 | AY157: 334.0147 | AZ157: 0 | BB157: 0 | BC157: 7132.96 | BD157: 0 | BE157: 7132.96 | BF157: 0 | BG157: 0 | BJ157: 627 | BK157: 0 | BL157: 0 | BM157: 0 | BN157: =IF(Sheet1!$BH157=1,Sheet1!$S157*20%,IF(Sheet1!$BH157=2,Sheet1!$S157*100%,IF(Sheet1!$BH157>2,Sheet1!$S157*100%,""))) ->  | BO157: =IF(Sheet1!$BF157<=4,Sheet1!$S157*0,IF(Sheet1!$BF157=5,Sheet1!$S157*20%,IF(Sheet1!$BF157=6,Sheet1!$S157*40%,IF(Sheet1!$BF157=7,Sheet1!$S157*50%,IF(Sheet1!$BF157>7,Sheet1!$S157*100%,""))))) -> 0 | BP157: =IF(Sheet1!$BG157<=2,Sheet1!$S157*0,IF(Sheet1!$BG157=3,Sheet1!$S157*30%,IF(Sheet1!$BG157=4,Sheet1!$S157*40%,IF(Sheet1!$BG157=5,Sheet1!$S157*50%,IF(Sheet1!$BG157>5,Sheet1!$S157*100%,""))))) -> 0 | BQ157: 0 | BR157: 0 | BS157: 0 | BT157: 3 | BU157: 0 | BV157: 0 | BW157: 0 | BX157: 0 | BY157: 0 | BZ157: 0 | CA157: 0 | CC157: 0 | CD157: 0 | CE157: 0 | CF157: 0 | CG157: 2.82 | CH157: 3 | CI157: 0 | CK157: 0 | CL157: 0 | CN157: 0 | CO157: =ROUND(IF(G157=#REF!,(BE157-AY157)*40%,0),2) ->  | CP157: 334.0147 | CQ157: 0 | CS157: =ROUND(IF($D157=#REF!,$BE157-SUM(BJ157:CQ157,0),0),2) ->  | CT157: =ROUND(IF($D157=#REF!,$BE157-SUM(BJ157:CQ157,0),0),2) ->  | CU157: =ROUND(IF($G157=#REF!,$BE157-SUM(BK157:CR157,0),0),2) -> 
B158: 211032 | C158: 22136 | D158: بنك مصر 1 | E158: سامح سعيد ابراهيم سليمان | F158: 0 | G158: دوام كامل | H158: فنى | I158: الرابعة | J158: الرابعة | K158: حرفى ميكانيكى | L158: اسكندرية | M158: 28009010204774 | N158: 211032سامح سعيد ابراهيم سليمانالرابعةالرابعةحرفى ميكانيكىاسكندرية | O158: نعم | P158: 1516.27 | Q158: 1774.0359 | R158: 0 | S158: 2394.95 | T158: 266.11 | U158: 0 | V158: 0 | W158: 0 | Y158: 266.105385 | Z158: 300 | AB158: 0 | AC158: 0 | AD158: 0 | AE158: 0 | AF158: 566.11 | AG158: 50.38 | AH158: 56.28 | AI158: 71.79 | AJ158: 0 | AK158: 200 | AL158: 30.31 | AM158: 54.05 | AN158: 69.41 | AO158: 99.02 | AP158: 105.95 | AQ158: 113.37 | AS158: 75.8135 | AT158: 600 | AU158: 6 | AV158: 1532.37 | AW158: 10 | AX158: 0 | AY158: 319.2148 | AZ158: 0 | BB158: 0 | BC158: 6862.79 | BD158: 137.21 | BE158: 7000 | BF158: 0 | BG158: 0 | BJ158: 605 | BK158: 0 | BL158: 0 | BM158: 0 | BN158: =IF(Sheet1!$BH158=1,Sheet1!$S158*20%,IF(Sheet1!$BH158=2,Sheet1!$S158*100%,IF(Sheet1!$BH158>2,Sheet1!$S158*100%,""))) ->  | BO158: =IF(Sheet1!$BF158<=4,Sheet1!$S158*0,IF(Sheet1!$BF158=5,Sheet1!$S158*20%,IF(Sheet1!$BF158=6,Sheet1!$S158*40%,IF(Sheet1!$BF158=7,Sheet1!$S158*50%,IF(Sheet1!$BF158>7,Sheet1!$S158*100%,""))))) -> 0 | BP158: =IF(Sheet1!$BG158<=2,Sheet1!$S158*0,IF(Sheet1!$BG158=3,Sheet1!$S158*30%,IF(Sheet1!$BG158=4,Sheet1!$S158*40%,IF(Sheet1!$BG158=5,Sheet1!$S158*50%,IF(Sheet1!$BG158>5,Sheet1!$S158*100%,""))))) -> 0 | BQ158: 0 | BR158: 0 | BS158: 0 | BT158: 3 | BU158: 0 | BV158: 0 | BW158: 0 | BX158: 0 | BY158: 0 | BZ158: 0 | CA158: 0 | CC158: 0 | CD158: 0 | CE158: 0 | CF158: 0 | CG158: 2.78 | CH158: 3 | CI158: 0 | CK158: 0 | CL158: 0 | CN158: 0 | CO158: =ROUND(IF(G158=#REF!,(BE158-AY158)*40%,0),2) ->  | CP158: 319.2148 | CQ158: 0 | CS158: =ROUND(IF($D158=#REF!,$BE158-SUM(BJ158:CQ158,0),0),2) ->  | CT158: =ROUND(IF($D158=#REF!,$BE158-SUM(BJ158:CQ158,0),0),2) ->  | CU158: =ROUND(IF($G158=#REF!,$BE158-SUM(BK158:CR158,0),0),2) -> 
B159: 211033 | C159: 21173 | D159: بنك مصر 1 | E159: كمال عطية عبد الغنى حشيش | F159: 0 | G159: دوام كامل | H159: فنى | I159: الثالثة | M159: 26902071701311 | N159: 211033كمال عطية عبد الغنى حشيشالثالثة | P159: 2306.75 | Q159: 2698.91 | R159: 0 | S159: 3643.53 | T159: 404.84 | U159: 0 | V159: 0 | W159: 0 | Y159: 404.8365 | Z159: 300 | AB159: 0 | AC159: 0 | AD159: 0 | AE159: 0 | AF159: 704.84 | AG159: 75.91 | AH159: 84.75 | AI159: 101.7 | AJ159: 0 | AK159: 190 | AL159: 46.11 | AM159: 82.23 | AN159: 105.59 | AO159: 150.64 | AP159: 161.18 | AQ159: 172.47 | AS159: 115.3375 | AT159: 600 | AU159: 6 | AV159: 1891.92 | AW159: 10 | AX159: 0 | AY159: 485.6316 | AZ159: 427.93 | BB159: 0 | BC159: 9839.67 | BD159: 0 | BE159: 10267.6 | BF159: 0 | BG159: 0 | BJ159: 869 | BK159: 98.5 | BL159: 0 | BM159: 0 | BN159: =IF(Sheet1!$BH159=1,Sheet1!$S159*20%,IF(Sheet1!$BH159=2,Sheet1!$S159*100%,IF(Sheet1!$BH159>2,Sheet1!$S159*100%,""))) ->  | BO159: =IF(Sheet1!$BF159<=4,Sheet1!$S159*0,IF(Sheet1!$BF159=5,Sheet1!$S159*20%,IF(Sheet1!$BF159=6,Sheet1!$S159*40%,IF(Sheet1!$BF159=7,Sheet1!$S159*50%,IF(Sheet1!$BF159>7,Sheet1!$S159*100%,""))))) -> 0 | BP159: =IF(Sheet1!$BG159<=2,Sheet1!$S159*0,IF(Sheet1!$BG159=3,Sheet1!$S159*30%,IF(Sheet1!$BG159=4,Sheet1!$S159*40%,IF(Sheet1!$BG159=5,Sheet1!$S159*50%,IF(Sheet1!$BG159>5,Sheet1!$S159*100%,""))))) -> 0 | BQ159: 51.32 | BR159: 0 | BS159: 0 | BT159: 3 | BU159: 0 | BV159: 0 | BW159: 0 | BX159: 0 | BY159: 0 | BZ159: 0 | CA159: 0 | CC159: 0 | CD159: 0 | CE159: 0 | CF159: 0 | CG159: 3.81 | CH159: 3 | CI159: 0 | CK159: 0 | CL159: 0 | CN159: 0 | CO159: =ROUND(IF(G159=#REF!,(BE159-AY159)*40%,0),2) ->  | CP159: 485.6316 | CQ159: 0 | CS159: =ROUND(IF($D159=#REF!,$BE159-SUM(BJ159:CQ159,0),0),2) ->  | CT159: =ROUND(IF($D159=#REF!,$BE159-SUM(BJ159:CQ159,0),0),2) ->  | CU159: =ROUND(IF($G159=#REF!,$BE159-SUM(BK159:CR159,0),0),2) -> 
B160: 211035 | C160: 22144 | D160: نقدي | E160: عصام محمد السيد ابراهيم | F160: 0 | G160: دوام كامل | H160: فنى | I160: الثالثة | J160: الثالثة | K160: حرفى حداد | L160: الاميرية | M160: 27557010203634 | N160: 211035عصام محمد السيد ابراهيم الثالثةالثالثة حرفى حداد الاميرية | O160: نعم | P160: 1326.77 | Q160: 1552.3209 | R160: 0 | S160: 2095.63 | T160: 232.85 | U160: 0 | V160: 0 | W160: 0 | Y160: 232.848135 | Z160: 300 | AB160: 0 | AC160: 0 | AD160: 0 | AE160: 0 | AF160: 532.85 | AG160: 43.92 | AH160: 48.88 | AI160: 65 | AJ160: 0 | AK160: 200 | AL160: 26.52 | AM160: 47.29 | AN160: 60.73 | AO160: 86.64 | AP160: 92.71 | AQ160: 99.2 | AS160: 66.3385 | AT160: 600 | AU160: 10 | AV160: 1447.23 | AW160: 10 | AX160: 0 | AY160: 279.32 | AZ160: 0 | BB160: 0 | BC160: 6150.2 | BD160: 849.8 | BE160: 7000 | BF160: 0 | BG160: 0 | BJ160: 550 | BK160: 0 | BL160: 0 | BM160: 0 | BN160: =IF(Sheet1!$BH160=1,Sheet1!$S160*20%,IF(Sheet1!$BH160=2,Sheet1!$S160*100%,IF(Sheet1!$BH160>2,Sheet1!$S160*100%,""))) ->  | BO160: =IF(Sheet1!$BF160<=4,Sheet1!$S160*0,IF(Sheet1!$BF160=5,Sheet1!$S160*20%,IF(Sheet1!$BF160=6,Sheet1!$S160*40%,IF(Sheet1!$BF160=7,Sheet1!$S160*50%,IF(Sheet1!$BF160>7,Sheet1!$S160*100%,""))))) -> 0 | BP160: =IF(Sheet1!$BG160<=2,Sheet1!$S160*0,IF(Sheet1!$BG160=3,Sheet1!$S160*30%,IF(Sheet1!$BG160=4,Sheet1!$S160*40%,IF(Sheet1!$BG160=5,Sheet1!$S160*50%,IF(Sheet1!$BG160>5,Sheet1!$S160*100%,""))))) -> 0 | BQ160: 0 | BR160: 0 | BS160: 0 | BT160: 3 | BU160: 0 | BV160: 0 | BW160: 0 | BX160: 0 | BY160: 0 | BZ160: 0 | CA160: 0 | CC160: 0 | CD160: 0 | CE160: 0 | CF160: 0 | CG160: 2.88 | CH160: 3 | CI160: 0 | CK160: 0 | CL160: 0 | CN160: 0 | CO160: =ROUND(IF(G160=#REF!,(BE160-AY160)*40%,0),2) ->  | CP160: 279.32 | CQ160: 0 | CS160: =ROUND(IF($D160=#REF!,$BE160-SUM(BJ160:CQ160,0),0),2) ->  | CT160: =ROUND(IF($D160=#REF!,$BE160-SUM(BJ160:CQ160,0),0),2) ->  | CU160: =ROUND(IF($G160=#REF!,$BE160-SUM(BK160:CR160,0),0),2) -> 
B161: 211036 | C161: 22140 | D161: بنك مصر 1 | E161: جمال عبد الستار محمد عطيه | F161: 0 | G161: دوام كامل | H161: فنى | I161: الثالثة | J161: الثالثة | K161: حرفى لحام اطارات | L161: فرع المنيا | M161: 27502170200516 | N161: 211036جمال عبد الستار محمد عطيهالثالثةالثالثةحرفى لحام اطاراتفرع المنيا | O161: نعم | P161: 1495.26 | Q161: 1749.4542 | R161: 0 | S161: 2361.76 | T161: 262.42 | U161: 0 | V161: 0 | W161: 0 | Y161: 262.41813 | Z161: 300 | AB161: 0 | AC161: 0 | AD161: 0 | AE161: 0 | AF161: 562.42 | AG161: 49.69 | AH161: 55.38 | AI161: 70.73 | AJ161: 0 | AK161: 200 | AL161: 29.89 | AM161: 53.3 | AN161: 68.44 | AO161: 97.65 | AP161: 104.48 | AQ161: 111.8 | AS161: 74.763 | AT161: 600 | AU161: 10 | AV161: 1526.12 | AW161: 10 | AX161: 0 | AY161: 314.7916 | AZ161: 0 | BB161: 0 | BC161: 6786.97 | BD161: 213.03 | BE161: 7000 | BF161: 0 | BG161: 0 | BJ161: 594 | BK161: 0 | BL161: 0 | BM161: 0 | BN161: =IF(Sheet1!$BH161=1,Sheet1!$S161*20%,IF(Sheet1!$BH161=2,Sheet1!$S161*100%,IF(Sheet1!$BH161>2,Sheet1!$S161*100%,""))) ->  | BO161: =IF(Sheet1!$BF161<=4,Sheet1!$S161*0,IF(Sheet1!$BF161=5,Sheet1!$S161*20%,IF(Sheet1!$BF161=6,Sheet1!$S161*40%,IF(Sheet1!$BF161=7,Sheet1!$S161*50%,IF(Sheet1!$BF161>7,Sheet1!$S161*100%,""))))) -> 0 | BP161: =IF(Sheet1!$BG161<=2,Sheet1!$S161*0,IF(Sheet1!$BG161=3,Sheet1!$S161*30%,IF(Sheet1!$BG161=4,Sheet1!$S161*40%,IF(Sheet1!$BG161=5,Sheet1!$S161*50%,IF(Sheet1!$BG161>5,Sheet1!$S161*100%,""))))) -> 0 | BQ161: 0 | BR161: 0 | BS161: 0 | BT161: 3 | BU161: 0 | BV161: 0 | BW161: 0 | BX161: 0 | BY161: 0 | BZ161: 0 | CA161: 0 | CC161: 0 | CD161: 0 | CE161: 0 | CF161: 0 | CG161: 2.82 | CH161: 3 | CI161: 0 | CK161: 0 | CL161: 0 | CN161: 0 | CO161: =ROUND(IF(G161=#REF!,(BE161-AY161)*40%,0),2) ->  | CP161: 314.7916 | CQ161: 0 | CS161: =ROUND(IF($D161=#REF!,$BE161-SUM(BJ161:CQ161,0),0),2) ->  | CT161: =ROUND(IF($D161=#REF!,$BE161-SUM(BJ161:CQ161,0),0),2) ->  | CU161: =ROUND(IF($G161=#REF!,$BE161-SUM(BK161:CR161,0),0),2) -> 
B162: 211037 | C162: 1514 | D162: بنك مصر 1 | E162: خالد عربى محمد نصر | F162: 0 | G162: دوام كامل | H162: فنى | I162: الثالثة | J162: الثالثة | K162: حرفى سمكرى | L162: الاميرية | M162: 27110060200973 | N162: 211037خالد عربى محمد نصرالثالثةالثالثةحرفى سمكرىالاميرية | O162: نعم | P162: 2070.45 | Q162: 2422.4265 | R162: 0 | S162: 3270.28 | T162: 363.36 | U162: 0 | V162: 0 | W162: 0 | Y162: 363.363975 | Z162: 300 | AB162: 0 | AC162: 0 | AD162: 0 | AE162: 0 | AF162: 663.36 | AG162: 73.3 | AH162: 81.83 | AI162: 97.7 | AJ162: 0 | AK162: 200 | AL162: 41.38 | AM162: 73.81 | AN162: 94.77 | AO162: 135.21 | AP162: 144.67 | AQ162: 154.8 | AS162: 103.5225 | AT162: 600 | AU162: 10 | AV162: 1810.99 | AW162: 10 | AX162: 0 | AY162: 435.8842 | AZ162: 0 | BB162: 0 | BC162: 8976.3 | BD162: 0 | BE162: 8976.3 | BF162: 0 | BG162: 0 | BJ162: 792 | BK162: 50.92 | BL162: 0 | BM162: 0 | BN162: =IF(Sheet1!$BH162=1,Sheet1!$S162*20%,IF(Sheet1!$BH162=2,Sheet1!$S162*100%,IF(Sheet1!$BH162>2,Sheet1!$S162*100%,""))) ->  | BO162: =IF(Sheet1!$BF162<=4,Sheet1!$S162*0,IF(Sheet1!$BF162=5,Sheet1!$S162*20%,IF(Sheet1!$BF162=6,Sheet1!$S162*40%,IF(Sheet1!$BF162=7,Sheet1!$S162*50%,IF(Sheet1!$BF162>7,Sheet1!$S162*100%,""))))) -> 0 | BP162: =IF(Sheet1!$BG162<=2,Sheet1!$S162*0,IF(Sheet1!$BG162=3,Sheet1!$S162*30%,IF(Sheet1!$BG162=4,Sheet1!$S162*40%,IF(Sheet1!$BG162=5,Sheet1!$S162*50%,IF(Sheet1!$BG162>5,Sheet1!$S162*100%,""))))) -> 0 | BQ162: 2.73 | BR162: 0 | BS162: 0 | BT162: 3 | BU162: 0 | BV162: 0 | BW162: 0 | BX162: 0 | BY162: 0 | BZ162: 0 | CA162: 0 | CC162: 0 | CD162: 0 | CE162: 0 | CF162: 0 | CG162: 3.5 | CH162: 3 | CI162: 0 | CK162: 0 | CL162: 0 | CN162: 0 | CO162: =ROUND(IF(G162=#REF!,(BE162-AY162)*40%,0),2) ->  | CP162: 435.8842 | CQ162: 0 | CS162: =ROUND(IF($D162=#REF!,$BE162-SUM(BJ162:CQ162,0),0),2) ->  | CT162: =ROUND(IF($D162=#REF!,$BE162-SUM(BJ162:CQ162,0),0),2) ->  | CU162: =ROUND(IF($G162=#REF!,$BE162-SUM(BK162:CR162,0),0),2) -> 
B163: 211039 | C163: 1285 | D163: بنك مصر 2 | E163: عصام حامد شعبان محمد | F163: 0 | G163: دوام كامل | H163: فنى | I163: الاولى | J163: الأولى | K163: فنى كهربائى سيارات | L163: فرع الاسكندرية | M163: 27309230200877 | N163: 211039عصام حامد شعبان محمدالاولىالأولىفنى كهربائى سياراتفرع الاسكندرية | O163: نعم | P163: 1898.04 | Q163: 2220.7068 | R163: 0 | S163: 2997.95 | T163: 333.11 | U163: 0 | V163: 0 | W163: 0 | Y163: 333.10602 | Z163: 300 | AB163: 0 | AD163: 0 | AE163: 0 | AF163: 633.11 | AG163: 66.71 | AH163: 74.31 | AI163: 89.22 | AJ163: 0 | AK163: 190 | AL163: 37.94 | AM163: 67.66 | AN163: 86.88 | AO163: 123.95 | AP163: 132.63 | AQ163: 141.91 | AS163: 94.902 | AT163: 600 | AU163: 10 | AV163: 1716.11 | AW163: 10 | AX163: 0 | AY163: 399.5874 | AZ163: 0 | BB163: 0 | BC163: 8310.57 | BD163: 0 | BE163: 8310.57 | BF163: 0 | BG163: 0 | BJ163: 726.6060742 | BK163: 0 | BL163: 0 | BM163: 0 | BN163: =IF(Sheet1!$BH163=1,Sheet1!$S163*20%,IF(Sheet1!$BH163=2,Sheet1!$S163*100%,IF(Sheet1!$BH163>2,Sheet1!$S163*100%,""))) ->  | BO163: =IF(Sheet1!$BF163<=4,Sheet1!$S163*0,IF(Sheet1!$BF163=5,Sheet1!$S163*20%,IF(Sheet1!$BF163=6,Sheet1!$S163*40%,IF(Sheet1!$BF163=7,Sheet1!$S163*50%,IF(Sheet1!$BF163>7,Sheet1!$S163*100%,""))))) -> 0 | BP163: =IF(Sheet1!$BG163<=2,Sheet1!$S163*0,IF(Sheet1!$BG163=3,Sheet1!$S163*30%,IF(Sheet1!$BG163=4,Sheet1!$S163*40%,IF(Sheet1!$BG163=5,Sheet1!$S163*50%,IF(Sheet1!$BG163>5,Sheet1!$S163*100%,""))))) -> 0 | BQ163: 0 | BR163: 0 | BT163: 3 | BU163: 0 | BX163: 0 | CC163: 0 | CE163: 0 | CG163: 3.17 | CH163: 5 | CI163: 0 | CL163: 0 | CN163: 0 | CO163: =ROUND(IF(G163=#REF!,(BE163-AY163)*40%,0),2) ->  | CP163: 399.5874 | CQ163: 0 | CS163: =ROUND(IF($D163=#REF!,$BE163-SUM(BJ163:CQ163,0),0),2) ->  | CT163: =ROUND(IF($D163=#REF!,$BE163-SUM(BJ163:CQ163,0),0),2) ->  | CU163: =ROUND(IF($G163=#REF!,$BE163-SUM(BK163:CR163,0),0),2) -> 
B164: 211040 | C164: 1276 | D164: بنك مصر 2 | E164: الوحيد عبد العاطى محمد الوسياطه | F164: 0 | G164: دوام كامل | H164: ادارى | I164: الثانية | J164: الثانية | K164: أمين خزينة | L164: فرع الاسكندرية | M164: 26910041800075 | N164: 211040الوحيد عبد العاطى محمد الوسياطهالثانيةالثانيةأمين خزينةفرع الاسكندرية | O164: نعم | P164: 1137.36 | Q164: 1330.7112 | R164: 0 | S164: 1796.46 | T164: 199.61 | U164: 0 | V164: 0 | W164: 0 | Y164: 0 | Z164: 300 | AB164: 0 | AD164: 0 | AE164: 0 | AF164: 300 | AG164: 40.59 | AH164: 40.02 | AI164: 65 | AJ164: 0 | AK164: 190 | AL164: 22.774 | AM164: 40.55 | AN164: 52.06 | AO164: 74.27 | AP164: 79.47 | AQ164: 85.04 | AS164: 56.868 | AT164: 600 | AU164: 10 | AV164: 1356.64 | AW164: 10 | AX164: 0 | AY164: 239.4442 | AZ164: 0 | BB164: 0 | BC164: 5232.87 | BD164: 1767.13 | BE164: 7000 | BF164: 0 | BG164: 0 | BJ164: 567.5747021 | BK164: 0 | BL164: 0 | BM164: 0 | BN164: =IF(Sheet1!$BH164=1,Sheet1!$S164*20%,IF(Sheet1!$BH164=2,Sheet1!$S164*100%,IF(Sheet1!$BH164>2,Sheet1!$S164*100%,""))) ->  | BO164: =IF(Sheet1!$BF164<=4,Sheet1!$S164*0,IF(Sheet1!$BF164=5,Sheet1!$S164*20%,IF(Sheet1!$BF164=6,Sheet1!$S164*40%,IF(Sheet1!$BF164=7,Sheet1!$S164*50%,IF(Sheet1!$BF164>7,Sheet1!$S164*100%,""))))) -> 0 | BP164: =IF(Sheet1!$BG164<=2,Sheet1!$S164*0,IF(Sheet1!$BG164=3,Sheet1!$S164*30%,IF(Sheet1!$BG164=4,Sheet1!$S164*40%,IF(Sheet1!$BG164=5,Sheet1!$S164*50%,IF(Sheet1!$BG164>5,Sheet1!$S164*100%,""))))) -> 0 | BQ164: 0 | BR164: 0 | BT164: 3 | BU164: 0 | BX164: 0 | CC164: 0 | CE164: 0 | CG164: 2.59 | CH164: 3 | CI164: 0 | CL164: 0 | CN164: 0 | CO164: =ROUND(IF(G164=#REF!,(BE164-AY164)*40%,0),2) ->  | CP164: 239.4442 | CQ164: 0 | CS164: =ROUND(IF($D164=#REF!,$BE164-SUM(BJ164:CQ164,0),0),2) ->  | CT164: =ROUND(IF($D164=#REF!,$BE164-SUM(BJ164:CQ164,0),0),2) ->  | CU164: =ROUND(IF($G164=#REF!,$BE164-SUM(BK164:CR164,0),0),2) -> 
B165: 211042 | C165: 1192 | D165: بنك مصر 2 | E165: محمد أحمد حلمي حبشي على | F165: 0 | G165: دوام كامل | H165: فنى | I165: الثانية | J165: الثانية | K165: فني براده | L165: فرع الاسكندرية | M165: 27903200200634 | N165: 211042محمد أحمد حلمي حبشي علىالثانيةالثانيةفني برادهفرع الاسكندرية | O165: نعم | P165: 1091.85 | Q165: 1277.4645 | R165: 0 | S165: 1724.58 | T165: 191.62 | U165: 0 | V165: 0 | W165: 0 | Y165: 191.619675 | Z165: 300 | AB165: 0 | AD165: 0 | AE165: 0 | AF165: 491.62 | AG165: 38.84 | AH165: 43.14 | AI165: 65 | AJ165: 0 | AK165: 190 | AL165: 24.07 | AM165: 38.92 | AN165: 49.98 | AO165: 71.3 | AP165: 76.29 | AQ165: 81.63 | AS165: 54.5925 | AT165: 600 | AU165: 8 | AV165: 1341.76 | AW165: 10 | AX165: 0 | AY165: 229.8632 | AZ165: 0 | BB165: 0 | BC165: 5266.91 | BD165: 1733.09 | BE165: 7000 | BF165: 0 | BG165: 0 | BJ165: 570.2960742 | BK165: 0 | BL165: 0 | BM165: 0 | BN165: =IF(Sheet1!$BH165=1,Sheet1!$S165*20%,IF(Sheet1!$BH165=2,Sheet1!$S165*100%,IF(Sheet1!$BH165>2,Sheet1!$S165*100%,""))) ->  | BO165: =IF(Sheet1!$BF165<=4,Sheet1!$S165*0,IF(Sheet1!$BF165=5,Sheet1!$S165*20%,IF(Sheet1!$BF165=6,Sheet1!$S165*40%,IF(Sheet1!$BF165=7,Sheet1!$S165*50%,IF(Sheet1!$BF165>7,Sheet1!$S165*100%,""))))) -> 0 | BP165: =IF(Sheet1!$BG165<=2,Sheet1!$S165*0,IF(Sheet1!$BG165=3,Sheet1!$S165*30%,IF(Sheet1!$BG165=4,Sheet1!$S165*40%,IF(Sheet1!$BG165=5,Sheet1!$S165*50%,IF(Sheet1!$BG165>5,Sheet1!$S165*100%,""))))) -> 0 | BQ165: 14.1 | BR165: 0 | BT165: 3 | BU165: 0 | BX165: 0 | CC165: 0 | CE165: 0 | CG165: 2.63 | CH165: 3 | CI165: 0 | CL165: 0 | CN165: 0 | CO165: =ROUND(IF(G165=#REF!,(BE165-AY165)*40%,0),2) ->  | CP165: 229.8632 | CQ165: 0 | CS165: =ROUND(IF($D165=#REF!,$BE165-SUM(BJ165:CQ165,0),0),2) ->  | CT165: =ROUND(IF($D165=#REF!,$BE165-SUM(BJ165:CQ165,0),0),2) ->  | CU165: =ROUND(IF($G165=#REF!,$BE165-SUM(BK165:CR165,0),0),2) -> 
B166: 211044 | C166: 1189 | D166: بنك مصر 2 | E166: رجب عبد الستار أحمد عبد الحليم | F166: 0 | G166: دوام كامل | H166: فنى | I166: الثانية | J166: الثانية | K166: ميكانيكى | L166: فرع الاسكندرية | M166: 26610211801612 | N166: 211044رجب عبد الستار أحمد عبد الحليمالثانيةالثانيةميكانيكىفرع الاسكندرية | O166: نعم | P166: 1810.9 | Q166: 2118.753 | R166: 0 | S166: 2860.32 | T166: 317.81 | U166: 0 | V166: 0 | W166: 0 | Y166: 317.81295 | Z166: 300 | AB166: 0 | AD166: 0 | AE166: 0 | AF166: 617.81 | AG166: 63.67 | AH166: 70.91 | AI166: 85.11 | AJ166: 0 | AK166: 190 | AL166: 36.2 | AM166: 64.56 | AN166: 82.89 | AO166: 118.26 | AP166: 126.54 | AQ166: 135.39 | AS166: 90.545 | AT166: 600 | AU166: 10 | AV166: 1674.08 | AW166: 10 | AX166: 0 | AY166: 381.2421 | AZ166: 0 | BB166: 0 | BC166: 7980.02 | BD166: 0 | BE166: 7980.02 | BF166: 0 | BG166: 0 | BJ166: 697.3405957 | BK166: 0 | BL166: 0 | BM166: 0 | BN166: =IF(Sheet1!$BH166=1,Sheet1!$S166*20%,IF(Sheet1!$BH166=2,Sheet1!$S166*100%,IF(Sheet1!$BH166>2,Sheet1!$S166*100%,""))) ->  | BO166: =IF(Sheet1!$BF166<=4,Sheet1!$S166*0,IF(Sheet1!$BF166=5,Sheet1!$S166*20%,IF(Sheet1!$BF166=6,Sheet1!$S166*40%,IF(Sheet1!$BF166=7,Sheet1!$S166*50%,IF(Sheet1!$BF166>7,Sheet1!$S166*100%,""))))) -> 0 | BP166: =IF(Sheet1!$BG166<=2,Sheet1!$S166*0,IF(Sheet1!$BG166=3,Sheet1!$S166*30%,IF(Sheet1!$BG166=4,Sheet1!$S166*40%,IF(Sheet1!$BG166=5,Sheet1!$S166*50%,IF(Sheet1!$BG166>5,Sheet1!$S166*100%,""))))) -> 0 | BQ166: 5.21 | BR166: 0 | BT166: 3 | BU166: 0 | BX166: 0 | CC166: 0 | CE166: 0 | CG166: 3.05 | CH166: 3 | CI166: 0 | CL166: 0 | CN166: 0 | CO166: =ROUND(IF(G166=#REF!,(BE166-AY166)*40%,0),2) ->  | CP166: 381.2421 | CQ166: 0 | CS166: =ROUND(IF($D166=#REF!,$BE166-SUM(BJ166:CQ166,0),0),2) ->  | CT166: =ROUND(IF($D166=#REF!,$BE166-SUM(BJ166:CQ166,0),0),2) ->  | CU166: =ROUND(IF($G166=#REF!,$BE166-SUM(BK166:CR166,0),0),2) -> 
B167: 211045 | C167: 1190 | D167: بنك مصر 2 | E167: وائل شعبان محمد الحارتى | F167: 0 | G167: دوام كامل | H167: فنى | I167: الثانية | J167: الثانية | K167: ميكانيكى | L167: فرع الاسكندرية | M167: 27506231500815 | N167: 211045وائل شعبان محمد الحارتىالثانيةالثانيةميكانيكىفرع الاسكندرية | O167: نعم | P167: 1137.36 | Q167: 1330.7112 | R167: 0 | S167: 1796.46 | T167: 199.61 | U167: 0 | V167: 0 | W167: 0 | Y167: 199.60668 | Z167: 300 | AB167: 0 | AD167: 0 | AE167: 0 | AF167: 499.61 | AG167: 40.59 | AH167: 45.02 | AI167: 65 | AJ167: 0 | AK167: 190 | AL167: 22.74 | AM167: 40.55 | AN167: 52.06 | AO167: 74.27 | AP167: 79.47 | AQ167: 85.04 | AS167: 56.868 | AT167: 600 | AU167: 10 | AV167: 1361.61 | AW167: 10 | AX167: 0 | AY167: 239.4442 | AZ167: 0 | BB167: 0 | BC167: 5437.45 | BD167: 1562.55 | BE167: 7000 | BF167: 0 | BG167: 0 | BJ167: 567.8497021 | BK167: 0 | BL167: 0 | BM167: 0 | BN167: =IF(Sheet1!$BH167=1,Sheet1!$S167*20%,IF(Sheet1!$BH167=2,Sheet1!$S167*100%,IF(Sheet1!$BH167>2,Sheet1!$S167*100%,""))) ->  | BO167: =IF(Sheet1!$BF167<=4,Sheet1!$S167*0,IF(Sheet1!$BF167=5,Sheet1!$S167*20%,IF(Sheet1!$BF167=6,Sheet1!$S167*40%,IF(Sheet1!$BF167=7,Sheet1!$S167*50%,IF(Sheet1!$BF167>7,Sheet1!$S167*100%,""))))) -> 0 | BP167: =IF(Sheet1!$BG167<=2,Sheet1!$S167*0,IF(Sheet1!$BG167=3,Sheet1!$S167*30%,IF(Sheet1!$BG167=4,Sheet1!$S167*40%,IF(Sheet1!$BG167=5,Sheet1!$S167*50%,IF(Sheet1!$BG167>5,Sheet1!$S167*100%,""))))) -> 0 | BQ167: 0 | BR167: 0 | BT167: 3 | BU167: 0 | BX167: 0 | CC167: 0 | CE167: 0 | CG167: 2.6 | CH167: 3 | CI167: 0 | CL167: 0 | CN167: 0 | CO167: =ROUND(IF(G167=#REF!,(BE167-AY167)*40%,0),2) ->  | CP167: 239.4442 | CQ167: 0 | CS167: =ROUND(IF($D167=#REF!,$BE167-SUM(BJ167:CQ167,0),0),2) ->  | CT167: =ROUND(IF($D167=#REF!,$BE167-SUM(BJ167:CQ167,0),0),2) ->  | CU167: =ROUND(IF($G167=#REF!,$BE167-SUM(BK167:CR167,0),0),2) -> 
B168: 211046 | C168: 1289 | D168: بنك مصر 2 | E168: علي عبد المطلب محمد حسين | F168: 0 | G168: دوام كامل | H168: فنى | I168: الثالثة | J168: الثالثة | K168: حرفى لحام | L168: فرع الاسكندرية | M168: 27009241800253 | N168: 211046علي عبد المطلب محمد حسينالثالثةالثالثةحرفى لحامفرع الاسكندرية | O168: نعم | P168: 1092.43 | Q168: 1278.1431 | R168: 0 | S168: 1725.49 | T168: 191.72 | U168: 0 | V168: 0 | W168: 0 | Y168: 191.721465 | Z168: 300 | AB168: 0 | AD168: 0 | AE168: 0 | AF168: 491.72 | AG168: 38.89 | AH168: 43.11 | AI168: 65 | AJ168: 0 | AK168: 200 | AL168: 24.04 | AM168: 38.94 | AN168: 50 | AO168: 71.34 | AP168: 76.33 | AQ168: 81.68 | AS168: 54.6215 | AT168: 600 | AU168: 10 | AV168: 1353.95 | AW168: 10 | AX168: 0 | AY168: 229.9853 | AZ168: 0 | BB168: 0 | BC168: 5281.01 | BD168: 1718.99 | BE168: 7000 | BF168: 0 | BG168: 0 | BJ168: 576.6035107 | BK168: 0 | BL168: 0 | BM168: 0 | BN168: =IF(Sheet1!$BH168=1,Sheet1!$S168*20%,IF(Sheet1!$BH168=2,Sheet1!$S168*100%,IF(Sheet1!$BH168>2,Sheet1!$S168*100%,""))) ->  | BO168: =IF(Sheet1!$BF168<=4,Sheet1!$S168*0,IF(Sheet1!$BF168=5,Sheet1!$S168*20%,IF(Sheet1!$BF168=6,Sheet1!$S168*40%,IF(Sheet1!$BF168=7,Sheet1!$S168*50%,IF(Sheet1!$BF168>7,Sheet1!$S168*100%,""))))) -> 0 | BP168: =IF(Sheet1!$BG168<=2,Sheet1!$S168*0,IF(Sheet1!$BG168=3,Sheet1!$S168*30%,IF(Sheet1!$BG168=4,Sheet1!$S168*40%,IF(Sheet1!$BG168=5,Sheet1!$S168*50%,IF(Sheet1!$BG168>5,Sheet1!$S168*100%,""))))) -> 0 | BQ168: 0 | BR168: 0 | BT168: 3 | BU168: 0 | BX168: 0 | CC168: 0 | CE168: 0 | CG168: 2.63 | CH168: 3 | CI168: 0 | CL168: 0 | CN168: 0 | CO168: =ROUND(IF(G168=#REF!,(BE168-AY168)*40%,0),2) ->  | CP168: 229.9853 | CQ168: 0 | CS168: =ROUND(IF($D168=#REF!,$BE168-SUM(BJ168:CQ168,0),0),2) ->  | CT168: =ROUND(IF($D168=#REF!,$BE168-SUM(BJ168:CQ168,0),0),2) ->  | CU168: =ROUND(IF($G168=#REF!,$BE168-SUM(BK168:CR168,0),0),2) -> 
